Workbook

Sheet Welcome
A1: WELCOME to the LIVABILITY CALCULATOR for TRANSIT CORRIDORS! NOTE: To begin using the calculator, please click the "Enable Content" and "Enable Editing" buttons at the top of this screen, if they appear. This Calculator is designed to numerically describe the livability characteristics of an individual transit corridor. It is based on the Transit Corridor Livability Principles described in TCRP Report 187-A Handbook for Livable Transit Corridors: Methods, Metrics and Strategies. We strongly recommend reading the Handbook—and specifically, the Calculator’s User Manual in Appendix H—to understand how to properly use the Calculator and interpret its outputs. The Handbook and Calculator are both designed for use by metropolitan planning organizations, transit agencies, and other stakeholders with cross-jurisdictional, corridor-wide responsibilities. The Calculator will help corridor stakeholders collaborate to create a vision for its future through corridor goal-setting and strategy selection. To characterize transit corridor livability for your case study corridor, complete the worksheets in the following order (worksheets can be accessed by clicking on the tabs at the bottom of the screen): (1) Inputs: This worksheet allows you to specify your corridor’s area by entering its census block group (CBG) identifiers (IDs). The Calculator then accesses census and other data sources stored at the CBG-level (made up of aggregations of individual census blocks, the most common unit of spatial analysis) for CBGs in most metropolitan areas of the U.S. The primary source of data stored in the Calculator is the Environmental Protection Agency’s Smart Locations Database (SLD) (version 2.0).The Calculator provides data for 10 of the 12 metrics described in the Handbook. To calculate the two remaining metrics—Ridership Balance and Pedestrian Collisions— you will need to acquire the necessary data from your own study area corridor and region, calculate it according to the methods described in Appendix F of the Handbook, and enter the values for these two metrics in fields provided in Step 1B on this worksheet. Use of these two metrics is optional and the Calculator will produce interpretable results without them. (2) Metric Scores: This worksheet displays your corridor's mean (average) values for each livability metric on a bar chart comparing that value to the average scores for the three corridor types studied in the TCRP Report 187 project. (3) Livability Performance: This worksheet contains an additional, informative graphic that shows how your corridor compares to the three main corridor typology categories (Emerging, Transitioning, and Integrated Corridors). (4) Strategy Selection: This worksheet offers a list of policies, programs and strategies intended to facilitate a discussion between stakeholders about how to enhance the livability of your corridor, based on its characteristics. (5) Strategy Summary: This Strategy Summary worksheet displays a table that contains information on the goals and metrics associated with each strategy that you selected on the Strategy Selection worksheet. The "HANDBOOK PAGE REFERENCE" column displays the relevant page number for each strategy. Clicking a hyperlink associated with a strategy will open the Handbook to the relevant page, allowing the user to learn more about this selected strategy. References and Resources If you use The Livability Calculator for your research or reports, please use the following citation: Appleyard, B.; Ferrell, C.E.; Allen, C.; Armusewicz, C.; Schroeder, C.; Casey, E.; Cordova, E.; Frost, A.; and Beheshti, A. (2016). Livability Calculator for the TCRP H-45 Handbook, Building Livable Transit Corridors: Methods, Metrics and Strategies. Transit Cooperative Research Program (TCRP) of the Transportation Research Board (TRB). Washington, D.C. To reference the handbook the calculator is based on, please use the following citation: Ferrell, C. E., Appleyard, B. Taecker, M., et al. (2016). Handbook for Building Livable Transit Corridors: Methods, Metrics and Strategies. Transit Cooperative Research Program (TCRP) Project H-45 of the Transportation Research Board (TRB). Washington, D.C. For more information, please see: http://apps.trb.org/cmsfeed/TRBNetProjectDisplay.asp?ProjectID=3091 http://www.livabilitycalculator.com
N2: TIPS Hovering over any cell with a red triangle in the top-right corner will display a pop-up box showing more information:

Sheet (1) Inputs
A1: STEP 1: DEFINE YOUR STUDY CORRIDOR FOR THE CALCULATOR Here is where you tell the Calculator where your corridor is and what census block groups (CBGs) are within its boundaries. This version of the Livability Calculator contains Smart Locations Database (version 2.0) and pedestrian collision rates (for California only) data for CBGs in most metropolitan areas in the U.S. The Calculator is specifically designed to measure and compare transit corridors that are outside of central business districts (CBDs) in the U.S. It is strongly recommended that you ONLY use the Calculator for transit corridors outside of CBDs. On this worksheet, copy the census block group IDs that you identified for your corridor in Step 1 of the Handbook and paste them into the cells below, starting in cell A12. If necessary, use the "Clear Inputs" button to delete any census block group IDs that may have been left over from previous analysis before pasting your study corridor's IDs. If your input census block group IDs are not formatted as integer values (see diagram in Step 1A), please click the "Format Inputs" button. You may need to manually determine the Ridership Balance and Pedestrian Collision data if you wish to include them as part of your analysis. You may enter these metrics in the input boxes in STEP 1B.
A10: STEP 1A | I10: STEP 1B RIDERSHIP BALANCE The calculator currently does not contain data for ridership balance. If you wish, you may calculate this metric yourself and enter it in the following box (see pages 192 and 193 of the handbook for instructions on how to calculate ridership balance): PEDESTRIAN COLLISIONS The calculator only contains pedestrian collision data for certain census block groups in California. If this data is not available for your input corridor, you may calculate this metric yourself and enter it in the following box (see page 199 of the handbook for instructions on how to calculate pedestrian collisions):
A11: Census Block Group IDs
A12: 60750165004
A13: 60750301014
A14: 60750156002
A15: 60750451003
A16: 60750351002
A17: 60750156001
A18: 60750477022 | B18: NOTE: The FIPs code for census block groups will resemble the following format (without spaces between digits):
A19: 60750477021
A20: 60750327002
A21: 60750302013 | S21: Data not found. Enter your own data here.
A22: 60750158011
A23: 60750478022
A24: 60750302023
A25: 60750479013 | S25: Data found! Enter your data here to override.
A26: 60750477023
A27: 60750302022
A28: 60750326023
A29: 60750158021
A30: 60750157003
A31: 60750351005
A32: 60750479011
A33: 60750327003
A34: 60750452003
A35: 60750352021
A36: 60750326012
A37: 60750303012
A38: 60750352012
A39: 60750352014
A40: 60750301013
A41: 60750476003
A42: 60750479015
A43: 60750165002
A44: 60750327005
A45: 60750165001
A46: 60750451001
A47: 60750452005
A48: 60750352022
A49: 60750156003
A50: 60750478013
A51: 60750158022
A52: 60750451002
A53: 60750302012
A54: 60750351003
A55: 60750326021
A56: 60759803001
A57: 60750326013
A58: 60750352023
A59: 60750352013
A60: 60750326022
A61: 60750165003
A62: 60750476002
A63: 60750327001
A64: 60750303014
A65: 60750158012
A66: 60750157001
A67: 60750478011
A68: 60750157004
A69: 60750327006
A70: 60750452004
A71: 60750479012
A72: 60750452001
A73: 60750157002
A74: 60750159002
A75: 60750351004
A76: 60750452002
A77: 60750302011
A78: 60750301012
A79: 60750476004
A80: 60750302021
A81: 60750326011
A82: 60750478012
A83: 60750479014
A84: 60750351001
A85: 60750166003
A86: 60750327004
A87: 60750303011
A88: 60750327007
A89: 60750124021
A90: 60750158011
A91: 60750161004
A92: 60750160001
A93: 60750158021
A94: 60750159001
A95: 60750158013
A96: 60750124022
A97: 60750158022
A98: 60750158012
A99: 60750157002
A100: 60750159002
A101: 60750124023
A102: 60750161001
A103: 60750354001
A104: 60750329021
A105: 60750352011
A106: 60750326023
A107: 60750329023
A108: 60750351005
A109: 60750328013
A110: 60750329022
A111: 60750328022
A112: 60750352012
A113: 60750303021
A114: 60750327005
A115: 60750351007
A116: 60750329011
A117: 60750326021
A118: 60750353001
A119: 60750328021
A120: 60750352013
A121: 60750303014
A122: 60750351006
A123: 60750327006
A124: 60750329012
A125: 60750352015
A126: 60750328023
A127: 60750354002
A128: 60750353006
A129: 60750303011
A130: 60750165004
A131: 60750301014
A132: 60750166004
A133: 60750301021
A134: 60750305002
A135: 60750301022
A136: 60750302023
A137: 60750204021
A138: 60750302022
A139: 60750301011
A140: 60750303012
A141: 60750301013
A142: 60750165002
A143: 60750165001
A144: 60750171023
A145: 60750158022
A146: 60759803001
A147: 60750305003
A148: 60750165003
A149: 60750303014
A150: 60750305001
A151: 60750303013
A152: 60750157002
A153: 60750301012
A154: 60750166003
A155: 60750303011
A156: 60750124021
A157: 60750124021
A158: 60750124022
A159: 60750166004
A160: 60750171013
A161: 60750301021
A162: 60750305002
A163: 60750158011
A164: 60750161004
A165: 60750160001
A166: 60750204021
A167: 60750158021
A168: 60750204011
A169: 60750171022
A170: 60750301023
A171: 60750162001
A172: 60750301011
A173: 60750159001
A174: 60750165002
A175: 60750158013
A176: 60750166002
A177: 60750165001
A178: 60750171023
A179: 60750204012
A180: 60750124022
A181: 60750158022
A182: 60759803001
A183: 60750165003
A184: 60750158012
A185: 60750171021
A186: 60750305001
A187: 60750157002
A188: 60750159002
A189: 60750161001
A190: 60750171011
A191: 60750171012
A192: 60750166003
A193: 60750328013
A194: 60750328021
A195: 60750301021
A196: 60750301022
A197: 60750328022
A198: 60750303012
A199: 60750303021
A200: 60750328021
A201: 60750303014
A202: 60750303013
A203: 60750303011
A204: 60750124021
A205: 60750124022
A206: 60750176013
A207: 60750176014
A208: 60750178022
... 137 more rows

Sheet (2) Metric Scores
A1: STEP 2: EXPLORE METRIC SCORES This worksheet displays the characteristics of your study corridor as a set of scores, based on the census block group IDs you inserted into the Inputs worksheet. The black diamonds in the graphs below represent the performance of your corridor as “z-score” values (see Handbook for z-score calculation method). A z-score between 0 and 1 includes 33% of all the 250+ corridors in the TCRP Report 187 study; a z-score between 1 and 2 includes an additional 16%; and a z-score above 2 includes the remaining 1%. All together, these account for half of the TCRP Report 187 study corridors (i.e.; the ones that score above the study’s average). The same is true of z-scores that are negative; they include the other 50%. The graphs also show, for reference, the average scores for corridors of all three types studied in this research project—red for Emerging, yellow for Transitioning, and green for Integrated corridors.
G2: Color Legend
G3: Integrated Corridor Metric Mean
G4: Transitioning Corridor Metric Mean
G5: Emerging Corridor Metric Mean
G6: Inputs Corridor Metric Mean
A9: Z-Score Comparison Charts
B24: High-quality transit, walking, and bicycling opportunities | D24: Mixed income housing near transit | G24: Transit-accessible economic opportunities | I24: Accessible social & government services | K24: Vibrant & accessible community, cultural & recreational opportunities | M24: Healthy, safe & walkable transit corridor neighborhoods
A25: Measure | B25: Transit jobs accessibility | C25: Transit service coverage | D25: Housing unaffordability | E25: Income diversity | G25: Jobs density | H25: Retail jobs density | I25: Ridership balance | J25: Health care opportunities | K25: Population density | L25: Access to culture and arts | M25: Pedestrian environment | N25: Pedestrian collisions per 100,000 pedestrians
A26: Score | B26: =IF(ISNUMBER(AVERAGEIF(CorridorInputs!B:B, ">0")), AVERAGEIF(CorridorInputs!B:B, ">0"), "Not available.") -> 50952.95635 | C26: =IF(ISNUMBER(AVERAGEIF(CorridorInputs!C:C, ">0")), AVERAGEIF(CorridorInputs!C:C, ">0"), "Not available.") -> 5519.680089 | D26: =IF(ISNUMBER(AVERAGEIF(CorridorInputs!D:D, ">0")), AVERAGEIF(CorridorInputs!D:D, ">0"), "Not available.") -> 31.70000201 | E26: =IF(ISNUMBER(AVERAGEIF(CorridorInputs!R:R, ">0")), AVERAGEIF(CorridorInputs!R:R, ">0"), "Not available.") -> 0.3757213373 | G26: =IF(ISNUMBER(AVERAGEIF(CorridorInputs!G:G, ">0")), AVERAGEIF(CorridorInputs!G:G, ">0"), "Not available.") -> 29.08999707 | H26: =IF(ISNUMBER(AVERAGEIF(CorridorInputs!H:H, ">0")), AVERAGEIF(CorridorInputs!H:H, ">0"), "Not available.") -> 1.885460151 | I26: =IF(ISNUMBER(UserInputs!C2),UserInputs!C2,"Not available.") -> Not available. | J26: =IF(ISNUMBER(AVERAGEIF(CorridorInputs!J:J, ">0")), AVERAGEIF(CorridorInputs!J:J, ">0"), "Not available.") -> 3.952239511 | K26: =IF(ISNUMBER(AVERAGEIF(CorridorInputs!K:K, "<>0")), AVERAGEIF(CorridorInputs!K:K, "<>0"), "Not available.") -> 40.77941681 | L26: =IF(ISNUMBER(AVERAGEIF(CorridorInputs!L:L, ">0")), AVERAGEIF(CorridorInputs!L:L, ">0"), "Not available.") -> 4.928528989 | M26: =IF(ISNUMBER(AVERAGEIF(CorridorInputs!M:M, ">0")), AVERAGEIF(CorridorInputs!M:M, ">0"), "Not available.") -> 194.1188719 | N26: =IF(ISNUMBER(UserInputs!C3), UserInputs!C3, IF(ISNUMBER(PedCol_Calculations!H2), PedCol_Calculations!H2, "Not available.")) -> 6.484296296
A27: Z-Score | B27: =IF(ISNUMBER(B26), IF(B26 > 0, STANDARDIZE(B26, Metric_Stats!B2, Metric_Stats!B3)), "Not available.") -> 1.953378148 | C27: =IF(ISNUMBER(C26), IF(C26 > 0, STANDARDIZE(C26, Metric_Stats!C2, Metric_Stats!C3)), "Not available.") -> 1.213617889 | D27: =IF(ISNUMBER(D26), IF(D26 > 0, STANDARDIZE(AVERAGEIF(CorridorInputs!P:P, ">0"), Metric_Stats!D2, Metric_Stats!D3)), "Not available.") -> -0.1099589224 | E27: =IF(ISNUMBER(E26), IF(E26 > 0, STANDARDIZE(E26, Metric_Stats!E2, Metric_Stats!E3)), "Not available.") -> 0.2918498218 | G27: =IF(ISNUMBER(G26), IF(G26 > 0, STANDARDIZE(G26, Metric_Stats!F2, Metric_Stats!F3)), "Not available.") -> 1.962643398 | H27: =IF(ISNUMBER(H26), IF(H26 > 0, STANDARDIZE(H26, Metric_Stats!G2, Metric_Stats!G3)), "Not available.") -> 0.0953505892 | I27: =IF( ISNUMBER(I26), IF(I26 > 0, STANDARDIZE(I26, Metric_Stats!H2, Metric_Stats!H3)), "Not available.") -> Not available. | J27: =IF(ISNUMBER(J26), IF(J26 > 0, STANDARDIZE(J26, Metric_Stats!I2, Metric_Stats!I3)), "Not available.") -> 1.207738865 | K27: =IF(ISNUMBER(K26), IF(K26 > 0, STANDARDIZE(K26, Metric_Stats!J2, Metric_Stats!J3)), "Not available.") -> 1.85800772 | L27: =IF(ISNUMBER(L26), IF(L26 > 0, STANDARDIZE(L26, Metric_Stats!K2, Metric_Stats!K3)), "Not available.") -> 2.01023701 | M27: =IF(ISNUMBER(M26), IF(M26 > 0, STANDARDIZE(M26, Metric_Stats!L2, Metric_Stats!L3)), "Not available.") -> 2.026959842 | N27: =IF( ISNUMBER(N26), -1*STANDARDIZE(N26, Metric_Stats!M2, Metric_Stats!M3), "Not available.") -> 0.3336218047
A29: Principle Score | B29: =IF(ISNUMBER(AVERAGE(B27:C27)), AVERAGE(B27:C27), "Not available.") -> 1.583498018 | D29: =IF(ISNUMBER(AVERAGE(D27:E27)), AVERAGE(D27:E27), "Not available.") -> 0.09094544971 | G29: =IF(ISNUMBER(AVERAGE(G27:H27)), AVERAGE(G27:H27), "Not available.") -> 1.028996993 | I29: =IF(ISNUMBER(AVERAGE(I27:J27)), AVERAGE(I27:J27), "Not available.") -> 1.207738865 | K29: =IF(ISNUMBER(AVERAGE(K27:L27)), AVERAGE(K27:L27), "Not available.") -> 1.934122365 | M29: =IF(ISNUMBER(AVERAGE(M27:N27)), AVERAGE(M27:N27), "Not available.") -> 1.180290823
I30: =IF(ISNUMBER(I26), "", "NOTE: Balance of flow data must be entered manually.") -> NOTE: Balance of flow data must be entered manually. | N30: =IF(ISNUMBER(N26), "", "NOTE: Pedestrian collision data is only available for California.") -> 
K34: `

Sheet (3) Livability Performance
A1: STEP 3: LIVABILITY PERFORMANCE GRAPH The chart on the right in this worksheet plots the performance of your study corridor in relation to the three corridor types (Emerging, Transitioning, and Integrated) described in the Handbook, based on the census block groups you inserted into the Inputs worksheet. Each axis of the chart represents one of the six Transit Corridor Livability Principles. The red area of the chart delineates the range of performance for Emerging Corridors, the yellow area delineates the range for Transitioning Corridors, and the green area delineates the range for Integrated Corridors. The black line in the chart denotes your study area. When the black line is in the green area of the chart, your corridor is close to the average for Integrated corridors for that Principle, when the black line is in the yellow area, your corridor is close to the average for Transitioning corridors for that Principle, and when it is in the red area your corridor is close to the average for Emerging corridors for that Principle.
I2: Color Legend
I3: Integrated Corridor Mean Z-Score
I4: Transitioning Corridor Mean Z-Score
I5: Emerging Corridor Mean Z-Score
I6: Input Corridor Mean Z-Score
A10: CORRIDOR TYPE: INTEGRATED
A13: LIVABILITY PRINCIPLE | B13: EMERGING CORRIDOR MEAN Z-SCORE | C13: TRANSITIONING CORRIDOR MEAN Z-SCORE | D13: INTEGRATED CORRIDOR MEAN Z-SCORE | E13: INPUT CENSUS BLOCK GROUPs MEAN Z-SCORE
A14: High-quality transit, walking, and bicycling opportunities | B14: =Typology_Means!E18 -> -0.5418203316 | C14: =Typology_Means!G18 -> 0.1509255182 | D14: =Typology_Means!I18 -> 1.828608267 | E14: ='(2) Metric Scores'!B29 -> 1.583498018
A15: Mixed income housing near transit | B15: =Typology_Means!E19 -> -0.1517737128 | C15: =Typology_Means!G19 -> 0.09996493484 | D15: =Typology_Means!I19 -> 0.3492928526 | E15: ='(2) Metric Scores'!D29 -> 0.09094544971
A16: Transit-accessible economic opportunities | B16: =Typology_Means!E20 -> -0.2581896552 | C16: =Typology_Means!G20 -> 0.007614942529 | D16: =Typology_Means!I20 -> 1.070833333 | E16: ='(2) Metric Scores'!G29 -> 1.028996993
A17: Accessible social & government services | B17: =Typology_Means!E21 -> -0.5054347826 | C17: =Typology_Means!G21 -> 0.25 | D17: =Typology_Means!I21 -> 1.391304348 | E17: ='(2) Metric Scores'!I29 -> 1.207738865
A18: Vibrant & accessible community, cultural & recreational opportunities | B18: =Typology_Means!E22 -> -0.5188127274 | C18: =Typology_Means!G22 -> 0.1022451911 | D18: =Typology_Means!I22 -> 1.888414532 | E18: ='(2) Metric Scores'!K29 -> 1.934122365
A19: Healthy, safe & walkable transit corridor neighborhoods | B19: =Typology_Means!E23 -> -0.7706692443 | C19: =Typology_Means!G23 -> 0.1032179266 | D19: =Typology_Means!I23 -> 1.019878421 | E19: ='(2) Metric Scores'!M29 -> 1.180290823

Sheet (4) Strategy Selection
A1: STEP 4: SELECT STRATEGIES TO ADDRESS METRIC PERFORMANCE This worksheet allows you to assess the characteristics of your corridor across all livability metrics. Place your cursor over the small red triangle at the top right corner of the metric in order to read its definition. Select strategies here (by clicking the checkboxes) in order to address concerns about your corridor’s characteristics. Proceed to the next worksheet to view a summary of the selected strategies. Metrics colored in red indicate a Principle where your corridor is consistent with Emerging corridors, metrics colored in yellow indicate a Principle where your corridor is consistent with Transitioning corridors, and metrics colored in green indicate a Principle where your corridor is consistent with Integrated Corridors.
E2: Color Legend
E3: Integrated Corridor
E4: Transitioning Corridor
E5: Emerging Corridor
E6: Data Not Available
A15: PRINCIPLE | B15: METRIC PERFORMANCE | C15: SELECTED STRATEGIES
A16: High-quality transit, walking, and bicycling opportunities | B16: Transit jobs accessibility
B17: Transit service coverage
A18: Mixed income housing near transit | B18: Housing unaffordability
B19: Income diversity
A20: Transit-accessible economic opportunities | B20: Job density
B21: Retail job density
A22: Accessible & Integrated social & government services | B22: Ridership Balance
B23: Health care opportunities
A24: Vibrant & accessible community, cultural & recreational opportunities | B24: Population density
B25: Access to culture & arts
A26: Healthy, safe & walkable transit corridor neighborhoods | B26: Pedestrian environment
B27: Pedestrian collisions per 100,000 pedestrians

Sheet (5) Strategy Summary
A1: STEP 5: VIEW SELECTED STRATEGIES This worksheet displays all the strategies you selected on the previous worksheet, as well as the livability goals they typically support. Clicking a hyperlink in the "HANDBOOK PAGE REFERENCE" column will open the Handbook to the relevant page, allowing you to learn more about the selected strategy. ATTENTION: Please make sure the Handbook (PDF) file is in the same folder on your computer’s hard drive as the Calculator. Each hyperlink will open a new window in Adobe Reader. Please close unwanted windows to avoid complications.
A10: STRATEGY | B10: HANDBOOK PAGE REFERENCE | C10: NUM. OF GOALS COVERED | D10: GOALS COVERED | E10: NUM. OF PRINCIPLES COVERED | F10: PRINCIPLES COVERED

Sheet STRATEGIES_TABLE (hidden)
A1: PRINCIPLE | B1: GOAL | C1: GOAL DESCRIPTION | D1: STRATEGIES | E1: PAGE
A2: High-quality transit, walking, and bicycling opportunities | B2: Regional Access | C2: Integrate corridor transit, non-motorized modes, and land uses to provide convenient access to economic, social, and other livability opportunities. | D2: Connected Network Planning | E2: 65
A3: High-quality transit, walking, and bicycling opportunities | B3: Regional Access | C3: Integrate corridor transit, non-motorized modes, and land uses to provide convenient access to economic, social, and other livability opportunities. | D3: Circuitous Route Retrofits | E3: 65
A4: High-quality transit, walking, and bicycling opportunities | B4: Regional Access | C4: Integrate corridor transit, non-motorized modes, and land uses to provide convenient access to economic, social, and other livability opportunities. | D4: Transit Frequency and Reliability | E4: 68
A5: High-quality transit, walking, and bicycling opportunities | B5: Regional Access | C5: Integrate corridor transit, non-motorized modes, and land uses to provide convenient access to economic, social, and other livability opportunities. | D5: Last-Mile Shuttles | E5: 68
A6: High-quality transit, walking, and bicycling opportunities | B6: Regional Access | C6: Integrate corridor transit, non-motorized modes, and land uses to provide convenient access to economic, social, and other livability opportunities. | D6: Jobs-Housing Alignment | E6: 76
A7: High-quality transit, walking, and bicycling opportunities | B7: Regional Access | C7: Integrate corridor transit, non-motorized modes, and land uses to provide convenient access to economic, social, and other livability opportunities. | D7: Activity Center Master Plans | E7: 75
A8: High-quality transit, walking, and bicycling opportunities | B8: Regional Access | C8: Integrate corridor transit, non-motorized modes, and land uses to provide convenient access to economic, social, and other livability opportunities. | D8: Regional Competitiveness | E8: 72
A9: High-quality transit, walking, and bicycling opportunities | B9: Regional Access | C9: Integrate corridor transit, non-motorized modes, and land uses to provide convenient access to economic, social, and other livability opportunities. | D9: Station Area Profiles (to identify jobs or housing growth opportunities) | E9: 90
A10: High-quality transit, walking, and bicycling opportunities | B10: Regional Access | C10: Integrate corridor transit, non-motorized modes, and land uses to provide convenient access to economic, social, and other livability opportunities. | D10: Compact Development | E10: 66
A11: High-quality transit, walking, and bicycling opportunities | B11: Connectivity | C11: Promote pedestrian and bicycle routes that are offer reasonably direct routes to local destinations and transit stations/stops. | D11: Connected Network Planning | E11: 65
A12: High-quality transit, walking, and bicycling opportunities | B12: Connectivity | C12: Promote pedestrian and bicycle routes that are offer reasonably direct routes to local destinations and transit stations/stops. | D12: Circuitous Route Retrofits | E12: 65
A13: High-quality transit, walking, and bicycling opportunities | B13: Connectivity | C13: Promote pedestrian and bicycle routes that are offer reasonably direct routes to local destinations and transit stations/stops. | D13: Complete Streets | E13: 83
A14: High-quality transit, walking, and bicycling opportunities | B14: Connectivity | C14: Promote pedestrian and bicycle routes that are offer reasonably direct routes to local destinations and transit stations/stops. | D14: Last-Mile Shuttles | E14: 68
A15: High-quality transit, walking, and bicycling opportunities | B15: Connectivity | C15: Promote pedestrian and bicycle routes that are offer reasonably direct routes to local destinations and transit stations/stops. | D15: Pedestrian and Bicycle Network Maintenance | E15: 84
A16: High-quality transit, walking, and bicycling opportunities | B16: Demand Management | C16: Encourage travel decisions that favor alternatives to the car and optimize use of available transit capacity. | D16: Alternative Modes | E16: 66
A17: High-quality transit, walking, and bicycling opportunities | B17: Demand Management | C17: Encourage travel decisions that favor alternatives to the car and optimize use of available transit capacity. | D17: Circuitous Route Retrofits | E17: 65
A18: High-quality transit, walking, and bicycling opportunities | B18: Demand Management | C18: Encourage travel decisions that favor alternatives to the car and optimize use of available transit capacity. | D18: Parking Management and Requirements | E18: 67
A19: High-quality transit, walking, and bicycling opportunities | B19: Demand Management | C19: Encourage travel decisions that favor alternatives to the car and optimize use of available transit capacity. | D19: Transit Pass Subsidies | E19: 67
A20: High-quality transit, walking, and bicycling opportunities | B20: Demand Management | C20: Encourage travel decisions that favor alternatives to the car and optimize use of available transit capacity. | D20: Zoning Overlay Districts | E20: 85
A21: Mixed income housing near transit | B21: Affordability | C21: Provide sufficient affordable housing that fits the needs of an area’s workforce, disabled, elderly, and low-income residents, and offers affordable transportation options. | D21: Location Efficiency | E21: 68
A22: Mixed income housing near transit | B22: Affordability | C22: Provide sufficient affordable housing that fits the needs of an area’s workforce, disabled, elderly, and low-income residents, and offers affordable transportation options. | D22: Transit Pass Subsidies | E22: 67
A23: Mixed income housing near transit | B23: Affordability | C23: Provide sufficient affordable housing that fits the needs of an area’s workforce, disabled, elderly, and low-income residents, and offers affordable transportation options. | D23: Housing Production & Targets | E23: 70
A24: Mixed income housing near transit | B24: Affordability | C24: Provide sufficient affordable housing that fits the needs of an area’s workforce, disabled, elderly, and low-income residents, and offers affordable transportation options. | D24: Regulatory Streamlining | E24: 70
A25: Mixed income housing near transit | B25: Affordability | C25: Provide sufficient affordable housing that fits the needs of an area’s workforce, disabled, elderly, and low-income residents, and offers affordable transportation options. | D25: Inclusionary Housing | E25: 71
A26: Mixed income housing near transit | B26: Affordability | C26: Provide sufficient affordable housing that fits the needs of an area’s workforce, disabled, elderly, and low-income residents, and offers affordable transportation options. | D26: Local Housing Trust Funds | E26: 71
A27: Mixed income housing near transit | B27: Affordability | C27: Provide sufficient affordable housing that fits the needs of an area’s workforce, disabled, elderly, and low-income residents, and offers affordable transportation options. | D27: Anti-Displacement Strategies | E27: 71
A28: Mixed income housing near transit | B28: Affordability | C28: Provide sufficient affordable housing that fits the needs of an area’s workforce, disabled, elderly, and low-income residents, and offers affordable transportation options. | D28: Land Assemblage & Joint Development | E28: 73
A29: Mixed income housing near transit | B29: Affordability | C29: Provide sufficient affordable housing that fits the needs of an area’s workforce, disabled, elderly, and low-income residents, and offers affordable transportation options. | D29: Station Area Profiles (development site identification) | E29: 90
A30: Mixed income housing near transit | B30: Variety | C30: Allow and encourage diverse housing options that reflect the variety of households and housing needs along a corridor. | D30: Housing Production & Targets | E30: 70
A31: Mixed income housing near transit | B31: Variety | C31: Allow and encourage diverse housing options that reflect the variety of households and housing needs along a corridor. | D31: Regulatory Streamlining | E31: 70
A32: Mixed income housing near transit | B32: Variety | C32: Allow and encourage diverse housing options that reflect the variety of households and housing needs along a corridor. | D32: Inclusionary Housing | E32: 71
A33: Mixed income housing near transit | B33: Variety | C33: Allow and encourage diverse housing options that reflect the variety of households and housing needs along a corridor. | D33: Local Housing Trust Funds | E33: 71
A34: Mixed income housing near transit | B34: Variety | C34: Allow and encourage diverse housing options that reflect the variety of households and housing needs along a corridor. | D34: Anti-Displacement Strategies | E34: 71
A35: Mixed income housing near transit | B35: Variety | C35: Allow and encourage diverse housing options that reflect the variety of households and housing needs along a corridor. | D35: Land Assemblage & Joint Development | E35: 73
A36: Mixed income housing near transit | B36: Variety | C36: Allow and encourage diverse housing options that reflect the variety of households and housing needs along a corridor. | D36: Form-Based Codes (housing type flexibility) | E36: 84
A37: Mixed income housing near transit | B37: Variety | C37: Allow and encourage diverse housing options that reflect the variety of households and housing needs along a corridor. | D37: Station Area Profiles (development site identification) | E37: 90
A38: Transit-accessible economic opportunities | B38: Jobs and Housing | C38: Offer a range of employment opportunities and align jobs along the corridor with the skills of residents who live, or may live, along the corridor. | D38: Mix of Uses | E38: 58
A39: Transit-accessible economic opportunities | B39: Jobs and Housing | C39: Offer a range of employment opportunities and align jobs along the corridor with the skills of residents who live, or may live, along the corridor. | D39: Jobs-Housing Alignment | E39: 76
A40: Transit-accessible economic opportunities | B40: Jobs and Housing | C40: Offer a range of employment opportunities and align jobs along the corridor with the skills of residents who live, or may live, along the corridor. | D40: Activity Center Master Plans | E40: 75
A41: Transit-accessible economic opportunities | B41: Jobs and Housing | C41: Offer a range of employment opportunities and align jobs along the corridor with the skills of residents who live, or may live, along the corridor. | D41: Station Area Profiles (to identify jobs or housing growth opportunities) | E41: 90
A42: Transit-accessible economic opportunities | B42: Vitality and Growth | C42: Promote economically and culturally vibrant corridor districts. Structure new growth along transit corridors and away from sensitive land. | D42: Compact Development | E42: 66
A43: Transit-accessible economic opportunities | B43: Vitality and Growth | C43: Promote economically and culturally vibrant corridor districts. Structure new growth along transit corridors and away from sensitive land. | D43: Regional Competitiveness | E43: 72
A44: Transit-accessible economic opportunities | B44: Vitality and Growth | C44: Promote economically and culturally vibrant corridor districts. Structure new growth along transit corridors and away from sensitive land. | D44: Financial Feasibility and Incentives | E44: 73
A45: Transit-accessible economic opportunities | B45: Vitality and Growth | C45: Promote economically and culturally vibrant corridor districts. Structure new growth along transit corridors and away from sensitive land. | D45: Land Assemblage & Joint Development | E45: 73
A46: Transit-accessible economic opportunities | B46: Vitality and Growth | C46: Promote economically and culturally vibrant corridor districts. Structure new growth along transit corridors and away from sensitive land. | D46: District-Financing and Value Capture | E46: 74
A47: Transit-accessible economic opportunities | B47: Vitality and Growth | C47: Promote economically and culturally vibrant corridor districts. Structure new growth along transit corridors and away from sensitive land. | D47: Social Investments | E47: 79
A48: Transit-accessible economic opportunities | B48: Vitality and Growth | C48: Promote economically and culturally vibrant corridor districts. Structure new growth along transit corridors and away from sensitive land. | D48: Station Area Profiles (for economic trends & opportunities) | E48: 90
A49: Transit-accessible economic opportunities | B49: Reuse | C49: Encourage the reuse of previously developed land that has become vacant or underutilized. | D49: Financial Feasibility and Incentives | E49: 73
A50: Transit-accessible economic opportunities | B50: Reuse | C50: Encourage the reuse of previously developed land that has become vacant or underutilized. | D50: Land Assemblage & Joint Development | E50: 73
A51: Transit-accessible economic opportunities | B51: Reuse | C51: Encourage the reuse of previously developed land that has become vacant or underutilized. | D51: District-Financing and Value Capture | E51: 74
A52: Transit-accessible economic opportunities | B52: Reuse | C52: Encourage the reuse of previously developed land that has become vacant or underutilized. | D52: Predevelopment Assistance | E52: 74
A53: Transit-accessible economic opportunities | B53: Reuse | C53: Encourage the reuse of previously developed land that has become vacant or underutilized. | D53: Social Investments | E53: 79
A54: Accessible social & government services | B54: Essential Services | C54: Provide convenient transit access to health care and other essential social services. | D54: Partnerships with Service Providers | E54: 79
A55: Accessible social & government services | B55: Essential Services | C55: Provide convenient transit access to health care and other essential social services. | D55: Accessible Community Services | E55: 80
A56: Accessible social & government services | B56: Essential Services | C56: Provide convenient transit access to health care and other essential social services. | D56: Connected Network Planning | E56: 65
A57: Accessible social & government services | B57: Essential Services | C57: Provide convenient transit access to health care and other essential social services. | D57: Last-Mile Shuttles | E57: 68
A58: Accessible social & government services | B58: Infrastructure and Government Services | C58: Promote effective and safe infrastructure and other government services, while supporting other livability goals. | D58: Compact Development | E58: 66
A59: Accessible social & government services | B59: Infrastructure and Government Services | C59: Promote effective and safe infrastructure and other government services, while supporting other livability goals. | D59: Efficient Infrastructure & Services | E59: 80
A60: Accessible social & government services | B60: Infrastructure and Government Services | C60: Promote effective and safe infrastructure and other government services, while supporting other livability goals. | D60: Community Safety | E60: 80
A61: Accessible social & government services | B61: Infrastructure and Government Services | C61: Promote effective and safe infrastructure and other government services, while supporting other livability goals. | D61: Walk & Bike Safety Audits | E61: 83
A62: Accessible social & government services | B62: Infrastructure and Government Services | C62: Promote effective and safe infrastructure and other government services, while supporting other livability goals. | D62: Crime Prevention through Environmental Design | E62: 85
A63: Vibrant & accessible community, cultural & recreational opportunities | B63: Recreation & Community Facilities | C63: Provide small parks, other recreation and community opportunities & schools within walking distance of most transit-oriented homes, and provide schools as well as larger parks and recreation facilities along transit corridors while maintaining compact walkable development near transit stations/stops. | D63: Recreation and Open Space | E63: 82
A64: Vibrant & accessible community, cultural & recreational opportunities | B64: Recreation & Community Facilities | C64: Provide small parks, other recreation and community opportunities & schools within walking distance of most transit-oriented homes, and provide schools as well as larger parks and recreation facilities along transit corridors while maintaining compact walkable development near transit stations/stops. | D64: Mix of Uses | E64: 58
A65: Vibrant & accessible community, cultural & recreational opportunities | B65: Recreation & Community Facilities | C65: Provide small parks, other recreation and community opportunities & schools within walking distance of most transit-oriented homes, and provide schools as well as larger parks and recreation facilities along transit corridors while maintaining compact walkable development near transit stations/stops. | D65: Connected Network Planning | E65: 65
A66: Vibrant & accessible community, cultural & recreational opportunities | B66: Recreation & Community Facilities | C66: Provide small parks, other recreation and community opportunities & schools within walking distance of most transit-oriented homes, and provide schools as well as larger parks and recreation facilities along transit corridors while maintaining compact walkable development near transit stations/stops. | D66: Station Area Profiles (to identify underserved areas) | E66: 90
A67: Vibrant & accessible community, cultural & recreational opportunities | B67: Cultural Enrichment | C67: Offer opportunities for cultural enrichment. | D67: Public Art | E67: 81
A68: Vibrant & accessible community, cultural & recreational opportunities | B68: Cultural Enrichment | C68: Offer opportunities for cultural enrichment. | D68: Cultural Destinations | E68: 81
A69: Vibrant & accessible community, cultural & recreational opportunities | B69: Cultural Enrichment | C69: Offer opportunities for cultural enrichment. | D69: District Revitalization | E69: 82
A70: Vibrant & accessible community, cultural & recreational opportunities | B70: Context-Sensitive Design | C70: Respect historic, scenic and other characteristics of established districts that are important for aesthetic cohesion and community identity. Integrate historic and other cultural resources when possible. | D70: District Revitalization | E70: 82
A71: Vibrant & accessible community, cultural & recreational opportunities | B71: Context-Sensitive Design | C71: Respect historic, scenic and other characteristics of established districts that are important for aesthetic cohesion and community identity. Integrate historic and other cultural resources when possible. | D71: Sense-of-Place Guidelines | E71: 83
A72: Vibrant & accessible community, cultural & recreational opportunities | B72: Context-Sensitive Design | C72: Respect historic, scenic and other characteristics of established districts that are important for aesthetic cohesion and community identity. Integrate historic and other cultural resources when possible. | D72: Form-Based Codes | E72: 84
A73: Vibrant & accessible community, cultural & recreational opportunities | B73: Context-Sensitive Design | C73: Respect historic, scenic and other characteristics of established districts that are important for aesthetic cohesion and community identity. Integrate historic and other cultural resources when possible. | D73: Station Area Profiles (to identify cultural assets) | E73: 90
A74: Healthy, safe & walkable transit corridor neighborhoods | B74: Mix of Uses | C74: Provide retail conveniences, recreation, basic services and cultural destinations close to transit stations/stops and within walking distance of most homes and jobs. | D74: Compact Development | E74: 66
A75: Healthy, safe & walkable transit corridor neighborhoods | B75: Mix of Uses | C75: Provide retail conveniences, recreation, basic services and cultural destinations close to transit stations/stops and within walking distance of most homes and jobs. | D75: Form-Based Codes | E75: 84
A76: Healthy, safe & walkable transit corridor neighborhoods | B76: Mix of Uses | C76: Provide retail conveniences, recreation, basic services and cultural destinations close to transit stations/stops and within walking distance of most homes and jobs. | D76: TOD Guidelines | E76: 62
A77: Healthy, safe & walkable transit corridor neighborhoods | B77: Mix of Uses | C77: Provide retail conveniences, recreation, basic services and cultural destinations close to transit stations/stops and within walking distance of most homes and jobs. | D77: Zoning Overlay Districts | E77: 85
A78: Healthy, safe & walkable transit corridor neighborhoods | B78: Mix of Uses | C78: Provide retail conveniences, recreation, basic services and cultural destinations close to transit stations/stops and within walking distance of most homes and jobs. | D78: Cultural Destinations | E78: 81
A79: Healthy, safe & walkable transit corridor neighborhoods | B79: Mix of Uses | C79: Provide retail conveniences, recreation, basic services and cultural destinations close to transit stations/stops and within walking distance of most homes and jobs. | D79: Recreation & Open Space | E79: 82
A80: Healthy, safe & walkable transit corridor neighborhoods | B80: Mix of Uses | C80: Provide retail conveniences, recreation, basic services and cultural destinations close to transit stations/stops and within walking distance of most homes and jobs. | D80: Activity Center Master Plans | E80: 75
A81: Healthy, safe & walkable transit corridor neighborhoods | B81: Walking and Biking Environments | C81: Provide pedestrian and bicycling paths that are safe and attractive, and support community life. | D81: Complete Streets | E81: 83
A82: Healthy, safe & walkable transit corridor neighborhoods | B82: Walking and Biking Environments | C82: Provide pedestrian and bicycling paths that are safe and attractive, and support community life. | D82: Connected Network Planning | E82: 65
A83: Healthy, safe & walkable transit corridor neighborhoods | B83: Walking and Biking Environments | C83: Provide pedestrian and bicycling paths that are safe and attractive, and support community life. | D83: Walk & Bike Safety Audits | E83: 83
A84: Healthy, safe & walkable transit corridor neighborhoods | B84: Walking and Biking Environments | C84: Provide pedestrian and bicycling paths that are safe and attractive, and support community life. | D84: Traffic Calming | E84: 84
A85: Healthy, safe & walkable transit corridor neighborhoods | B85: Walking and Biking Environments | C85: Provide pedestrian and bicycling paths that are safe and attractive, and support community life. | D85: Pedestrian & Bicycle Network Maintenance | E85: 84
A86: Healthy, safe & walkable transit corridor neighborhoods | B86: Walking and Biking Environments | C86: Provide pedestrian and bicycling paths that are safe and attractive, and support community life. | D86: Community Safety | E86: 80
A87: Healthy, safe & walkable transit corridor neighborhoods | B87: Walking and Biking Environments | C87: Provide pedestrian and bicycling paths that are safe and attractive, and support community life. | D87: Crime Prevention through Environmental Design | E87: 85
A88: Healthy, safe & walkable transit corridor neighborhoods | B88: Street-Oriented Buildings | C88: Line streets with building facades that have generous windows, frequent entrances, and attractive features, and generally avoid parking lots or blank walls along streets. Enhance connectivity with building entrances that face streets or are connected to the circulation network via a pedestrian path. | D88: Form-Based Codes | E88: 84
A89: Healthy, safe & walkable transit corridor neighborhoods | B89: Street-Oriented Buildings | C89: Line streets with building facades that have generous windows, frequent entrances, and attractive features, and generally avoid parking lots or blank walls along streets. Enhance connectivity with building entrances that face streets or are connected to the circulation network via a pedestrian path. | D89: TOD Guidelines | E89: 62
A90: Healthy, safe & walkable transit corridor neighborhoods | B90: Street-Oriented Buildings | C90: Line streets with building facades that have generous windows, frequent entrances, and attractive features, and generally avoid parking lots or blank walls along streets. Enhance connectivity with building entrances that face streets or are connected to the circulation network via a pedestrian path. | D90: Zoning Overlay Districts | E90: 85
A91: Healthy, safe & walkable transit corridor neighborhoods | B91: Street-Oriented Buildings | C91: Line streets with building facades that have generous windows, frequent entrances, and attractive features, and generally avoid parking lots or blank walls along streets. Enhance connectivity with building entrances that face streets or are connected to the circulation network via a pedestrian path. | D91: Crime Prevention through Environmental Design | E91: 85
A92: Transit-accessible economic opportunities | B92: Vitality and Growth | C92: No data | D92: Financial Feasibility & Joint Development | E92: 73
A93: blank | B93: blank | C93: blank | D93: blank | E93: blank

Sheet TCLMetrics (hidden)
B1: High-quality transit, walking, and bicycling opportunities | D1: Mixed income housing near transit | F1: Transit-accessible economic opportunities | I1: Accessible & Integrated social & government services | K1: Vibrant & accessible community, cultural & recreational opportunities | M1: Healthy, safe & walkable transit corridor neighborhoods
A2: Measure | B2: Transit employment accessibility | C2: Transit service coverage | D2: Housing unaffordability | E2: Income diversity | F2: Jobs density | G2: Retail jobs density | H2: Corridor transit cost per person-mile traveled | I2: Transit BOF | J2: Health care opportunities | K2: Corridor density (population/acre) | L2: Access to culture & arts | M2: Corridor pedestrian environment | N2: Corridor pedestrian collisions per capita
A3: Metric | B3: D2a_EpHHm | C3: D4d | D3: hh_type1_h | E3: Income Over Rep | F3: D1c | G3: D1c5_Ret10 | I3: ????? | J3: D1c8_Hlth10 | K3: TotPop /Ac_Land | L3: D1c5_Ent10 | M3: D3b | N3: SWITERS (CA only)
B4: Average | C4: Average | D4: Average | E4: Average | F4: Average | G4: Average | H4: Average | J4: Average | K4: Average | L4: Average | M4: Average
A5: Average | B5: =AVERAGEIF(CorridorInputs!B:B, ">0") -> 50952.95635 | C5: =AVERAGEIF(CorridorInputs!C:C, ">0") -> 5519.680089 | D5: =AVERAGEIF(CorridorInputs!D:D, ">0") -> 31.70000201 | E5: =AVERAGEIF(CorridorInputs!E:E, ">0") -> 0.1875646006 | F5: =AVERAGEIF(CorridorInputs!G:G, ">0") -> 29.08999707 | G5: =AVERAGEIF(CorridorInputs!H:H, ">0") -> 1.885460151 | J5: =AVERAGEIF(CorridorInputs!J:J, ">0") -> 3.952239511 | K5: =AVERAGEIF(CorridorInputs!K:K, "<>0") -> 40.77941681 | L5: =AVERAGEIF(CorridorInputs!L:L, ">0") -> 4.928528989 | M5: =AVERAGEIF(CorridorInputs!M:M, ">0") -> 194.1188719 | N5: ???????
A6: Z-Score Norm. | B6: =IF(B5 > 0, STANDARDIZE(B5, AVERAGE(SLD_D2A_EPHHM), STDEV(SLD_D2A_EPHHM))) -> 213261.6876 | C6: =IF(C5 > 0, STANDARDIZE(C5, AVERAGE(SLD_D4D), STDEV(SLD_D4D))) -> 0.01475939677 | D6: =IF(D5 > 0, STANDARDIZE(D5, AVERAGE(SLD_HH_TYPE1_H), STDEV(SLD_HH_TYPE1_H))) -> 0.4089976406 | E6: =IF(E5 > 0, STANDARDIZE(E5, AVERAGE(INCOME_IOR), STDEV(INCOME_IOR))) -> -0.2358388878 | F6: =IF(F5 > 0, STANDARDIZE(F5, AVERAGE(SLD_D1C), STDEV(SLD_D1C))) -> 1.101112362 | G6: =IF(G5 > 0, STANDARDIZE(G5, AVERAGE(SLD_D1C5_RET10), STDEV(SLD_D1C5_RET10))) -> 0.7582938629 | H6: =IF(H5 > 0, STANDARDIZE(H5, AVERAGE(SLD_D2A_EPHHM), STDEV(SLD_D2A_EPHHM))) -> FALSE | J6: =IF(J5 > 0, STANDARDIZE(J5, AVERAGE(SLD_D1C8_HLTH1), STDEV(SLD_D1C8_HLTH1))) -> 0.5024124683 | K6: =IF(K5 > 0, STANDARDIZE(K5, AVERAGE(SLD_TOTPOP_BY_AC_LAND), STDEV(SLD_TOTPOP_BY_AC_LAND))) -> 0.05042152985 | L6: =IF(L5 > 0, STANDARDIZE(L5, AVERAGE(SLD_D1C5_ENT10), STDEV(SLD_D1C5_ENT10))) -> 1.107258549 | M6: =IF(M5 > 0, STANDARDIZE(M5, AVERAGE(SLD_D3B), STDEV(SLD_D3B))) -> 2.030075941
A8: Principle Score | B8: =SUM(B6:C6) / COUNTA(B6:C6) -> 106630.8512 | D8: =SUM(D6:E6) / COUNTA(D6:E6) -> 0.08657937642 | F8: =SUM(F6:G6) / COUNTA(F6:G6) -> 0.9297031127 | J8: =SUM(J6) / 1 -> 0.5024124683 | K8: =SUM(K6:L6) / COUNTA(K6:L6) -> 0.5788400396 | M8: =SUM(M6:N6) / COUNTA(M6:N6) -> 2.030075941
M11: Note: Not using pedestrian collisions yet.

Sheet UserInputs (hidden)
B1: User Input | C1: User Input Formatted | D1: Data Exists?
A2: BOF | B2: ='(1) Inputs'!S21 -> Data not found. Enter your own data here. | C2: =_xlfn.NUMBERVALUE(B2) ->  | D2: NA
A3: PedCol | B3: ='(1) Inputs'!S25 -> Data found! Enter your data here to override. | C3: =_xlfn.NUMBERVALUE(B3) ->  | D3: =IF(SUMIF(CorridorInputs!S:S, ">0") > 0, TRUE, FALSE) -> TRUE

Sheet CorridorInputs (hidden)
S1: PEDESTRIAN COLLISION CALCULATIONS
A2: Measure | B2: Transit employment accessibility | C2: Corridor transit service coverage | D2: Corridor housing affordability | E2: Corridor income diversity(A) | F2: Corridor income diversity(B) | G2: Corridor jobs density | H2: Corridor retail jobs density | I2: Corridor transit cost per person-mile traveled | J2: Corridor health care opportunities | K2: Corridor density (population/acre) | L2: Access to culture & arts | M2: Corridor pedestrian environment | N2: Corridor pedestrian collisions per capita | O2: Heavy Ridership, Choke points, balance flows of transit ridership | P2: Housing affordability | Q2: BOF | R2: COV | S2: ALL_PED_COL | T2: TOTAL_POP | U2: JTW_TOTAL | V2: JTW_WALK
A3: Metric | B3: D5br | C3: D4d | D3: hh_type1_h | E3: Income Over Rep | F3: Coeff of Variation | G3: D1c | H3: D1c5_Ret10 | J3: D1c8_Hlth10 | K3: TotPop /Ac_Land | L3: D1c5_Ent10 | M3: D3b | N3: SWITERS (CA only)
A4: Block Group: | E4: IOR | F4: COV Sheet
A5: ='(1) Inputs'!A12 -> 60750165004 | B5: =IF(A5>0,(VLOOKUP(A5,Data,14,)),0) -> 39243.02 | C5: =IF('(1) Inputs'!$A12>0,(VLOOKUP('(1) Inputs'!$A12,Data,9,)),0) -> 6208.256 | D5: =IF('(1) Inputs'!$A12>0,(VLOOKUP('(1) Inputs'!$A12,Data,11,)),0) -> 29.19974 | E5: =IF('(1) Inputs'!$A12>0,(VLOOKUP('(1) Inputs'!$A12,IOR,2,)),0) -> 0.2146916392 | G5: =IF('(1) Inputs'!$A12>0,(VLOOKUP('(1) Inputs'!$A12,Data,4,)),0) -> 56.958964 | H5: =IF('(1) Inputs'!$A12>0,(VLOOKUP('(1) Inputs'!$A12,Data,5,)),0) -> 1.048324 | J5: =IF('(1) Inputs'!$A12>0,(VLOOKUP('(1) Inputs'!$A12,Data,7,)),0) -> 51.3679 | K5: =IF(ISERROR(IF('(1) Inputs'!$A12>0,(VLOOKUP('(1) Inputs'!$A12,Data,2,))/(VLOOKUP('(1) Inputs'!$A12,Data,3,)),0)),"-",IF('(1) Inputs'!$A12>0,(VLOOKUP('(1) Inputs'!$A12,Data,2,))/(VLOOKUP('(1) Inputs'!$A12,Data,3,)),0)) -> 47.16404887 | L5: =IF('(1) Inputs'!$A12>0,(VLOOKUP('(1) Inputs'!$A12,Data,6,)),0) -> 0.960964 | M5: =IF('(1) Inputs'!$A12>0,(VLOOKUP('(1) Inputs'!$A12,Data,8,)),0) -> 139.649 | P5: =IF('(1) Inputs'!$A12>0,(VLOOKUP('(1) Inputs'!$A12,Data,15,)),0) -> 70.80026 | Q5: =IF('(1) Inputs'!$A12>0,(VLOOKUP('(1) Inputs'!$A12, DISAGGED_DATA, 20,)),0) ->  | R5: =IF(A5>0, IncDivCalc!F$2, 0) -> 0.3757213373 | S5: =IF('(1) Inputs'!$A12>0,(VLOOKUP('(1) Inputs'!$A12, PedCol!A1:J7193, 4,)),0) ->  | T5: =IF('(1) Inputs'!$A12>0,(VLOOKUP('(1) Inputs'!$A12, PedCol!A1:J7193, 5,)),0) ->  | U5: =IF('(1) Inputs'!$A12>0,(VLOOKUP('(1) Inputs'!$A12, PedCol!A1:J7193, 6,)),0) ->  | V5: =IF('(1) Inputs'!$A12>0,(VLOOKUP('(1) Inputs'!$A12, PedCol!A1:J7193, 7,)),0) -> 
A6: ='(1) Inputs'!A13 -> 60750301014 | B6: 50091.16 | C6: =IF('(1) Inputs'!$A13>0,(VLOOKUP('(1) Inputs'!$A13,Data,9,)),0) -> 9735.829333 | D6: =IF('(1) Inputs'!$A13>0,(VLOOKUP('(1) Inputs'!$A13,Data,11,)),0) -> 28.43996 | E6: =IF('(1) Inputs'!$A13>0,(VLOOKUP('(1) Inputs'!$A13,IOR,2,)),0) -> 0.2095216427 | G6: =IF('(1) Inputs'!$A13>0,(VLOOKUP('(1) Inputs'!$A13,Data,4,)),0) -> 920.445953 | H6: =IF('(1) Inputs'!$A13>0,(VLOOKUP('(1) Inputs'!$A13,Data,5,)),0) -> 0 | J6: =IF('(1) Inputs'!$A13>0,(VLOOKUP('(1) Inputs'!$A13,Data,7,)),0) -> 3.733876 | K6: =IF(ISERROR(IF('(1) Inputs'!$A13>0,(VLOOKUP('(1) Inputs'!$A13,Data,2,))/(VLOOKUP('(1) Inputs'!$A13,Data,3,)),0)),"-",IF('(1) Inputs'!$A13>0,(VLOOKUP('(1) Inputs'!$A13,Data,2,))/(VLOOKUP('(1) Inputs'!$A13,Data,3,)),0)) -> 39.93766696 | L6: =IF('(1) Inputs'!$A13>0,(VLOOKUP('(1) Inputs'!$A13,Data,6,)),0) -> 2.413359 | M6: =IF('(1) Inputs'!$A13>0,(VLOOKUP('(1) Inputs'!$A13,Data,8,)),0) -> 132.975 | P6: =IF('(1) Inputs'!$A13>0,(VLOOKUP('(1) Inputs'!$A13,Data,15,)),0) -> 71.56004 | Q6: =IF('(1) Inputs'!$A13>0,(VLOOKUP('(1) Inputs'!$A13, DISAGGED_DATA, 20,)),0) ->  | R6: =IF(A6>0, IncDivCalc!F$2, 0) -> 0.3757213373 | S6: =IF('(1) Inputs'!$A13>0,(VLOOKUP('(1) Inputs'!$A13, PedCol!A2:J7194, 4,)),0) ->  | T6: =IF('(1) Inputs'!$A13>0,(VLOOKUP('(1) Inputs'!$A13, PedCol!A2:J7194, 5,)),0) ->  | U6: =IF('(1) Inputs'!$A13>0,(VLOOKUP('(1) Inputs'!$A13, PedCol!A2:J7194, 6,)),0) ->  | V6: =IF('(1) Inputs'!$A13>0,(VLOOKUP('(1) Inputs'!$A13, PedCol!A2:J7194, 7,)),0) -> 
A7: ='(1) Inputs'!A14 -> 60750156002 | B7: 35836.39 | C7: =IF('(1) Inputs'!$A14>0,(VLOOKUP('(1) Inputs'!$A14,Data,9,)),0) -> 4727.424 | D7: =IF('(1) Inputs'!$A14>0,(VLOOKUP('(1) Inputs'!$A14,Data,11,)),0) -> 26.57427 | E7: =IF('(1) Inputs'!$A14>0,(VLOOKUP('(1) Inputs'!$A14,IOR,2,)),0) -> 0.07189322471 | G7: =IF('(1) Inputs'!$A14>0,(VLOOKUP('(1) Inputs'!$A14,Data,4,)),0) -> 1.753301 | H7: =IF('(1) Inputs'!$A14>0,(VLOOKUP('(1) Inputs'!$A14,Data,5,)),0) -> 0.438325 | J7: =IF('(1) Inputs'!$A14>0,(VLOOKUP('(1) Inputs'!$A14,Data,7,)),0) -> 0 | K7: =IF(ISERROR(IF('(1) Inputs'!$A14>0,(VLOOKUP('(1) Inputs'!$A14,Data,2,))/(VLOOKUP('(1) Inputs'!$A14,Data,3,)),0)),"-",IF('(1) Inputs'!$A14>0,(VLOOKUP('(1) Inputs'!$A14,Data,2,))/(VLOOKUP('(1) Inputs'!$A14,Data,3,)),0)) -> 58.10243864 | L7: =IF('(1) Inputs'!$A14>0,(VLOOKUP('(1) Inputs'!$A14,Data,6,)),0) -> 0.925353 | M7: =IF('(1) Inputs'!$A14>0,(VLOOKUP('(1) Inputs'!$A14,Data,8,)),0) -> 228.676 | P7: =IF('(1) Inputs'!$A14>0,(VLOOKUP('(1) Inputs'!$A14,Data,15,)),0) -> 73.42573 | Q7: =IF('(1) Inputs'!$A14>0,(VLOOKUP('(1) Inputs'!$A14, DISAGGED_DATA, 20,)),0) ->  | R7: =IF(A7>0, IncDivCalc!F$2, 0) -> 0.3757213373 | S7: =IF('(1) Inputs'!$A14>0,(VLOOKUP('(1) Inputs'!$A14, PedCol!A3:J7195, 4,)),0) -> 1 | T7: =IF('(1) Inputs'!$A14>0,(VLOOKUP('(1) Inputs'!$A14, PedCol!A3:J7195, 5,)),0) -> 1193 | U7: =IF('(1) Inputs'!$A14>0,(VLOOKUP('(1) Inputs'!$A14, PedCol!A3:J7195, 6,)),0) -> 768 | V7: =IF('(1) Inputs'!$A14>0,(VLOOKUP('(1) Inputs'!$A14, PedCol!A3:J7195, 7,)),0) -> 71
A8: ='(1) Inputs'!A15 -> 60750451003 | B8: 33354.06 | C8: =IF('(1) Inputs'!$A15>0,(VLOOKUP('(1) Inputs'!$A15,Data,9,)),0) -> 5686.869333 | D8: =IF('(1) Inputs'!$A15>0,(VLOOKUP('(1) Inputs'!$A15,Data,11,)),0) -> 27.2735 | E8: =IF('(1) Inputs'!$A15>0,(VLOOKUP('(1) Inputs'!$A15,IOR,2,)),0) -> 0.1026460806 | G8: =IF('(1) Inputs'!$A15>0,(VLOOKUP('(1) Inputs'!$A15,Data,4,)),0) -> 17.148658 | H8: =IF('(1) Inputs'!$A15>0,(VLOOKUP('(1) Inputs'!$A15,Data,5,)),0) -> 0.467084 | J8: =IF('(1) Inputs'!$A15>0,(VLOOKUP('(1) Inputs'!$A15,Data,7,)),0) -> 12.911538 | K8: =IF(ISERROR(IF('(1) Inputs'!$A15>0,(VLOOKUP('(1) Inputs'!$A15,Data,2,))/(VLOOKUP('(1) Inputs'!$A15,Data,3,)),0)),"-",IF('(1) Inputs'!$A15>0,(VLOOKUP('(1) Inputs'!$A15,Data,2,))/(VLOOKUP('(1) Inputs'!$A15,Data,3,)),0)) -> 48.14302382 | L8: =IF('(1) Inputs'!$A15>0,(VLOOKUP('(1) Inputs'!$A15,Data,6,)),0) -> 0.53381 | M8: =IF('(1) Inputs'!$A15>0,(VLOOKUP('(1) Inputs'!$A15,Data,8,)),0) -> 42.7 | P8: =IF('(1) Inputs'!$A15>0,(VLOOKUP('(1) Inputs'!$A15,Data,15,)),0) -> 72.7265 | Q8: =IF('(1) Inputs'!$A15>0,(VLOOKUP('(1) Inputs'!$A15, DISAGGED_DATA, 20,)),0) ->  | R8: =IF(A8>0, IncDivCalc!F$2, 0) -> 0.3757213373 | S8: =IF('(1) Inputs'!$A15>0,(VLOOKUP('(1) Inputs'!$A15, PedCol!A4:J7196, 4,)),0) ->  | T8: =IF('(1) Inputs'!$A15>0,(VLOOKUP('(1) Inputs'!$A15, PedCol!A4:J7196, 5,)),0) ->  | U8: =IF('(1) Inputs'!$A15>0,(VLOOKUP('(1) Inputs'!$A15, PedCol!A4:J7196, 6,)),0) ->  | V8: =IF('(1) Inputs'!$A15>0,(VLOOKUP('(1) Inputs'!$A15, PedCol!A4:J7196, 7,)),0) -> 
A9: ='(1) Inputs'!A16 -> 60750351002 | B9: 18257.96 | C9: =IF('(1) Inputs'!$A16>0,(VLOOKUP('(1) Inputs'!$A16,Data,9,)),0) -> 3080 | D9: =IF('(1) Inputs'!$A16>0,(VLOOKUP('(1) Inputs'!$A16,Data,11,)),0) -> 33.55381 | E9: =IF('(1) Inputs'!$A16>0,(VLOOKUP('(1) Inputs'!$A16,IOR,2,)),0) -> 0.1470314798 | G9: =IF('(1) Inputs'!$A16>0,(VLOOKUP('(1) Inputs'!$A16,Data,4,)),0) -> 2.668842 | H9: =IF('(1) Inputs'!$A16>0,(VLOOKUP('(1) Inputs'!$A16,Data,5,)),0) -> 0.064309 | J9: =IF('(1) Inputs'!$A16>0,(VLOOKUP('(1) Inputs'!$A16,Data,7,)),0) -> 0.225083 | K9: =IF(ISERROR(IF('(1) Inputs'!$A16>0,(VLOOKUP('(1) Inputs'!$A16,Data,2,))/(VLOOKUP('(1) Inputs'!$A16,Data,3,)),0)),"-",IF('(1) Inputs'!$A16>0,(VLOOKUP('(1) Inputs'!$A16,Data,2,))/(VLOOKUP('(1) Inputs'!$A16,Data,3,)),0)) -> 40.41848989 | L9: =IF('(1) Inputs'!$A16>0,(VLOOKUP('(1) Inputs'!$A16,Data,6,)),0) -> 0.321547 | M9: =IF('(1) Inputs'!$A16>0,(VLOOKUP('(1) Inputs'!$A16,Data,8,)),0) -> 61.7207 | P9: =IF('(1) Inputs'!$A16>0,(VLOOKUP('(1) Inputs'!$A16,Data,15,)),0) -> 66.44619 | Q9: =IF('(1) Inputs'!$A16>0,(VLOOKUP('(1) Inputs'!$A16, DISAGGED_DATA, 20,)),0) ->  | R9: =IF(A9>0, IncDivCalc!F$2, 0) -> 0.3757213373 | S9: =IF('(1) Inputs'!$A16>0,(VLOOKUP('(1) Inputs'!$A16, PedCol!A5:J7197, 4,)),0) -> 1 | T9: =IF('(1) Inputs'!$A16>0,(VLOOKUP('(1) Inputs'!$A16, PedCol!A5:J7197, 5,)),0) -> 1257 | U9: =IF('(1) Inputs'!$A16>0,(VLOOKUP('(1) Inputs'!$A16, PedCol!A5:J7197, 6,)),0) -> 532 | V9: =IF('(1) Inputs'!$A16>0,(VLOOKUP('(1) Inputs'!$A16, PedCol!A5:J7197, 7,)),0) -> 0
A10: ='(1) Inputs'!A17 -> 60750156001 | B10: 36690.82 | C10: =IF('(1) Inputs'!$A17>0,(VLOOKUP('(1) Inputs'!$A17,Data,9,)),0) -> 6778.538667 | D10: =IF('(1) Inputs'!$A17>0,(VLOOKUP('(1) Inputs'!$A17,Data,11,)),0) -> 36.74112 | E10: =IF('(1) Inputs'!$A17>0,(VLOOKUP('(1) Inputs'!$A17,IOR,2,)),0) -> 0.2074952574 | G10: =IF('(1) Inputs'!$A17>0,(VLOOKUP('(1) Inputs'!$A17,Data,4,)),0) -> 8.436654 | H10: =IF('(1) Inputs'!$A17>0,(VLOOKUP('(1) Inputs'!$A17,Data,5,)),0) -> 1.150453 | J10: =IF('(1) Inputs'!$A17>0,(VLOOKUP('(1) Inputs'!$A17,Data,7,)),0) -> 0 | K10: =IF(ISERROR(IF('(1) Inputs'!$A17>0,(VLOOKUP('(1) Inputs'!$A17,Data,2,))/(VLOOKUP('(1) Inputs'!$A17,Data,3,)),0)),"-",IF('(1) Inputs'!$A17>0,(VLOOKUP('(1) Inputs'!$A17,Data,2,))/(VLOOKUP('(1) Inputs'!$A17,Data,3,)),0)) -> 39.60844939 | L10: =IF('(1) Inputs'!$A17>0,(VLOOKUP('(1) Inputs'!$A17,Data,6,)),0) -> 6.464449 | M10: =IF('(1) Inputs'!$A17>0,(VLOOKUP('(1) Inputs'!$A17,Data,8,)),0) -> 163.68 | P10: =IF('(1) Inputs'!$A17>0,(VLOOKUP('(1) Inputs'!$A17,Data,15,)),0) -> 63.25888 | Q10: =IF('(1) Inputs'!$A17>0,(VLOOKUP('(1) Inputs'!$A17, DISAGGED_DATA, 20,)),0) ->  | R10: =IF(A10>0, IncDivCalc!F$2, 0) -> 0.3757213373 | S10: =IF('(1) Inputs'!$A17>0,(VLOOKUP('(1) Inputs'!$A17, PedCol!A6:J7198, 4,)),0) ->  | T10: =IF('(1) Inputs'!$A17>0,(VLOOKUP('(1) Inputs'!$A17, PedCol!A6:J7198, 5,)),0) ->  | U10: =IF('(1) Inputs'!$A17>0,(VLOOKUP('(1) Inputs'!$A17, PedCol!A6:J7198, 6,)),0) ->  | V10: =IF('(1) Inputs'!$A17>0,(VLOOKUP('(1) Inputs'!$A17, PedCol!A6:J7198, 7,)),0) -> 
A11: ='(1) Inputs'!A18 -> 60750477022 | B11: 25504.81 | C11: =IF('(1) Inputs'!$A18>0,(VLOOKUP('(1) Inputs'!$A18,Data,9,)),0) -> 3178.709333 | D11: =IF('(1) Inputs'!$A18>0,(VLOOKUP('(1) Inputs'!$A18,Data,11,)),0) -> 37.22614 | E11: =IF('(1) Inputs'!$A18>0,(VLOOKUP('(1) Inputs'!$A18,IOR,2,)),0) -> 0.1979900168 | G11: =IF('(1) Inputs'!$A18>0,(VLOOKUP('(1) Inputs'!$A18,Data,4,)),0) -> 1.067073 | H11: =IF('(1) Inputs'!$A18>0,(VLOOKUP('(1) Inputs'!$A18,Data,5,)),0) -> 0 | J11: =IF('(1) Inputs'!$A18>0,(VLOOKUP('(1) Inputs'!$A18,Data,7,)),0) -> 0 | K11: =IF(ISERROR(IF('(1) Inputs'!$A18>0,(VLOOKUP('(1) Inputs'!$A18,Data,2,))/(VLOOKUP('(1) Inputs'!$A18,Data,3,)),0)),"-",IF('(1) Inputs'!$A18>0,(VLOOKUP('(1) Inputs'!$A18,Data,2,))/(VLOOKUP('(1) Inputs'!$A18,Data,3,)),0)) -> 43.90915348 | L11: =IF('(1) Inputs'!$A18>0,(VLOOKUP('(1) Inputs'!$A18,Data,6,)),0) -> 0 | M11: =IF('(1) Inputs'!$A18>0,(VLOOKUP('(1) Inputs'!$A18,Data,8,)),0) -> 132.14 | P11: =IF('(1) Inputs'!$A18>0,(VLOOKUP('(1) Inputs'!$A18,Data,15,)),0) -> 62.77386 | Q11: =IF('(1) Inputs'!$A18>0,(VLOOKUP('(1) Inputs'!$A18, DISAGGED_DATA, 20,)),0) ->  | R11: =IF(A11>0, IncDivCalc!F$2, 0) -> 0.3757213373 | S11: =IF('(1) Inputs'!$A18>0,(VLOOKUP('(1) Inputs'!$A18, PedCol!A7:J7199, 4,)),0) ->  | T11: =IF('(1) Inputs'!$A18>0,(VLOOKUP('(1) Inputs'!$A18, PedCol!A7:J7199, 5,)),0) ->  | U11: =IF('(1) Inputs'!$A18>0,(VLOOKUP('(1) Inputs'!$A18, PedCol!A7:J7199, 6,)),0) ->  | V11: =IF('(1) Inputs'!$A18>0,(VLOOKUP('(1) Inputs'!$A18, PedCol!A7:J7199, 7,)),0) -> 
A12: ='(1) Inputs'!A19 -> 60750477021 | B12: 25585.37 | C12: =IF('(1) Inputs'!$A19>0,(VLOOKUP('(1) Inputs'!$A19,Data,9,)),0) -> 3761.472 | D12: =IF('(1) Inputs'!$A19>0,(VLOOKUP('(1) Inputs'!$A19,Data,11,)),0) -> 25.34158 | E12: =IF('(1) Inputs'!$A19>0,(VLOOKUP('(1) Inputs'!$A19,IOR,2,)),0) -> 0.1157915814 | G12: =IF('(1) Inputs'!$A19>0,(VLOOKUP('(1) Inputs'!$A19,Data,4,)),0) -> 2.996052 | H12: =IF('(1) Inputs'!$A19>0,(VLOOKUP('(1) Inputs'!$A19,Data,5,)),0) -> 0.103312 | J12: =IF('(1) Inputs'!$A19>0,(VLOOKUP('(1) Inputs'!$A19,Data,7,)),0) -> 0.65431 | K12: =IF(ISERROR(IF('(1) Inputs'!$A19>0,(VLOOKUP('(1) Inputs'!$A19,Data,2,))/(VLOOKUP('(1) Inputs'!$A19,Data,3,)),0)),"-",IF('(1) Inputs'!$A19>0,(VLOOKUP('(1) Inputs'!$A19,Data,2,))/(VLOOKUP('(1) Inputs'!$A19,Data,3,)),0)) -> 39.70630421 | L12: =IF('(1) Inputs'!$A19>0,(VLOOKUP('(1) Inputs'!$A19,Data,6,)),0) -> 0 | M12: =IF('(1) Inputs'!$A19>0,(VLOOKUP('(1) Inputs'!$A19,Data,8,)),0) -> 220.394 | P12: =IF('(1) Inputs'!$A19>0,(VLOOKUP('(1) Inputs'!$A19,Data,15,)),0) -> 74.65842 | Q12: =IF('(1) Inputs'!$A19>0,(VLOOKUP('(1) Inputs'!$A19, DISAGGED_DATA, 20,)),0) ->  | R12: =IF(A12>0, IncDivCalc!F$2, 0) -> 0.3757213373 | S12: =IF('(1) Inputs'!$A19>0,(VLOOKUP('(1) Inputs'!$A19, PedCol!A8:J7200, 4,)),0) ->  | T12: =IF('(1) Inputs'!$A19>0,(VLOOKUP('(1) Inputs'!$A19, PedCol!A8:J7200, 5,)),0) ->  | U12: =IF('(1) Inputs'!$A19>0,(VLOOKUP('(1) Inputs'!$A19, PedCol!A8:J7200, 6,)),0) ->  | V12: =IF('(1) Inputs'!$A19>0,(VLOOKUP('(1) Inputs'!$A19, PedCol!A8:J7200, 7,)),0) -> 
A13: ='(1) Inputs'!A20 -> 60750327002 | B13: 23168.29 | C13: =IF('(1) Inputs'!$A20>0,(VLOOKUP('(1) Inputs'!$A20,Data,9,)),0) -> 3714.282667 | D13: =IF('(1) Inputs'!$A20>0,(VLOOKUP('(1) Inputs'!$A20,Data,11,)),0) -> 25.86325 | E13: =IF('(1) Inputs'!$A20>0,(VLOOKUP('(1) Inputs'!$A20,IOR,2,)),0) -> 0.2875398107 | G13: =IF('(1) Inputs'!$A20>0,(VLOOKUP('(1) Inputs'!$A20,Data,4,)),0) -> 4.550918 | H13: =IF('(1) Inputs'!$A20>0,(VLOOKUP('(1) Inputs'!$A20,Data,5,)),0) -> 0.241337 | J13: =IF('(1) Inputs'!$A20>0,(VLOOKUP('(1) Inputs'!$A20,Data,7,)),0) -> 1.896216 | K13: =IF(ISERROR(IF('(1) Inputs'!$A20>0,(VLOOKUP('(1) Inputs'!$A20,Data,2,))/(VLOOKUP('(1) Inputs'!$A20,Data,3,)),0)),"-",IF('(1) Inputs'!$A20>0,(VLOOKUP('(1) Inputs'!$A20,Data,2,))/(VLOOKUP('(1) Inputs'!$A20,Data,3,)),0)) -> 39.68262724 | L13: =IF('(1) Inputs'!$A20>0,(VLOOKUP('(1) Inputs'!$A20,Data,6,)),0) -> 0 | M13: =IF('(1) Inputs'!$A20>0,(VLOOKUP('(1) Inputs'!$A20,Data,8,)),0) -> 88.26 | P13: =IF('(1) Inputs'!$A20>0,(VLOOKUP('(1) Inputs'!$A20,Data,15,)),0) -> 74.13675 | Q13: =IF('(1) Inputs'!$A20>0,(VLOOKUP('(1) Inputs'!$A20, DISAGGED_DATA, 20,)),0) ->  | R13: =IF(A13>0, IncDivCalc!F$2, 0) -> 0.3757213373 | S13: =IF('(1) Inputs'!$A20>0,(VLOOKUP('(1) Inputs'!$A20, PedCol!A9:J7201, 4,)),0) -> 2 | T13: =IF('(1) Inputs'!$A20>0,(VLOOKUP('(1) Inputs'!$A20, PedCol!A9:J7201, 5,)),0) -> 1151 | U13: =IF('(1) Inputs'!$A20>0,(VLOOKUP('(1) Inputs'!$A20, PedCol!A9:J7201, 6,)),0) -> 670 | V13: =IF('(1) Inputs'!$A20>0,(VLOOKUP('(1) Inputs'!$A20, PedCol!A9:J7201, 7,)),0) -> 0
A14: ='(1) Inputs'!A21 -> 60750302013 | B14: 34150.03 | C14: =IF('(1) Inputs'!$A21>0,(VLOOKUP('(1) Inputs'!$A21,Data,9,)),0) -> 3141.824 | D14: =IF('(1) Inputs'!$A21>0,(VLOOKUP('(1) Inputs'!$A21,Data,11,)),0) -> 29.96267 | E14: =IF('(1) Inputs'!$A21>0,(VLOOKUP('(1) Inputs'!$A21,IOR,2,)),0) -> 0.1812248659 | G14: =IF('(1) Inputs'!$A21>0,(VLOOKUP('(1) Inputs'!$A21,Data,4,)),0) -> 1.008723 | H14: =IF('(1) Inputs'!$A21>0,(VLOOKUP('(1) Inputs'!$A21,Data,5,)),0) -> 0 | J14: =IF('(1) Inputs'!$A21>0,(VLOOKUP('(1) Inputs'!$A21,Data,7,)),0) -> 0.067248 | K14: =IF(ISERROR(IF('(1) Inputs'!$A21>0,(VLOOKUP('(1) Inputs'!$A21,Data,2,))/(VLOOKUP('(1) Inputs'!$A21,Data,3,)),0)),"-",IF('(1) Inputs'!$A21>0,(VLOOKUP('(1) Inputs'!$A21,Data,2,))/(VLOOKUP('(1) Inputs'!$A21,Data,3,)),0)) -> 39.40742928 | L14: =IF('(1) Inputs'!$A21>0,(VLOOKUP('(1) Inputs'!$A21,Data,6,)),0) -> 0.100872 | M14: =IF('(1) Inputs'!$A21>0,(VLOOKUP('(1) Inputs'!$A21,Data,8,)),0) -> 107.58 | P14: =IF('(1) Inputs'!$A21>0,(VLOOKUP('(1) Inputs'!$A21,Data,15,)),0) -> 70.03733 | Q14: =IF('(1) Inputs'!$A21>0,(VLOOKUP('(1) Inputs'!$A21, DISAGGED_DATA, 20,)),0) ->  | R14: =IF(A14>0, IncDivCalc!F$2, 0) -> 0.3757213373 | S14: =IF('(1) Inputs'!$A21>0,(VLOOKUP('(1) Inputs'!$A21, PedCol!A10:J7202, 4,)),0) ->  | T14: =IF('(1) Inputs'!$A21>0,(VLOOKUP('(1) Inputs'!$A21, PedCol!A10:J7202, 5,)),0) ->  | U14: =IF('(1) Inputs'!$A21>0,(VLOOKUP('(1) Inputs'!$A21, PedCol!A10:J7202, 6,)),0) ->  | V14: =IF('(1) Inputs'!$A21>0,(VLOOKUP('(1) Inputs'!$A21, PedCol!A10:J7202, 7,)),0) -> 
A15: ='(1) Inputs'!A22 -> 60750158011 | B15: 54285.21 | C15: =IF('(1) Inputs'!$A22>0,(VLOOKUP('(1) Inputs'!$A22,Data,9,)),0) -> 8208.512 | D15: =IF('(1) Inputs'!$A22>0,(VLOOKUP('(1) Inputs'!$A22,Data,11,)),0) -> 28.4755 | E15: =IF('(1) Inputs'!$A22>0,(VLOOKUP('(1) Inputs'!$A22,IOR,2,)),0) -> 0.1238625563 | G15: =IF('(1) Inputs'!$A22>0,(VLOOKUP('(1) Inputs'!$A22,Data,4,)),0) -> 7.331055 | H15: =IF('(1) Inputs'!$A22>0,(VLOOKUP('(1) Inputs'!$A22,Data,5,)),0) -> 0 | J15: =IF('(1) Inputs'!$A22>0,(VLOOKUP('(1) Inputs'!$A22,Data,7,)),0) -> 1.609256 | K15: =IF(ISERROR(IF('(1) Inputs'!$A22>0,(VLOOKUP('(1) Inputs'!$A22,Data,2,))/(VLOOKUP('(1) Inputs'!$A22,Data,3,)),0)),"-",IF('(1) Inputs'!$A22>0,(VLOOKUP('(1) Inputs'!$A22,Data,2,))/(VLOOKUP('(1) Inputs'!$A22,Data,3,)),0)) -> 16.70781893 | L15: =IF('(1) Inputs'!$A22>0,(VLOOKUP('(1) Inputs'!$A22,Data,6,)),0) -> 0 | M15: =IF('(1) Inputs'!$A22>0,(VLOOKUP('(1) Inputs'!$A22,Data,8,)),0) -> 197.589 | P15: =IF('(1) Inputs'!$A22>0,(VLOOKUP('(1) Inputs'!$A22,Data,15,)),0) -> 71.5245 | Q15: =IF('(1) Inputs'!$A22>0,(VLOOKUP('(1) Inputs'!$A22, DISAGGED_DATA, 20,)),0) ->  | R15: =IF(A15>0, IncDivCalc!F$2, 0) -> 0.3757213373 | S15: =IF('(1) Inputs'!$A22>0,(VLOOKUP('(1) Inputs'!$A22, PedCol!A11:J7203, 4,)),0) -> 2 | T15: =IF('(1) Inputs'!$A22>0,(VLOOKUP('(1) Inputs'!$A22, PedCol!A11:J7203, 5,)),0) -> 406 | U15: =IF('(1) Inputs'!$A22>0,(VLOOKUP('(1) Inputs'!$A22, PedCol!A11:J7203, 6,)),0) -> 136 | V15: =IF('(1) Inputs'!$A22>0,(VLOOKUP('(1) Inputs'!$A22, PedCol!A11:J7203, 7,)),0) -> 17
A16: ='(1) Inputs'!A23 -> 60750478022 | B16: 18543.4 | C16: =IF('(1) Inputs'!$A23>0,(VLOOKUP('(1) Inputs'!$A23,Data,9,)),0) -> 3348.714667 | D16: =IF('(1) Inputs'!$A23>0,(VLOOKUP('(1) Inputs'!$A23,Data,11,)),0) -> 34.92191 | E16: =IF('(1) Inputs'!$A23>0,(VLOOKUP('(1) Inputs'!$A23,IOR,2,)),0) -> 0.2237788699 | G16: =IF('(1) Inputs'!$A23>0,(VLOOKUP('(1) Inputs'!$A23,Data,4,)),0) -> 4.583246 | H16: =IF('(1) Inputs'!$A23>0,(VLOOKUP('(1) Inputs'!$A23,Data,5,)),0) -> 0.551368 | J16: =IF('(1) Inputs'!$A23>0,(VLOOKUP('(1) Inputs'!$A23,Data,7,)),0) -> 1.033815 | K16: =IF(ISERROR(IF('(1) Inputs'!$A23>0,(VLOOKUP('(1) Inputs'!$A23,Data,2,))/(VLOOKUP('(1) Inputs'!$A23,Data,3,)),0)),"-",IF('(1) Inputs'!$A23>0,(VLOOKUP('(1) Inputs'!$A23,Data,2,))/(VLOOKUP('(1) Inputs'!$A23,Data,3,)),0)) -> 39.1394148 | L16: =IF('(1) Inputs'!$A23>0,(VLOOKUP('(1) Inputs'!$A23,Data,6,)),0) -> 0.620289 | M16: =IF('(1) Inputs'!$A23>0,(VLOOKUP('(1) Inputs'!$A23,Data,8,)),0) -> 168.924 | P16: =IF('(1) Inputs'!$A23>0,(VLOOKUP('(1) Inputs'!$A23,Data,15,)),0) -> 65.07809 | Q16: =IF('(1) Inputs'!$A23>0,(VLOOKUP('(1) Inputs'!$A23, DISAGGED_DATA, 20,)),0) ->  | R16: =IF(A16>0, IncDivCalc!F$2, 0) -> 0.3757213373 | S16: =IF('(1) Inputs'!$A23>0,(VLOOKUP('(1) Inputs'!$A23, PedCol!A12:J7204, 4,)),0) ->  | T16: =IF('(1) Inputs'!$A23>0,(VLOOKUP('(1) Inputs'!$A23, PedCol!A12:J7204, 5,)),0) ->  | U16: =IF('(1) Inputs'!$A23>0,(VLOOKUP('(1) Inputs'!$A23, PedCol!A12:J7204, 6,)),0) ->  | V16: =IF('(1) Inputs'!$A23>0,(VLOOKUP('(1) Inputs'!$A23, PedCol!A12:J7204, 7,)),0) -> 
A17: ='(1) Inputs'!A24 -> 60750302023 | B17: 43268.7 | C17: =IF('(1) Inputs'!$A24>0,(VLOOKUP('(1) Inputs'!$A24,Data,9,)),0) -> 6153.109333 | D17: =IF('(1) Inputs'!$A24>0,(VLOOKUP('(1) Inputs'!$A24,Data,11,)),0) -> 31.96744 | E17: =IF('(1) Inputs'!$A24>0,(VLOOKUP('(1) Inputs'!$A24,IOR,2,)),0) -> 0.126629613 | G17: =IF('(1) Inputs'!$A24>0,(VLOOKUP('(1) Inputs'!$A24,Data,4,)),0) -> 2.795631 | H17: =IF('(1) Inputs'!$A24>0,(VLOOKUP('(1) Inputs'!$A24,Data,5,)),0) -> 0.068186 | J17: =IF('(1) Inputs'!$A24>0,(VLOOKUP('(1) Inputs'!$A24,Data,7,)),0) -> 0.852327 | K17: =IF(ISERROR(IF('(1) Inputs'!$A24>0,(VLOOKUP('(1) Inputs'!$A24,Data,2,))/(VLOOKUP('(1) Inputs'!$A24,Data,3,)),0)),"-",IF('(1) Inputs'!$A24>0,(VLOOKUP('(1) Inputs'!$A24,Data,2,))/(VLOOKUP('(1) Inputs'!$A24,Data,3,)),0)) -> 46.46884191 | L17: =IF('(1) Inputs'!$A24>0,(VLOOKUP('(1) Inputs'!$A24,Data,6,)),0) -> 0.818233 | M17: =IF('(1) Inputs'!$A24>0,(VLOOKUP('(1) Inputs'!$A24,Data,8,)),0) -> 32.73 | P17: =IF('(1) Inputs'!$A24>0,(VLOOKUP('(1) Inputs'!$A24,Data,15,)),0) -> 68.03256 | Q17: =IF('(1) Inputs'!$A24>0,(VLOOKUP('(1) Inputs'!$A24, DISAGGED_DATA, 20,)),0) ->  | R17: =IF(A17>0, IncDivCalc!F$2, 0) -> 0.3757213373 | S17: =IF('(1) Inputs'!$A24>0,(VLOOKUP('(1) Inputs'!$A24, PedCol!A13:J7205, 4,)),0) -> 1 | T17: =IF('(1) Inputs'!$A24>0,(VLOOKUP('(1) Inputs'!$A24, PedCol!A13:J7205, 5,)),0) -> 1363 | U17: =IF('(1) Inputs'!$A24>0,(VLOOKUP('(1) Inputs'!$A24, PedCol!A13:J7205, 6,)),0) -> 1066 | V17: =IF('(1) Inputs'!$A24>0,(VLOOKUP('(1) Inputs'!$A24, PedCol!A13:J7205, 7,)),0) -> 53
A18: ='(1) Inputs'!A25 -> 60750479013 | B18: 19337.64 | C18: =IF('(1) Inputs'!$A25>0,(VLOOKUP('(1) Inputs'!$A25,Data,9,)),0) -> 3607.658667 | D18: =IF('(1) Inputs'!$A25>0,(VLOOKUP('(1) Inputs'!$A25,Data,11,)),0) -> 33.41886 | E18: =IF('(1) Inputs'!$A25>0,(VLOOKUP('(1) Inputs'!$A25,IOR,2,)),0) -> 0.1771567473 | G18: =IF('(1) Inputs'!$A25>0,(VLOOKUP('(1) Inputs'!$A25,Data,4,)),0) -> 3.273905 | H18: =IF('(1) Inputs'!$A25>0,(VLOOKUP('(1) Inputs'!$A25,Data,5,)),0) -> 0 | J18: =IF('(1) Inputs'!$A25>0,(VLOOKUP('(1) Inputs'!$A25,Data,7,)),0) -> 0.180451 | K18: =IF(ISERROR(IF('(1) Inputs'!$A25>0,(VLOOKUP('(1) Inputs'!$A25,Data,2,))/(VLOOKUP('(1) Inputs'!$A25,Data,3,)),0)),"-",IF('(1) Inputs'!$A25>0,(VLOOKUP('(1) Inputs'!$A25,Data,2,))/(VLOOKUP('(1) Inputs'!$A25,Data,3,)),0)) -> 37.68857953 | L18: =IF('(1) Inputs'!$A25>0,(VLOOKUP('(1) Inputs'!$A25,Data,6,)),0) -> 0.489797 | M18: =IF('(1) Inputs'!$A25>0,(VLOOKUP('(1) Inputs'!$A25,Data,8,)),0) -> 148.49 | P18: =IF('(1) Inputs'!$A25>0,(VLOOKUP('(1) Inputs'!$A25,Data,15,)),0) -> 66.58114 | Q18: =IF('(1) Inputs'!$A25>0,(VLOOKUP('(1) Inputs'!$A25, DISAGGED_DATA, 20,)),0) ->  | R18: =IF(A18>0, IncDivCalc!F$2, 0) -> 0.3757213373 | S18: =IF('(1) Inputs'!$A25>0,(VLOOKUP('(1) Inputs'!$A25, PedCol!A14:J7206, 4,)),0) ->  | T18: =IF('(1) Inputs'!$A25>0,(VLOOKUP('(1) Inputs'!$A25, PedCol!A14:J7206, 5,)),0) ->  | U18: =IF('(1) Inputs'!$A25>0,(VLOOKUP('(1) Inputs'!$A25, PedCol!A14:J7206, 6,)),0) ->  | V18: =IF('(1) Inputs'!$A25>0,(VLOOKUP('(1) Inputs'!$A25, PedCol!A14:J7206, 7,)),0) -> 
A19: ='(1) Inputs'!A26 -> 60750477023 | B19: 24393.77 | C19: =IF('(1) Inputs'!$A26>0,(VLOOKUP('(1) Inputs'!$A26,Data,9,)),0) -> 3566.570667 | D19: =IF('(1) Inputs'!$A26>0,(VLOOKUP('(1) Inputs'!$A26,Data,11,)),0) -> 34.20763 | E19: =IF('(1) Inputs'!$A26>0,(VLOOKUP('(1) Inputs'!$A26,IOR,2,)),0) -> 0.07119055883 | G19: =IF('(1) Inputs'!$A26>0,(VLOOKUP('(1) Inputs'!$A26,Data,4,)),0) -> 1.629607 | H19: =IF('(1) Inputs'!$A26>0,(VLOOKUP('(1) Inputs'!$A26,Data,5,)),0) -> 0.070852 | J19: =IF('(1) Inputs'!$A26>0,(VLOOKUP('(1) Inputs'!$A26,Data,7,)),0) -> 0.035426 | K19: =IF(ISERROR(IF('(1) Inputs'!$A26>0,(VLOOKUP('(1) Inputs'!$A26,Data,2,))/(VLOOKUP('(1) Inputs'!$A26,Data,3,)),0)),"-",IF('(1) Inputs'!$A26>0,(VLOOKUP('(1) Inputs'!$A26,Data,2,))/(VLOOKUP('(1) Inputs'!$A26,Data,3,)),0)) -> 47.9876161 | L19: =IF('(1) Inputs'!$A26>0,(VLOOKUP('(1) Inputs'!$A26,Data,6,)),0) -> 0 | M19: =IF('(1) Inputs'!$A26>0,(VLOOKUP('(1) Inputs'!$A26,Data,8,)),0) -> 80.7393 | P19: =IF('(1) Inputs'!$A26>0,(VLOOKUP('(1) Inputs'!$A26,Data,15,)),0) -> 65.79237 | Q19: =IF('(1) Inputs'!$A26>0,(VLOOKUP('(1) Inputs'!$A26, DISAGGED_DATA, 20,)),0) ->  | R19: =IF(A19>0, IncDivCalc!F$2, 0) -> 0.3757213373 | S19: =IF('(1) Inputs'!$A26>0,(VLOOKUP('(1) Inputs'!$A26, PedCol!A15:J7207, 4,)),0) -> 1 | T19: =IF('(1) Inputs'!$A26>0,(VLOOKUP('(1) Inputs'!$A26, PedCol!A15:J7207, 5,)),0) -> 1395 | U19: =IF('(1) Inputs'!$A26>0,(VLOOKUP('(1) Inputs'!$A26, PedCol!A15:J7207, 6,)),0) -> 869 | V19: =IF('(1) Inputs'!$A26>0,(VLOOKUP('(1) Inputs'!$A26, PedCol!A15:J7207, 7,)),0) -> 0
A20: ='(1) Inputs'!A27 -> 60750302022 | B20: 45751.22 | C20: =IF('(1) Inputs'!$A27>0,(VLOOKUP('(1) Inputs'!$A27,Data,9,)),0) -> 6681.386667 | D20: =IF('(1) Inputs'!$A27>0,(VLOOKUP('(1) Inputs'!$A27,Data,11,)),0) -> 26.76013 | E20: =IF('(1) Inputs'!$A27>0,(VLOOKUP('(1) Inputs'!$A27,IOR,2,)),0) -> 0.1168982282 | G20: =IF('(1) Inputs'!$A27>0,(VLOOKUP('(1) Inputs'!$A27,Data,4,)),0) -> 17.996243 | H20: =IF('(1) Inputs'!$A27>0,(VLOOKUP('(1) Inputs'!$A27,Data,5,)),0) -> 2.232092 | J20: =IF('(1) Inputs'!$A27>0,(VLOOKUP('(1) Inputs'!$A27,Data,7,)),0) -> 1.56944 | K20: =IF(ISERROR(IF('(1) Inputs'!$A27>0,(VLOOKUP('(1) Inputs'!$A27,Data,2,))/(VLOOKUP('(1) Inputs'!$A27,Data,3,)),0)),"-",IF('(1) Inputs'!$A27>0,(VLOOKUP('(1) Inputs'!$A27,Data,2,))/(VLOOKUP('(1) Inputs'!$A27,Data,3,)),0)) -> 51.40787296 | L20: =IF('(1) Inputs'!$A27>0,(VLOOKUP('(1) Inputs'!$A27,Data,6,)),0) -> 4.638567 | M20: =IF('(1) Inputs'!$A27>0,(VLOOKUP('(1) Inputs'!$A27,Data,8,)),0) -> 61.38 | P20: =IF('(1) Inputs'!$A27>0,(VLOOKUP('(1) Inputs'!$A27,Data,15,)),0) -> 73.23987 | Q20: =IF('(1) Inputs'!$A27>0,(VLOOKUP('(1) Inputs'!$A27, DISAGGED_DATA, 20,)),0) ->  | R20: =IF(A20>0, IncDivCalc!F$2, 0) -> 0.3757213373 | S20: =IF('(1) Inputs'!$A27>0,(VLOOKUP('(1) Inputs'!$A27, PedCol!A16:J7208, 4,)),0) ->  | T20: =IF('(1) Inputs'!$A27>0,(VLOOKUP('(1) Inputs'!$A27, PedCol!A16:J7208, 5,)),0) ->  | U20: =IF('(1) Inputs'!$A27>0,(VLOOKUP('(1) Inputs'!$A27, PedCol!A16:J7208, 6,)),0) ->  | V20: =IF('(1) Inputs'!$A27>0,(VLOOKUP('(1) Inputs'!$A27, PedCol!A16:J7208, 7,)),0) -> 
A21: ='(1) Inputs'!A28 -> 60750326023 | B21: 23572.92 | C21: =IF('(1) Inputs'!$A28>0,(VLOOKUP('(1) Inputs'!$A28,Data,9,)),0) -> 2808.789333 | D21: =IF('(1) Inputs'!$A28>0,(VLOOKUP('(1) Inputs'!$A28,Data,11,)),0) -> 31.29675 | E21: =IF('(1) Inputs'!$A28>0,(VLOOKUP('(1) Inputs'!$A28,IOR,2,)),0) -> 0.172551727 | G21: =IF('(1) Inputs'!$A28>0,(VLOOKUP('(1) Inputs'!$A28,Data,4,)),0) -> 2.016443 | H21: =IF('(1) Inputs'!$A28>0,(VLOOKUP('(1) Inputs'!$A28,Data,5,)),0) -> 0 | J21: =IF('(1) Inputs'!$A28>0,(VLOOKUP('(1) Inputs'!$A28,Data,7,)),0) -> 0.533764 | K21: =IF(ISERROR(IF('(1) Inputs'!$A28>0,(VLOOKUP('(1) Inputs'!$A28,Data,2,))/(VLOOKUP('(1) Inputs'!$A28,Data,3,)),0)),"-",IF('(1) Inputs'!$A28>0,(VLOOKUP('(1) Inputs'!$A28,Data,2,))/(VLOOKUP('(1) Inputs'!$A28,Data,3,)),0)) -> 37.33384954 | L21: =IF('(1) Inputs'!$A28>0,(VLOOKUP('(1) Inputs'!$A28,Data,6,)),0) -> 0 | M21: =IF('(1) Inputs'!$A28>0,(VLOOKUP('(1) Inputs'!$A28,Data,8,)),0) -> 69.583 | P21: =IF('(1) Inputs'!$A28>0,(VLOOKUP('(1) Inputs'!$A28,Data,15,)),0) -> 68.70325 | Q21: =IF('(1) Inputs'!$A28>0,(VLOOKUP('(1) Inputs'!$A28, DISAGGED_DATA, 20,)),0) ->  | R21: =IF(A21>0, IncDivCalc!F$2, 0) -> 0.3757213373 | S21: =IF('(1) Inputs'!$A28>0,(VLOOKUP('(1) Inputs'!$A28, PedCol!A17:J7209, 4,)),0) ->  | T21: =IF('(1) Inputs'!$A28>0,(VLOOKUP('(1) Inputs'!$A28, PedCol!A17:J7209, 5,)),0) ->  | U21: =IF('(1) Inputs'!$A28>0,(VLOOKUP('(1) Inputs'!$A28, PedCol!A17:J7209, 6,)),0) ->  | V21: =IF('(1) Inputs'!$A28>0,(VLOOKUP('(1) Inputs'!$A28, PedCol!A17:J7209, 7,)),0) -> 
A22: ='(1) Inputs'!A29 -> 60750158021 | B22: 56531.69 | C22: =IF('(1) Inputs'!$A29>0,(VLOOKUP('(1) Inputs'!$A29,Data,9,)),0) -> 7555.328 | D22: =IF('(1) Inputs'!$A29>0,(VLOOKUP('(1) Inputs'!$A29,Data,11,)),0) -> 27.6957 | E22: =IF('(1) Inputs'!$A29>0,(VLOOKUP('(1) Inputs'!$A29,IOR,2,)),0) -> 0.2452162209 | G22: =IF('(1) Inputs'!$A29>0,(VLOOKUP('(1) Inputs'!$A29,Data,4,)),0) -> 5.885231 | H22: =IF('(1) Inputs'!$A29>0,(VLOOKUP('(1) Inputs'!$A29,Data,5,)),0) -> 0 | J22: =IF('(1) Inputs'!$A29>0,(VLOOKUP('(1) Inputs'!$A29,Data,7,)),0) -> 1.197879 | K22: =IF(ISERROR(IF('(1) Inputs'!$A29>0,(VLOOKUP('(1) Inputs'!$A29,Data,2,))/(VLOOKUP('(1) Inputs'!$A29,Data,3,)),0)),"-",IF('(1) Inputs'!$A29>0,(VLOOKUP('(1) Inputs'!$A29,Data,2,))/(VLOOKUP('(1) Inputs'!$A29,Data,3,)),0)) -> 70.67485634 | L22: =IF('(1) Inputs'!$A29>0,(VLOOKUP('(1) Inputs'!$A29,Data,6,)),0) -> 1.354124 | M22: =IF('(1) Inputs'!$A29>0,(VLOOKUP('(1) Inputs'!$A29,Data,8,)),0) -> 177.792 | P22: =IF('(1) Inputs'!$A29>0,(VLOOKUP('(1) Inputs'!$A29,Data,15,)),0) -> 72.3043 | Q22: =IF('(1) Inputs'!$A29>0,(VLOOKUP('(1) Inputs'!$A29, DISAGGED_DATA, 20,)),0) ->  | R22: =IF(A22>0, IncDivCalc!F$2, 0) -> 0.3757213373 | S22: =IF('(1) Inputs'!$A29>0,(VLOOKUP('(1) Inputs'!$A29, PedCol!A18:J7210, 4,)),0) ->  | T22: =IF('(1) Inputs'!$A29>0,(VLOOKUP('(1) Inputs'!$A29, PedCol!A18:J7210, 5,)),0) ->  | U22: =IF('(1) Inputs'!$A29>0,(VLOOKUP('(1) Inputs'!$A29, PedCol!A18:J7210, 6,)),0) ->  | V22: =IF('(1) Inputs'!$A29>0,(VLOOKUP('(1) Inputs'!$A29, PedCol!A18:J7210, 7,)),0) -> 
A23: ='(1) Inputs'!A30 -> 60750157003 | B23: 40548.64 | C23: =IF('(1) Inputs'!$A30>0,(VLOOKUP('(1) Inputs'!$A30,Data,9,)),0) -> 3197.312 | D23: =IF('(1) Inputs'!$A30>0,(VLOOKUP('(1) Inputs'!$A30,Data,11,)),0) -> 29.97125 | E23: =IF('(1) Inputs'!$A30>0,(VLOOKUP('(1) Inputs'!$A30,IOR,2,)),0) -> 0.1780292207 | G23: =IF('(1) Inputs'!$A30>0,(VLOOKUP('(1) Inputs'!$A30,Data,4,)),0) -> 4.852784 | H23: =IF('(1) Inputs'!$A30>0,(VLOOKUP('(1) Inputs'!$A30,Data,5,)),0) -> 0.310697 | J23: =IF('(1) Inputs'!$A30>0,(VLOOKUP('(1) Inputs'!$A30,Data,7,)),0) -> 0.547418 | K23: =IF(ISERROR(IF('(1) Inputs'!$A30>0,(VLOOKUP('(1) Inputs'!$A30,Data,2,))/(VLOOKUP('(1) Inputs'!$A30,Data,3,)),0)),"-",IF('(1) Inputs'!$A30>0,(VLOOKUP('(1) Inputs'!$A30,Data,2,))/(VLOOKUP('(1) Inputs'!$A30,Data,3,)),0)) -> 23.24306094 | L23: =IF('(1) Inputs'!$A30>0,(VLOOKUP('(1) Inputs'!$A30,Data,6,)),0) -> 0.784139 | M23: =IF('(1) Inputs'!$A30>0,(VLOOKUP('(1) Inputs'!$A30,Data,8,)),0) -> 289.67 | P23: =IF('(1) Inputs'!$A30>0,(VLOOKUP('(1) Inputs'!$A30,Data,15,)),0) -> 70.02875 | Q23: =IF('(1) Inputs'!$A30>0,(VLOOKUP('(1) Inputs'!$A30, DISAGGED_DATA, 20,)),0) ->  | R23: =IF(A23>0, IncDivCalc!F$2, 0) -> 0.3757213373 | S23: =IF('(1) Inputs'!$A30>0,(VLOOKUP('(1) Inputs'!$A30, PedCol!A19:J7211, 4,)),0) ->  | T23: =IF('(1) Inputs'!$A30>0,(VLOOKUP('(1) Inputs'!$A30, PedCol!A19:J7211, 5,)),0) ->  | U23: =IF('(1) Inputs'!$A30>0,(VLOOKUP('(1) Inputs'!$A30, PedCol!A19:J7211, 6,)),0) ->  | V23: =IF('(1) Inputs'!$A30>0,(VLOOKUP('(1) Inputs'!$A30, PedCol!A19:J7211, 7,)),0) -> 
A24: ='(1) Inputs'!A31 -> 60750351005 | B24: 14228.74 | C24: =IF('(1) Inputs'!$A31>0,(VLOOKUP('(1) Inputs'!$A31,Data,9,)),0) -> 2870.4 | D24: =IF('(1) Inputs'!$A31>0,(VLOOKUP('(1) Inputs'!$A31,Data,11,)),0) -> 39.69087 | E24: =IF('(1) Inputs'!$A31>0,(VLOOKUP('(1) Inputs'!$A31,IOR,2,)),0) -> 0.1866464818 | G24: =IF('(1) Inputs'!$A31>0,(VLOOKUP('(1) Inputs'!$A31,Data,4,)),0) -> 0.95879 | H24: =IF('(1) Inputs'!$A31>0,(VLOOKUP('(1) Inputs'!$A31,Data,5,)),0) -> 0.191758 | J24: =IF('(1) Inputs'!$A31>0,(VLOOKUP('(1) Inputs'!$A31,Data,7,)),0) -> 0.191758 | K24: =IF(ISERROR(IF('(1) Inputs'!$A31>0,(VLOOKUP('(1) Inputs'!$A31,Data,2,))/(VLOOKUP('(1) Inputs'!$A31,Data,3,)),0)),"-",IF('(1) Inputs'!$A31>0,(VLOOKUP('(1) Inputs'!$A31,Data,2,))/(VLOOKUP('(1) Inputs'!$A31,Data,3,)),0)) -> 31.16067871 | L24: =IF('(1) Inputs'!$A31>0,(VLOOKUP('(1) Inputs'!$A31,Data,6,)),0) -> 0 | M24: =IF('(1) Inputs'!$A31>0,(VLOOKUP('(1) Inputs'!$A31,Data,8,)),0) -> 163.623 | P24: =IF('(1) Inputs'!$A31>0,(VLOOKUP('(1) Inputs'!$A31,Data,15,)),0) -> 60.30913 | Q24: =IF('(1) Inputs'!$A31>0,(VLOOKUP('(1) Inputs'!$A31, DISAGGED_DATA, 20,)),0) ->  | R24: =IF(A24>0, IncDivCalc!F$2, 0) -> 0.3757213373 | S24: =IF('(1) Inputs'!$A31>0,(VLOOKUP('(1) Inputs'!$A31, PedCol!A20:J7212, 4,)),0) -> 1 | T24: =IF('(1) Inputs'!$A31>0,(VLOOKUP('(1) Inputs'!$A31, PedCol!A20:J7212, 5,)),0) -> 975 | U24: =IF('(1) Inputs'!$A31>0,(VLOOKUP('(1) Inputs'!$A31, PedCol!A20:J7212, 6,)),0) -> 537 | V24: =IF('(1) Inputs'!$A31>0,(VLOOKUP('(1) Inputs'!$A31, PedCol!A20:J7212, 7,)),0) -> 0
A25: ='(1) Inputs'!A32 -> 60750479011 | B25: 20198.46 | C25: =IF('(1) Inputs'!$A32>0,(VLOOKUP('(1) Inputs'!$A32,Data,9,)),0) -> 4396.970667 | D25: =IF('(1) Inputs'!$A32>0,(VLOOKUP('(1) Inputs'!$A32,Data,11,)),0) -> 41.26393 | E25: =IF('(1) Inputs'!$A32>0,(VLOOKUP('(1) Inputs'!$A32,IOR,2,)),0) -> 0.2002560969 | G25: =IF('(1) Inputs'!$A32>0,(VLOOKUP('(1) Inputs'!$A32,Data,4,)),0) -> 3.647317 | H25: =IF('(1) Inputs'!$A32>0,(VLOOKUP('(1) Inputs'!$A32,Data,5,)),0) -> 0 | J25: =IF('(1) Inputs'!$A32>0,(VLOOKUP('(1) Inputs'!$A32,Data,7,)),0) -> 0 | K25: =IF(ISERROR(IF('(1) Inputs'!$A32>0,(VLOOKUP('(1) Inputs'!$A32,Data,2,))/(VLOOKUP('(1) Inputs'!$A32,Data,3,)),0)),"-",IF('(1) Inputs'!$A32>0,(VLOOKUP('(1) Inputs'!$A32,Data,2,))/(VLOOKUP('(1) Inputs'!$A32,Data,3,)),0)) -> 36.4731735 | L25: =IF('(1) Inputs'!$A32>0,(VLOOKUP('(1) Inputs'!$A32,Data,6,)),0) -> 0.034409 | M25: =IF('(1) Inputs'!$A32>0,(VLOOKUP('(1) Inputs'!$A32,Data,8,)),0) -> 132.14 | P25: =IF('(1) Inputs'!$A32>0,(VLOOKUP('(1) Inputs'!$A32,Data,15,)),0) -> 58.73607 | Q25: =IF('(1) Inputs'!$A32>0,(VLOOKUP('(1) Inputs'!$A32, DISAGGED_DATA, 20,)),0) ->  | R25: =IF(A25>0, IncDivCalc!F$2, 0) -> 0.3757213373 | S25: =IF('(1) Inputs'!$A32>0,(VLOOKUP('(1) Inputs'!$A32, PedCol!A21:J7213, 4,)),0) ->  | T25: =IF('(1) Inputs'!$A32>0,(VLOOKUP('(1) Inputs'!$A32, PedCol!A21:J7213, 5,)),0) ->  | U25: =IF('(1) Inputs'!$A32>0,(VLOOKUP('(1) Inputs'!$A32, PedCol!A21:J7213, 6,)),0) ->  | V25: =IF('(1) Inputs'!$A32>0,(VLOOKUP('(1) Inputs'!$A32, PedCol!A21:J7213, 7,)),0) -> 
A26: ='(1) Inputs'!A33 -> 60750327003 | B26: 22600.76 | C26: =IF('(1) Inputs'!$A33>0,(VLOOKUP('(1) Inputs'!$A33,Data,9,)),0) -> 2856.853333 | D26: =IF('(1) Inputs'!$A33>0,(VLOOKUP('(1) Inputs'!$A33,Data,11,)),0) -> 32.52972 | E26: =IF('(1) Inputs'!$A33>0,(VLOOKUP('(1) Inputs'!$A33,IOR,2,)),0) -> 0.2493278138 | G26: =IF('(1) Inputs'!$A33>0,(VLOOKUP('(1) Inputs'!$A33,Data,4,)),0) -> 5.802972 | H26: =IF('(1) Inputs'!$A33>0,(VLOOKUP('(1) Inputs'!$A33,Data,5,)),0) -> 0 | J26: =IF('(1) Inputs'!$A33>0,(VLOOKUP('(1) Inputs'!$A33,Data,7,)),0) -> 0.137348 | K26: =IF(ISERROR(IF('(1) Inputs'!$A33>0,(VLOOKUP('(1) Inputs'!$A33,Data,2,))/(VLOOKUP('(1) Inputs'!$A33,Data,3,)),0)),"-",IF('(1) Inputs'!$A33>0,(VLOOKUP('(1) Inputs'!$A33,Data,2,))/(VLOOKUP('(1) Inputs'!$A33,Data,3,)),0)) -> 42.20031263 | L26: =IF('(1) Inputs'!$A33>0,(VLOOKUP('(1) Inputs'!$A33,Data,6,)),0) -> 2.163238 | M26: =IF('(1) Inputs'!$A33>0,(VLOOKUP('(1) Inputs'!$A33,Data,8,)),0) -> 175.82 | P26: =IF('(1) Inputs'!$A33>0,(VLOOKUP('(1) Inputs'!$A33,Data,15,)),0) -> 67.47028 | Q26: =IF('(1) Inputs'!$A33>0,(VLOOKUP('(1) Inputs'!$A33, DISAGGED_DATA, 20,)),0) ->  | R26: =IF(A26>0, IncDivCalc!F$2, 0) -> 0.3757213373 | S26: =IF('(1) Inputs'!$A33>0,(VLOOKUP('(1) Inputs'!$A33, PedCol!A22:J7214, 4,)),0) ->  | T26: =IF('(1) Inputs'!$A33>0,(VLOOKUP('(1) Inputs'!$A33, PedCol!A22:J7214, 5,)),0) ->  | U26: =IF('(1) Inputs'!$A33>0,(VLOOKUP('(1) Inputs'!$A33, PedCol!A22:J7214, 6,)),0) ->  | V26: =IF('(1) Inputs'!$A33>0,(VLOOKUP('(1) Inputs'!$A33, PedCol!A22:J7214, 7,)),0) -> 
A27: ='(1) Inputs'!A34 -> 60750452003 | B27: 30293 | C27: =IF('(1) Inputs'!$A34>0,(VLOOKUP('(1) Inputs'!$A34,Data,9,)),0) -> 4811.413333 | D27: =IF('(1) Inputs'!$A34>0,(VLOOKUP('(1) Inputs'!$A34,Data,11,)),0) -> 40.20462 | E27: =IF('(1) Inputs'!$A34>0,(VLOOKUP('(1) Inputs'!$A34,IOR,2,)),0) -> 0.3294272304 | G27: =IF('(1) Inputs'!$A34>0,(VLOOKUP('(1) Inputs'!$A34,Data,4,)),0) -> 1.217727 | H27: =IF('(1) Inputs'!$A34>0,(VLOOKUP('(1) Inputs'!$A34,Data,5,)),0) -> 0 | J27: =IF('(1) Inputs'!$A34>0,(VLOOKUP('(1) Inputs'!$A34,Data,7,)),0) -> 0.152216 | K27: =IF(ISERROR(IF('(1) Inputs'!$A34>0,(VLOOKUP('(1) Inputs'!$A34,Data,2,))/(VLOOKUP('(1) Inputs'!$A34,Data,3,)),0)),"-",IF('(1) Inputs'!$A34>0,(VLOOKUP('(1) Inputs'!$A34,Data,2,))/(VLOOKUP('(1) Inputs'!$A34,Data,3,)),0)) -> 33.11118906 | L27: =IF('(1) Inputs'!$A34>0,(VLOOKUP('(1) Inputs'!$A34,Data,6,)),0) -> 0 | M27: =IF('(1) Inputs'!$A34>0,(VLOOKUP('(1) Inputs'!$A34,Data,8,)),0) -> 149.647 | P27: =IF('(1) Inputs'!$A34>0,(VLOOKUP('(1) Inputs'!$A34,Data,15,)),0) -> 59.79538 | Q27: =IF('(1) Inputs'!$A34>0,(VLOOKUP('(1) Inputs'!$A34, DISAGGED_DATA, 20,)),0) ->  | R27: =IF(A27>0, IncDivCalc!F$2, 0) -> 0.3757213373 | S27: =IF('(1) Inputs'!$A34>0,(VLOOKUP('(1) Inputs'!$A34, PedCol!A23:J7215, 4,)),0) ->  | T27: =IF('(1) Inputs'!$A34>0,(VLOOKUP('(1) Inputs'!$A34, PedCol!A23:J7215, 5,)),0) ->  | U27: =IF('(1) Inputs'!$A34>0,(VLOOKUP('(1) Inputs'!$A34, PedCol!A23:J7215, 6,)),0) ->  | V27: =IF('(1) Inputs'!$A34>0,(VLOOKUP('(1) Inputs'!$A34, PedCol!A23:J7215, 7,)),0) -> 
A28: ='(1) Inputs'!A35 -> 60750352021 | B28: 14282.01 | C28: =IF('(1) Inputs'!$A35>0,(VLOOKUP('(1) Inputs'!$A35,Data,9,)),0) -> 1832.599467 | D28: =IF('(1) Inputs'!$A35>0,(VLOOKUP('(1) Inputs'!$A35,Data,11,)),0) -> 27.20125 | E28: =IF('(1) Inputs'!$A35>0,(VLOOKUP('(1) Inputs'!$A35,IOR,2,)),0) -> 0.2252314782 | G28: =IF('(1) Inputs'!$A35>0,(VLOOKUP('(1) Inputs'!$A35,Data,4,)),0) -> 1.926082 | H28: =IF('(1) Inputs'!$A35>0,(VLOOKUP('(1) Inputs'!$A35,Data,5,)),0) -> 0 | J28: =IF('(1) Inputs'!$A35>0,(VLOOKUP('(1) Inputs'!$A35,Data,7,)),0) -> 0.417318 | K28: =IF(ISERROR(IF('(1) Inputs'!$A35>0,(VLOOKUP('(1) Inputs'!$A35,Data,2,))/(VLOOKUP('(1) Inputs'!$A35,Data,3,)),0)),"-",IF('(1) Inputs'!$A35>0,(VLOOKUP('(1) Inputs'!$A35,Data,2,))/(VLOOKUP('(1) Inputs'!$A35,Data,3,)),0)) -> 48.33228446 | L28: =IF('(1) Inputs'!$A35>0,(VLOOKUP('(1) Inputs'!$A35,Data,6,)),0) -> 0.674129 | M28: =IF('(1) Inputs'!$A35>0,(VLOOKUP('(1) Inputs'!$A35,Data,8,)),0) -> 134.267 | P28: =IF('(1) Inputs'!$A35>0,(VLOOKUP('(1) Inputs'!$A35,Data,15,)),0) -> 72.79875 | Q28: =IF('(1) Inputs'!$A35>0,(VLOOKUP('(1) Inputs'!$A35, DISAGGED_DATA, 20,)),0) ->  | R28: =IF(A28>0, IncDivCalc!F$2, 0) -> 0.3757213373 | S28: =IF('(1) Inputs'!$A35>0,(VLOOKUP('(1) Inputs'!$A35, PedCol!A24:J7216, 4,)),0) ->  | T28: =IF('(1) Inputs'!$A35>0,(VLOOKUP('(1) Inputs'!$A35, PedCol!A24:J7216, 5,)),0) ->  | U28: =IF('(1) Inputs'!$A35>0,(VLOOKUP('(1) Inputs'!$A35, PedCol!A24:J7216, 6,)),0) ->  | V28: =IF('(1) Inputs'!$A35>0,(VLOOKUP('(1) Inputs'!$A35, PedCol!A24:J7216, 7,)),0) -> 
A29: ='(1) Inputs'!A36 -> 60750326012 | B29: 28776.44 | C29: =IF('(1) Inputs'!$A36>0,(VLOOKUP('(1) Inputs'!$A36,Data,9,)),0) -> 4969.024 | D29: =IF('(1) Inputs'!$A36>0,(VLOOKUP('(1) Inputs'!$A36,Data,11,)),0) -> 30.98273 | E29: =IF('(1) Inputs'!$A36>0,(VLOOKUP('(1) Inputs'!$A36,IOR,2,)),0) -> 0.1078548663 | G29: =IF('(1) Inputs'!$A36>0,(VLOOKUP('(1) Inputs'!$A36,Data,4,)),0) -> 19.08141 | H29: =IF('(1) Inputs'!$A36>0,(VLOOKUP('(1) Inputs'!$A36,Data,5,)),0) -> 4.829246 | J29: =IF('(1) Inputs'!$A36>0,(VLOOKUP('(1) Inputs'!$A36,Data,7,)),0) -> 1.472331 | K29: =IF(ISERROR(IF('(1) Inputs'!$A36>0,(VLOOKUP('(1) Inputs'!$A36,Data,2,))/(VLOOKUP('(1) Inputs'!$A36,Data,3,)),0)),"-",IF('(1) Inputs'!$A36>0,(VLOOKUP('(1) Inputs'!$A36,Data,2,))/(VLOOKUP('(1) Inputs'!$A36,Data,3,)),0)) -> 41.90254023 | L29: =IF('(1) Inputs'!$A36>0,(VLOOKUP('(1) Inputs'!$A36,Data,6,)),0) -> 2.385176 | M29: =IF('(1) Inputs'!$A36>0,(VLOOKUP('(1) Inputs'!$A36,Data,8,)),0) -> 94.2207 | P29: =IF('(1) Inputs'!$A36>0,(VLOOKUP('(1) Inputs'!$A36,Data,15,)),0) -> 69.01727 | Q29: =IF('(1) Inputs'!$A36>0,(VLOOKUP('(1) Inputs'!$A36, DISAGGED_DATA, 20,)),0) ->  | R29: =IF(A29>0, IncDivCalc!F$2, 0) -> 0.3757213373 | S29: =IF('(1) Inputs'!$A36>0,(VLOOKUP('(1) Inputs'!$A36, PedCol!A25:J7217, 4,)),0) ->  | T29: =IF('(1) Inputs'!$A36>0,(VLOOKUP('(1) Inputs'!$A36, PedCol!A25:J7217, 5,)),0) ->  | U29: =IF('(1) Inputs'!$A36>0,(VLOOKUP('(1) Inputs'!$A36, PedCol!A25:J7217, 6,)),0) ->  | V29: =IF('(1) Inputs'!$A36>0,(VLOOKUP('(1) Inputs'!$A36, PedCol!A25:J7217, 7,)),0) -> 
A30: ='(1) Inputs'!A37 -> 60750303012 | B30: 47074.98 | C30: =IF('(1) Inputs'!$A37>0,(VLOOKUP('(1) Inputs'!$A37,Data,9,)),0) -> 3548.16 | D30: =IF('(1) Inputs'!$A37>0,(VLOOKUP('(1) Inputs'!$A37,Data,11,)),0) -> 33.0974 | E30: =IF('(1) Inputs'!$A37>0,(VLOOKUP('(1) Inputs'!$A37,IOR,2,)),0) -> 0.1393970979 | G30: =IF('(1) Inputs'!$A37>0,(VLOOKUP('(1) Inputs'!$A37,Data,4,)),0) -> 6.083874 | H30: =IF('(1) Inputs'!$A37>0,(VLOOKUP('(1) Inputs'!$A37,Data,5,)),0) -> 0.041528 | J30: =IF('(1) Inputs'!$A37>0,(VLOOKUP('(1) Inputs'!$A37,Data,7,)),0) -> 2.470925 | K30: =IF(ISERROR(IF('(1) Inputs'!$A37>0,(VLOOKUP('(1) Inputs'!$A37,Data,2,))/(VLOOKUP('(1) Inputs'!$A37,Data,3,)),0)),"-",IF('(1) Inputs'!$A37>0,(VLOOKUP('(1) Inputs'!$A37,Data,2,))/(VLOOKUP('(1) Inputs'!$A37,Data,3,)),0)) -> 38.82881739 | L30: =IF('(1) Inputs'!$A37>0,(VLOOKUP('(1) Inputs'!$A37,Data,6,)),0) -> 0.083056 | M30: =IF('(1) Inputs'!$A37>0,(VLOOKUP('(1) Inputs'!$A37,Data,8,)),0) -> 141.738 | P30: =IF('(1) Inputs'!$A37>0,(VLOOKUP('(1) Inputs'!$A37,Data,15,)),0) -> 66.9026 | Q30: =IF('(1) Inputs'!$A37>0,(VLOOKUP('(1) Inputs'!$A37, DISAGGED_DATA, 20,)),0) ->  | R30: =IF(A30>0, IncDivCalc!F$2, 0) -> 0.3757213373 | S30: =IF('(1) Inputs'!$A37>0,(VLOOKUP('(1) Inputs'!$A37, PedCol!A26:J7218, 4,)),0) -> 4 | T30: =IF('(1) Inputs'!$A37>0,(VLOOKUP('(1) Inputs'!$A37, PedCol!A26:J7218, 5,)),0) -> 1870 | U30: =IF('(1) Inputs'!$A37>0,(VLOOKUP('(1) Inputs'!$A37, PedCol!A26:J7218, 6,)),0) -> 1327 | V30: =IF('(1) Inputs'!$A37>0,(VLOOKUP('(1) Inputs'!$A37, PedCol!A26:J7218, 7,)),0) -> 64
A31: ='(1) Inputs'!A38 -> 60750352012 | B31: 14080.52 | C31: =IF('(1) Inputs'!$A38>0,(VLOOKUP('(1) Inputs'!$A38,Data,9,)),0) -> 584.277333 | D31: =IF('(1) Inputs'!$A38>0,(VLOOKUP('(1) Inputs'!$A38,Data,11,)),0) -> 38.90817 | E31: =IF('(1) Inputs'!$A38>0,(VLOOKUP('(1) Inputs'!$A38,IOR,2,)),0) -> 0.1291460305 | G31: =IF('(1) Inputs'!$A38>0,(VLOOKUP('(1) Inputs'!$A38,Data,4,)),0) -> 0.6766 | H31: =IF('(1) Inputs'!$A38>0,(VLOOKUP('(1) Inputs'!$A38,Data,5,)),0) -> 0.054128 | J31: =IF('(1) Inputs'!$A38>0,(VLOOKUP('(1) Inputs'!$A38,Data,7,)),0) -> 0 | K31: =IF(ISERROR(IF('(1) Inputs'!$A38>0,(VLOOKUP('(1) Inputs'!$A38,Data,2,))/(VLOOKUP('(1) Inputs'!$A38,Data,3,)),0)),"-",IF('(1) Inputs'!$A38>0,(VLOOKUP('(1) Inputs'!$A38,Data,2,))/(VLOOKUP('(1) Inputs'!$A38,Data,3,)),0)) -> 4.508827524 | L31: =IF('(1) Inputs'!$A38>0,(VLOOKUP('(1) Inputs'!$A38,Data,6,)),0) -> 0 | M31: =IF('(1) Inputs'!$A38>0,(VLOOKUP('(1) Inputs'!$A38,Data,8,)),0) -> 120.707 | P31: =IF('(1) Inputs'!$A38>0,(VLOOKUP('(1) Inputs'!$A38,Data,15,)),0) -> 61.09183 | Q31: =IF('(1) Inputs'!$A38>0,(VLOOKUP('(1) Inputs'!$A38, DISAGGED_DATA, 20,)),0) ->  | R31: =IF(A31>0, IncDivCalc!F$2, 0) -> 0.3757213373 | S31: =IF('(1) Inputs'!$A38>0,(VLOOKUP('(1) Inputs'!$A38, PedCol!A27:J7219, 4,)),0) ->  | T31: =IF('(1) Inputs'!$A38>0,(VLOOKUP('(1) Inputs'!$A38, PedCol!A27:J7219, 5,)),0) ->  | U31: =IF('(1) Inputs'!$A38>0,(VLOOKUP('(1) Inputs'!$A38, PedCol!A27:J7219, 6,)),0) ->  | V31: =IF('(1) Inputs'!$A38>0,(VLOOKUP('(1) Inputs'!$A38, PedCol!A27:J7219, 7,)),0) -> 
A32: ='(1) Inputs'!A39 -> 60750352014 | B32: 14070.7 | C32: =IF('(1) Inputs'!$A39>0,(VLOOKUP('(1) Inputs'!$A39,Data,9,)),0) -> 1881.207467 | D32: =IF('(1) Inputs'!$A39>0,(VLOOKUP('(1) Inputs'!$A39,Data,11,)),0) -> 35.45536 | E32: =IF('(1) Inputs'!$A39>0,(VLOOKUP('(1) Inputs'!$A39,IOR,2,)),0) -> 0.1819920404 | G32: =IF('(1) Inputs'!$A39>0,(VLOOKUP('(1) Inputs'!$A39,Data,4,)),0) -> 0.919268 | H32: =IF('(1) Inputs'!$A39>0,(VLOOKUP('(1) Inputs'!$A39,Data,5,)),0) -> 0.102141 | J32: =IF('(1) Inputs'!$A39>0,(VLOOKUP('(1) Inputs'!$A39,Data,7,)),0) -> 0 | K32: =IF(ISERROR(IF('(1) Inputs'!$A39>0,(VLOOKUP('(1) Inputs'!$A39,Data,2,))/(VLOOKUP('(1) Inputs'!$A39,Data,3,)),0)),"-",IF('(1) Inputs'!$A39>0,(VLOOKUP('(1) Inputs'!$A39,Data,2,))/(VLOOKUP('(1) Inputs'!$A39,Data,3,)),0)) -> 39.90303562 | L32: =IF('(1) Inputs'!$A39>0,(VLOOKUP('(1) Inputs'!$A39,Data,6,)),0) -> 0.136188 | M32: =IF('(1) Inputs'!$A39>0,(VLOOKUP('(1) Inputs'!$A39,Data,8,)),0) -> 65.37 | P32: =IF('(1) Inputs'!$A39>0,(VLOOKUP('(1) Inputs'!$A39,Data,15,)),0) -> 64.54464 | Q32: =IF('(1) Inputs'!$A39>0,(VLOOKUP('(1) Inputs'!$A39, DISAGGED_DATA, 20,)),0) ->  | R32: =IF(A32>0, IncDivCalc!F$2, 0) -> 0.3757213373 | S32: =IF('(1) Inputs'!$A39>0,(VLOOKUP('(1) Inputs'!$A39, PedCol!A28:J7220, 4,)),0) ->  | T32: =IF('(1) Inputs'!$A39>0,(VLOOKUP('(1) Inputs'!$A39, PedCol!A28:J7220, 5,)),0) ->  | U32: =IF('(1) Inputs'!$A39>0,(VLOOKUP('(1) Inputs'!$A39, PedCol!A28:J7220, 6,)),0) ->  | V32: =IF('(1) Inputs'!$A39>0,(VLOOKUP('(1) Inputs'!$A39, PedCol!A28:J7220, 7,)),0) -> 
A33: ='(1) Inputs'!A40 -> 60750301013 | B33: 45174.04 | C33: =IF('(1) Inputs'!$A40>0,(VLOOKUP('(1) Inputs'!$A40,Data,9,)),0) -> 10052.8 | D33: =IF('(1) Inputs'!$A40>0,(VLOOKUP('(1) Inputs'!$A40,Data,11,)),0) -> 34.17261 | E33: =IF('(1) Inputs'!$A40>0,(VLOOKUP('(1) Inputs'!$A40,IOR,2,)),0) -> 0.2518264764 | G33: =IF('(1) Inputs'!$A40>0,(VLOOKUP('(1) Inputs'!$A40,Data,4,)),0) -> 2.472079 | H33: =IF('(1) Inputs'!$A40>0,(VLOOKUP('(1) Inputs'!$A40,Data,5,)),0) -> 0 | J33: =IF('(1) Inputs'!$A40>0,(VLOOKUP('(1) Inputs'!$A40,Data,7,)),0) -> 0.068669 | K33: =IF(ISERROR(IF('(1) Inputs'!$A40>0,(VLOOKUP('(1) Inputs'!$A40,Data,2,))/(VLOOKUP('(1) Inputs'!$A40,Data,3,)),0)),"-",IF('(1) Inputs'!$A40>0,(VLOOKUP('(1) Inputs'!$A40,Data,2,))/(VLOOKUP('(1) Inputs'!$A40,Data,3,)),0)) -> 53.35138795 | L33: =IF('(1) Inputs'!$A40>0,(VLOOKUP('(1) Inputs'!$A40,Data,6,)),0) -> 0.824026 | M33: =IF('(1) Inputs'!$A40>0,(VLOOKUP('(1) Inputs'!$A40,Data,8,)),0) -> 317.782 | P33: =IF('(1) Inputs'!$A40>0,(VLOOKUP('(1) Inputs'!$A40,Data,15,)),0) -> 65.82739 | Q33: =IF('(1) Inputs'!$A40>0,(VLOOKUP('(1) Inputs'!$A40, DISAGGED_DATA, 20,)),0) ->  | R33: =IF(A33>0, IncDivCalc!F$2, 0) -> 0.3757213373 | S33: =IF('(1) Inputs'!$A40>0,(VLOOKUP('(1) Inputs'!$A40, PedCol!A29:J7221, 4,)),0) ->  | T33: =IF('(1) Inputs'!$A40>0,(VLOOKUP('(1) Inputs'!$A40, PedCol!A29:J7221, 5,)),0) ->  | U33: =IF('(1) Inputs'!$A40>0,(VLOOKUP('(1) Inputs'!$A40, PedCol!A29:J7221, 6,)),0) ->  | V33: =IF('(1) Inputs'!$A40>0,(VLOOKUP('(1) Inputs'!$A40, PedCol!A29:J7221, 7,)),0) -> 
A34: ='(1) Inputs'!A41 -> 60750476003 | B34: 30677.88 | C34: =IF('(1) Inputs'!$A41>0,(VLOOKUP('(1) Inputs'!$A41,Data,9,)),0) -> 3905.258667 | D34: =IF('(1) Inputs'!$A41>0,(VLOOKUP('(1) Inputs'!$A41,Data,11,)),0) -> 34.02657 | E34: =IF('(1) Inputs'!$A41>0,(VLOOKUP('(1) Inputs'!$A41,IOR,2,)),0) -> 0.106770253 | G34: =IF('(1) Inputs'!$A41>0,(VLOOKUP('(1) Inputs'!$A41,Data,4,)),0) -> 3.278145 | H34: =IF('(1) Inputs'!$A41>0,(VLOOKUP('(1) Inputs'!$A41,Data,5,)),0) -> 0 | J34: =IF('(1) Inputs'!$A41>0,(VLOOKUP('(1) Inputs'!$A41,Data,7,)),0) -> 0 | K34: =IF(ISERROR(IF('(1) Inputs'!$A41>0,(VLOOKUP('(1) Inputs'!$A41,Data,2,))/(VLOOKUP('(1) Inputs'!$A41,Data,3,)),0)),"-",IF('(1) Inputs'!$A41>0,(VLOOKUP('(1) Inputs'!$A41,Data,2,))/(VLOOKUP('(1) Inputs'!$A41,Data,3,)),0)) -> 31.98883028 | L34: =IF('(1) Inputs'!$A41>0,(VLOOKUP('(1) Inputs'!$A41,Data,6,)),0) -> 0 | M34: =IF('(1) Inputs'!$A41>0,(VLOOKUP('(1) Inputs'!$A41,Data,8,)),0) -> 158.849 | P34: =IF('(1) Inputs'!$A41>0,(VLOOKUP('(1) Inputs'!$A41,Data,15,)),0) -> 65.97343 | Q34: =IF('(1) Inputs'!$A41>0,(VLOOKUP('(1) Inputs'!$A41, DISAGGED_DATA, 20,)),0) ->  | R34: =IF(A34>0, IncDivCalc!F$2, 0) -> 0.3757213373 | S34: =IF('(1) Inputs'!$A41>0,(VLOOKUP('(1) Inputs'!$A41, PedCol!A30:J7222, 4,)),0) ->  | T34: =IF('(1) Inputs'!$A41>0,(VLOOKUP('(1) Inputs'!$A41, PedCol!A30:J7222, 5,)),0) ->  | U34: =IF('(1) Inputs'!$A41>0,(VLOOKUP('(1) Inputs'!$A41, PedCol!A30:J7222, 6,)),0) ->  | V34: =IF('(1) Inputs'!$A41>0,(VLOOKUP('(1) Inputs'!$A41, PedCol!A30:J7222, 7,)),0) -> 
A35: ='(1) Inputs'!A42 -> 60750479015 | B35: 16122.17 | C35: =IF('(1) Inputs'!$A42>0,(VLOOKUP('(1) Inputs'!$A42,Data,9,)),0) -> 5061.525333 | D35: =IF('(1) Inputs'!$A42>0,(VLOOKUP('(1) Inputs'!$A42,Data,11,)),0) -> 37.77993 | E35: =IF('(1) Inputs'!$A42>0,(VLOOKUP('(1) Inputs'!$A42,IOR,2,)),0) -> 0.2000304432 | G35: =IF('(1) Inputs'!$A42>0,(VLOOKUP('(1) Inputs'!$A42,Data,4,)),0) -> 2.343971 | H35: =IF('(1) Inputs'!$A42>0,(VLOOKUP('(1) Inputs'!$A42,Data,5,)),0) -> 0 | J35: =IF('(1) Inputs'!$A42>0,(VLOOKUP('(1) Inputs'!$A42,Data,7,)),0) -> 0.206821 | K35: =IF(ISERROR(IF('(1) Inputs'!$A42>0,(VLOOKUP('(1) Inputs'!$A42,Data,2,))/(VLOOKUP('(1) Inputs'!$A42,Data,3,)),0)),"-",IF('(1) Inputs'!$A42>0,(VLOOKUP('(1) Inputs'!$A42,Data,2,))/(VLOOKUP('(1) Inputs'!$A42,Data,3,)),0)) -> 35.29614325 | L35: =IF('(1) Inputs'!$A42>0,(VLOOKUP('(1) Inputs'!$A42,Data,6,)),0) -> 0.413642 | M35: =IF('(1) Inputs'!$A42>0,(VLOOKUP('(1) Inputs'!$A42,Data,8,)),0) -> 143.257 | P35: =IF('(1) Inputs'!$A42>0,(VLOOKUP('(1) Inputs'!$A42,Data,15,)),0) -> 62.22007 | Q35: =IF('(1) Inputs'!$A42>0,(VLOOKUP('(1) Inputs'!$A42, DISAGGED_DATA, 20,)),0) ->  | R35: =IF(A35>0, IncDivCalc!F$2, 0) -> 0.3757213373 | S35: =IF('(1) Inputs'!$A42>0,(VLOOKUP('(1) Inputs'!$A42, PedCol!A31:J7223, 4,)),0) ->  | T35: =IF('(1) Inputs'!$A42>0,(VLOOKUP('(1) Inputs'!$A42, PedCol!A31:J7223, 5,)),0) ->  | U35: =IF('(1) Inputs'!$A42>0,(VLOOKUP('(1) Inputs'!$A42, PedCol!A31:J7223, 6,)),0) ->  | V35: =IF('(1) Inputs'!$A42>0,(VLOOKUP('(1) Inputs'!$A42, PedCol!A31:J7223, 7,)),0) -> 
A36: ='(1) Inputs'!A43 -> 60750165002 | B36: 49342.13 | C36: =IF('(1) Inputs'!$A43>0,(VLOOKUP('(1) Inputs'!$A43,Data,9,)),0) -> 7724.458667 | D36: =IF('(1) Inputs'!$A43>0,(VLOOKUP('(1) Inputs'!$A43,Data,11,)),0) -> 31.4096 | E36: =IF('(1) Inputs'!$A43>0,(VLOOKUP('(1) Inputs'!$A43,IOR,2,)),0) -> 0.1774215638 | G36: =IF('(1) Inputs'!$A43>0,(VLOOKUP('(1) Inputs'!$A43,Data,4,)),0) -> 15.773782 | H36: =IF('(1) Inputs'!$A43>0,(VLOOKUP('(1) Inputs'!$A43,Data,5,)),0) -> 0.438161 | J36: =IF('(1) Inputs'!$A43>0,(VLOOKUP('(1) Inputs'!$A43,Data,7,)),0) -> 0.701057 | K36: =IF(ISERROR(IF('(1) Inputs'!$A43>0,(VLOOKUP('(1) Inputs'!$A43,Data,2,))/(VLOOKUP('(1) Inputs'!$A43,Data,3,)),0)),"-",IF('(1) Inputs'!$A43>0,(VLOOKUP('(1) Inputs'!$A43,Data,2,))/(VLOOKUP('(1) Inputs'!$A43,Data,3,)),0)) -> 48.20490368 | L36: =IF('(1) Inputs'!$A43>0,(VLOOKUP('(1) Inputs'!$A43,Data,6,)),0) -> 1.095402 | M36: =IF('(1) Inputs'!$A43>0,(VLOOKUP('(1) Inputs'!$A43,Data,8,)),0) -> 196.151 | P36: =IF('(1) Inputs'!$A43>0,(VLOOKUP('(1) Inputs'!$A43,Data,15,)),0) -> 68.5904 | Q36: =IF('(1) Inputs'!$A43>0,(VLOOKUP('(1) Inputs'!$A43, DISAGGED_DATA, 20,)),0) ->  | R36: =IF(A36>0, IncDivCalc!F$2, 0) -> 0.3757213373 | S36: =IF('(1) Inputs'!$A43>0,(VLOOKUP('(1) Inputs'!$A43, PedCol!A32:J7224, 4,)),0) -> 1 | T36: =IF('(1) Inputs'!$A43>0,(VLOOKUP('(1) Inputs'!$A43, PedCol!A32:J7224, 5,)),0) -> 1101 | U36: =IF('(1) Inputs'!$A43>0,(VLOOKUP('(1) Inputs'!$A43, PedCol!A32:J7224, 6,)),0) -> 734 | V36: =IF('(1) Inputs'!$A43>0,(VLOOKUP('(1) Inputs'!$A43, PedCol!A32:J7224, 7,)),0) -> 57
A37: ='(1) Inputs'!A44 -> 60750327005 | B37: 16211.72 | C37: =IF('(1) Inputs'!$A44>0,(VLOOKUP('(1) Inputs'!$A44,Data,9,)),0) -> 2209.173333 | D37: =IF('(1) Inputs'!$A44>0,(VLOOKUP('(1) Inputs'!$A44,Data,11,)),0) -> 44.94096 | E37: =IF('(1) Inputs'!$A44>0,(VLOOKUP('(1) Inputs'!$A44,IOR,2,)),0) -> 0.1962259134 | G37: =IF('(1) Inputs'!$A44>0,(VLOOKUP('(1) Inputs'!$A44,Data,4,)),0) -> 0.578532 | H37: =IF('(1) Inputs'!$A44>0,(VLOOKUP('(1) Inputs'!$A44,Data,5,)),0) -> 0 | J37: =IF('(1) Inputs'!$A44>0,(VLOOKUP('(1) Inputs'!$A44,Data,7,)),0) -> 0.123971 | K37: =IF(ISERROR(IF('(1) Inputs'!$A44>0,(VLOOKUP('(1) Inputs'!$A44,Data,2,))/(VLOOKUP('(1) Inputs'!$A44,Data,3,)),0)),"-",IF('(1) Inputs'!$A44>0,(VLOOKUP('(1) Inputs'!$A44,Data,2,))/(VLOOKUP('(1) Inputs'!$A44,Data,3,)),0)) -> 26.78633069 | L37: =IF('(1) Inputs'!$A44>0,(VLOOKUP('(1) Inputs'!$A44,Data,6,)),0) -> 0 | M37: =IF('(1) Inputs'!$A44>0,(VLOOKUP('(1) Inputs'!$A44,Data,8,)),0) -> 169.386 | P37: =IF('(1) Inputs'!$A44>0,(VLOOKUP('(1) Inputs'!$A44,Data,15,)),0) -> 55.05904 | Q37: =IF('(1) Inputs'!$A44>0,(VLOOKUP('(1) Inputs'!$A44, DISAGGED_DATA, 20,)),0) ->  | R37: =IF(A37>0, IncDivCalc!F$2, 0) -> 0.3757213373 | S37: =IF('(1) Inputs'!$A44>0,(VLOOKUP('(1) Inputs'!$A44, PedCol!A33:J7225, 4,)),0) ->  | T37: =IF('(1) Inputs'!$A44>0,(VLOOKUP('(1) Inputs'!$A44, PedCol!A33:J7225, 5,)),0) ->  | U37: =IF('(1) Inputs'!$A44>0,(VLOOKUP('(1) Inputs'!$A44, PedCol!A33:J7225, 6,)),0) ->  | V37: =IF('(1) Inputs'!$A44>0,(VLOOKUP('(1) Inputs'!$A44, PedCol!A33:J7225, 7,)),0) -> 
A38: ='(1) Inputs'!A45 -> 60750165001 | B38: 46846.77 | C38: =IF('(1) Inputs'!$A45>0,(VLOOKUP('(1) Inputs'!$A45,Data,9,)),0) -> 8561.130667 | D38: =IF('(1) Inputs'!$A45>0,(VLOOKUP('(1) Inputs'!$A45,Data,11,)),0) -> 25.48055 | E38: =IF('(1) Inputs'!$A45>0,(VLOOKUP('(1) Inputs'!$A45,IOR,2,)),0) -> 0.2180551398 | G38: =IF('(1) Inputs'!$A45>0,(VLOOKUP('(1) Inputs'!$A45,Data,4,)),0) -> 16.567965 | H38: =IF('(1) Inputs'!$A45>0,(VLOOKUP('(1) Inputs'!$A45,Data,5,)),0) -> 0.393435 | J38: =IF('(1) Inputs'!$A45>0,(VLOOKUP('(1) Inputs'!$A45,Data,7,)),0) -> 6.906962 | K38: =IF(ISERROR(IF('(1) Inputs'!$A45>0,(VLOOKUP('(1) Inputs'!$A45,Data,2,))/(VLOOKUP('(1) Inputs'!$A45,Data,3,)),0)),"-",IF('(1) Inputs'!$A45>0,(VLOOKUP('(1) Inputs'!$A45,Data,2,))/(VLOOKUP('(1) Inputs'!$A45,Data,3,)),0)) -> 68.71989652 | L38: =IF('(1) Inputs'!$A45>0,(VLOOKUP('(1) Inputs'!$A45,Data,6,)),0) -> 0.043715 | M38: =IF('(1) Inputs'!$A45>0,(VLOOKUP('(1) Inputs'!$A45,Data,8,)),0) -> 167.89 | P38: =IF('(1) Inputs'!$A45>0,(VLOOKUP('(1) Inputs'!$A45,Data,15,)),0) -> 74.51945 | Q38: =IF('(1) Inputs'!$A45>0,(VLOOKUP('(1) Inputs'!$A45, DISAGGED_DATA, 20,)),0) ->  | R38: =IF(A38>0, IncDivCalc!F$2, 0) -> 0.3757213373 | S38: =IF('(1) Inputs'!$A45>0,(VLOOKUP('(1) Inputs'!$A45, PedCol!A34:J7226, 4,)),0) -> 1 | T38: =IF('(1) Inputs'!$A45>0,(VLOOKUP('(1) Inputs'!$A45, PedCol!A34:J7226, 5,)),0) -> 1572 | U38: =IF('(1) Inputs'!$A45>0,(VLOOKUP('(1) Inputs'!$A45, PedCol!A34:J7226, 6,)),0) -> 706 | V38: =IF('(1) Inputs'!$A45>0,(VLOOKUP('(1) Inputs'!$A45, PedCol!A34:J7226, 7,)),0) -> 0
A39: ='(1) Inputs'!A46 -> 60750451001 | B39: 36199.79 | C39: =IF('(1) Inputs'!$A46>0,(VLOOKUP('(1) Inputs'!$A46,Data,9,)),0) -> 4665.6 | D39: =IF('(1) Inputs'!$A46>0,(VLOOKUP('(1) Inputs'!$A46,Data,11,)),0) -> 31.18517 | E39: =IF('(1) Inputs'!$A46>0,(VLOOKUP('(1) Inputs'!$A46,IOR,2,)),0) -> 0.09649730951 | G39: =IF('(1) Inputs'!$A46>0,(VLOOKUP('(1) Inputs'!$A46,Data,4,)),0) -> 9.014523 | H39: =IF('(1) Inputs'!$A46>0,(VLOOKUP('(1) Inputs'!$A46,Data,5,)),0) -> 3.066524 | J39: =IF('(1) Inputs'!$A46>0,(VLOOKUP('(1) Inputs'!$A46,Data,7,)),0) -> 0.317227 | K39: =IF(ISERROR(IF('(1) Inputs'!$A46>0,(VLOOKUP('(1) Inputs'!$A46,Data,2,))/(VLOOKUP('(1) Inputs'!$A46,Data,3,)),0)),"-",IF('(1) Inputs'!$A46>0,(VLOOKUP('(1) Inputs'!$A46,Data,2,))/(VLOOKUP('(1) Inputs'!$A46,Data,3,)),0)) -> 57.34284205 | L39: =IF('(1) Inputs'!$A46>0,(VLOOKUP('(1) Inputs'!$A46,Data,6,)),0) -> 3.172266 | M39: =IF('(1) Inputs'!$A46>0,(VLOOKUP('(1) Inputs'!$A46,Data,8,)),0) -> 191.602 | P39: =IF('(1) Inputs'!$A46>0,(VLOOKUP('(1) Inputs'!$A46,Data,15,)),0) -> 68.81483 | Q39: =IF('(1) Inputs'!$A46>0,(VLOOKUP('(1) Inputs'!$A46, DISAGGED_DATA, 20,)),0) ->  | R39: =IF(A39>0, IncDivCalc!F$2, 0) -> 0.3757213373 | S39: =IF('(1) Inputs'!$A46>0,(VLOOKUP('(1) Inputs'!$A46, PedCol!A35:J7227, 4,)),0) ->  | T39: =IF('(1) Inputs'!$A46>0,(VLOOKUP('(1) Inputs'!$A46, PedCol!A35:J7227, 5,)),0) ->  | U39: =IF('(1) Inputs'!$A46>0,(VLOOKUP('(1) Inputs'!$A46, PedCol!A35:J7227, 6,)),0) ->  | V39: =IF('(1) Inputs'!$A46>0,(VLOOKUP('(1) Inputs'!$A46, PedCol!A35:J7227, 7,)),0) -> 
A40: ='(1) Inputs'!A47 -> 60750452005 | B40: 28623.46 | C40: =IF('(1) Inputs'!$A47>0,(VLOOKUP('(1) Inputs'!$A47,Data,9,)),0) -> 4860.224 | D40: =IF('(1) Inputs'!$A47>0,(VLOOKUP('(1) Inputs'!$A47,Data,11,)),0) -> 26.51205 | E40: =IF('(1) Inputs'!$A47>0,(VLOOKUP('(1) Inputs'!$A47,IOR,2,)),0) -> 0.06358752052 | G40: =IF('(1) Inputs'!$A47>0,(VLOOKUP('(1) Inputs'!$A47,Data,4,)),0) -> 4.111364 | H40: =IF('(1) Inputs'!$A47>0,(VLOOKUP('(1) Inputs'!$A47,Data,5,)),0) -> 0.254686 | J40: =IF('(1) Inputs'!$A47>0,(VLOOKUP('(1) Inputs'!$A47,Data,7,)),0) -> 0.036384 | K40: =IF(ISERROR(IF('(1) Inputs'!$A47>0,(VLOOKUP('(1) Inputs'!$A47,Data,2,))/(VLOOKUP('(1) Inputs'!$A47,Data,3,)),0)),"-",IF('(1) Inputs'!$A47>0,(VLOOKUP('(1) Inputs'!$A47,Data,2,))/(VLOOKUP('(1) Inputs'!$A47,Data,3,)),0)) -> 40.32258065 | L40: =IF('(1) Inputs'!$A47>0,(VLOOKUP('(1) Inputs'!$A47,Data,6,)),0) -> 1.564501 | M40: =IF('(1) Inputs'!$A47>0,(VLOOKUP('(1) Inputs'!$A47,Data,8,)),0) -> 64.51 | P40: =IF('(1) Inputs'!$A47>0,(VLOOKUP('(1) Inputs'!$A47,Data,15,)),0) -> 73.48795 | Q40: =IF('(1) Inputs'!$A47>0,(VLOOKUP('(1) Inputs'!$A47, DISAGGED_DATA, 20,)),0) ->  | R40: =IF(A40>0, IncDivCalc!F$2, 0) -> 0.3757213373 | S40: =IF('(1) Inputs'!$A47>0,(VLOOKUP('(1) Inputs'!$A47, PedCol!A36:J7228, 4,)),0) -> 1 | T40: =IF('(1) Inputs'!$A47>0,(VLOOKUP('(1) Inputs'!$A47, PedCol!A36:J7228, 5,)),0) -> 1200 | U40: =IF('(1) Inputs'!$A47>0,(VLOOKUP('(1) Inputs'!$A47, PedCol!A36:J7228, 6,)),0) -> 772 | V40: =IF('(1) Inputs'!$A47>0,(VLOOKUP('(1) Inputs'!$A47, PedCol!A36:J7228, 7,)),0) -> 18
A41: ='(1) Inputs'!A48 -> 60750352022 | B41: 16265.46 | C41: =IF('(1) Inputs'!$A48>0,(VLOOKUP('(1) Inputs'!$A48,Data,9,)),0) -> 2356.544 | D41: =IF('(1) Inputs'!$A48>0,(VLOOKUP('(1) Inputs'!$A48,Data,11,)),0) -> 31.07215 | E41: =IF('(1) Inputs'!$A48>0,(VLOOKUP('(1) Inputs'!$A48,IOR,2,)),0) -> 0.1582278681 | G41: =IF('(1) Inputs'!$A48>0,(VLOOKUP('(1) Inputs'!$A48,Data,4,)),0) -> 5.012046 | H41: =IF('(1) Inputs'!$A48>0,(VLOOKUP('(1) Inputs'!$A48,Data,5,)),0) -> 1.780595 | J41: =IF('(1) Inputs'!$A48>0,(VLOOKUP('(1) Inputs'!$A48,Data,7,)),0) -> 0.527584 | K41: =IF(ISERROR(IF('(1) Inputs'!$A48>0,(VLOOKUP('(1) Inputs'!$A48,Data,2,))/(VLOOKUP('(1) Inputs'!$A48,Data,3,)),0)),"-",IF('(1) Inputs'!$A48>0,(VLOOKUP('(1) Inputs'!$A48,Data,2,))/(VLOOKUP('(1) Inputs'!$A48,Data,3,)),0)) -> 48.60365876 | L41: =IF('(1) Inputs'!$A48>0,(VLOOKUP('(1) Inputs'!$A48,Data,6,)),0) -> 0.791376 | M41: =IF('(1) Inputs'!$A48>0,(VLOOKUP('(1) Inputs'!$A48,Data,8,)),0) -> 415.096 | P41: =IF('(1) Inputs'!$A48>0,(VLOOKUP('(1) Inputs'!$A48,Data,15,)),0) -> 68.92785 | Q41: =IF('(1) Inputs'!$A48>0,(VLOOKUP('(1) Inputs'!$A48, DISAGGED_DATA, 20,)),0) ->  | R41: =IF(A41>0, IncDivCalc!F$2, 0) -> 0.3757213373 | S41: =IF('(1) Inputs'!$A48>0,(VLOOKUP('(1) Inputs'!$A48, PedCol!A37:J7229, 4,)),0) -> 1 | T41: =IF('(1) Inputs'!$A48>0,(VLOOKUP('(1) Inputs'!$A48, PedCol!A37:J7229, 5,)),0) -> 1474 | U41: =IF('(1) Inputs'!$A48>0,(VLOOKUP('(1) Inputs'!$A48, PedCol!A37:J7229, 6,)),0) -> 905 | V41: =IF('(1) Inputs'!$A48>0,(VLOOKUP('(1) Inputs'!$A48, PedCol!A37:J7229, 7,)),0) -> 0
A42: ='(1) Inputs'!A49 -> 60750156003 | B42: 35105.46 | C42: =IF('(1) Inputs'!$A49>0,(VLOOKUP('(1) Inputs'!$A49,Data,9,)),0) -> 4838.421333 | D42: =IF('(1) Inputs'!$A49>0,(VLOOKUP('(1) Inputs'!$A49,Data,11,)),0) -> 33.94253 | E42: =IF('(1) Inputs'!$A49>0,(VLOOKUP('(1) Inputs'!$A49,IOR,2,)),0) -> 0.1627123873 | G42: =IF('(1) Inputs'!$A49>0,(VLOOKUP('(1) Inputs'!$A49,Data,4,)),0) -> 4.294999 | H42: =IF('(1) Inputs'!$A49>0,(VLOOKUP('(1) Inputs'!$A49,Data,5,)),0) -> 1.015182 | J42: =IF('(1) Inputs'!$A49>0,(VLOOKUP('(1) Inputs'!$A49,Data,7,)),0) -> 0 | K42: =IF(ISERROR(IF('(1) Inputs'!$A49>0,(VLOOKUP('(1) Inputs'!$A49,Data,2,))/(VLOOKUP('(1) Inputs'!$A49,Data,3,)),0)),"-",IF('(1) Inputs'!$A49>0,(VLOOKUP('(1) Inputs'!$A49,Data,2,))/(VLOOKUP('(1) Inputs'!$A49,Data,3,)),0)) -> 24.07352505 | L42: =IF('(1) Inputs'!$A49>0,(VLOOKUP('(1) Inputs'!$A49,Data,6,)),0) -> 0.156182 | M42: =IF('(1) Inputs'!$A49>0,(VLOOKUP('(1) Inputs'!$A49,Data,8,)),0) -> 158.147 | P42: =IF('(1) Inputs'!$A49>0,(VLOOKUP('(1) Inputs'!$A49,Data,15,)),0) -> 66.05747 | Q42: =IF('(1) Inputs'!$A49>0,(VLOOKUP('(1) Inputs'!$A49, DISAGGED_DATA, 20,)),0) ->  | R42: =IF(A42>0, IncDivCalc!F$2, 0) -> 0.3757213373 | S42: =IF('(1) Inputs'!$A49>0,(VLOOKUP('(1) Inputs'!$A49, PedCol!A38:J7230, 4,)),0) ->  | T42: =IF('(1) Inputs'!$A49>0,(VLOOKUP('(1) Inputs'!$A49, PedCol!A38:J7230, 5,)),0) ->  | U42: =IF('(1) Inputs'!$A49>0,(VLOOKUP('(1) Inputs'!$A49, PedCol!A38:J7230, 6,)),0) ->  | V42: =IF('(1) Inputs'!$A49>0,(VLOOKUP('(1) Inputs'!$A49, PedCol!A38:J7230, 7,)),0) -> 
A43: ='(1) Inputs'!A50 -> 60750478013 | B43: 23466.23 | C43: =IF('(1) Inputs'!$A50>0,(VLOOKUP('(1) Inputs'!$A50,Data,9,)),0) -> 3265.898667 | D43: =IF('(1) Inputs'!$A50>0,(VLOOKUP('(1) Inputs'!$A50,Data,11,)),0) -> 34.76523 | E43: =IF('(1) Inputs'!$A50>0,(VLOOKUP('(1) Inputs'!$A50,IOR,2,)),0) -> 0.1183961809 | G43: =IF('(1) Inputs'!$A50>0,(VLOOKUP('(1) Inputs'!$A50,Data,4,)),0) -> 4.537221 | H43: =IF('(1) Inputs'!$A50>0,(VLOOKUP('(1) Inputs'!$A50,Data,5,)),0) -> 0 | J43: =IF('(1) Inputs'!$A50>0,(VLOOKUP('(1) Inputs'!$A50,Data,7,)),0) -> 0.235263 | K43: =IF(ISERROR(IF('(1) Inputs'!$A50>0,(VLOOKUP('(1) Inputs'!$A50,Data,2,))/(VLOOKUP('(1) Inputs'!$A50,Data,3,)),0)),"-",IF('(1) Inputs'!$A50>0,(VLOOKUP('(1) Inputs'!$A50,Data,2,))/(VLOOKUP('(1) Inputs'!$A50,Data,3,)),0)) -> 28.3156172 | L43: =IF('(1) Inputs'!$A50>0,(VLOOKUP('(1) Inputs'!$A50,Data,6,)),0) -> 0.016805 | M43: =IF('(1) Inputs'!$A50>0,(VLOOKUP('(1) Inputs'!$A50,Data,8,)),0) -> 84.2423 | P43: =IF('(1) Inputs'!$A50>0,(VLOOKUP('(1) Inputs'!$A50,Data,15,)),0) -> 65.23477 | Q43: =IF('(1) Inputs'!$A50>0,(VLOOKUP('(1) Inputs'!$A50, DISAGGED_DATA, 20,)),0) ->  | R43: =IF(A43>0, IncDivCalc!F$2, 0) -> 0.3757213373 | S43: =IF('(1) Inputs'!$A50>0,(VLOOKUP('(1) Inputs'!$A50, PedCol!A39:J7231, 4,)),0) -> 1 | T43: =IF('(1) Inputs'!$A50>0,(VLOOKUP('(1) Inputs'!$A50, PedCol!A39:J7231, 5,)),0) -> 1685 | U43: =IF('(1) Inputs'!$A50>0,(VLOOKUP('(1) Inputs'!$A50, PedCol!A39:J7231, 6,)),0) -> 740 | V43: =IF('(1) Inputs'!$A50>0,(VLOOKUP('(1) Inputs'!$A50, PedCol!A39:J7231, 7,)),0) -> 34
A44: ='(1) Inputs'!A51 -> 60750158022 | B44: 61376.81 | C44: =IF('(1) Inputs'!$A51>0,(VLOOKUP('(1) Inputs'!$A51,Data,9,)),0) -> 9075.242667 | D44: =IF('(1) Inputs'!$A51>0,(VLOOKUP('(1) Inputs'!$A51,Data,11,)),0) -> 32.11534 | E44: =IF('(1) Inputs'!$A51>0,(VLOOKUP('(1) Inputs'!$A51,IOR,2,)),0) -> 0.1370490647 | G44: =IF('(1) Inputs'!$A51>0,(VLOOKUP('(1) Inputs'!$A51,Data,4,)),0) -> 10.678119 | H44: =IF('(1) Inputs'!$A51>0,(VLOOKUP('(1) Inputs'!$A51,Data,5,)),0) -> 0.043584 | J44: =IF('(1) Inputs'!$A51>0,(VLOOKUP('(1) Inputs'!$A51,Data,7,)),0) -> 0.828099 | K44: =IF(ISERROR(IF('(1) Inputs'!$A51>0,(VLOOKUP('(1) Inputs'!$A51,Data,2,))/(VLOOKUP('(1) Inputs'!$A51,Data,3,)),0)),"-",IF('(1) Inputs'!$A51>0,(VLOOKUP('(1) Inputs'!$A51,Data,2,))/(VLOOKUP('(1) Inputs'!$A51,Data,3,)),0)) -> 69.94345368 | L44: =IF('(1) Inputs'!$A51>0,(VLOOKUP('(1) Inputs'!$A51,Data,6,)),0) -> 5.186515 | M44: =IF('(1) Inputs'!$A51>0,(VLOOKUP('(1) Inputs'!$A51,Data,8,)),0) -> 194.874 | P44: =IF('(1) Inputs'!$A51>0,(VLOOKUP('(1) Inputs'!$A51,Data,15,)),0) -> 67.88466 | Q44: =IF('(1) Inputs'!$A51>0,(VLOOKUP('(1) Inputs'!$A51, DISAGGED_DATA, 20,)),0) ->  | R44: =IF(A44>0, IncDivCalc!F$2, 0) -> 0.3757213373 | S44: =IF('(1) Inputs'!$A51>0,(VLOOKUP('(1) Inputs'!$A51, PedCol!A40:J7232, 4,)),0) -> 1 | T44: =IF('(1) Inputs'!$A51>0,(VLOOKUP('(1) Inputs'!$A51, PedCol!A40:J7232, 5,)),0) -> 1608 | U44: =IF('(1) Inputs'!$A51>0,(VLOOKUP('(1) Inputs'!$A51, PedCol!A40:J7232, 6,)),0) -> 1003 | V44: =IF('(1) Inputs'!$A51>0,(VLOOKUP('(1) Inputs'!$A51, PedCol!A40:J7232, 7,)),0) -> 53
A45: ='(1) Inputs'!A52 -> 60750451002 | B45: 33224.24 | C45: =IF('(1) Inputs'!$A52>0,(VLOOKUP('(1) Inputs'!$A52,Data,9,)),0) -> 3885.930667 | D45: =IF('(1) Inputs'!$A52>0,(VLOOKUP('(1) Inputs'!$A52,Data,11,)),0) -> 37.91544 | E45: =IF('(1) Inputs'!$A52>0,(VLOOKUP('(1) Inputs'!$A52,IOR,2,)),0) -> 0.03754524602 | G45: =IF('(1) Inputs'!$A52>0,(VLOOKUP('(1) Inputs'!$A52,Data,4,)),0) -> 3.540005 | H45: =IF('(1) Inputs'!$A52>0,(VLOOKUP('(1) Inputs'!$A52,Data,5,)),0) -> 0.07375 | J45: =IF('(1) Inputs'!$A52>0,(VLOOKUP('(1) Inputs'!$A52,Data,7,)),0) -> 0.442501 | K45: =IF(ISERROR(IF('(1) Inputs'!$A52>0,(VLOOKUP('(1) Inputs'!$A52,Data,2,))/(VLOOKUP('(1) Inputs'!$A52,Data,3,)),0)),"-",IF('(1) Inputs'!$A52>0,(VLOOKUP('(1) Inputs'!$A52,Data,2,))/(VLOOKUP('(1) Inputs'!$A52,Data,3,)),0)) -> 50.95870206 | L45: =IF('(1) Inputs'!$A52>0,(VLOOKUP('(1) Inputs'!$A52,Data,6,)),0) -> 0.737501 | M45: =IF('(1) Inputs'!$A52>0,(VLOOKUP('(1) Inputs'!$A52,Data,8,)),0) -> 188.797 | P45: =IF('(1) Inputs'!$A52>0,(VLOOKUP('(1) Inputs'!$A52,Data,15,)),0) -> 62.08456 | Q45: =IF('(1) Inputs'!$A52>0,(VLOOKUP('(1) Inputs'!$A52, DISAGGED_DATA, 20,)),0) ->  | R45: =IF(A45>0, IncDivCalc!F$2, 0) -> 0.3757213373 | S45: =IF('(1) Inputs'!$A52>0,(VLOOKUP('(1) Inputs'!$A52, PedCol!A41:J7233, 4,)),0) -> 1 | T45: =IF('(1) Inputs'!$A52>0,(VLOOKUP('(1) Inputs'!$A52, PedCol!A41:J7233, 5,)),0) -> 1382 | U45: =IF('(1) Inputs'!$A52>0,(VLOOKUP('(1) Inputs'!$A52, PedCol!A41:J7233, 6,)),0) -> 693 | V45: =IF('(1) Inputs'!$A52>0,(VLOOKUP('(1) Inputs'!$A52, PedCol!A41:J7233, 7,)),0) -> 13
A46: ='(1) Inputs'!A53 -> 60750302012 | B46: 35420.62 | C46: =IF('(1) Inputs'!$A53>0,(VLOOKUP('(1) Inputs'!$A53,Data,9,)),0) -> 4888.085333 | D46: =IF('(1) Inputs'!$A53>0,(VLOOKUP('(1) Inputs'!$A53,Data,11,)),0) -> 35.4417 | E46: =IF('(1) Inputs'!$A53>0,(VLOOKUP('(1) Inputs'!$A53,IOR,2,)),0) -> 0.1003861089 | G46: =IF('(1) Inputs'!$A53>0,(VLOOKUP('(1) Inputs'!$A53,Data,4,)),0) -> 7.371061 | H46: =IF('(1) Inputs'!$A53>0,(VLOOKUP('(1) Inputs'!$A53,Data,5,)),0) -> 0.208615 | J46: =IF('(1) Inputs'!$A53>0,(VLOOKUP('(1) Inputs'!$A53,Data,7,)),0) -> 1.112613 | K46: =IF(ISERROR(IF('(1) Inputs'!$A53>0,(VLOOKUP('(1) Inputs'!$A53,Data,2,))/(VLOOKUP('(1) Inputs'!$A53,Data,3,)),0)),"-",IF('(1) Inputs'!$A53>0,(VLOOKUP('(1) Inputs'!$A53,Data,2,))/(VLOOKUP('(1) Inputs'!$A53,Data,3,)),0)) -> 35.91653789 | L46: =IF('(1) Inputs'!$A53>0,(VLOOKUP('(1) Inputs'!$A53,Data,6,)),0) -> 0.556306 | M46: =IF('(1) Inputs'!$A53>0,(VLOOKUP('(1) Inputs'!$A53,Data,8,)),0) -> 133.5 | P46: =IF('(1) Inputs'!$A53>0,(VLOOKUP('(1) Inputs'!$A53,Data,15,)),0) -> 64.5583 | Q46: =IF('(1) Inputs'!$A53>0,(VLOOKUP('(1) Inputs'!$A53, DISAGGED_DATA, 20,)),0) ->  | R46: =IF(A46>0, IncDivCalc!F$2, 0) -> 0.3757213373 | S46: =IF('(1) Inputs'!$A53>0,(VLOOKUP('(1) Inputs'!$A53, PedCol!A42:J7234, 4,)),0) ->  | T46: =IF('(1) Inputs'!$A53>0,(VLOOKUP('(1) Inputs'!$A53, PedCol!A42:J7234, 5,)),0) ->  | U46: =IF('(1) Inputs'!$A53>0,(VLOOKUP('(1) Inputs'!$A53, PedCol!A42:J7234, 6,)),0) ->  | V46: =IF('(1) Inputs'!$A53>0,(VLOOKUP('(1) Inputs'!$A53, PedCol!A42:J7234, 7,)),0) -> 
A47: ='(1) Inputs'!A54 -> 60750351003 | B47: 18227.71 | C47: =IF('(1) Inputs'!$A54>0,(VLOOKUP('(1) Inputs'!$A54,Data,9,)),0) -> 3066.56 | D47: =IF('(1) Inputs'!$A54>0,(VLOOKUP('(1) Inputs'!$A54,Data,11,)),0) -> 36.25059 | E47: =IF('(1) Inputs'!$A54>0,(VLOOKUP('(1) Inputs'!$A54,IOR,2,)),0) -> 0.2647533362 | G47: =IF('(1) Inputs'!$A54>0,(VLOOKUP('(1) Inputs'!$A54,Data,4,)),0) -> 1.600726 | H47: =IF('(1) Inputs'!$A54>0,(VLOOKUP('(1) Inputs'!$A54,Data,5,)),0) -> 0 | J47: =IF('(1) Inputs'!$A54>0,(VLOOKUP('(1) Inputs'!$A54,Data,7,)),0) -> 0.064029 | K47: =IF(ISERROR(IF('(1) Inputs'!$A54>0,(VLOOKUP('(1) Inputs'!$A54,Data,2,))/(VLOOKUP('(1) Inputs'!$A54,Data,3,)),0)),"-",IF('(1) Inputs'!$A54>0,(VLOOKUP('(1) Inputs'!$A54,Data,2,))/(VLOOKUP('(1) Inputs'!$A54,Data,3,)),0)) -> 36.88072083 | L47: =IF('(1) Inputs'!$A54>0,(VLOOKUP('(1) Inputs'!$A54,Data,6,)),0) -> 0.608276 | M47: =IF('(1) Inputs'!$A54>0,(VLOOKUP('(1) Inputs'!$A54,Data,8,)),0) -> 174.143 | P47: =IF('(1) Inputs'!$A54>0,(VLOOKUP('(1) Inputs'!$A54,Data,15,)),0) -> 63.74941 | Q47: =IF('(1) Inputs'!$A54>0,(VLOOKUP('(1) Inputs'!$A54, DISAGGED_DATA, 20,)),0) ->  | R47: =IF(A47>0, IncDivCalc!F$2, 0) -> 0.3757213373 | S47: =IF('(1) Inputs'!$A54>0,(VLOOKUP('(1) Inputs'!$A54, PedCol!A43:J7235, 4,)),0) ->  | T47: =IF('(1) Inputs'!$A54>0,(VLOOKUP('(1) Inputs'!$A54, PedCol!A43:J7235, 5,)),0) ->  | U47: =IF('(1) Inputs'!$A54>0,(VLOOKUP('(1) Inputs'!$A54, PedCol!A43:J7235, 6,)),0) ->  | V47: =IF('(1) Inputs'!$A54>0,(VLOOKUP('(1) Inputs'!$A54, PedCol!A43:J7235, 7,)),0) -> 
A48: ='(1) Inputs'!A55 -> 60750326021 | B48: 23027.77 | C48: =IF('(1) Inputs'!$A55>0,(VLOOKUP('(1) Inputs'!$A55,Data,9,)),0) -> 2764.544 | D48: =IF('(1) Inputs'!$A55>0,(VLOOKUP('(1) Inputs'!$A55,Data,11,)),0) -> 27.37036 | E48: =IF('(1) Inputs'!$A55>0,(VLOOKUP('(1) Inputs'!$A55,IOR,2,)),0) -> 0.08571024091 | G48: =IF('(1) Inputs'!$A55>0,(VLOOKUP('(1) Inputs'!$A55,Data,4,)),0) -> 3.232954 | H48: =IF('(1) Inputs'!$A55>0,(VLOOKUP('(1) Inputs'!$A55,Data,5,)),0) -> 0.226513 | J48: =IF('(1) Inputs'!$A55>0,(VLOOKUP('(1) Inputs'!$A55,Data,7,)),0) -> 0.185329 | K48: =IF(ISERROR(IF('(1) Inputs'!$A55>0,(VLOOKUP('(1) Inputs'!$A55,Data,2,))/(VLOOKUP('(1) Inputs'!$A55,Data,3,)),0)),"-",IF('(1) Inputs'!$A55>0,(VLOOKUP('(1) Inputs'!$A55,Data,2,))/(VLOOKUP('(1) Inputs'!$A55,Data,3,)),0)) -> 37.03096166 | L48: =IF('(1) Inputs'!$A55>0,(VLOOKUP('(1) Inputs'!$A55,Data,6,)),0) -> 0.247105 | M48: =IF('(1) Inputs'!$A55>0,(VLOOKUP('(1) Inputs'!$A55,Data,8,)),0) -> 113.734 | P48: =IF('(1) Inputs'!$A55>0,(VLOOKUP('(1) Inputs'!$A55,Data,15,)),0) -> 72.62964 | Q48: =IF('(1) Inputs'!$A55>0,(VLOOKUP('(1) Inputs'!$A55, DISAGGED_DATA, 20,)),0) ->  | R48: =IF(A48>0, IncDivCalc!F$2, 0) -> 0.3757213373 | S48: =IF('(1) Inputs'!$A55>0,(VLOOKUP('(1) Inputs'!$A55, PedCol!A44:J7236, 4,)),0) -> 1 | T48: =IF('(1) Inputs'!$A55>0,(VLOOKUP('(1) Inputs'!$A55, PedCol!A44:J7236, 5,)),0) -> 1806 | U48: =IF('(1) Inputs'!$A55>0,(VLOOKUP('(1) Inputs'!$A55, PedCol!A44:J7236, 6,)),0) -> 629 | V48: =IF('(1) Inputs'!$A55>0,(VLOOKUP('(1) Inputs'!$A55, PedCol!A44:J7236, 7,)),0) -> 15
A49: ='(1) Inputs'!A56 -> 60759803001 | B49: 30629.12 | C49: =IF('(1) Inputs'!$A56>0,(VLOOKUP('(1) Inputs'!$A56,Data,9,)),0) -> 849.358933 | D49: =IF('(1) Inputs'!$A56>0,(VLOOKUP('(1) Inputs'!$A56,Data,11,)),0) -> 13.47299 | E49: =IF('(1) Inputs'!$A56>0,(VLOOKUP('(1) Inputs'!$A56,IOR,2,)),0) -> 0.3393970979 | G49: =IF('(1) Inputs'!$A56>0,(VLOOKUP('(1) Inputs'!$A56,Data,4,)),0) -> 1.157144 | H49: =IF('(1) Inputs'!$A56>0,(VLOOKUP('(1) Inputs'!$A56,Data,5,)),0) -> 0.017375 | J49: =IF('(1) Inputs'!$A56>0,(VLOOKUP('(1) Inputs'!$A56,Data,7,)),0) -> 0.001737 | K49: =IF(ISERROR(IF('(1) Inputs'!$A56>0,(VLOOKUP('(1) Inputs'!$A56,Data,2,))/(VLOOKUP('(1) Inputs'!$A56,Data,3,)),0)),"-",IF('(1) Inputs'!$A56>0,(VLOOKUP('(1) Inputs'!$A56,Data,2,))/(VLOOKUP('(1) Inputs'!$A56,Data,3,)),0)) -> 0.1485522669 | L49: =IF('(1) Inputs'!$A56>0,(VLOOKUP('(1) Inputs'!$A56,Data,6,)),0) -> 1.072877 | M49: =IF('(1) Inputs'!$A56>0,(VLOOKUP('(1) Inputs'!$A56,Data,8,)),0) -> 482.361 | P49: =IF('(1) Inputs'!$A56>0,(VLOOKUP('(1) Inputs'!$A56,Data,15,)),0) -> 86.52701 | Q49: =IF('(1) Inputs'!$A56>0,(VLOOKUP('(1) Inputs'!$A56, DISAGGED_DATA, 20,)),0) ->  | R49: =IF(A49>0, IncDivCalc!F$2, 0) -> 0.3757213373 | S49: =IF('(1) Inputs'!$A56>0,(VLOOKUP('(1) Inputs'!$A56, PedCol!A45:J7237, 4,)),0) -> 6 | T49: =IF('(1) Inputs'!$A56>0,(VLOOKUP('(1) Inputs'!$A56, PedCol!A45:J7237, 5,)),0) -> 171 | U49: =IF('(1) Inputs'!$A56>0,(VLOOKUP('(1) Inputs'!$A56, PedCol!A45:J7237, 6,)),0) -> 21 | V49: =IF('(1) Inputs'!$A56>0,(VLOOKUP('(1) Inputs'!$A56, PedCol!A45:J7237, 7,)),0) -> 0
A50: ='(1) Inputs'!A57 -> 60750326013 | B50: 28524.15 | C50: =IF('(1) Inputs'!$A57>0,(VLOOKUP('(1) Inputs'!$A57,Data,9,)),0) -> 3791.488 | D50: =IF('(1) Inputs'!$A57>0,(VLOOKUP('(1) Inputs'!$A57,Data,11,)),0) -> 30.28595 | E50: =IF('(1) Inputs'!$A57>0,(VLOOKUP('(1) Inputs'!$A57,IOR,2,)),0) -> 0.07083010291 | G50: =IF('(1) Inputs'!$A57>0,(VLOOKUP('(1) Inputs'!$A57,Data,4,)),0) -> 2.152496 | H50: =IF('(1) Inputs'!$A57>0,(VLOOKUP('(1) Inputs'!$A57,Data,5,)),0) -> 0.78537 | J50: =IF('(1) Inputs'!$A57>0,(VLOOKUP('(1) Inputs'!$A57,Data,7,)),0) -> 0 | K50: =IF(ISERROR(IF('(1) Inputs'!$A57>0,(VLOOKUP('(1) Inputs'!$A57,Data,2,))/(VLOOKUP('(1) Inputs'!$A57,Data,3,)),0)),"-",IF('(1) Inputs'!$A57>0,(VLOOKUP('(1) Inputs'!$A57,Data,2,))/(VLOOKUP('(1) Inputs'!$A57,Data,3,)),0)) -> 43.45714567 | L50: =IF('(1) Inputs'!$A57>0,(VLOOKUP('(1) Inputs'!$A57,Data,6,)),0) -> 0.116351 | M50: =IF('(1) Inputs'!$A57>0,(VLOOKUP('(1) Inputs'!$A57,Data,8,)),0) -> 186.147 | P50: =IF('(1) Inputs'!$A57>0,(VLOOKUP('(1) Inputs'!$A57,Data,15,)),0) -> 69.71405 | Q50: =IF('(1) Inputs'!$A57>0,(VLOOKUP('(1) Inputs'!$A57, DISAGGED_DATA, 20,)),0) ->  | R50: =IF(A50>0, IncDivCalc!F$2, 0) -> 0.3757213373 | S50: =IF('(1) Inputs'!$A57>0,(VLOOKUP('(1) Inputs'!$A57, PedCol!A46:J7238, 4,)),0) -> 1 | T50: =IF('(1) Inputs'!$A57>0,(VLOOKUP('(1) Inputs'!$A57, PedCol!A46:J7238, 5,)),0) -> 1494 | U50: =IF('(1) Inputs'!$A57>0,(VLOOKUP('(1) Inputs'!$A57, PedCol!A46:J7238, 6,)),0) -> 791 | V50: =IF('(1) Inputs'!$A57>0,(VLOOKUP('(1) Inputs'!$A57, PedCol!A46:J7238, 7,)),0) -> 0
A51: ='(1) Inputs'!A58 -> 60750352023 | B51: 16230.36 | C51: =IF('(1) Inputs'!$A58>0,(VLOOKUP('(1) Inputs'!$A58,Data,9,)),0) -> 2237.824 | D51: =IF('(1) Inputs'!$A58>0,(VLOOKUP('(1) Inputs'!$A58,Data,11,)),0) -> 33.51129 | E51: =IF('(1) Inputs'!$A58>0,(VLOOKUP('(1) Inputs'!$A58,IOR,2,)),0) -> 0.05897341106 | G51: =IF('(1) Inputs'!$A58>0,(VLOOKUP('(1) Inputs'!$A58,Data,4,)),0) -> 5.779437 | H51: =IF('(1) Inputs'!$A58>0,(VLOOKUP('(1) Inputs'!$A58,Data,5,)),0) -> 0.200443 | J51: =IF('(1) Inputs'!$A58>0,(VLOOKUP('(1) Inputs'!$A58,Data,7,)),0) -> 0.033407 | K51: =IF(ISERROR(IF('(1) Inputs'!$A58>0,(VLOOKUP('(1) Inputs'!$A58,Data,2,))/(VLOOKUP('(1) Inputs'!$A58,Data,3,)),0)),"-",IF('(1) Inputs'!$A58>0,(VLOOKUP('(1) Inputs'!$A58,Data,2,))/(VLOOKUP('(1) Inputs'!$A58,Data,3,)),0)) -> 43.8301805 | L51: =IF('(1) Inputs'!$A58>0,(VLOOKUP('(1) Inputs'!$A58,Data,6,)),0) -> 3.741601 | M51: =IF('(1) Inputs'!$A58>0,(VLOOKUP('(1) Inputs'!$A58,Data,8,)),0) -> 192.43 | P51: =IF('(1) Inputs'!$A58>0,(VLOOKUP('(1) Inputs'!$A58,Data,15,)),0) -> 66.48871 | Q51: =IF('(1) Inputs'!$A58>0,(VLOOKUP('(1) Inputs'!$A58, DISAGGED_DATA, 20,)),0) ->  | R51: =IF(A51>0, IncDivCalc!F$2, 0) -> 0.3757213373 | S51: =IF('(1) Inputs'!$A58>0,(VLOOKUP('(1) Inputs'!$A58, PedCol!A47:J7239, 4,)),0) -> 1 | T51: =IF('(1) Inputs'!$A58>0,(VLOOKUP('(1) Inputs'!$A58, PedCol!A47:J7239, 5,)),0) -> 1312 | U51: =IF('(1) Inputs'!$A58>0,(VLOOKUP('(1) Inputs'!$A58, PedCol!A47:J7239, 6,)),0) -> 905 | V51: =IF('(1) Inputs'!$A58>0,(VLOOKUP('(1) Inputs'!$A58, PedCol!A47:J7239, 7,)),0) -> 38
A52: ='(1) Inputs'!A59 -> 60750352013 | B52: 13335.31 | C52: =IF('(1) Inputs'!$A59>0,(VLOOKUP('(1) Inputs'!$A59,Data,9,)),0) -> 1857.2992 | D52: =IF('(1) Inputs'!$A59>0,(VLOOKUP('(1) Inputs'!$A59,Data,11,)),0) -> 41.69629 | E52: =IF('(1) Inputs'!$A59>0,(VLOOKUP('(1) Inputs'!$A59,IOR,2,)),0) -> 0.1912643054 | G52: =IF('(1) Inputs'!$A59>0,(VLOOKUP('(1) Inputs'!$A59,Data,4,)),0) -> 1.174632 | H52: =IF('(1) Inputs'!$A59>0,(VLOOKUP('(1) Inputs'!$A59,Data,5,)),0) -> 0 | J52: =IF('(1) Inputs'!$A59>0,(VLOOKUP('(1) Inputs'!$A59,Data,7,)),0) -> 0.138192 | K52: =IF(ISERROR(IF('(1) Inputs'!$A59>0,(VLOOKUP('(1) Inputs'!$A59,Data,2,))/(VLOOKUP('(1) Inputs'!$A59,Data,3,)),0)),"-",IF('(1) Inputs'!$A59>0,(VLOOKUP('(1) Inputs'!$A59,Data,2,))/(VLOOKUP('(1) Inputs'!$A59,Data,3,)),0)) -> 36.5172229 | L52: =IF('(1) Inputs'!$A59>0,(VLOOKUP('(1) Inputs'!$A59,Data,6,)),0) -> 0 | M52: =IF('(1) Inputs'!$A59>0,(VLOOKUP('(1) Inputs'!$A59,Data,8,)),0) -> 125.307 | P52: =IF('(1) Inputs'!$A59>0,(VLOOKUP('(1) Inputs'!$A59,Data,15,)),0) -> 58.30371 | Q52: =IF('(1) Inputs'!$A59>0,(VLOOKUP('(1) Inputs'!$A59, DISAGGED_DATA, 20,)),0) ->  | R52: =IF(A52>0, IncDivCalc!F$2, 0) -> 0.3757213373 | S52: =IF('(1) Inputs'!$A59>0,(VLOOKUP('(1) Inputs'!$A59, PedCol!A48:J7240, 4,)),0) -> 1 | T52: =IF('(1) Inputs'!$A59>0,(VLOOKUP('(1) Inputs'!$A59, PedCol!A48:J7240, 5,)),0) -> 1057 | U52: =IF('(1) Inputs'!$A59>0,(VLOOKUP('(1) Inputs'!$A59, PedCol!A48:J7240, 6,)),0) -> 296 | V52: =IF('(1) Inputs'!$A59>0,(VLOOKUP('(1) Inputs'!$A59, PedCol!A48:J7240, 7,)),0) -> 15
A53: ='(1) Inputs'!A60 -> 60750326022 | B53: 26630.24 | C53: =IF('(1) Inputs'!$A60>0,(VLOOKUP('(1) Inputs'!$A60,Data,9,)),0) -> 3696.832 | D53: =IF('(1) Inputs'!$A60>0,(VLOOKUP('(1) Inputs'!$A60,Data,11,)),0) -> 29.27174 | E53: =IF('(1) Inputs'!$A60>0,(VLOOKUP('(1) Inputs'!$A60,IOR,2,)),0) -> 0.2335880292 | G53: =IF('(1) Inputs'!$A60>0,(VLOOKUP('(1) Inputs'!$A60,Data,4,)),0) -> 7.59989 | H53: =IF('(1) Inputs'!$A60>0,(VLOOKUP('(1) Inputs'!$A60,Data,5,)),0) -> 1.005433 | J53: =IF('(1) Inputs'!$A60>0,(VLOOKUP('(1) Inputs'!$A60,Data,7,)),0) -> 0.029572 | K53: =IF(ISERROR(IF('(1) Inputs'!$A60>0,(VLOOKUP('(1) Inputs'!$A60,Data,2,))/(VLOOKUP('(1) Inputs'!$A60,Data,3,)),0)),"-",IF('(1) Inputs'!$A60>0,(VLOOKUP('(1) Inputs'!$A60,Data,2,))/(VLOOKUP('(1) Inputs'!$A60,Data,3,)),0)) -> 36.9940159 | L53: =IF('(1) Inputs'!$A60>0,(VLOOKUP('(1) Inputs'!$A60,Data,6,)),0) -> 1.833436 | M53: =IF('(1) Inputs'!$A60>0,(VLOOKUP('(1) Inputs'!$A60,Data,8,)),0) -> 75.6983 | P53: =IF('(1) Inputs'!$A60>0,(VLOOKUP('(1) Inputs'!$A60,Data,15,)),0) -> 70.72826 | Q53: =IF('(1) Inputs'!$A60>0,(VLOOKUP('(1) Inputs'!$A60, DISAGGED_DATA, 20,)),0) ->  | R53: =IF(A53>0, IncDivCalc!F$2, 0) -> 0.3757213373 | S53: =IF('(1) Inputs'!$A60>0,(VLOOKUP('(1) Inputs'!$A60, PedCol!A49:J7241, 4,)),0) ->  | T53: =IF('(1) Inputs'!$A60>0,(VLOOKUP('(1) Inputs'!$A60, PedCol!A49:J7241, 5,)),0) ->  | U53: =IF('(1) Inputs'!$A60>0,(VLOOKUP('(1) Inputs'!$A60, PedCol!A49:J7241, 6,)),0) ->  | V53: =IF('(1) Inputs'!$A60>0,(VLOOKUP('(1) Inputs'!$A60, PedCol!A49:J7241, 7,)),0) -> 
A54: ='(1) Inputs'!A61 -> 60750165003 | B54: 41735.21 | C54: =IF('(1) Inputs'!$A61>0,(VLOOKUP('(1) Inputs'!$A61,Data,9,)),0) -> 9398.592 | D54: =IF('(1) Inputs'!$A61>0,(VLOOKUP('(1) Inputs'!$A61,Data,11,)),0) -> 29.01922 | E54: =IF('(1) Inputs'!$A61>0,(VLOOKUP('(1) Inputs'!$A61,IOR,2,)),0) -> 0.3113574089 | G54: =IF('(1) Inputs'!$A61>0,(VLOOKUP('(1) Inputs'!$A61,Data,4,)),0) -> 5.169607 | H54: =IF('(1) Inputs'!$A61>0,(VLOOKUP('(1) Inputs'!$A61,Data,5,)),0) -> 0.394292 | J54: =IF('(1) Inputs'!$A61>0,(VLOOKUP('(1) Inputs'!$A61,Data,7,)),0) -> 1.445737 | K54: =IF(ISERROR(IF('(1) Inputs'!$A61>0,(VLOOKUP('(1) Inputs'!$A61,Data,2,))/(VLOOKUP('(1) Inputs'!$A61,Data,3,)),0)),"-",IF('(1) Inputs'!$A61>0,(VLOOKUP('(1) Inputs'!$A61,Data,2,))/(VLOOKUP('(1) Inputs'!$A61,Data,3,)),0)) -> 58.08566434 | L54: =IF('(1) Inputs'!$A61>0,(VLOOKUP('(1) Inputs'!$A61,Data,6,)),0) -> 1.314307 | M54: =IF('(1) Inputs'!$A61>0,(VLOOKUP('(1) Inputs'!$A61,Data,8,)),0) -> 233.111 | P54: =IF('(1) Inputs'!$A61>0,(VLOOKUP('(1) Inputs'!$A61,Data,15,)),0) -> 70.98078 | Q54: =IF('(1) Inputs'!$A61>0,(VLOOKUP('(1) Inputs'!$A61, DISAGGED_DATA, 20,)),0) ->  | R54: =IF(A54>0, IncDivCalc!F$2, 0) -> 0.3757213373 | S54: =IF('(1) Inputs'!$A61>0,(VLOOKUP('(1) Inputs'!$A61, PedCol!A50:J7242, 4,)),0) ->  | T54: =IF('(1) Inputs'!$A61>0,(VLOOKUP('(1) Inputs'!$A61, PedCol!A50:J7242, 5,)),0) ->  | U54: =IF('(1) Inputs'!$A61>0,(VLOOKUP('(1) Inputs'!$A61, PedCol!A50:J7242, 6,)),0) ->  | V54: =IF('(1) Inputs'!$A61>0,(VLOOKUP('(1) Inputs'!$A61, PedCol!A50:J7242, 7,)),0) -> 
A55: ='(1) Inputs'!A62 -> 60750476002 | B55: 30744.64 | C55: =IF('(1) Inputs'!$A62>0,(VLOOKUP('(1) Inputs'!$A62,Data,9,)),0) -> 4045.525333 | D55: =IF('(1) Inputs'!$A62>0,(VLOOKUP('(1) Inputs'!$A62,Data,11,)),0) -> 30.5157 | E55: =IF('(1) Inputs'!$A62>0,(VLOOKUP('(1) Inputs'!$A62,IOR,2,)),0) -> 0.2001955897 | G55: =IF('(1) Inputs'!$A62>0,(VLOOKUP('(1) Inputs'!$A62,Data,4,)),0) -> 2.509361 | H55: =IF('(1) Inputs'!$A62>0,(VLOOKUP('(1) Inputs'!$A62,Data,5,)),0) -> 0.353884 | J55: =IF('(1) Inputs'!$A62>0,(VLOOKUP('(1) Inputs'!$A62,Data,7,)),0) -> 0 | K55: =IF(ISERROR(IF('(1) Inputs'!$A62>0,(VLOOKUP('(1) Inputs'!$A62,Data,2,))/(VLOOKUP('(1) Inputs'!$A62,Data,3,)),0)),"-",IF('(1) Inputs'!$A62>0,(VLOOKUP('(1) Inputs'!$A62,Data,2,))/(VLOOKUP('(1) Inputs'!$A62,Data,3,)),0)) -> 40.87523277 | L55: =IF('(1) Inputs'!$A62>0,(VLOOKUP('(1) Inputs'!$A62,Data,6,)),0) -> 0.482569 | M55: =IF('(1) Inputs'!$A62>0,(VLOOKUP('(1) Inputs'!$A62,Data,8,)),0) -> 119.17 | P55: =IF('(1) Inputs'!$A62>0,(VLOOKUP('(1) Inputs'!$A62,Data,15,)),0) -> 69.4843 | Q55: =IF('(1) Inputs'!$A62>0,(VLOOKUP('(1) Inputs'!$A62, DISAGGED_DATA, 20,)),0) ->  | R55: =IF(A55>0, IncDivCalc!F$2, 0) -> 0.3757213373 | S55: =IF('(1) Inputs'!$A62>0,(VLOOKUP('(1) Inputs'!$A62, PedCol!A51:J7243, 4,)),0) -> 1 | T55: =IF('(1) Inputs'!$A62>0,(VLOOKUP('(1) Inputs'!$A62, PedCol!A51:J7243, 5,)),0) -> 1317 | U55: =IF('(1) Inputs'!$A62>0,(VLOOKUP('(1) Inputs'!$A62, PedCol!A51:J7243, 6,)),0) -> 567 | V55: =IF('(1) Inputs'!$A62>0,(VLOOKUP('(1) Inputs'!$A62, PedCol!A51:J7243, 7,)),0) -> 32
A56: ='(1) Inputs'!A63 -> 60750327001 | B56: 21676.85 | C56: =IF('(1) Inputs'!$A63>0,(VLOOKUP('(1) Inputs'!$A63,Data,9,)),0) -> 3229.290667 | D56: =IF('(1) Inputs'!$A63>0,(VLOOKUP('(1) Inputs'!$A63,Data,11,)),0) -> 34.84347 | E56: =IF('(1) Inputs'!$A63>0,(VLOOKUP('(1) Inputs'!$A63,IOR,2,)),0) -> 0.09289320845 | G56: =IF('(1) Inputs'!$A63>0,(VLOOKUP('(1) Inputs'!$A63,Data,4,)),0) -> 2.778094 | H56: =IF('(1) Inputs'!$A63>0,(VLOOKUP('(1) Inputs'!$A63,Data,5,)),0) -> 0.067758 | J56: =IF('(1) Inputs'!$A63>0,(VLOOKUP('(1) Inputs'!$A63,Data,7,)),0) -> 0 | K56: =IF(ISERROR(IF('(1) Inputs'!$A63>0,(VLOOKUP('(1) Inputs'!$A63,Data,2,))/(VLOOKUP('(1) Inputs'!$A63,Data,3,)),0)),"-",IF('(1) Inputs'!$A63>0,(VLOOKUP('(1) Inputs'!$A63,Data,2,))/(VLOOKUP('(1) Inputs'!$A63,Data,3,)),0)) -> 28.66711319 | L56: =IF('(1) Inputs'!$A63>0,(VLOOKUP('(1) Inputs'!$A63,Data,6,)),0) -> 0.203275 | M56: =IF('(1) Inputs'!$A63>0,(VLOOKUP('(1) Inputs'!$A63,Data,8,)),0) -> 100.011 | P56: =IF('(1) Inputs'!$A63>0,(VLOOKUP('(1) Inputs'!$A63,Data,15,)),0) -> 65.15653 | Q56: =IF('(1) Inputs'!$A63>0,(VLOOKUP('(1) Inputs'!$A63, DISAGGED_DATA, 20,)),0) ->  | R56: =IF(A56>0, IncDivCalc!F$2, 0) -> 0.3757213373 | S56: =IF('(1) Inputs'!$A63>0,(VLOOKUP('(1) Inputs'!$A63, PedCol!A52:J7244, 4,)),0) ->  | T56: =IF('(1) Inputs'!$A63>0,(VLOOKUP('(1) Inputs'!$A63, PedCol!A52:J7244, 5,)),0) ->  | U56: =IF('(1) Inputs'!$A63>0,(VLOOKUP('(1) Inputs'!$A63, PedCol!A52:J7244, 6,)),0) ->  | V56: =IF('(1) Inputs'!$A63>0,(VLOOKUP('(1) Inputs'!$A63, PedCol!A52:J7244, 7,)),0) -> 
A57: ='(1) Inputs'!A64 -> 60750303014 | B57: 26261.78 | C57: =IF('(1) Inputs'!$A64>0,(VLOOKUP('(1) Inputs'!$A64,Data,9,)),0) -> 2377.088 | D57: =IF('(1) Inputs'!$A64>0,(VLOOKUP('(1) Inputs'!$A64,Data,11,)),0) -> 38.90382 | E57: =IF('(1) Inputs'!$A64>0,(VLOOKUP('(1) Inputs'!$A64,IOR,2,)),0) -> 0.1403245887 | G57: =IF('(1) Inputs'!$A64>0,(VLOOKUP('(1) Inputs'!$A64,Data,4,)),0) -> 1.793036 | H57: =IF('(1) Inputs'!$A64>0,(VLOOKUP('(1) Inputs'!$A64,Data,5,)),0) -> 0.047185 | J57: =IF('(1) Inputs'!$A64>0,(VLOOKUP('(1) Inputs'!$A64,Data,7,)),0) -> 0 | K57: =IF(ISERROR(IF('(1) Inputs'!$A64>0,(VLOOKUP('(1) Inputs'!$A64,Data,2,))/(VLOOKUP('(1) Inputs'!$A64,Data,3,)),0)),"-",IF('(1) Inputs'!$A64>0,(VLOOKUP('(1) Inputs'!$A64,Data,2,))/(VLOOKUP('(1) Inputs'!$A64,Data,3,)),0)) -> 21.77876823 | L57: =IF('(1) Inputs'!$A64>0,(VLOOKUP('(1) Inputs'!$A64,Data,6,)),0) -> 0.353889 | M57: =IF('(1) Inputs'!$A64>0,(VLOOKUP('(1) Inputs'!$A64,Data,8,)),0) -> 211.823 | P57: =IF('(1) Inputs'!$A64>0,(VLOOKUP('(1) Inputs'!$A64,Data,15,)),0) -> 61.09618 | Q57: =IF('(1) Inputs'!$A64>0,(VLOOKUP('(1) Inputs'!$A64, DISAGGED_DATA, 20,)),0) ->  | R57: =IF(A57>0, IncDivCalc!F$2, 0) -> 0.3757213373 | S57: =IF('(1) Inputs'!$A64>0,(VLOOKUP('(1) Inputs'!$A64, PedCol!A53:J7245, 4,)),0) ->  | T57: =IF('(1) Inputs'!$A64>0,(VLOOKUP('(1) Inputs'!$A64, PedCol!A53:J7245, 5,)),0) ->  | U57: =IF('(1) Inputs'!$A64>0,(VLOOKUP('(1) Inputs'!$A64, PedCol!A53:J7245, 6,)),0) ->  | V57: =IF('(1) Inputs'!$A64>0,(VLOOKUP('(1) Inputs'!$A64, PedCol!A53:J7245, 7,)),0) -> 
A58: ='(1) Inputs'!A65 -> 60750158012 | B58: 56196.51 | C58: =IF('(1) Inputs'!$A65>0,(VLOOKUP('(1) Inputs'!$A65,Data,9,)),0) -> 4484.394667 | D58: =IF('(1) Inputs'!$A65>0,(VLOOKUP('(1) Inputs'!$A65,Data,11,)),0) -> 30.70309 | E58: =IF('(1) Inputs'!$A65>0,(VLOOKUP('(1) Inputs'!$A65,IOR,2,)),0) -> 0.3085350336 | G58: =IF('(1) Inputs'!$A65>0,(VLOOKUP('(1) Inputs'!$A65,Data,4,)),0) -> 4.209701 | H58: =IF('(1) Inputs'!$A65>0,(VLOOKUP('(1) Inputs'!$A65,Data,5,)),0) -> 0.95314 | J58: =IF('(1) Inputs'!$A65>0,(VLOOKUP('(1) Inputs'!$A65,Data,7,)),0) -> 1.164949 | K58: =IF(ISERROR(IF('(1) Inputs'!$A65>0,(VLOOKUP('(1) Inputs'!$A65,Data,2,))/(VLOOKUP('(1) Inputs'!$A65,Data,3,)),0)),"-",IF('(1) Inputs'!$A65>0,(VLOOKUP('(1) Inputs'!$A65,Data,2,))/(VLOOKUP('(1) Inputs'!$A65,Data,3,)),0)) -> 44.52670545 | L58: =IF('(1) Inputs'!$A65>0,(VLOOKUP('(1) Inputs'!$A65,Data,6,)),0) -> 0.105904 | M58: =IF('(1) Inputs'!$A65>0,(VLOOKUP('(1) Inputs'!$A65,Data,8,)),0) -> 222.854 | P58: =IF('(1) Inputs'!$A65>0,(VLOOKUP('(1) Inputs'!$A65,Data,15,)),0) -> 69.29691 | Q58: =IF('(1) Inputs'!$A65>0,(VLOOKUP('(1) Inputs'!$A65, DISAGGED_DATA, 20,)),0) ->  | R58: =IF(A58>0, IncDivCalc!F$2, 0) -> 0.3757213373 | S58: =IF('(1) Inputs'!$A65>0,(VLOOKUP('(1) Inputs'!$A65, PedCol!A54:J7246, 4,)),0) -> 4 | T58: =IF('(1) Inputs'!$A65>0,(VLOOKUP('(1) Inputs'!$A65, PedCol!A54:J7246, 5,)),0) -> 1684 | U58: =IF('(1) Inputs'!$A65>0,(VLOOKUP('(1) Inputs'!$A65, PedCol!A54:J7246, 6,)),0) -> 893 | V58: =IF('(1) Inputs'!$A65>0,(VLOOKUP('(1) Inputs'!$A65, PedCol!A54:J7246, 7,)),0) -> 157
A59: ='(1) Inputs'!A66 -> 60750157001 | B59: 43347.85 | C59: =IF('(1) Inputs'!$A66>0,(VLOOKUP('(1) Inputs'!$A66,Data,9,)),0) -> 3906.666667 | D59: =IF('(1) Inputs'!$A66>0,(VLOOKUP('(1) Inputs'!$A66,Data,11,)),0) -> 31.99859 | E59: =IF('(1) Inputs'!$A66>0,(VLOOKUP('(1) Inputs'!$A66,IOR,2,)),0) -> 0.1366279838 | G59: =IF('(1) Inputs'!$A66>0,(VLOOKUP('(1) Inputs'!$A66,Data,4,)),0) -> 105.652854 | H59: =IF('(1) Inputs'!$A66>0,(VLOOKUP('(1) Inputs'!$A66,Data,5,)),0) -> 1.87642 | J59: =IF('(1) Inputs'!$A66>0,(VLOOKUP('(1) Inputs'!$A66,Data,7,)),0) -> 98.616281 | K59: =IF(ISERROR(IF('(1) Inputs'!$A66>0,(VLOOKUP('(1) Inputs'!$A66,Data,2,))/(VLOOKUP('(1) Inputs'!$A66,Data,3,)),0)),"-",IF('(1) Inputs'!$A66>0,(VLOOKUP('(1) Inputs'!$A66,Data,2,))/(VLOOKUP('(1) Inputs'!$A66,Data,3,)),0)) -> 23.97647428 | L59: =IF('(1) Inputs'!$A66>0,(VLOOKUP('(1) Inputs'!$A66,Data,6,)),0) -> 0.451731 | M59: =IF('(1) Inputs'!$A66>0,(VLOOKUP('(1) Inputs'!$A66,Data,8,)),0) -> 205.771 | P59: =IF('(1) Inputs'!$A66>0,(VLOOKUP('(1) Inputs'!$A66,Data,15,)),0) -> 68.00141 | Q59: =IF('(1) Inputs'!$A66>0,(VLOOKUP('(1) Inputs'!$A66, DISAGGED_DATA, 20,)),0) ->  | R59: =IF(A59>0, IncDivCalc!F$2, 0) -> 0.3757213373 | S59: =IF('(1) Inputs'!$A66>0,(VLOOKUP('(1) Inputs'!$A66, PedCol!A55:J7247, 4,)),0) -> 3 | T59: =IF('(1) Inputs'!$A66>0,(VLOOKUP('(1) Inputs'!$A66, PedCol!A55:J7247, 5,)),0) -> 1380 | U59: =IF('(1) Inputs'!$A66>0,(VLOOKUP('(1) Inputs'!$A66, PedCol!A55:J7247, 6,)),0) -> 794 | V59: =IF('(1) Inputs'!$A66>0,(VLOOKUP('(1) Inputs'!$A66, PedCol!A55:J7247, 7,)),0) -> 81
A60: ='(1) Inputs'!A67 -> 60750478011 | B60: 20022.96 | C60: =IF('(1) Inputs'!$A67>0,(VLOOKUP('(1) Inputs'!$A67,Data,9,)),0) -> 3627.626667 | D60: =IF('(1) Inputs'!$A67>0,(VLOOKUP('(1) Inputs'!$A67,Data,11,)),0) -> 40.31087 | E60: =IF('(1) Inputs'!$A67>0,(VLOOKUP('(1) Inputs'!$A67,IOR,2,)),0) -> 0.09325866893 | G60: =IF('(1) Inputs'!$A67>0,(VLOOKUP('(1) Inputs'!$A67,Data,4,)),0) -> 2.241158 | H60: =IF('(1) Inputs'!$A67>0,(VLOOKUP('(1) Inputs'!$A67,Data,5,)),0) -> 0.068959 | J60: =IF('(1) Inputs'!$A67>0,(VLOOKUP('(1) Inputs'!$A67,Data,7,)),0) -> 0.655108 | K60: =IF(ISERROR(IF('(1) Inputs'!$A67>0,(VLOOKUP('(1) Inputs'!$A67,Data,2,))/(VLOOKUP('(1) Inputs'!$A67,Data,3,)),0)),"-",IF('(1) Inputs'!$A67>0,(VLOOKUP('(1) Inputs'!$A67,Data,2,))/(VLOOKUP('(1) Inputs'!$A67,Data,3,)),0)) -> 38.54345586 | L60: =IF('(1) Inputs'!$A67>0,(VLOOKUP('(1) Inputs'!$A67,Data,6,)),0) -> 0 | M60: =IF('(1) Inputs'!$A67>0,(VLOOKUP('(1) Inputs'!$A67,Data,8,)),0) -> 234.519 | P60: =IF('(1) Inputs'!$A67>0,(VLOOKUP('(1) Inputs'!$A67,Data,15,)),0) -> 59.68913 | Q60: =IF('(1) Inputs'!$A67>0,(VLOOKUP('(1) Inputs'!$A67, DISAGGED_DATA, 20,)),0) ->  | R60: =IF(A60>0, IncDivCalc!F$2, 0) -> 0.3757213373 | S60: =IF('(1) Inputs'!$A67>0,(VLOOKUP('(1) Inputs'!$A67, PedCol!A56:J7248, 4,)),0) -> 2 | T60: =IF('(1) Inputs'!$A67>0,(VLOOKUP('(1) Inputs'!$A67, PedCol!A56:J7248, 5,)),0) -> 1122 | U60: =IF('(1) Inputs'!$A67>0,(VLOOKUP('(1) Inputs'!$A67, PedCol!A56:J7248, 6,)),0) -> 795 | V60: =IF('(1) Inputs'!$A67>0,(VLOOKUP('(1) Inputs'!$A67, PedCol!A56:J7248, 7,)),0) -> 0
A61: ='(1) Inputs'!A68 -> 60750157004 | B61: 39674.2 | C61: =IF('(1) Inputs'!$A68>0,(VLOOKUP('(1) Inputs'!$A68,Data,9,)),0) -> 3468.458667 | D61: =IF('(1) Inputs'!$A68>0,(VLOOKUP('(1) Inputs'!$A68,Data,11,)),0) -> 21.45716 | E61: =IF('(1) Inputs'!$A68>0,(VLOOKUP('(1) Inputs'!$A68,IOR,2,)),0) -> 0.1313088612 | G61: =IF('(1) Inputs'!$A68>0,(VLOOKUP('(1) Inputs'!$A68,Data,4,)),0) -> 49.759267 | H61: =IF('(1) Inputs'!$A68>0,(VLOOKUP('(1) Inputs'!$A68,Data,5,)),0) -> 0.472398 | J61: =IF('(1) Inputs'!$A68>0,(VLOOKUP('(1) Inputs'!$A68,Data,7,)),0) -> 0.255882 | K61: =IF(ISERROR(IF('(1) Inputs'!$A68>0,(VLOOKUP('(1) Inputs'!$A68,Data,2,))/(VLOOKUP('(1) Inputs'!$A68,Data,3,)),0)),"-",IF('(1) Inputs'!$A68>0,(VLOOKUP('(1) Inputs'!$A68,Data,2,))/(VLOOKUP('(1) Inputs'!$A68,Data,3,)),0)) -> 58.67578112 | L61: =IF('(1) Inputs'!$A68>0,(VLOOKUP('(1) Inputs'!$A68,Data,6,)),0) -> 0.492081 | M61: =IF('(1) Inputs'!$A68>0,(VLOOKUP('(1) Inputs'!$A68,Data,8,)),0) -> 348.686 | P61: =IF('(1) Inputs'!$A68>0,(VLOOKUP('(1) Inputs'!$A68,Data,15,)),0) -> 78.54284 | Q61: =IF('(1) Inputs'!$A68>0,(VLOOKUP('(1) Inputs'!$A68, DISAGGED_DATA, 20,)),0) ->  | R61: =IF(A61>0, IncDivCalc!F$2, 0) -> 0.3757213373 | S61: =IF('(1) Inputs'!$A68>0,(VLOOKUP('(1) Inputs'!$A68, PedCol!A57:J7249, 4,)),0) -> 1 | T61: =IF('(1) Inputs'!$A68>0,(VLOOKUP('(1) Inputs'!$A68, PedCol!A57:J7249, 5,)),0) -> 2981 | U61: =IF('(1) Inputs'!$A68>0,(VLOOKUP('(1) Inputs'!$A68, PedCol!A57:J7249, 6,)),0) -> 1246 | V61: =IF('(1) Inputs'!$A68>0,(VLOOKUP('(1) Inputs'!$A68, PedCol!A57:J7249, 7,)),0) -> 417
A62: ='(1) Inputs'!A69 -> 60750327006 | B62: 17674.24 | C62: =IF('(1) Inputs'!$A69>0,(VLOOKUP('(1) Inputs'!$A69,Data,9,)),0) -> 3237.994667 | D62: =IF('(1) Inputs'!$A69>0,(VLOOKUP('(1) Inputs'!$A69,Data,11,)),0) -> 48.11228 | E62: =IF('(1) Inputs'!$A69>0,(VLOOKUP('(1) Inputs'!$A69,IOR,2,)),0) -> 0.09563904433 | G62: =IF('(1) Inputs'!$A69>0,(VLOOKUP('(1) Inputs'!$A69,Data,4,)),0) -> 0.684261 | H62: =IF('(1) Inputs'!$A69>0,(VLOOKUP('(1) Inputs'!$A69,Data,5,)),0) -> 0 | J62: =IF('(1) Inputs'!$A69>0,(VLOOKUP('(1) Inputs'!$A69,Data,7,)),0) -> 0 | K62: =IF(ISERROR(IF('(1) Inputs'!$A69>0,(VLOOKUP('(1) Inputs'!$A69,Data,2,))/(VLOOKUP('(1) Inputs'!$A69,Data,3,)),0)),"-",IF('(1) Inputs'!$A69>0,(VLOOKUP('(1) Inputs'!$A69,Data,2,))/(VLOOKUP('(1) Inputs'!$A69,Data,3,)),0)) -> 25.25543682 | L62: =IF('(1) Inputs'!$A69>0,(VLOOKUP('(1) Inputs'!$A69,Data,6,)),0) -> 0.062206 | M62: =IF('(1) Inputs'!$A69>0,(VLOOKUP('(1) Inputs'!$A69,Data,8,)),0) -> 119.43 | P62: =IF('(1) Inputs'!$A69>0,(VLOOKUP('(1) Inputs'!$A69,Data,15,)),0) -> 51.88772 | Q62: =IF('(1) Inputs'!$A69>0,(VLOOKUP('(1) Inputs'!$A69, DISAGGED_DATA, 20,)),0) ->  | R62: =IF(A62>0, IncDivCalc!F$2, 0) -> 0.3757213373 | S62: =IF('(1) Inputs'!$A69>0,(VLOOKUP('(1) Inputs'!$A69, PedCol!A58:J7250, 4,)),0) ->  | T62: =IF('(1) Inputs'!$A69>0,(VLOOKUP('(1) Inputs'!$A69, PedCol!A58:J7250, 5,)),0) ->  | U62: =IF('(1) Inputs'!$A69>0,(VLOOKUP('(1) Inputs'!$A69, PedCol!A58:J7250, 6,)),0) ->  | V62: =IF('(1) Inputs'!$A69>0,(VLOOKUP('(1) Inputs'!$A69, PedCol!A58:J7250, 7,)),0) -> 
A63: ='(1) Inputs'!A70 -> 60750452004 | B63: 34594.57 | C63: =IF('(1) Inputs'!$A70>0,(VLOOKUP('(1) Inputs'!$A70,Data,9,)),0) -> 6311.232 | D63: =IF('(1) Inputs'!$A70>0,(VLOOKUP('(1) Inputs'!$A70,Data,11,)),0) -> 35.35197 | E63: =IF('(1) Inputs'!$A70>0,(VLOOKUP('(1) Inputs'!$A70,IOR,2,)),0) -> 0.1156985818 | G63: =IF('(1) Inputs'!$A70>0,(VLOOKUP('(1) Inputs'!$A70,Data,4,)),0) -> 2.206724 | H63: =IF('(1) Inputs'!$A70>0,(VLOOKUP('(1) Inputs'!$A70,Data,5,)),0) -> 0 | J63: =IF('(1) Inputs'!$A70>0,(VLOOKUP('(1) Inputs'!$A70,Data,7,)),0) -> 0.06896 | K63: =IF(ISERROR(IF('(1) Inputs'!$A70>0,(VLOOKUP('(1) Inputs'!$A70,Data,2,))/(VLOOKUP('(1) Inputs'!$A70,Data,3,)),0)),"-",IF('(1) Inputs'!$A70>0,(VLOOKUP('(1) Inputs'!$A70,Data,2,))/(VLOOKUP('(1) Inputs'!$A70,Data,3,)),0)) -> 38.85902188 | L63: =IF('(1) Inputs'!$A70>0,(VLOOKUP('(1) Inputs'!$A70,Data,6,)),0) -> 0.379281 | M63: =IF('(1) Inputs'!$A70>0,(VLOOKUP('(1) Inputs'!$A70,Data,8,)),0) -> 125.044 | P63: =IF('(1) Inputs'!$A70>0,(VLOOKUP('(1) Inputs'!$A70,Data,15,)),0) -> 64.64803 | Q63: =IF('(1) Inputs'!$A70>0,(VLOOKUP('(1) Inputs'!$A70, DISAGGED_DATA, 20,)),0) ->  | R63: =IF(A63>0, IncDivCalc!F$2, 0) -> 0.3757213373 | S63: =IF('(1) Inputs'!$A70>0,(VLOOKUP('(1) Inputs'!$A70, PedCol!A59:J7251, 4,)),0) ->  | T63: =IF('(1) Inputs'!$A70>0,(VLOOKUP('(1) Inputs'!$A70, PedCol!A59:J7251, 5,)),0) ->  | U63: =IF('(1) Inputs'!$A70>0,(VLOOKUP('(1) Inputs'!$A70, PedCol!A59:J7251, 6,)),0) ->  | V63: =IF('(1) Inputs'!$A70>0,(VLOOKUP('(1) Inputs'!$A70, PedCol!A59:J7251, 7,)),0) -> 
A64: ='(1) Inputs'!A71 -> 60750479012 | B64: 17426.75 | C64: =IF('(1) Inputs'!$A71>0,(VLOOKUP('(1) Inputs'!$A71,Data,9,)),0) -> 588.1728 | D64: =IF('(1) Inputs'!$A71>0,(VLOOKUP('(1) Inputs'!$A71,Data,11,)),0) -> 34.3074 | E64: =IF('(1) Inputs'!$A71>0,(VLOOKUP('(1) Inputs'!$A71,IOR,2,)),0) -> 0.1751651679 | G64: =IF('(1) Inputs'!$A71>0,(VLOOKUP('(1) Inputs'!$A71,Data,4,)),0) -> 17.014806 | H64: =IF('(1) Inputs'!$A71>0,(VLOOKUP('(1) Inputs'!$A71,Data,5,)),0) -> 4.30104 | J64: =IF('(1) Inputs'!$A71>0,(VLOOKUP('(1) Inputs'!$A71,Data,7,)),0) -> 1.298427 | K64: =IF(ISERROR(IF('(1) Inputs'!$A71>0,(VLOOKUP('(1) Inputs'!$A71,Data,2,))/(VLOOKUP('(1) Inputs'!$A71,Data,3,)),0)),"-",IF('(1) Inputs'!$A71>0,(VLOOKUP('(1) Inputs'!$A71,Data,2,))/(VLOOKUP('(1) Inputs'!$A71,Data,3,)),0)) -> 5.910174575 | L64: =IF('(1) Inputs'!$A71>0,(VLOOKUP('(1) Inputs'!$A71,Data,6,)),0) -> 6.465085 | M64: =IF('(1) Inputs'!$A71>0,(VLOOKUP('(1) Inputs'!$A71,Data,8,)),0) -> 147.866 | P64: =IF('(1) Inputs'!$A71>0,(VLOOKUP('(1) Inputs'!$A71,Data,15,)),0) -> 65.6926 | Q64: =IF('(1) Inputs'!$A71>0,(VLOOKUP('(1) Inputs'!$A71, DISAGGED_DATA, 20,)),0) ->  | R64: =IF(A64>0, IncDivCalc!F$2, 0) -> 0.3757213373 | S64: =IF('(1) Inputs'!$A71>0,(VLOOKUP('(1) Inputs'!$A71, PedCol!A60:J7252, 4,)),0) -> 1 | T64: =IF('(1) Inputs'!$A71>0,(VLOOKUP('(1) Inputs'!$A71, PedCol!A60:J7252, 5,)),0) -> 1537 | U64: =IF('(1) Inputs'!$A71>0,(VLOOKUP('(1) Inputs'!$A71, PedCol!A60:J7252, 6,)),0) -> 1172 | V64: =IF('(1) Inputs'!$A71>0,(VLOOKUP('(1) Inputs'!$A71, PedCol!A60:J7252, 7,)),0) -> 0
A65: ='(1) Inputs'!A72 -> 60750452001 | B65: 31192.41 | C65: =IF('(1) Inputs'!$A72>0,(VLOOKUP('(1) Inputs'!$A72,Data,9,)),0) -> 4859.498667 | D65: =IF('(1) Inputs'!$A72>0,(VLOOKUP('(1) Inputs'!$A72,Data,11,)),0) -> 33.08083 | E65: =IF('(1) Inputs'!$A72>0,(VLOOKUP('(1) Inputs'!$A72,IOR,2,)),0) -> 0.1965926194 | G65: =IF('(1) Inputs'!$A72>0,(VLOOKUP('(1) Inputs'!$A72,Data,4,)),0) -> 6.691437 | H65: =IF('(1) Inputs'!$A72>0,(VLOOKUP('(1) Inputs'!$A72,Data,5,)),0) -> 0.874258 | J65: =IF('(1) Inputs'!$A72>0,(VLOOKUP('(1) Inputs'!$A72,Data,7,)),0) -> 1.008759 | K65: =IF(ISERROR(IF('(1) Inputs'!$A72>0,(VLOOKUP('(1) Inputs'!$A72,Data,2,))/(VLOOKUP('(1) Inputs'!$A72,Data,3,)),0)),"-",IF('(1) Inputs'!$A72>0,(VLOOKUP('(1) Inputs'!$A72,Data,2,))/(VLOOKUP('(1) Inputs'!$A72,Data,3,)),0)) -> 55.77822311 | L65: =IF('(1) Inputs'!$A72>0,(VLOOKUP('(1) Inputs'!$A72,Data,6,)),0) -> 0.235377 | M65: =IF('(1) Inputs'!$A72>0,(VLOOKUP('(1) Inputs'!$A72,Data,8,)),0) -> 114.014 | P65: =IF('(1) Inputs'!$A72>0,(VLOOKUP('(1) Inputs'!$A72,Data,15,)),0) -> 66.91917 | Q65: =IF('(1) Inputs'!$A72>0,(VLOOKUP('(1) Inputs'!$A72, DISAGGED_DATA, 20,)),0) ->  | R65: =IF(A65>0, IncDivCalc!F$2, 0) -> 0.3757213373 | S65: =IF('(1) Inputs'!$A72>0,(VLOOKUP('(1) Inputs'!$A72, PedCol!A61:J7253, 4,)),0) -> 3 | T65: =IF('(1) Inputs'!$A72>0,(VLOOKUP('(1) Inputs'!$A72, PedCol!A61:J7253, 5,)),0) -> 1670 | U65: =IF('(1) Inputs'!$A72>0,(VLOOKUP('(1) Inputs'!$A72, PedCol!A61:J7253, 6,)),0) -> 821 | V65: =IF('(1) Inputs'!$A72>0,(VLOOKUP('(1) Inputs'!$A72, PedCol!A61:J7253, 7,)),0) -> 81
A66: ='(1) Inputs'!A73 -> 60750157002 | B66: 50404.4 | C66: =IF('(1) Inputs'!$A73>0,(VLOOKUP('(1) Inputs'!$A73,Data,9,)),0) -> 5831.018667 | D66: =IF('(1) Inputs'!$A73>0,(VLOOKUP('(1) Inputs'!$A73,Data,11,)),0) -> 34.24951 | E66: =IF('(1) Inputs'!$A73>0,(VLOOKUP('(1) Inputs'!$A73,IOR,2,)),0) -> 0.1459955052 | G66: =IF('(1) Inputs'!$A73>0,(VLOOKUP('(1) Inputs'!$A73,Data,4,)),0) -> 5.232576 | H66: =IF('(1) Inputs'!$A73>0,(VLOOKUP('(1) Inputs'!$A73,Data,5,)),0) -> 2.372534 | J66: =IF('(1) Inputs'!$A73>0,(VLOOKUP('(1) Inputs'!$A73,Data,7,)),0) -> 0.162502 | K66: =IF(ISERROR(IF('(1) Inputs'!$A73>0,(VLOOKUP('(1) Inputs'!$A73,Data,2,))/(VLOOKUP('(1) Inputs'!$A73,Data,3,)),0)),"-",IF('(1) Inputs'!$A73>0,(VLOOKUP('(1) Inputs'!$A73,Data,2,))/(VLOOKUP('(1) Inputs'!$A73,Data,3,)),0)) -> 61.75089662 | L66: =IF('(1) Inputs'!$A73>0,(VLOOKUP('(1) Inputs'!$A73,Data,6,)),0) -> 0.520008 | M66: =IF('(1) Inputs'!$A73>0,(VLOOKUP('(1) Inputs'!$A73,Data,8,)),0) -> 97.0608 | P66: =IF('(1) Inputs'!$A73>0,(VLOOKUP('(1) Inputs'!$A73,Data,15,)),0) -> 65.75049 | Q66: =IF('(1) Inputs'!$A73>0,(VLOOKUP('(1) Inputs'!$A73, DISAGGED_DATA, 20,)),0) ->  | R66: =IF(A66>0, IncDivCalc!F$2, 0) -> 0.3757213373 | S66: =IF('(1) Inputs'!$A73>0,(VLOOKUP('(1) Inputs'!$A73, PedCol!A62:J7254, 4,)),0) -> 1 | T66: =IF('(1) Inputs'!$A73>0,(VLOOKUP('(1) Inputs'!$A73, PedCol!A62:J7254, 5,)),0) -> 1900 | U66: =IF('(1) Inputs'!$A73>0,(VLOOKUP('(1) Inputs'!$A73, PedCol!A62:J7254, 6,)),0) -> 1007 | V66: =IF('(1) Inputs'!$A73>0,(VLOOKUP('(1) Inputs'!$A73, PedCol!A62:J7254, 7,)),0) -> 32
A67: ='(1) Inputs'!A74 -> 60750159002 | B67: 60776.08 | C67: =IF('(1) Inputs'!$A74>0,(VLOOKUP('(1) Inputs'!$A74,Data,9,)),0) -> 8124.906667 | D67: =IF('(1) Inputs'!$A74>0,(VLOOKUP('(1) Inputs'!$A74,Data,11,)),0) -> 35.60843 | E67: =IF('(1) Inputs'!$A74>0,(VLOOKUP('(1) Inputs'!$A74,IOR,2,)),0) -> 0.2510879768 | G67: =IF('(1) Inputs'!$A74>0,(VLOOKUP('(1) Inputs'!$A74,Data,4,)),0) -> 97.671192 | H67: =IF('(1) Inputs'!$A74>0,(VLOOKUP('(1) Inputs'!$A74,Data,5,)),0) -> 6.920607 | J67: =IF('(1) Inputs'!$A74>0,(VLOOKUP('(1) Inputs'!$A74,Data,7,)),0) -> 11.57554 | K67: =IF(ISERROR(IF('(1) Inputs'!$A74>0,(VLOOKUP('(1) Inputs'!$A74,Data,2,))/(VLOOKUP('(1) Inputs'!$A74,Data,3,)),0)),"-",IF('(1) Inputs'!$A74>0,(VLOOKUP('(1) Inputs'!$A74,Data,2,))/(VLOOKUP('(1) Inputs'!$A74,Data,3,)),0)) -> 93.22103533 | L67: =IF('(1) Inputs'!$A74>0,(VLOOKUP('(1) Inputs'!$A74,Data,6,)),0) -> 55.364859 | M67: =IF('(1) Inputs'!$A74>0,(VLOOKUP('(1) Inputs'!$A74,Data,8,)),0) -> 186.28 | P67: =IF('(1) Inputs'!$A74>0,(VLOOKUP('(1) Inputs'!$A74,Data,15,)),0) -> 64.39157 | Q67: =IF('(1) Inputs'!$A74>0,(VLOOKUP('(1) Inputs'!$A74, DISAGGED_DATA, 20,)),0) ->  | R67: =IF(A67>0, IncDivCalc!F$2, 0) -> 0.3757213373 | S67: =IF('(1) Inputs'!$A74>0,(VLOOKUP('(1) Inputs'!$A74, PedCol!A63:J7255, 4,)),0) -> 4 | T67: =IF('(1) Inputs'!$A74>0,(VLOOKUP('(1) Inputs'!$A74, PedCol!A63:J7255, 5,)),0) -> 2269 | U67: =IF('(1) Inputs'!$A74>0,(VLOOKUP('(1) Inputs'!$A74, PedCol!A63:J7255, 6,)),0) -> 927 | V67: =IF('(1) Inputs'!$A74>0,(VLOOKUP('(1) Inputs'!$A74, PedCol!A63:J7255, 7,)),0) -> 129
A68: ='(1) Inputs'!A75 -> 60750351004 | B68: 15733.4 | C68: =IF('(1) Inputs'!$A75>0,(VLOOKUP('(1) Inputs'!$A75,Data,9,)),0) -> 2703.253333 | D68: =IF('(1) Inputs'!$A75>0,(VLOOKUP('(1) Inputs'!$A75,Data,11,)),0) -> 35.87563 | E68: =IF('(1) Inputs'!$A75>0,(VLOOKUP('(1) Inputs'!$A75,IOR,2,)),0) -> 0.1899323545 | G68: =IF('(1) Inputs'!$A75>0,(VLOOKUP('(1) Inputs'!$A75,Data,4,)),0) -> 2.277665 | H68: =IF('(1) Inputs'!$A75>0,(VLOOKUP('(1) Inputs'!$A75,Data,5,)),0) -> 0 | J68: =IF('(1) Inputs'!$A75>0,(VLOOKUP('(1) Inputs'!$A75,Data,7,)),0) -> 0.06416 | K68: =IF(ISERROR(IF('(1) Inputs'!$A75>0,(VLOOKUP('(1) Inputs'!$A75,Data,2,))/(VLOOKUP('(1) Inputs'!$A75,Data,3,)),0)),"-",IF('(1) Inputs'!$A75>0,(VLOOKUP('(1) Inputs'!$A75,Data,2,))/(VLOOKUP('(1) Inputs'!$A75,Data,3,)),0)) -> 28.23020876 | L68: =IF('(1) Inputs'!$A75>0,(VLOOKUP('(1) Inputs'!$A75,Data,6,)),0) -> 0 | M68: =IF('(1) Inputs'!$A75>0,(VLOOKUP('(1) Inputs'!$A75,Data,8,)),0) -> 215.58 | P68: =IF('(1) Inputs'!$A75>0,(VLOOKUP('(1) Inputs'!$A75,Data,15,)),0) -> 64.12437 | Q68: =IF('(1) Inputs'!$A75>0,(VLOOKUP('(1) Inputs'!$A75, DISAGGED_DATA, 20,)),0) ->  | R68: =IF(A68>0, IncDivCalc!F$2, 0) -> 0.3757213373 | S68: =IF('(1) Inputs'!$A75>0,(VLOOKUP('(1) Inputs'!$A75, PedCol!A64:J7256, 4,)),0) ->  | T68: =IF('(1) Inputs'!$A75>0,(VLOOKUP('(1) Inputs'!$A75, PedCol!A64:J7256, 5,)),0) ->  | U68: =IF('(1) Inputs'!$A75>0,(VLOOKUP('(1) Inputs'!$A75, PedCol!A64:J7256, 6,)),0) ->  | V68: =IF('(1) Inputs'!$A75>0,(VLOOKUP('(1) Inputs'!$A75, PedCol!A64:J7256, 7,)),0) -> 
A69: ='(1) Inputs'!A76 -> 60750452002 | B69: =IF(A69>0,(VLOOKUP(A69,Data,14,)),0) -> 34976.98 | C69: =IF('(1) Inputs'!$A76>0,(VLOOKUP('(1) Inputs'!$A76,Data,9,)),0) -> 4142.4 | D69: =IF('(1) Inputs'!$A76>0,(VLOOKUP('(1) Inputs'!$A76,Data,11,)),0) -> 31.53984 | E69: =IF('(1) Inputs'!$A76>0,(VLOOKUP('(1) Inputs'!$A76,IOR,2,)),0) -> 0.1098098246 | G69: =IF('(1) Inputs'!$A76>0,(VLOOKUP('(1) Inputs'!$A76,Data,4,)),0) -> 3.989196 | H69: =IF('(1) Inputs'!$A76>0,(VLOOKUP('(1) Inputs'!$A76,Data,5,)),0) -> 0.797839 | J69: =IF('(1) Inputs'!$A76>0,(VLOOKUP('(1) Inputs'!$A76,Data,7,)),0) -> 1.005971 | K69: =IF(ISERROR(IF('(1) Inputs'!$A76>0,(VLOOKUP('(1) Inputs'!$A76,Data,2,))/(VLOOKUP('(1) Inputs'!$A76,Data,3,)),0)),"-",IF('(1) Inputs'!$A76>0,(VLOOKUP('(1) Inputs'!$A76,Data,2,))/(VLOOKUP('(1) Inputs'!$A76,Data,3,)),0)) -> 53.15533981 | L69: =IF('(1) Inputs'!$A76>0,(VLOOKUP('(1) Inputs'!$A76,Data,6,)),0) -> 0.277509 | M69: =IF('(1) Inputs'!$A76>0,(VLOOKUP('(1) Inputs'!$A76,Data,8,)),0) -> 155.33 | P69: =IF('(1) Inputs'!$A76>0,(VLOOKUP('(1) Inputs'!$A76,Data,15,)),0) -> 68.46016 | Q69: =IF('(1) Inputs'!$A76>0,(VLOOKUP('(1) Inputs'!$A76, DISAGGED_DATA, 20,)),0) ->  | R69: =IF(A69>0, IncDivCalc!F$2, 0) -> 0.3757213373 | S69: =IF('(1) Inputs'!$A76>0,(VLOOKUP('(1) Inputs'!$A76, PedCol!A65:J7257, 4,)),0) -> 2 | T69: =IF('(1) Inputs'!$A76>0,(VLOOKUP('(1) Inputs'!$A76, PedCol!A65:J7257, 5,)),0) -> 1533 | U69: =IF('(1) Inputs'!$A76>0,(VLOOKUP('(1) Inputs'!$A76, PedCol!A65:J7257, 6,)),0) -> 859 | V69: =IF('(1) Inputs'!$A76>0,(VLOOKUP('(1) Inputs'!$A76, PedCol!A65:J7257, 7,)),0) -> 79
A70: ='(1) Inputs'!A77 -> 60750302011 | B70: 34893.37 | C70: =IF('(1) Inputs'!$A77>0,(VLOOKUP('(1) Inputs'!$A77,Data,9,)),0) -> 4487.914667 | D70: =IF('(1) Inputs'!$A77>0,(VLOOKUP('(1) Inputs'!$A77,Data,11,)),0) -> 24.77435 | E70: =IF('(1) Inputs'!$A77>0,(VLOOKUP('(1) Inputs'!$A77,IOR,2,)),0) -> 0.1764674767 | G70: =IF('(1) Inputs'!$A77>0,(VLOOKUP('(1) Inputs'!$A77,Data,4,)),0) -> 11.501236 | H70: =IF('(1) Inputs'!$A77>0,(VLOOKUP('(1) Inputs'!$A77,Data,5,)),0) -> 4.89557 | J70: =IF('(1) Inputs'!$A77>0,(VLOOKUP('(1) Inputs'!$A77,Data,7,)),0) -> 0.402376 | K70: =IF(ISERROR(IF('(1) Inputs'!$A77>0,(VLOOKUP('(1) Inputs'!$A77,Data,2,))/(VLOOKUP('(1) Inputs'!$A77,Data,3,)),0)),"-",IF('(1) Inputs'!$A77>0,(VLOOKUP('(1) Inputs'!$A77,Data,2,))/(VLOOKUP('(1) Inputs'!$A77,Data,3,)),0)) -> 56.5474237 | L70: =IF('(1) Inputs'!$A77>0,(VLOOKUP('(1) Inputs'!$A77,Data,6,)),0) -> 1.609502 | M70: =IF('(1) Inputs'!$A77>0,(VLOOKUP('(1) Inputs'!$A77,Data,8,)),0) -> 133.045 | P70: =IF('(1) Inputs'!$A77>0,(VLOOKUP('(1) Inputs'!$A77,Data,15,)),0) -> 75.22565 | Q70: =IF('(1) Inputs'!$A77>0,(VLOOKUP('(1) Inputs'!$A77, DISAGGED_DATA, 20,)),0) ->  | R70: =IF(A70>0, IncDivCalc!F$2, 0) -> 0.3757213373 | S70: =IF('(1) Inputs'!$A77>0,(VLOOKUP('(1) Inputs'!$A77, PedCol!A66:J7258, 4,)),0) -> 1 | T70: =IF('(1) Inputs'!$A77>0,(VLOOKUP('(1) Inputs'!$A77, PedCol!A66:J7258, 5,)),0) -> 1723 | U70: =IF('(1) Inputs'!$A77>0,(VLOOKUP('(1) Inputs'!$A77, PedCol!A66:J7258, 6,)),0) -> 1077 | V70: =IF('(1) Inputs'!$A77>0,(VLOOKUP('(1) Inputs'!$A77, PedCol!A66:J7258, 7,)),0) -> 150
A71: ='(1) Inputs'!A78 -> 60750301012 | B71: 51182.16 | C71: =IF('(1) Inputs'!$A78>0,(VLOOKUP('(1) Inputs'!$A78,Data,9,)),0) -> 5211.328 | D71: =IF('(1) Inputs'!$A78>0,(VLOOKUP('(1) Inputs'!$A78,Data,11,)),0) -> 30.40578 | E71: =IF('(1) Inputs'!$A78>0,(VLOOKUP('(1) Inputs'!$A78,IOR,2,)),0) -> 0.05551617602 | G71: =IF('(1) Inputs'!$A78>0,(VLOOKUP('(1) Inputs'!$A78,Data,4,)),0) -> 3.516234 | H71: =IF('(1) Inputs'!$A78>0,(VLOOKUP('(1) Inputs'!$A78,Data,5,)),0) -> 0.040886 | J71: =IF('(1) Inputs'!$A78>0,(VLOOKUP('(1) Inputs'!$A78,Data,7,)),0) -> 0.654183 | K71: =IF(ISERROR(IF('(1) Inputs'!$A78>0,(VLOOKUP('(1) Inputs'!$A78,Data,2,))/(VLOOKUP('(1) Inputs'!$A78,Data,3,)),0)),"-",IF('(1) Inputs'!$A78>0,(VLOOKUP('(1) Inputs'!$A78,Data,2,))/(VLOOKUP('(1) Inputs'!$A78,Data,3,)),0)) -> 49.3872549 | L71: =IF('(1) Inputs'!$A78>0,(VLOOKUP('(1) Inputs'!$A78,Data,6,)),0) -> 1.921663 | M71: =IF('(1) Inputs'!$A78>0,(VLOOKUP('(1) Inputs'!$A78,Data,8,)),0) -> 204.824 | P71: =IF('(1) Inputs'!$A78>0,(VLOOKUP('(1) Inputs'!$A78,Data,15,)),0) -> 69.59422 | Q71: =IF('(1) Inputs'!$A78>0,(VLOOKUP('(1) Inputs'!$A78, DISAGGED_DATA, 20,)),0) ->  | R71: =IF(A71>0, IncDivCalc!F$2, 0) -> 0.3757213373 | S71: =IF('(1) Inputs'!$A78>0,(VLOOKUP('(1) Inputs'!$A78, PedCol!A67:J7259, 4,)),0) ->  | T71: =IF('(1) Inputs'!$A78>0,(VLOOKUP('(1) Inputs'!$A78, PedCol!A67:J7259, 5,)),0) ->  | U71: =IF('(1) Inputs'!$A78>0,(VLOOKUP('(1) Inputs'!$A78, PedCol!A67:J7259, 6,)),0) ->  | V71: =IF('(1) Inputs'!$A78>0,(VLOOKUP('(1) Inputs'!$A78, PedCol!A67:J7259, 7,)),0) -> 
A72: ='(1) Inputs'!A79 -> 60750476004 | B72: 28923.39 | C72: =IF('(1) Inputs'!$A79>0,(VLOOKUP('(1) Inputs'!$A79,Data,9,)),0) -> 3844.501333 | D72: =IF('(1) Inputs'!$A79>0,(VLOOKUP('(1) Inputs'!$A79,Data,11,)),0) -> 34.40925 | E72: =IF('(1) Inputs'!$A79>0,(VLOOKUP('(1) Inputs'!$A79,IOR,2,)),0) -> 0.1183749269 | G72: =IF('(1) Inputs'!$A79>0,(VLOOKUP('(1) Inputs'!$A79,Data,4,)),0) -> 1.381168 | H72: =IF('(1) Inputs'!$A79>0,(VLOOKUP('(1) Inputs'!$A79,Data,5,)),0) -> 0 | J72: =IF('(1) Inputs'!$A79>0,(VLOOKUP('(1) Inputs'!$A79,Data,7,)),0) -> 0 | K72: =IF(ISERROR(IF('(1) Inputs'!$A79>0,(VLOOKUP('(1) Inputs'!$A79,Data,2,))/(VLOOKUP('(1) Inputs'!$A79,Data,3,)),0)),"-",IF('(1) Inputs'!$A79>0,(VLOOKUP('(1) Inputs'!$A79,Data,2,))/(VLOOKUP('(1) Inputs'!$A79,Data,3,)),0)) -> 44.32382134 | L72: =IF('(1) Inputs'!$A79>0,(VLOOKUP('(1) Inputs'!$A79,Data,6,)),0) -> 0 | M72: =IF('(1) Inputs'!$A79>0,(VLOOKUP('(1) Inputs'!$A79,Data,8,)),0) -> 99.2508 | P72: =IF('(1) Inputs'!$A79>0,(VLOOKUP('(1) Inputs'!$A79,Data,15,)),0) -> 65.59075 | Q72: =IF('(1) Inputs'!$A79>0,(VLOOKUP('(1) Inputs'!$A79, DISAGGED_DATA, 20,)),0) ->  | R72: =IF(A72>0, IncDivCalc!F$2, 0) -> 0.3757213373 | S72: =IF('(1) Inputs'!$A79>0,(VLOOKUP('(1) Inputs'!$A79, PedCol!A68:J7260, 4,)),0) ->  | T72: =IF('(1) Inputs'!$A79>0,(VLOOKUP('(1) Inputs'!$A79, PedCol!A68:J7260, 5,)),0) ->  | U72: =IF('(1) Inputs'!$A79>0,(VLOOKUP('(1) Inputs'!$A79, PedCol!A68:J7260, 6,)),0) ->  | V72: =IF('(1) Inputs'!$A79>0,(VLOOKUP('(1) Inputs'!$A79, PedCol!A68:J7260, 7,)),0) -> 
A73: ='(1) Inputs'!A80 -> 60750302021 | B73: 45490.32 | C73: =IF('(1) Inputs'!$A80>0,(VLOOKUP('(1) Inputs'!$A80,Data,9,)),0) -> 5184.746667 | D73: =IF('(1) Inputs'!$A80>0,(VLOOKUP('(1) Inputs'!$A80,Data,11,)),0) -> 28.13525 | E73: =IF('(1) Inputs'!$A80>0,(VLOOKUP('(1) Inputs'!$A80,IOR,2,)),0) -> 0.1652288889 | G73: =IF('(1) Inputs'!$A80>0,(VLOOKUP('(1) Inputs'!$A80,Data,4,)),0) -> 18.237891 | H73: =IF('(1) Inputs'!$A80>0,(VLOOKUP('(1) Inputs'!$A80,Data,5,)),0) -> 1.127061 | J73: =IF('(1) Inputs'!$A80>0,(VLOOKUP('(1) Inputs'!$A80,Data,7,)),0) -> 0.990447 | K73: =IF(ISERROR(IF('(1) Inputs'!$A80>0,(VLOOKUP('(1) Inputs'!$A80,Data,2,))/(VLOOKUP('(1) Inputs'!$A80,Data,3,)),0)),"-",IF('(1) Inputs'!$A80>0,(VLOOKUP('(1) Inputs'!$A80,Data,2,))/(VLOOKUP('(1) Inputs'!$A80,Data,3,)),0)) -> 49.54682779 | L73: =IF('(1) Inputs'!$A80>0,(VLOOKUP('(1) Inputs'!$A80,Data,6,)),0) -> 10.28016 | M73: =IF('(1) Inputs'!$A80>0,(VLOOKUP('(1) Inputs'!$A80,Data,8,)),0) -> 186.205 | P73: =IF('(1) Inputs'!$A80>0,(VLOOKUP('(1) Inputs'!$A80,Data,15,)),0) -> 71.86475 | Q73: =IF('(1) Inputs'!$A80>0,(VLOOKUP('(1) Inputs'!$A80, DISAGGED_DATA, 20,)),0) ->  | R73: =IF(A73>0, IncDivCalc!F$2, 0) -> 0.3757213373 | S73: =IF('(1) Inputs'!$A80>0,(VLOOKUP('(1) Inputs'!$A80, PedCol!A69:J7261, 4,)),0) -> 2 | T73: =IF('(1) Inputs'!$A80>0,(VLOOKUP('(1) Inputs'!$A80, PedCol!A69:J7261, 5,)),0) -> 1476 | U73: =IF('(1) Inputs'!$A80>0,(VLOOKUP('(1) Inputs'!$A80, PedCol!A69:J7261, 6,)),0) -> 747 | V73: =IF('(1) Inputs'!$A80>0,(VLOOKUP('(1) Inputs'!$A80, PedCol!A69:J7261, 7,)),0) -> 62
A74: ='(1) Inputs'!A81 -> 60750326011 | B74: 28143.46 | C74: =IF('(1) Inputs'!$A81>0,(VLOOKUP('(1) Inputs'!$A81,Data,9,)),0) -> 4518.229333 | D74: =IF('(1) Inputs'!$A81>0,(VLOOKUP('(1) Inputs'!$A81,Data,11,)),0) -> 22.11355 | E74: =IF('(1) Inputs'!$A81>0,(VLOOKUP('(1) Inputs'!$A81,IOR,2,)),0) -> 0.1382927501 | G74: =IF('(1) Inputs'!$A81>0,(VLOOKUP('(1) Inputs'!$A81,Data,4,)),0) -> 9.249457 | H74: =IF('(1) Inputs'!$A81>0,(VLOOKUP('(1) Inputs'!$A81,Data,5,)),0) -> 1.254658 | J74: =IF('(1) Inputs'!$A81>0,(VLOOKUP('(1) Inputs'!$A81,Data,7,)),0) -> 0.641918 | K74: =IF(ISERROR(IF('(1) Inputs'!$A81>0,(VLOOKUP('(1) Inputs'!$A81,Data,2,))/(VLOOKUP('(1) Inputs'!$A81,Data,3,)),0)),"-",IF('(1) Inputs'!$A81>0,(VLOOKUP('(1) Inputs'!$A81,Data,2,))/(VLOOKUP('(1) Inputs'!$A81,Data,3,)),0)) -> 42.90211792 | L74: =IF('(1) Inputs'!$A81>0,(VLOOKUP('(1) Inputs'!$A81,Data,6,)),0) -> 2.859454 | M74: =IF('(1) Inputs'!$A81>0,(VLOOKUP('(1) Inputs'!$A81,Data,8,)),0) -> 213.704 | P74: =IF('(1) Inputs'!$A81>0,(VLOOKUP('(1) Inputs'!$A81,Data,15,)),0) -> 77.88645 | Q74: =IF('(1) Inputs'!$A81>0,(VLOOKUP('(1) Inputs'!$A81, DISAGGED_DATA, 20,)),0) ->  | R74: =IF(A74>0, IncDivCalc!F$2, 0) -> 0.3757213373 | S74: =IF('(1) Inputs'!$A81>0,(VLOOKUP('(1) Inputs'!$A81, PedCol!A70:J7262, 4,)),0) -> 2 | T74: =IF('(1) Inputs'!$A81>0,(VLOOKUP('(1) Inputs'!$A81, PedCol!A70:J7262, 5,)),0) -> 1499 | U74: =IF('(1) Inputs'!$A81>0,(VLOOKUP('(1) Inputs'!$A81, PedCol!A70:J7262, 6,)),0) -> 655 | V74: =IF('(1) Inputs'!$A81>0,(VLOOKUP('(1) Inputs'!$A81, PedCol!A70:J7262, 7,)),0) -> 39
A75: ='(1) Inputs'!A82 -> 60750478012 | B75: 23204.88 | C75: =IF('(1) Inputs'!$A82>0,(VLOOKUP('(1) Inputs'!$A82,Data,9,)),0) -> 5577.749333 | D75: =IF('(1) Inputs'!$A82>0,(VLOOKUP('(1) Inputs'!$A82,Data,11,)),0) -> 28.41083 | E75: =IF('(1) Inputs'!$A82>0,(VLOOKUP('(1) Inputs'!$A82,IOR,2,)),0) -> 0.1345975051 | G75: =IF('(1) Inputs'!$A82>0,(VLOOKUP('(1) Inputs'!$A82,Data,4,)),0) -> 4.173652 | H75: =IF('(1) Inputs'!$A82>0,(VLOOKUP('(1) Inputs'!$A82,Data,5,)),0) -> 0.241451 | J75: =IF('(1) Inputs'!$A82>0,(VLOOKUP('(1) Inputs'!$A82,Data,7,)),0) -> 0.241451 | K75: =IF(ISERROR(IF('(1) Inputs'!$A82>0,(VLOOKUP('(1) Inputs'!$A82,Data,2,))/(VLOOKUP('(1) Inputs'!$A82,Data,3,)),0)),"-",IF('(1) Inputs'!$A82>0,(VLOOKUP('(1) Inputs'!$A82,Data,2,))/(VLOOKUP('(1) Inputs'!$A82,Data,3,)),0)) -> 41.32259912 | L75: =IF('(1) Inputs'!$A82>0,(VLOOKUP('(1) Inputs'!$A82,Data,6,)),0) -> 1.897114 | M75: =IF('(1) Inputs'!$A82>0,(VLOOKUP('(1) Inputs'!$A82,Data,8,)),0) -> 66.22 | P75: =IF('(1) Inputs'!$A82>0,(VLOOKUP('(1) Inputs'!$A82,Data,15,)),0) -> 71.58917 | Q75: =IF('(1) Inputs'!$A82>0,(VLOOKUP('(1) Inputs'!$A82, DISAGGED_DATA, 20,)),0) ->  | R75: =IF(A75>0, IncDivCalc!F$2, 0) -> 0.3757213373 | S75: =IF('(1) Inputs'!$A82>0,(VLOOKUP('(1) Inputs'!$A82, PedCol!A71:J7263, 4,)),0) ->  | T75: =IF('(1) Inputs'!$A82>0,(VLOOKUP('(1) Inputs'!$A82, PedCol!A71:J7263, 5,)),0) ->  | U75: =IF('(1) Inputs'!$A82>0,(VLOOKUP('(1) Inputs'!$A82, PedCol!A71:J7263, 6,)),0) ->  | V75: =IF('(1) Inputs'!$A82>0,(VLOOKUP('(1) Inputs'!$A82, PedCol!A71:J7263, 7,)),0) -> 
A76: ='(1) Inputs'!A83 -> 60750479014 | B76: 16746.97 | C76: =IF('(1) Inputs'!$A83>0,(VLOOKUP('(1) Inputs'!$A83,Data,9,)),0) -> 3379.349333 | D76: =IF('(1) Inputs'!$A83>0,(VLOOKUP('(1) Inputs'!$A83,Data,11,)),0) -> 37.74715 | E76: =IF('(1) Inputs'!$A83>0,(VLOOKUP('(1) Inputs'!$A83,IOR,2,)),0) -> 0.1805859467 | G76: =IF('(1) Inputs'!$A83>0,(VLOOKUP('(1) Inputs'!$A83,Data,4,)),0) -> 1.848637 | H76: =IF('(1) Inputs'!$A83>0,(VLOOKUP('(1) Inputs'!$A83,Data,5,)),0) -> 0 | J76: =IF('(1) Inputs'!$A83>0,(VLOOKUP('(1) Inputs'!$A83,Data,7,)),0) -> 0.030306 | K76: =IF(ISERROR(IF('(1) Inputs'!$A83>0,(VLOOKUP('(1) Inputs'!$A83,Data,2,))/(VLOOKUP('(1) Inputs'!$A83,Data,3,)),0)),"-",IF('(1) Inputs'!$A83>0,(VLOOKUP('(1) Inputs'!$A83,Data,2,))/(VLOOKUP('(1) Inputs'!$A83,Data,3,)),0)) -> 38.820059 | L76: =IF('(1) Inputs'!$A83>0,(VLOOKUP('(1) Inputs'!$A83,Data,6,)),0) -> 0 | M76: =IF('(1) Inputs'!$A83>0,(VLOOKUP('(1) Inputs'!$A83,Data,8,)),0) -> 106.978 | P76: =IF('(1) Inputs'!$A83>0,(VLOOKUP('(1) Inputs'!$A83,Data,15,)),0) -> 62.25285 | Q76: =IF('(1) Inputs'!$A83>0,(VLOOKUP('(1) Inputs'!$A83, DISAGGED_DATA, 20,)),0) ->  | R76: =IF(A76>0, IncDivCalc!F$2, 0) -> 0.3757213373 | S76: =IF('(1) Inputs'!$A83>0,(VLOOKUP('(1) Inputs'!$A83, PedCol!A72:J7264, 4,)),0) -> 1 | T76: =IF('(1) Inputs'!$A83>0,(VLOOKUP('(1) Inputs'!$A83, PedCol!A72:J7264, 5,)),0) -> 1316 | U76: =IF('(1) Inputs'!$A83>0,(VLOOKUP('(1) Inputs'!$A83, PedCol!A72:J7264, 6,)),0) -> 636 | V76: =IF('(1) Inputs'!$A83>0,(VLOOKUP('(1) Inputs'!$A83, PedCol!A72:J7264, 7,)),0) -> 0
A77: ='(1) Inputs'!A84 -> 60750351001 | B77: 16197.08 | C77: =IF('(1) Inputs'!$A84>0,(VLOOKUP('(1) Inputs'!$A84,Data,9,)),0) -> 2767.893333 | D77: =IF('(1) Inputs'!$A84>0,(VLOOKUP('(1) Inputs'!$A84,Data,11,)),0) -> 32.07809 | E77: =IF('(1) Inputs'!$A84>0,(VLOOKUP('(1) Inputs'!$A84,IOR,2,)),0) -> 0.04040605423 | G77: =IF('(1) Inputs'!$A84>0,(VLOOKUP('(1) Inputs'!$A84,Data,4,)),0) -> 1.740582 | H77: =IF('(1) Inputs'!$A84>0,(VLOOKUP('(1) Inputs'!$A84,Data,5,)),0) -> 0 | J77: =IF('(1) Inputs'!$A84>0,(VLOOKUP('(1) Inputs'!$A84,Data,7,)),0) -> 0.063294 | K77: =IF(ISERROR(IF('(1) Inputs'!$A84>0,(VLOOKUP('(1) Inputs'!$A84,Data,2,))/(VLOOKUP('(1) Inputs'!$A84,Data,3,)),0)),"-",IF('(1) Inputs'!$A84>0,(VLOOKUP('(1) Inputs'!$A84,Data,2,))/(VLOOKUP('(1) Inputs'!$A84,Data,3,)),0)) -> 37.18108276 | L77: =IF('(1) Inputs'!$A84>0,(VLOOKUP('(1) Inputs'!$A84,Data,6,)),0) -> 0 | M77: =IF('(1) Inputs'!$A84>0,(VLOOKUP('(1) Inputs'!$A84,Data,8,)),0) -> 109.531 | P77: =IF('(1) Inputs'!$A84>0,(VLOOKUP('(1) Inputs'!$A84,Data,15,)),0) -> 67.92191 | Q77: =IF('(1) Inputs'!$A84>0,(VLOOKUP('(1) Inputs'!$A84, DISAGGED_DATA, 20,)),0) ->  | R77: =IF(A77>0, IncDivCalc!F$2, 0) -> 0.3757213373 | S77: =IF('(1) Inputs'!$A84>0,(VLOOKUP('(1) Inputs'!$A84, PedCol!A73:J7265, 4,)),0) ->  | T77: =IF('(1) Inputs'!$A84>0,(VLOOKUP('(1) Inputs'!$A84, PedCol!A73:J7265, 5,)),0) ->  | U77: =IF('(1) Inputs'!$A84>0,(VLOOKUP('(1) Inputs'!$A84, PedCol!A73:J7265, 6,)),0) ->  | V77: =IF('(1) Inputs'!$A84>0,(VLOOKUP('(1) Inputs'!$A84, PedCol!A73:J7265, 7,)),0) -> 
A78: ='(1) Inputs'!A85 -> 60750166003 | B78: 47279.28 | C78: =IF('(1) Inputs'!$A85>0,(VLOOKUP('(1) Inputs'!$A85,Data,9,)),0) -> 6125.994667 | D78: =IF('(1) Inputs'!$A85>0,(VLOOKUP('(1) Inputs'!$A85,Data,11,)),0) -> 27.5094 | E78: =IF('(1) Inputs'!$A85>0,(VLOOKUP('(1) Inputs'!$A85,IOR,2,)),0) -> 0.1451939746 | G78: =IF('(1) Inputs'!$A85>0,(VLOOKUP('(1) Inputs'!$A85,Data,4,)),0) -> 24.712307 | H78: =IF('(1) Inputs'!$A85>0,(VLOOKUP('(1) Inputs'!$A85,Data,5,)),0) -> 9.49764 | J78: =IF('(1) Inputs'!$A85>0,(VLOOKUP('(1) Inputs'!$A85,Data,7,)),0) -> 0.737681 | K78: =IF(ISERROR(IF('(1) Inputs'!$A85>0,(VLOOKUP('(1) Inputs'!$A85,Data,2,))/(VLOOKUP('(1) Inputs'!$A85,Data,3,)),0)),"-",IF('(1) Inputs'!$A85>0,(VLOOKUP('(1) Inputs'!$A85,Data,2,))/(VLOOKUP('(1) Inputs'!$A85,Data,3,)),0)) -> 55.41284404 | L78: =IF('(1) Inputs'!$A85>0,(VLOOKUP('(1) Inputs'!$A85,Data,6,)),0) -> 8.667749 | M78: =IF('(1) Inputs'!$A85>0,(VLOOKUP('(1) Inputs'!$A85,Data,8,)),0) -> 254.467 | P78: =IF('(1) Inputs'!$A85>0,(VLOOKUP('(1) Inputs'!$A85,Data,15,)),0) -> 72.4906 | Q78: =IF('(1) Inputs'!$A85>0,(VLOOKUP('(1) Inputs'!$A85, DISAGGED_DATA, 20,)),0) ->  | R78: =IF(A78>0, IncDivCalc!F$2, 0) -> 0.3757213373 | S78: =IF('(1) Inputs'!$A85>0,(VLOOKUP('(1) Inputs'!$A85, PedCol!A74:J7266, 4,)),0) ->  | T78: =IF('(1) Inputs'!$A85>0,(VLOOKUP('(1) Inputs'!$A85, PedCol!A74:J7266, 5,)),0) ->  | U78: =IF('(1) Inputs'!$A85>0,(VLOOKUP('(1) Inputs'!$A85, PedCol!A74:J7266, 6,)),0) ->  | V78: =IF('(1) Inputs'!$A85>0,(VLOOKUP('(1) Inputs'!$A85, PedCol!A74:J7266, 7,)),0) -> 
A79: ='(1) Inputs'!A86 -> 60750327004 | B79: 18539.94 | C79: =IF('(1) Inputs'!$A86>0,(VLOOKUP('(1) Inputs'!$A86,Data,9,)),0) -> 2601.450667 | D79: =IF('(1) Inputs'!$A86>0,(VLOOKUP('(1) Inputs'!$A86,Data,11,)),0) -> 25.72719 | E79: =IF('(1) Inputs'!$A86>0,(VLOOKUP('(1) Inputs'!$A86,IOR,2,)),0) -> 0.2745388691 | G79: =IF('(1) Inputs'!$A86>0,(VLOOKUP('(1) Inputs'!$A86,Data,4,)),0) -> 1.310649 | H79: =IF('(1) Inputs'!$A86>0,(VLOOKUP('(1) Inputs'!$A86,Data,5,)),0) -> 0 | J79: =IF('(1) Inputs'!$A86>0,(VLOOKUP('(1) Inputs'!$A86,Data,7,)),0) -> 0.44838 | K79: =IF(ISERROR(IF('(1) Inputs'!$A86>0,(VLOOKUP('(1) Inputs'!$A86,Data,2,))/(VLOOKUP('(1) Inputs'!$A86,Data,3,)),0)),"-",IF('(1) Inputs'!$A86>0,(VLOOKUP('(1) Inputs'!$A86,Data,2,))/(VLOOKUP('(1) Inputs'!$A86,Data,3,)),0)) -> 31.20909404 | L79: =IF('(1) Inputs'!$A86>0,(VLOOKUP('(1) Inputs'!$A86,Data,6,)),0) -> 0 | M79: =IF('(1) Inputs'!$A86>0,(VLOOKUP('(1) Inputs'!$A86,Data,8,)),0) -> 220.471 | P79: =IF('(1) Inputs'!$A86>0,(VLOOKUP('(1) Inputs'!$A86,Data,15,)),0) -> 74.27281 | Q79: =IF('(1) Inputs'!$A86>0,(VLOOKUP('(1) Inputs'!$A86, DISAGGED_DATA, 20,)),0) ->  | R79: =IF(A79>0, IncDivCalc!F$2, 0) -> 0.3757213373 | S79: =IF('(1) Inputs'!$A86>0,(VLOOKUP('(1) Inputs'!$A86, PedCol!A75:J7267, 4,)),0) ->  | T79: =IF('(1) Inputs'!$A86>0,(VLOOKUP('(1) Inputs'!$A86, PedCol!A75:J7267, 5,)),0) ->  | U79: =IF('(1) Inputs'!$A86>0,(VLOOKUP('(1) Inputs'!$A86, PedCol!A75:J7267, 6,)),0) ->  | V79: =IF('(1) Inputs'!$A86>0,(VLOOKUP('(1) Inputs'!$A86, PedCol!A75:J7267, 7,)),0) -> 
A80: ='(1) Inputs'!A87 -> 60750303011 | B80: 28578.09 | C80: =IF('(1) Inputs'!$A87>0,(VLOOKUP('(1) Inputs'!$A87,Data,9,)),0) -> 3866.858667 | D80: =IF('(1) Inputs'!$A87>0,(VLOOKUP('(1) Inputs'!$A87,Data,11,)),0) -> 34.20449 | E80: =IF('(1) Inputs'!$A87>0,(VLOOKUP('(1) Inputs'!$A87,IOR,2,)),0) -> 0.05736849311 | G80: =IF('(1) Inputs'!$A87>0,(VLOOKUP('(1) Inputs'!$A87,Data,4,)),0) -> 1.580644 | H80: =IF('(1) Inputs'!$A87>0,(VLOOKUP('(1) Inputs'!$A87,Data,5,)),0) -> 0 | J80: =IF('(1) Inputs'!$A87>0,(VLOOKUP('(1) Inputs'!$A87,Data,7,)),0) -> 0 | K80: =IF(ISERROR(IF('(1) Inputs'!$A87>0,(VLOOKUP('(1) Inputs'!$A87,Data,2,))/(VLOOKUP('(1) Inputs'!$A87,Data,3,)),0)),"-",IF('(1) Inputs'!$A87>0,(VLOOKUP('(1) Inputs'!$A87,Data,2,))/(VLOOKUP('(1) Inputs'!$A87,Data,3,)),0)) -> 28.37198296 | L80: =IF('(1) Inputs'!$A87>0,(VLOOKUP('(1) Inputs'!$A87,Data,6,)),0) -> 0.28739 | M80: =IF('(1) Inputs'!$A87>0,(VLOOKUP('(1) Inputs'!$A87,Data,8,)),0) -> 126.209 | P80: =IF('(1) Inputs'!$A87>0,(VLOOKUP('(1) Inputs'!$A87,Data,15,)),0) -> 65.79551 | Q80: =IF('(1) Inputs'!$A87>0,(VLOOKUP('(1) Inputs'!$A87, DISAGGED_DATA, 20,)),0) ->  | R80: =IF(A80>0, IncDivCalc!F$2, 0) -> 0.3757213373 | S80: =IF('(1) Inputs'!$A87>0,(VLOOKUP('(1) Inputs'!$A87, PedCol!A76:J7268, 4,)),0) ->  | T80: =IF('(1) Inputs'!$A87>0,(VLOOKUP('(1) Inputs'!$A87, PedCol!A76:J7268, 5,)),0) ->  | U80: =IF('(1) Inputs'!$A87>0,(VLOOKUP('(1) Inputs'!$A87, PedCol!A76:J7268, 6,)),0) ->  | V80: =IF('(1) Inputs'!$A87>0,(VLOOKUP('(1) Inputs'!$A87, PedCol!A76:J7268, 7,)),0) -> 
A81: ='(1) Inputs'!A88 -> 60750327007 | B81: 20042.79 | C81: =IF('(1) Inputs'!$A88>0,(VLOOKUP('(1) Inputs'!$A88,Data,9,)),0) -> 3086.698667 | D81: =IF('(1) Inputs'!$A88>0,(VLOOKUP('(1) Inputs'!$A88,Data,11,)),0) -> 33.95587 | E81: =IF('(1) Inputs'!$A88>0,(VLOOKUP('(1) Inputs'!$A88,IOR,2,)),0) -> 0.2405385306 | G81: =IF('(1) Inputs'!$A88>0,(VLOOKUP('(1) Inputs'!$A88,Data,4,)),0) -> 1.458433 | H81: =IF('(1) Inputs'!$A88>0,(VLOOKUP('(1) Inputs'!$A88,Data,5,)),0) -> 0.69607 | J81: =IF('(1) Inputs'!$A88>0,(VLOOKUP('(1) Inputs'!$A88,Data,7,)),0) -> 0 | K81: =IF(ISERROR(IF('(1) Inputs'!$A88>0,(VLOOKUP('(1) Inputs'!$A88,Data,2,))/(VLOOKUP('(1) Inputs'!$A88,Data,3,)),0)),"-",IF('(1) Inputs'!$A88>0,(VLOOKUP('(1) Inputs'!$A88,Data,2,))/(VLOOKUP('(1) Inputs'!$A88,Data,3,)),0)) -> 27.68826044 | L81: =IF('(1) Inputs'!$A88>0,(VLOOKUP('(1) Inputs'!$A88,Data,6,)),0) -> 0 | M81: =IF('(1) Inputs'!$A88>0,(VLOOKUP('(1) Inputs'!$A88,Data,8,)),0) -> 129.774 | P81: =IF('(1) Inputs'!$A88>0,(VLOOKUP('(1) Inputs'!$A88,Data,15,)),0) -> 66.04413 | Q81: =IF('(1) Inputs'!$A88>0,(VLOOKUP('(1) Inputs'!$A88, DISAGGED_DATA, 20,)),0) ->  | R81: =IF(A81>0, IncDivCalc!F$2, 0) -> 0.3757213373 | S81: =IF('(1) Inputs'!$A88>0,(VLOOKUP('(1) Inputs'!$A88, PedCol!A77:J7269, 4,)),0) ->  | T81: =IF('(1) Inputs'!$A88>0,(VLOOKUP('(1) Inputs'!$A88, PedCol!A77:J7269, 5,)),0) ->  | U81: =IF('(1) Inputs'!$A88>0,(VLOOKUP('(1) Inputs'!$A88, PedCol!A77:J7269, 6,)),0) ->  | V81: =IF('(1) Inputs'!$A88>0,(VLOOKUP('(1) Inputs'!$A88, PedCol!A77:J7269, 7,)),0) -> 
A82: ='(1) Inputs'!A89 -> 60750124021 | B82: 116050.43 | C82: =IF('(1) Inputs'!$A89>0,(VLOOKUP('(1) Inputs'!$A89,Data,9,)),0) -> 16427.712 | D82: =IF('(1) Inputs'!$A89>0,(VLOOKUP('(1) Inputs'!$A89,Data,11,)),0) -> 27.73852 | E82: =IF('(1) Inputs'!$A89>0,(VLOOKUP('(1) Inputs'!$A89,IOR,2,)),0) -> 0.3813421218 | G82: =IF('(1) Inputs'!$A89>0,(VLOOKUP('(1) Inputs'!$A89,Data,4,)),0) -> 116.489221 | H82: =IF('(1) Inputs'!$A89>0,(VLOOKUP('(1) Inputs'!$A89,Data,5,)),0) -> 0.163839 | J82: =IF('(1) Inputs'!$A89>0,(VLOOKUP('(1) Inputs'!$A89,Data,7,)),0) -> 3.522529 | K82: =IF(ISERROR(IF('(1) Inputs'!$A89>0,(VLOOKUP('(1) Inputs'!$A89,Data,2,))/(VLOOKUP('(1) Inputs'!$A89,Data,3,)),0)),"-",IF('(1) Inputs'!$A89>0,(VLOOKUP('(1) Inputs'!$A89,Data,2,))/(VLOOKUP('(1) Inputs'!$A89,Data,3,)),0)) -> 43.37152209 | L82: =IF('(1) Inputs'!$A89>0,(VLOOKUP('(1) Inputs'!$A89,Data,6,)),0) -> 55.172637 | M82: =IF('(1) Inputs'!$A89>0,(VLOOKUP('(1) Inputs'!$A89,Data,8,)),0) -> 382.015 | P82: =IF('(1) Inputs'!$A89>0,(VLOOKUP('(1) Inputs'!$A89,Data,15,)),0) -> 72.26148 | Q82: =IF('(1) Inputs'!$A89>0,(VLOOKUP('(1) Inputs'!$A89, DISAGGED_DATA, 20,)),0) ->  | R82: =IF(A82>0, IncDivCalc!F$2, 0) -> 0.3757213373 | S82: =IF('(1) Inputs'!$A89>0,(VLOOKUP('(1) Inputs'!$A89, PedCol!A78:J7270, 4,)),0) -> 3 | T82: =IF('(1) Inputs'!$A89>0,(VLOOKUP('(1) Inputs'!$A89, PedCol!A78:J7270, 5,)),0) -> 1060 | U82: =IF('(1) Inputs'!$A89>0,(VLOOKUP('(1) Inputs'!$A89, PedCol!A78:J7270, 6,)),0) -> 260 | V82: =IF('(1) Inputs'!$A89>0,(VLOOKUP('(1) Inputs'!$A89, PedCol!A78:J7270, 7,)),0) -> 35
A83: ='(1) Inputs'!A90 -> 60750158011 | B83: 54285.21 | C83: =IF('(1) Inputs'!$A90>0,(VLOOKUP('(1) Inputs'!$A90,Data,9,)),0) -> 8208.512 | D83: =IF('(1) Inputs'!$A90>0,(VLOOKUP('(1) Inputs'!$A90,Data,11,)),0) -> 28.4755 | E83: =IF('(1) Inputs'!$A90>0,(VLOOKUP('(1) Inputs'!$A90,IOR,2,)),0) -> 0.1238625563 | G83: =IF('(1) Inputs'!$A90>0,(VLOOKUP('(1) Inputs'!$A90,Data,4,)),0) -> 7.331055 | H83: =IF('(1) Inputs'!$A90>0,(VLOOKUP('(1) Inputs'!$A90,Data,5,)),0) -> 0 | J83: =IF('(1) Inputs'!$A90>0,(VLOOKUP('(1) Inputs'!$A90,Data,7,)),0) -> 1.609256 | K83: =IF(ISERROR(IF('(1) Inputs'!$A90>0,(VLOOKUP('(1) Inputs'!$A90,Data,2,))/(VLOOKUP('(1) Inputs'!$A90,Data,3,)),0)),"-",IF('(1) Inputs'!$A90>0,(VLOOKUP('(1) Inputs'!$A90,Data,2,))/(VLOOKUP('(1) Inputs'!$A90,Data,3,)),0)) -> 16.70781893 | L83: =IF('(1) Inputs'!$A90>0,(VLOOKUP('(1) Inputs'!$A90,Data,6,)),0) -> 0 | M83: =IF('(1) Inputs'!$A90>0,(VLOOKUP('(1) Inputs'!$A90,Data,8,)),0) -> 197.589 | P83: =IF('(1) Inputs'!$A90>0,(VLOOKUP('(1) Inputs'!$A90,Data,15,)),0) -> 71.5245 | Q83: =IF('(1) Inputs'!$A90>0,(VLOOKUP('(1) Inputs'!$A90, DISAGGED_DATA, 20,)),0) ->  | R83: =IF(A83>0, IncDivCalc!F$2, 0) -> 0.3757213373 | S83: =IF('(1) Inputs'!$A90>0,(VLOOKUP('(1) Inputs'!$A90, PedCol!A79:J7271, 4,)),0) -> 2 | T83: =IF('(1) Inputs'!$A90>0,(VLOOKUP('(1) Inputs'!$A90, PedCol!A79:J7271, 5,)),0) -> 406 | U83: =IF('(1) Inputs'!$A90>0,(VLOOKUP('(1) Inputs'!$A90, PedCol!A79:J7271, 6,)),0) -> 136 | V83: =IF('(1) Inputs'!$A90>0,(VLOOKUP('(1) Inputs'!$A90, PedCol!A79:J7271, 7,)),0) -> 17
A84: ='(1) Inputs'!A91 -> 60750161004 | B84: 60702.88 | C84: =IF('(1) Inputs'!$A91>0,(VLOOKUP('(1) Inputs'!$A91,Data,9,)),0) -> 9419.029333 | D84: =IF('(1) Inputs'!$A91>0,(VLOOKUP('(1) Inputs'!$A91,Data,11,)),0) -> 36.82306 | E84: =IF('(1) Inputs'!$A91>0,(VLOOKUP('(1) Inputs'!$A91,IOR,2,)),0) -> 0.3965370839 | G84: =IF('(1) Inputs'!$A91>0,(VLOOKUP('(1) Inputs'!$A91,Data,4,)),0) -> 15.917411 | H84: =IF('(1) Inputs'!$A91>0,(VLOOKUP('(1) Inputs'!$A91,Data,5,)),0) -> 0.107188 | J84: =IF('(1) Inputs'!$A91>0,(VLOOKUP('(1) Inputs'!$A91,Data,7,)),0) -> 4.18033 | K84: =IF(ISERROR(IF('(1) Inputs'!$A91>0,(VLOOKUP('(1) Inputs'!$A91,Data,2,))/(VLOOKUP('(1) Inputs'!$A91,Data,3,)),0)),"-",IF('(1) Inputs'!$A91>0,(VLOOKUP('(1) Inputs'!$A91,Data,2,))/(VLOOKUP('(1) Inputs'!$A91,Data,3,)),0)) -> 94.52054795 | L84: =IF('(1) Inputs'!$A91>0,(VLOOKUP('(1) Inputs'!$A91,Data,6,)),0) -> 0.107188 | M84: =IF('(1) Inputs'!$A91>0,(VLOOKUP('(1) Inputs'!$A91,Data,8,)),0) -> 224.801 | P84: =IF('(1) Inputs'!$A91>0,(VLOOKUP('(1) Inputs'!$A91,Data,15,)),0) -> 63.17694 | Q84: =IF('(1) Inputs'!$A91>0,(VLOOKUP('(1) Inputs'!$A91, DISAGGED_DATA, 20,)),0) ->  | R84: =IF(A84>0, IncDivCalc!F$2, 0) -> 0.3757213373 | S84: =IF('(1) Inputs'!$A91>0,(VLOOKUP('(1) Inputs'!$A91, PedCol!A80:J7272, 4,)),0) -> 2 | T84: =IF('(1) Inputs'!$A91>0,(VLOOKUP('(1) Inputs'!$A91, PedCol!A80:J7272, 5,)),0) -> 1794 | U84: =IF('(1) Inputs'!$A91>0,(VLOOKUP('(1) Inputs'!$A91, PedCol!A80:J7272, 6,)),0) -> 545 | V84: =IF('(1) Inputs'!$A91>0,(VLOOKUP('(1) Inputs'!$A91, PedCol!A80:J7272, 7,)),0) -> 46
A85: ='(1) Inputs'!A92 -> 60750160001 | B85: 81541.36 | C85: =IF('(1) Inputs'!$A92>0,(VLOOKUP('(1) Inputs'!$A92,Data,9,)),0) -> 8358.378667 | D85: =IF('(1) Inputs'!$A92>0,(VLOOKUP('(1) Inputs'!$A92,Data,11,)),0) -> 27.83512 | E85: =IF('(1) Inputs'!$A92>0,(VLOOKUP('(1) Inputs'!$A92,IOR,2,)),0) -> 0.09820626409 | G85: =IF('(1) Inputs'!$A92>0,(VLOOKUP('(1) Inputs'!$A92,Data,4,)),0) -> 67.976664 | H85: =IF('(1) Inputs'!$A92>0,(VLOOKUP('(1) Inputs'!$A92,Data,5,)),0) -> 3.554837 | J85: =IF('(1) Inputs'!$A92>0,(VLOOKUP('(1) Inputs'!$A92,Data,7,)),0) -> 4.424365 | K85: =IF(ISERROR(IF('(1) Inputs'!$A92>0,(VLOOKUP('(1) Inputs'!$A92,Data,2,))/(VLOOKUP('(1) Inputs'!$A92,Data,3,)),0)),"-",IF('(1) Inputs'!$A92>0,(VLOOKUP('(1) Inputs'!$A92,Data,2,))/(VLOOKUP('(1) Inputs'!$A92,Data,3,)),0)) -> 63.04081152 | L85: =IF('(1) Inputs'!$A92>0,(VLOOKUP('(1) Inputs'!$A92,Data,6,)),0) -> 6.726058 | M85: =IF('(1) Inputs'!$A92>0,(VLOOKUP('(1) Inputs'!$A92,Data,8,)),0) -> 61.3848 | P85: =IF('(1) Inputs'!$A92>0,(VLOOKUP('(1) Inputs'!$A92,Data,15,)),0) -> 72.16488 | Q85: =IF('(1) Inputs'!$A92>0,(VLOOKUP('(1) Inputs'!$A92, DISAGGED_DATA, 20,)),0) ->  | R85: =IF(A85>0, IncDivCalc!F$2, 0) -> 0.3757213373 | S85: =IF('(1) Inputs'!$A92>0,(VLOOKUP('(1) Inputs'!$A92, PedCol!A81:J7273, 4,)),0) -> 4 | T85: =IF('(1) Inputs'!$A92>0,(VLOOKUP('(1) Inputs'!$A92, PedCol!A81:J7273, 5,)),0) -> 2465 | U85: =IF('(1) Inputs'!$A92>0,(VLOOKUP('(1) Inputs'!$A92, PedCol!A81:J7273, 6,)),0) -> 1382 | V85: =IF('(1) Inputs'!$A92>0,(VLOOKUP('(1) Inputs'!$A92, PedCol!A81:J7273, 7,)),0) -> 214
A86: ='(1) Inputs'!A93 -> 60750158021 | B86: 56531.69 | C86: =IF('(1) Inputs'!$A93>0,(VLOOKUP('(1) Inputs'!$A93,Data,9,)),0) -> 7555.328 | D86: =IF('(1) Inputs'!$A93>0,(VLOOKUP('(1) Inputs'!$A93,Data,11,)),0) -> 27.6957 | E86: =IF('(1) Inputs'!$A93>0,(VLOOKUP('(1) Inputs'!$A93,IOR,2,)),0) -> 0.2452162209 | G86: =IF('(1) Inputs'!$A93>0,(VLOOKUP('(1) Inputs'!$A93,Data,4,)),0) -> 5.885231 | H86: =IF('(1) Inputs'!$A93>0,(VLOOKUP('(1) Inputs'!$A93,Data,5,)),0) -> 0 | J86: =IF('(1) Inputs'!$A93>0,(VLOOKUP('(1) Inputs'!$A93,Data,7,)),0) -> 1.197879 | K86: =IF(ISERROR(IF('(1) Inputs'!$A93>0,(VLOOKUP('(1) Inputs'!$A93,Data,2,))/(VLOOKUP('(1) Inputs'!$A93,Data,3,)),0)),"-",IF('(1) Inputs'!$A93>0,(VLOOKUP('(1) Inputs'!$A93,Data,2,))/(VLOOKUP('(1) Inputs'!$A93,Data,3,)),0)) -> 70.67485634 | L86: =IF('(1) Inputs'!$A93>0,(VLOOKUP('(1) Inputs'!$A93,Data,6,)),0) -> 1.354124 | M86: =IF('(1) Inputs'!$A93>0,(VLOOKUP('(1) Inputs'!$A93,Data,8,)),0) -> 177.792 | P86: =IF('(1) Inputs'!$A93>0,(VLOOKUP('(1) Inputs'!$A93,Data,15,)),0) -> 72.3043 | Q86: =IF('(1) Inputs'!$A93>0,(VLOOKUP('(1) Inputs'!$A93, DISAGGED_DATA, 20,)),0) ->  | R86: =IF(A86>0, IncDivCalc!F$2, 0) -> 0.3757213373 | S86: =IF('(1) Inputs'!$A93>0,(VLOOKUP('(1) Inputs'!$A93, PedCol!A82:J7274, 4,)),0) ->  | T86: =IF('(1) Inputs'!$A93>0,(VLOOKUP('(1) Inputs'!$A93, PedCol!A82:J7274, 5,)),0) ->  | U86: =IF('(1) Inputs'!$A93>0,(VLOOKUP('(1) Inputs'!$A93, PedCol!A82:J7274, 6,)),0) ->  | V86: =IF('(1) Inputs'!$A93>0,(VLOOKUP('(1) Inputs'!$A93, PedCol!A82:J7274, 7,)),0) -> 
A87: ='(1) Inputs'!A94 -> 60750159001 | B87: 67156.59 | C87: =IF('(1) Inputs'!$A94>0,(VLOOKUP('(1) Inputs'!$A94,Data,9,)),0) -> 6359.658667 | D87: =IF('(1) Inputs'!$A94>0,(VLOOKUP('(1) Inputs'!$A94,Data,11,)),0) -> 27.34599 | E87: =IF('(1) Inputs'!$A94>0,(VLOOKUP('(1) Inputs'!$A94,IOR,2,)),0) -> 0.1827518182 | G87: =IF('(1) Inputs'!$A94>0,(VLOOKUP('(1) Inputs'!$A94,Data,4,)),0) -> 8.224725 | H87: =IF('(1) Inputs'!$A94>0,(VLOOKUP('(1) Inputs'!$A94,Data,5,)),0) -> 0 | J87: =IF('(1) Inputs'!$A94>0,(VLOOKUP('(1) Inputs'!$A94,Data,7,)),0) -> 2.570226 | K87: =IF(ISERROR(IF('(1) Inputs'!$A94>0,(VLOOKUP('(1) Inputs'!$A94,Data,2,))/(VLOOKUP('(1) Inputs'!$A94,Data,3,)),0)),"-",IF('(1) Inputs'!$A94>0,(VLOOKUP('(1) Inputs'!$A94,Data,2,))/(VLOOKUP('(1) Inputs'!$A94,Data,3,)),0)) -> 42.78371711 | L87: =IF('(1) Inputs'!$A94>0,(VLOOKUP('(1) Inputs'!$A94,Data,6,)),0) -> 0.22618 | M87: =IF('(1) Inputs'!$A94>0,(VLOOKUP('(1) Inputs'!$A94,Data,8,)),0) -> 302.734 | P87: =IF('(1) Inputs'!$A94>0,(VLOOKUP('(1) Inputs'!$A94,Data,15,)),0) -> 72.65401 | Q87: =IF('(1) Inputs'!$A94>0,(VLOOKUP('(1) Inputs'!$A94, DISAGGED_DATA, 20,)),0) ->  | R87: =IF(A87>0, IncDivCalc!F$2, 0) -> 0.3757213373 | S87: =IF('(1) Inputs'!$A94>0,(VLOOKUP('(1) Inputs'!$A94, PedCol!A83:J7275, 4,)),0) -> 2 | T87: =IF('(1) Inputs'!$A94>0,(VLOOKUP('(1) Inputs'!$A94, PedCol!A83:J7275, 5,)),0) -> 2081 | U87: =IF('(1) Inputs'!$A94>0,(VLOOKUP('(1) Inputs'!$A94, PedCol!A83:J7275, 6,)),0) -> 1139 | V87: =IF('(1) Inputs'!$A94>0,(VLOOKUP('(1) Inputs'!$A94, PedCol!A83:J7275, 7,)),0) -> 70
A88: ='(1) Inputs'!A95 -> 60750158013 | B88: 58628.78 | C88: =IF('(1) Inputs'!$A95>0,(VLOOKUP('(1) Inputs'!$A95,Data,9,)),0) -> 9512.277333 | D88: =IF('(1) Inputs'!$A95>0,(VLOOKUP('(1) Inputs'!$A95,Data,11,)),0) -> 23.43349 | E88: =IF('(1) Inputs'!$A95>0,(VLOOKUP('(1) Inputs'!$A95,IOR,2,)),0) -> 0.160534698 | G88: =IF('(1) Inputs'!$A95>0,(VLOOKUP('(1) Inputs'!$A95,Data,4,)),0) -> 3.642589 | H88: =IF('(1) Inputs'!$A95>0,(VLOOKUP('(1) Inputs'!$A95,Data,5,)),0) -> 0 | J88: =IF('(1) Inputs'!$A95>0,(VLOOKUP('(1) Inputs'!$A95,Data,7,)),0) -> 0.438866 | K88: =IF(ISERROR(IF('(1) Inputs'!$A95>0,(VLOOKUP('(1) Inputs'!$A95,Data,2,))/(VLOOKUP('(1) Inputs'!$A95,Data,3,)),0)),"-",IF('(1) Inputs'!$A95>0,(VLOOKUP('(1) Inputs'!$A95,Data,2,))/(VLOOKUP('(1) Inputs'!$A95,Data,3,)),0)) -> 66.00545932 | L88: =IF('(1) Inputs'!$A95>0,(VLOOKUP('(1) Inputs'!$A95,Data,6,)),0) -> 0.219433 | M88: =IF('(1) Inputs'!$A95>0,(VLOOKUP('(1) Inputs'!$A95,Data,8,)),0) -> 149.805 | P88: =IF('(1) Inputs'!$A95>0,(VLOOKUP('(1) Inputs'!$A95,Data,15,)),0) -> 76.56651 | Q88: =IF('(1) Inputs'!$A95>0,(VLOOKUP('(1) Inputs'!$A95, DISAGGED_DATA, 20,)),0) ->  | R88: =IF(A88>0, IncDivCalc!F$2, 0) -> 0.3757213373 | S88: =IF('(1) Inputs'!$A95>0,(VLOOKUP('(1) Inputs'!$A95, PedCol!A84:J7276, 4,)),0) -> 1 | T88: =IF('(1) Inputs'!$A95>0,(VLOOKUP('(1) Inputs'!$A95, PedCol!A84:J7276, 5,)),0) -> 1504 | U88: =IF('(1) Inputs'!$A95>0,(VLOOKUP('(1) Inputs'!$A95, PedCol!A84:J7276, 6,)),0) -> 978 | V88: =IF('(1) Inputs'!$A95>0,(VLOOKUP('(1) Inputs'!$A95, PedCol!A84:J7276, 7,)),0) -> 75
A89: ='(1) Inputs'!A96 -> 60750124022 | B89: 104347.49 | C89: =IF('(1) Inputs'!$A96>0,(VLOOKUP('(1) Inputs'!$A96,Data,9,)),0) -> 10424 | D89: =IF('(1) Inputs'!$A96>0,(VLOOKUP('(1) Inputs'!$A96,Data,11,)),0) -> 27.73852 | E89: =IF('(1) Inputs'!$A96>0,(VLOOKUP('(1) Inputs'!$A96,IOR,2,)),0) -> 0.2714626306 | G89: =IF('(1) Inputs'!$A96>0,(VLOOKUP('(1) Inputs'!$A96,Data,4,)),0) -> 89.871483 | H89: =IF('(1) Inputs'!$A96>0,(VLOOKUP('(1) Inputs'!$A96,Data,5,)),0) -> 0.362482 | J89: =IF('(1) Inputs'!$A96>0,(VLOOKUP('(1) Inputs'!$A96,Data,7,)),0) -> 6.524684 | K89: =IF(ISERROR(IF('(1) Inputs'!$A96>0,(VLOOKUP('(1) Inputs'!$A96,Data,2,))/(VLOOKUP('(1) Inputs'!$A96,Data,3,)),0)),"-",IF('(1) Inputs'!$A96>0,(VLOOKUP('(1) Inputs'!$A96,Data,2,))/(VLOOKUP('(1) Inputs'!$A96,Data,3,)),0)) -> 20.10657922 | L89: =IF('(1) Inputs'!$A96>0,(VLOOKUP('(1) Inputs'!$A96,Data,6,)),0) -> 8.071276 | M89: =IF('(1) Inputs'!$A96>0,(VLOOKUP('(1) Inputs'!$A96,Data,8,)),0) -> 449.407 | P89: =IF('(1) Inputs'!$A96>0,(VLOOKUP('(1) Inputs'!$A96,Data,15,)),0) -> 72.26148 | Q89: =IF('(1) Inputs'!$A96>0,(VLOOKUP('(1) Inputs'!$A96, DISAGGED_DATA, 20,)),0) ->  | R89: =IF(A89>0, IncDivCalc!F$2, 0) -> 0.3757213373 | S89: =IF('(1) Inputs'!$A96>0,(VLOOKUP('(1) Inputs'!$A96, PedCol!A85:J7277, 4,)),0) -> 13 | T89: =IF('(1) Inputs'!$A96>0,(VLOOKUP('(1) Inputs'!$A96, PedCol!A85:J7277, 5,)),0) -> 981 | U89: =IF('(1) Inputs'!$A96>0,(VLOOKUP('(1) Inputs'!$A96, PedCol!A85:J7277, 6,)),0) -> 354 | V89: =IF('(1) Inputs'!$A96>0,(VLOOKUP('(1) Inputs'!$A96, PedCol!A85:J7277, 7,)),0) -> 22
A90: ='(1) Inputs'!A97 -> 60750158022 | B90: 61376.81 | C90: =IF('(1) Inputs'!$A97>0,(VLOOKUP('(1) Inputs'!$A97,Data,9,)),0) -> 9075.242667 | D90: =IF('(1) Inputs'!$A97>0,(VLOOKUP('(1) Inputs'!$A97,Data,11,)),0) -> 32.11534 | E90: =IF('(1) Inputs'!$A97>0,(VLOOKUP('(1) Inputs'!$A97,IOR,2,)),0) -> 0.1370490647 | G90: =IF('(1) Inputs'!$A97>0,(VLOOKUP('(1) Inputs'!$A97,Data,4,)),0) -> 10.678119 | H90: =IF('(1) Inputs'!$A97>0,(VLOOKUP('(1) Inputs'!$A97,Data,5,)),0) -> 0.043584 | J90: =IF('(1) Inputs'!$A97>0,(VLOOKUP('(1) Inputs'!$A97,Data,7,)),0) -> 0.828099 | K90: =IF(ISERROR(IF('(1) Inputs'!$A97>0,(VLOOKUP('(1) Inputs'!$A97,Data,2,))/(VLOOKUP('(1) Inputs'!$A97,Data,3,)),0)),"-",IF('(1) Inputs'!$A97>0,(VLOOKUP('(1) Inputs'!$A97,Data,2,))/(VLOOKUP('(1) Inputs'!$A97,Data,3,)),0)) -> 69.94345368 | L90: =IF('(1) Inputs'!$A97>0,(VLOOKUP('(1) Inputs'!$A97,Data,6,)),0) -> 5.186515 | M90: =IF('(1) Inputs'!$A97>0,(VLOOKUP('(1) Inputs'!$A97,Data,8,)),0) -> 194.874 | P90: =IF('(1) Inputs'!$A97>0,(VLOOKUP('(1) Inputs'!$A97,Data,15,)),0) -> 67.88466 | Q90: =IF('(1) Inputs'!$A97>0,(VLOOKUP('(1) Inputs'!$A97, DISAGGED_DATA, 20,)),0) ->  | R90: =IF(A90>0, IncDivCalc!F$2, 0) -> 0.3757213373 | S90: =IF('(1) Inputs'!$A97>0,(VLOOKUP('(1) Inputs'!$A97, PedCol!A86:J7278, 4,)),0) -> 1 | T90: =IF('(1) Inputs'!$A97>0,(VLOOKUP('(1) Inputs'!$A97, PedCol!A86:J7278, 5,)),0) -> 1608 | U90: =IF('(1) Inputs'!$A97>0,(VLOOKUP('(1) Inputs'!$A97, PedCol!A86:J7278, 6,)),0) -> 1003 | V90: =IF('(1) Inputs'!$A97>0,(VLOOKUP('(1) Inputs'!$A97, PedCol!A86:J7278, 7,)),0) -> 53
A91: ='(1) Inputs'!A98 -> 60750158012 | B91: 56196.51 | C91: =IF('(1) Inputs'!$A98>0,(VLOOKUP('(1) Inputs'!$A98,Data,9,)),0) -> 4484.394667 | D91: =IF('(1) Inputs'!$A98>0,(VLOOKUP('(1) Inputs'!$A98,Data,11,)),0) -> 30.70309 | E91: =IF('(1) Inputs'!$A98>0,(VLOOKUP('(1) Inputs'!$A98,IOR,2,)),0) -> 0.3085350336 | G91: =IF('(1) Inputs'!$A98>0,(VLOOKUP('(1) Inputs'!$A98,Data,4,)),0) -> 4.209701 | H91: =IF('(1) Inputs'!$A98>0,(VLOOKUP('(1) Inputs'!$A98,Data,5,)),0) -> 0.95314 | J91: =IF('(1) Inputs'!$A98>0,(VLOOKUP('(1) Inputs'!$A98,Data,7,)),0) -> 1.164949 | K91: =IF(ISERROR(IF('(1) Inputs'!$A98>0,(VLOOKUP('(1) Inputs'!$A98,Data,2,))/(VLOOKUP('(1) Inputs'!$A98,Data,3,)),0)),"-",IF('(1) Inputs'!$A98>0,(VLOOKUP('(1) Inputs'!$A98,Data,2,))/(VLOOKUP('(1) Inputs'!$A98,Data,3,)),0)) -> 44.52670545 | L91: =IF('(1) Inputs'!$A98>0,(VLOOKUP('(1) Inputs'!$A98,Data,6,)),0) -> 0.105904 | M91: =IF('(1) Inputs'!$A98>0,(VLOOKUP('(1) Inputs'!$A98,Data,8,)),0) -> 222.854 | P91: =IF('(1) Inputs'!$A98>0,(VLOOKUP('(1) Inputs'!$A98,Data,15,)),0) -> 69.29691 | Q91: =IF('(1) Inputs'!$A98>0,(VLOOKUP('(1) Inputs'!$A98, DISAGGED_DATA, 20,)),0) ->  | R91: =IF(A91>0, IncDivCalc!F$2, 0) -> 0.3757213373 | S91: =IF('(1) Inputs'!$A98>0,(VLOOKUP('(1) Inputs'!$A98, PedCol!A87:J7279, 4,)),0) -> 4 | T91: =IF('(1) Inputs'!$A98>0,(VLOOKUP('(1) Inputs'!$A98, PedCol!A87:J7279, 5,)),0) -> 1684 | U91: =IF('(1) Inputs'!$A98>0,(VLOOKUP('(1) Inputs'!$A98, PedCol!A87:J7279, 6,)),0) -> 893 | V91: =IF('(1) Inputs'!$A98>0,(VLOOKUP('(1) Inputs'!$A98, PedCol!A87:J7279, 7,)),0) -> 157
A92: ='(1) Inputs'!A99 -> 60750157002 | B92: 50404.4 | C92: =IF('(1) Inputs'!$A99>0,(VLOOKUP('(1) Inputs'!$A99,Data,9,)),0) -> 5831.018667 | D92: =IF('(1) Inputs'!$A99>0,(VLOOKUP('(1) Inputs'!$A99,Data,11,)),0) -> 34.24951 | E92: =IF('(1) Inputs'!$A99>0,(VLOOKUP('(1) Inputs'!$A99,IOR,2,)),0) -> 0.1459955052 | G92: =IF('(1) Inputs'!$A99>0,(VLOOKUP('(1) Inputs'!$A99,Data,4,)),0) -> 5.232576 | H92: =IF('(1) Inputs'!$A99>0,(VLOOKUP('(1) Inputs'!$A99,Data,5,)),0) -> 2.372534 | J92: =IF('(1) Inputs'!$A99>0,(VLOOKUP('(1) Inputs'!$A99,Data,7,)),0) -> 0.162502 | K92: =IF(ISERROR(IF('(1) Inputs'!$A99>0,(VLOOKUP('(1) Inputs'!$A99,Data,2,))/(VLOOKUP('(1) Inputs'!$A99,Data,3,)),0)),"-",IF('(1) Inputs'!$A99>0,(VLOOKUP('(1) Inputs'!$A99,Data,2,))/(VLOOKUP('(1) Inputs'!$A99,Data,3,)),0)) -> 61.75089662 | L92: =IF('(1) Inputs'!$A99>0,(VLOOKUP('(1) Inputs'!$A99,Data,6,)),0) -> 0.520008 | M92: =IF('(1) Inputs'!$A99>0,(VLOOKUP('(1) Inputs'!$A99,Data,8,)),0) -> 97.0608 | P92: =IF('(1) Inputs'!$A99>0,(VLOOKUP('(1) Inputs'!$A99,Data,15,)),0) -> 65.75049 | Q92: =IF('(1) Inputs'!$A99>0,(VLOOKUP('(1) Inputs'!$A99, DISAGGED_DATA, 20,)),0) ->  | R92: =IF(A92>0, IncDivCalc!F$2, 0) -> 0.3757213373 | S92: =IF('(1) Inputs'!$A99>0,(VLOOKUP('(1) Inputs'!$A99, PedCol!A88:J7280, 4,)),0) -> 1 | T92: =IF('(1) Inputs'!$A99>0,(VLOOKUP('(1) Inputs'!$A99, PedCol!A88:J7280, 5,)),0) -> 1900 | U92: =IF('(1) Inputs'!$A99>0,(VLOOKUP('(1) Inputs'!$A99, PedCol!A88:J7280, 6,)),0) -> 1007 | V92: =IF('(1) Inputs'!$A99>0,(VLOOKUP('(1) Inputs'!$A99, PedCol!A88:J7280, 7,)),0) -> 32
A93: ='(1) Inputs'!A100 -> 60750159002 | B93: 60776.08 | C93: =IF('(1) Inputs'!$A100>0,(VLOOKUP('(1) Inputs'!$A100,Data,9,)),0) -> 8124.906667 | D93: =IF('(1) Inputs'!$A100>0,(VLOOKUP('(1) Inputs'!$A100,Data,11,)),0) -> 35.60843 | E93: =IF('(1) Inputs'!$A100>0,(VLOOKUP('(1) Inputs'!$A100,IOR,2,)),0) -> 0.2510879768 | G93: =IF('(1) Inputs'!$A100>0,(VLOOKUP('(1) Inputs'!$A100,Data,4,)),0) -> 97.671192 | H93: =IF('(1) Inputs'!$A100>0,(VLOOKUP('(1) Inputs'!$A100,Data,5,)),0) -> 6.920607 | J93: =IF('(1) Inputs'!$A100>0,(VLOOKUP('(1) Inputs'!$A100,Data,7,)),0) -> 11.57554 | K93: =IF(ISERROR(IF('(1) Inputs'!$A100>0,(VLOOKUP('(1) Inputs'!$A100,Data,2,))/(VLOOKUP('(1) Inputs'!$A100,Data,3,)),0)),"-",IF('(1) Inputs'!$A100>0,(VLOOKUP('(1) Inputs'!$A100,Data,2,))/(VLOOKUP('(1) Inputs'!$A100,Data,3,)),0)) -> 93.22103533 | L93: =IF('(1) Inputs'!$A100>0,(VLOOKUP('(1) Inputs'!$A100,Data,6,)),0) -> 55.364859 | M93: =IF('(1) Inputs'!$A100>0,(VLOOKUP('(1) Inputs'!$A100,Data,8,)),0) -> 186.28 | P93: =IF('(1) Inputs'!$A100>0,(VLOOKUP('(1) Inputs'!$A100,Data,15,)),0) -> 64.39157 | Q93: =IF('(1) Inputs'!$A100>0,(VLOOKUP('(1) Inputs'!$A100, DISAGGED_DATA, 20,)),0) ->  | R93: =IF(A93>0, IncDivCalc!F$2, 0) -> 0.3757213373 | S93: =IF('(1) Inputs'!$A100>0,(VLOOKUP('(1) Inputs'!$A100, PedCol!A89:J7281, 4,)),0) -> 4 | T93: =IF('(1) Inputs'!$A100>0,(VLOOKUP('(1) Inputs'!$A100, PedCol!A89:J7281, 5,)),0) -> 2269 | U93: =IF('(1) Inputs'!$A100>0,(VLOOKUP('(1) Inputs'!$A100, PedCol!A89:J7281, 6,)),0) -> 927 | V93: =IF('(1) Inputs'!$A100>0,(VLOOKUP('(1) Inputs'!$A100, PedCol!A89:J7281, 7,)),0) -> 129
A94: ='(1) Inputs'!A101 -> 60750124023 | B94: 92675.13 | C94: =IF('(1) Inputs'!$A101>0,(VLOOKUP('(1) Inputs'!$A101,Data,9,)),0) -> 16651.02933 | D94: =IF('(1) Inputs'!$A101>0,(VLOOKUP('(1) Inputs'!$A101,Data,11,)),0) -> 19.0169 | E94: =IF('(1) Inputs'!$A101>0,(VLOOKUP('(1) Inputs'!$A101,IOR,2,)),0) -> 0.5369355247 | G94: =IF('(1) Inputs'!$A101>0,(VLOOKUP('(1) Inputs'!$A101,Data,4,)),0) -> 78.503943 | H94: =IF('(1) Inputs'!$A101>0,(VLOOKUP('(1) Inputs'!$A101,Data,5,)),0) -> 9.045722 | J94: =IF('(1) Inputs'!$A101>0,(VLOOKUP('(1) Inputs'!$A101,Data,7,)),0) -> 9.045722 | K94: =IF(ISERROR(IF('(1) Inputs'!$A101>0,(VLOOKUP('(1) Inputs'!$A101,Data,2,))/(VLOOKUP('(1) Inputs'!$A101,Data,3,)),0)),"-",IF('(1) Inputs'!$A101>0,(VLOOKUP('(1) Inputs'!$A101,Data,2,))/(VLOOKUP('(1) Inputs'!$A101,Data,3,)),0)) -> 124.8955704 | L94: =IF('(1) Inputs'!$A101>0,(VLOOKUP('(1) Inputs'!$A101,Data,6,)),0) -> 11.177928 | M94: =IF('(1) Inputs'!$A101>0,(VLOOKUP('(1) Inputs'!$A101,Data,8,)),0) -> 89.5779 | P94: =IF('(1) Inputs'!$A101>0,(VLOOKUP('(1) Inputs'!$A101,Data,15,)),0) -> 80.9831 | Q94: =IF('(1) Inputs'!$A101>0,(VLOOKUP('(1) Inputs'!$A101, DISAGGED_DATA, 20,)),0) ->  | R94: =IF(A94>0, IncDivCalc!F$2, 0) -> 0.3757213373 | S94: =IF('(1) Inputs'!$A101>0,(VLOOKUP('(1) Inputs'!$A101, PedCol!A90:J7282, 4,)),0) -> 4 | T94: =IF('(1) Inputs'!$A101>0,(VLOOKUP('(1) Inputs'!$A101, PedCol!A90:J7282, 5,)),0) -> 1933 | U94: =IF('(1) Inputs'!$A101>0,(VLOOKUP('(1) Inputs'!$A101, PedCol!A90:J7282, 6,)),0) -> 605 | V94: =IF('(1) Inputs'!$A101>0,(VLOOKUP('(1) Inputs'!$A101, PedCol!A90:J7282, 7,)),0) -> 132
A95: ='(1) Inputs'!A102 -> 60750161001 | B95: 85216.35 | C95: =IF('(1) Inputs'!$A102>0,(VLOOKUP('(1) Inputs'!$A102,Data,9,)),0) -> 6279.872 | D95: =IF('(1) Inputs'!$A102>0,(VLOOKUP('(1) Inputs'!$A102,Data,11,)),0) -> 24.42656 | E95: =IF('(1) Inputs'!$A102>0,(VLOOKUP('(1) Inputs'!$A102,IOR,2,)),0) -> 0.3142487355 | G95: =IF('(1) Inputs'!$A102>0,(VLOOKUP('(1) Inputs'!$A102,Data,4,)),0) -> 3.86954 | H95: =IF('(1) Inputs'!$A102>0,(VLOOKUP('(1) Inputs'!$A102,Data,5,)),0) -> 0 | J95: =IF('(1) Inputs'!$A102>0,(VLOOKUP('(1) Inputs'!$A102,Data,7,)),0) -> 0 | K95: =IF(ISERROR(IF('(1) Inputs'!$A102>0,(VLOOKUP('(1) Inputs'!$A102,Data,2,))/(VLOOKUP('(1) Inputs'!$A102,Data,3,)),0)),"-",IF('(1) Inputs'!$A102>0,(VLOOKUP('(1) Inputs'!$A102,Data,2,))/(VLOOKUP('(1) Inputs'!$A102,Data,3,)),0)) -> 28.25156404 | L95: =IF('(1) Inputs'!$A102>0,(VLOOKUP('(1) Inputs'!$A102,Data,6,)),0) -> 0.131171 | M95: =IF('(1) Inputs'!$A102>0,(VLOOKUP('(1) Inputs'!$A102,Data,8,)),0) -> 449.725 | P95: =IF('(1) Inputs'!$A102>0,(VLOOKUP('(1) Inputs'!$A102,Data,15,)),0) -> 75.57344 | Q95: =IF('(1) Inputs'!$A102>0,(VLOOKUP('(1) Inputs'!$A102, DISAGGED_DATA, 20,)),0) ->  | R95: =IF(A95>0, IncDivCalc!F$2, 0) -> 0.3757213373 | S95: =IF('(1) Inputs'!$A102>0,(VLOOKUP('(1) Inputs'!$A102, PedCol!A91:J7283, 4,)),0) ->  | T95: =IF('(1) Inputs'!$A102>0,(VLOOKUP('(1) Inputs'!$A102, PedCol!A91:J7283, 5,)),0) ->  | U95: =IF('(1) Inputs'!$A102>0,(VLOOKUP('(1) Inputs'!$A102, PedCol!A91:J7283, 6,)),0) ->  | V95: =IF('(1) Inputs'!$A102>0,(VLOOKUP('(1) Inputs'!$A102, PedCol!A91:J7283, 7,)),0) -> 
A96: ='(1) Inputs'!A103 -> 60750354001 | B96: 14323.38 | C96: =IF('(1) Inputs'!$A103>0,(VLOOKUP('(1) Inputs'!$A103,Data,9,)),0) -> 613.294933 | D96: =IF('(1) Inputs'!$A103>0,(VLOOKUP('(1) Inputs'!$A103,Data,11,)),0) -> 35.75585 | E96: =IF('(1) Inputs'!$A103>0,(VLOOKUP('(1) Inputs'!$A103,IOR,2,)),0) -> 0.2622144868 | G96: =IF('(1) Inputs'!$A103>0,(VLOOKUP('(1) Inputs'!$A103,Data,4,)),0) -> 0.819358 | H96: =IF('(1) Inputs'!$A103>0,(VLOOKUP('(1) Inputs'!$A103,Data,5,)),0) -> 0 | J96: =IF('(1) Inputs'!$A103>0,(VLOOKUP('(1) Inputs'!$A103,Data,7,)),0) -> 0.1138 | K96: =IF(ISERROR(IF('(1) Inputs'!$A103>0,(VLOOKUP('(1) Inputs'!$A103,Data,2,))/(VLOOKUP('(1) Inputs'!$A103,Data,3,)),0)),"-",IF('(1) Inputs'!$A103>0,(VLOOKUP('(1) Inputs'!$A103,Data,2,))/(VLOOKUP('(1) Inputs'!$A103,Data,3,)),0)) -> 6.818565401 | L96: =IF('(1) Inputs'!$A103>0,(VLOOKUP('(1) Inputs'!$A103,Data,6,)),0) -> 0 | M96: =IF('(1) Inputs'!$A103>0,(VLOOKUP('(1) Inputs'!$A103,Data,8,)),0) -> 144.923 | P96: =IF('(1) Inputs'!$A103>0,(VLOOKUP('(1) Inputs'!$A103,Data,15,)),0) -> 64.24415 | Q96: =IF('(1) Inputs'!$A103>0,(VLOOKUP('(1) Inputs'!$A103, DISAGGED_DATA, 20,)),0) ->  | R96: =IF(A96>0, IncDivCalc!F$2, 0) -> 0.3757213373 | S96: =IF('(1) Inputs'!$A103>0,(VLOOKUP('(1) Inputs'!$A103, PedCol!A92:J7284, 4,)),0) ->  | T96: =IF('(1) Inputs'!$A103>0,(VLOOKUP('(1) Inputs'!$A103, PedCol!A92:J7284, 5,)),0) ->  | U96: =IF('(1) Inputs'!$A103>0,(VLOOKUP('(1) Inputs'!$A103, PedCol!A92:J7284, 6,)),0) ->  | V96: =IF('(1) Inputs'!$A103>0,(VLOOKUP('(1) Inputs'!$A103, PedCol!A92:J7284, 7,)),0) -> 
A97: ='(1) Inputs'!A104 -> 60750329021 | B97: 16658.41 | C97: =IF('(1) Inputs'!$A104>0,(VLOOKUP('(1) Inputs'!$A104,Data,9,)),0) -> 2289.813333 | D97: =IF('(1) Inputs'!$A104>0,(VLOOKUP('(1) Inputs'!$A104,Data,11,)),0) -> 33.95681 | E97: =IF('(1) Inputs'!$A104>0,(VLOOKUP('(1) Inputs'!$A104,IOR,2,)),0) -> 0.0790741455 | G97: =IF('(1) Inputs'!$A104>0,(VLOOKUP('(1) Inputs'!$A104,Data,4,)),0) -> 5.799916 | H97: =IF('(1) Inputs'!$A104>0,(VLOOKUP('(1) Inputs'!$A104,Data,5,)),0) -> 2.984189 | J97: =IF('(1) Inputs'!$A104>0,(VLOOKUP('(1) Inputs'!$A104,Data,7,)),0) -> 0.096264 | K97: =IF(ISERROR(IF('(1) Inputs'!$A104>0,(VLOOKUP('(1) Inputs'!$A104,Data,2,))/(VLOOKUP('(1) Inputs'!$A104,Data,3,)),0)),"-",IF('(1) Inputs'!$A104>0,(VLOOKUP('(1) Inputs'!$A104,Data,2,))/(VLOOKUP('(1) Inputs'!$A104,Data,3,)),0)) -> 29.98629054 | L97: =IF('(1) Inputs'!$A104>0,(VLOOKUP('(1) Inputs'!$A104,Data,6,)),0) -> 1.660557 | M97: =IF('(1) Inputs'!$A104>0,(VLOOKUP('(1) Inputs'!$A104,Data,8,)),0) -> 161.72 | P97: =IF('(1) Inputs'!$A104>0,(VLOOKUP('(1) Inputs'!$A104,Data,15,)),0) -> 66.04319 | Q97: =IF('(1) Inputs'!$A104>0,(VLOOKUP('(1) Inputs'!$A104, DISAGGED_DATA, 20,)),0) ->  | R97: =IF(A97>0, IncDivCalc!F$2, 0) -> 0.3757213373 | S97: =IF('(1) Inputs'!$A104>0,(VLOOKUP('(1) Inputs'!$A104, PedCol!A93:J7285, 4,)),0) ->  | T97: =IF('(1) Inputs'!$A104>0,(VLOOKUP('(1) Inputs'!$A104, PedCol!A93:J7285, 5,)),0) ->  | U97: =IF('(1) Inputs'!$A104>0,(VLOOKUP('(1) Inputs'!$A104, PedCol!A93:J7285, 6,)),0) ->  | V97: =IF('(1) Inputs'!$A104>0,(VLOOKUP('(1) Inputs'!$A104, PedCol!A93:J7285, 7,)),0) -> 
A98: ='(1) Inputs'!A105 -> 60750352011 | B98: 13950.92 | C98: =IF('(1) Inputs'!$A105>0,(VLOOKUP('(1) Inputs'!$A105,Data,9,)),0) -> 2361.749333 | D98: =IF('(1) Inputs'!$A105>0,(VLOOKUP('(1) Inputs'!$A105,Data,11,)),0) -> 43.94895 | E98: =IF('(1) Inputs'!$A105>0,(VLOOKUP('(1) Inputs'!$A105,IOR,2,)),0) -> 0.2516537226 | G98: =IF('(1) Inputs'!$A105>0,(VLOOKUP('(1) Inputs'!$A105,Data,4,)),0) -> 7.749486 | H98: =IF('(1) Inputs'!$A105>0,(VLOOKUP('(1) Inputs'!$A105,Data,5,)),0) -> 0.285695 | J98: =IF('(1) Inputs'!$A105>0,(VLOOKUP('(1) Inputs'!$A105,Data,7,)),0) -> 0.249983 | K98: =IF(ISERROR(IF('(1) Inputs'!$A105>0,(VLOOKUP('(1) Inputs'!$A105,Data,2,))/(VLOOKUP('(1) Inputs'!$A105,Data,3,)),0)),"-",IF('(1) Inputs'!$A105>0,(VLOOKUP('(1) Inputs'!$A105,Data,2,))/(VLOOKUP('(1) Inputs'!$A105,Data,3,)),0)) -> 37.74749788 | L98: =IF('(1) Inputs'!$A105>0,(VLOOKUP('(1) Inputs'!$A105,Data,6,)),0) -> 0.678526 | M98: =IF('(1) Inputs'!$A105>0,(VLOOKUP('(1) Inputs'!$A105,Data,8,)),0) -> 45.71 | P98: =IF('(1) Inputs'!$A105>0,(VLOOKUP('(1) Inputs'!$A105,Data,15,)),0) -> 56.05105 | Q98: =IF('(1) Inputs'!$A105>0,(VLOOKUP('(1) Inputs'!$A105, DISAGGED_DATA, 20,)),0) ->  | R98: =IF(A98>0, IncDivCalc!F$2, 0) -> 0.3757213373 | S98: =IF('(1) Inputs'!$A105>0,(VLOOKUP('(1) Inputs'!$A105, PedCol!A94:J7286, 4,)),0) ->  | T98: =IF('(1) Inputs'!$A105>0,(VLOOKUP('(1) Inputs'!$A105, PedCol!A94:J7286, 5,)),0) ->  | U98: =IF('(1) Inputs'!$A105>0,(VLOOKUP('(1) Inputs'!$A105, PedCol!A94:J7286, 6,)),0) ->  | V98: =IF('(1) Inputs'!$A105>0,(VLOOKUP('(1) Inputs'!$A105, PedCol!A94:J7286, 7,)),0) -> 
A99: ='(1) Inputs'!A106 -> 60750326023 | B99: 23572.92 | C99: =IF('(1) Inputs'!$A106>0,(VLOOKUP('(1) Inputs'!$A106,Data,9,)),0) -> 2808.789333 | D99: =IF('(1) Inputs'!$A106>0,(VLOOKUP('(1) Inputs'!$A106,Data,11,)),0) -> 31.29675 | E99: =IF('(1) Inputs'!$A106>0,(VLOOKUP('(1) Inputs'!$A106,IOR,2,)),0) -> 0.172551727 | G99: =IF('(1) Inputs'!$A106>0,(VLOOKUP('(1) Inputs'!$A106,Data,4,)),0) -> 2.016443 | H99: =IF('(1) Inputs'!$A106>0,(VLOOKUP('(1) Inputs'!$A106,Data,5,)),0) -> 0 | J99: =IF('(1) Inputs'!$A106>0,(VLOOKUP('(1) Inputs'!$A106,Data,7,)),0) -> 0.533764 | K99: =IF(ISERROR(IF('(1) Inputs'!$A106>0,(VLOOKUP('(1) Inputs'!$A106,Data,2,))/(VLOOKUP('(1) Inputs'!$A106,Data,3,)),0)),"-",IF('(1) Inputs'!$A106>0,(VLOOKUP('(1) Inputs'!$A106,Data,2,))/(VLOOKUP('(1) Inputs'!$A106,Data,3,)),0)) -> 37.33384954 | L99: =IF('(1) Inputs'!$A106>0,(VLOOKUP('(1) Inputs'!$A106,Data,6,)),0) -> 0 | M99: =IF('(1) Inputs'!$A106>0,(VLOOKUP('(1) Inputs'!$A106,Data,8,)),0) -> 69.583 | P99: =IF('(1) Inputs'!$A106>0,(VLOOKUP('(1) Inputs'!$A106,Data,15,)),0) -> 68.70325 | Q99: =IF('(1) Inputs'!$A106>0,(VLOOKUP('(1) Inputs'!$A106, DISAGGED_DATA, 20,)),0) ->  | R99: =IF(A99>0, IncDivCalc!F$2, 0) -> 0.3757213373 | S99: =IF('(1) Inputs'!$A106>0,(VLOOKUP('(1) Inputs'!$A106, PedCol!A95:J7287, 4,)),0) ->  | T99: =IF('(1) Inputs'!$A106>0,(VLOOKUP('(1) Inputs'!$A106, PedCol!A95:J7287, 5,)),0) ->  | U99: =IF('(1) Inputs'!$A106>0,(VLOOKUP('(1) Inputs'!$A106, PedCol!A95:J7287, 6,)),0) ->  | V99: =IF('(1) Inputs'!$A106>0,(VLOOKUP('(1) Inputs'!$A106, PedCol!A95:J7287, 7,)),0) -> 
A100: ='(1) Inputs'!A107 -> 60750329023 | B100: 17736.78 | C100: =IF('(1) Inputs'!$A107>0,(VLOOKUP('(1) Inputs'!$A107,Data,9,)),0) -> 3126.528 | D100: =IF('(1) Inputs'!$A107>0,(VLOOKUP('(1) Inputs'!$A107,Data,11,)),0) -> 38.44581 | E100: =IF('(1) Inputs'!$A107>0,(VLOOKUP('(1) Inputs'!$A107,IOR,2,)),0) -> 0.08813475824 | G100: =IF('(1) Inputs'!$A107>0,(VLOOKUP('(1) Inputs'!$A107,Data,4,)),0) -> 0.940077 | H100: =IF('(1) Inputs'!$A107>0,(VLOOKUP('(1) Inputs'!$A107,Data,5,)),0) -> 0 | J100: =IF('(1) Inputs'!$A107>0,(VLOOKUP('(1) Inputs'!$A107,Data,7,)),0) -> 0 | K100: =IF(ISERROR(IF('(1) Inputs'!$A107>0,(VLOOKUP('(1) Inputs'!$A107,Data,2,))/(VLOOKUP('(1) Inputs'!$A107,Data,3,)),0)),"-",IF('(1) Inputs'!$A107>0,(VLOOKUP('(1) Inputs'!$A107,Data,2,))/(VLOOKUP('(1) Inputs'!$A107,Data,3,)),0)) -> 29.57625328 | L100: =IF('(1) Inputs'!$A107>0,(VLOOKUP('(1) Inputs'!$A107,Data,6,)),0) -> 0 | M100: =IF('(1) Inputs'!$A107>0,(VLOOKUP('(1) Inputs'!$A107,Data,8,)),0) -> 131.123 | P100: =IF('(1) Inputs'!$A107>0,(VLOOKUP('(1) Inputs'!$A107,Data,15,)),0) -> 61.55419 | Q100: =IF('(1) Inputs'!$A107>0,(VLOOKUP('(1) Inputs'!$A107, DISAGGED_DATA, 20,)),0) ->  | R100: =IF(A100>0, IncDivCalc!F$2, 0) -> 0.3757213373 | S100: =IF('(1) Inputs'!$A107>0,(VLOOKUP('(1) Inputs'!$A107, PedCol!A96:J7288, 4,)),0) ->  | T100: =IF('(1) Inputs'!$A107>0,(VLOOKUP('(1) Inputs'!$A107, PedCol!A96:J7288, 5,)),0) ->  | U100: =IF('(1) Inputs'!$A107>0,(VLOOKUP('(1) Inputs'!$A107, PedCol!A96:J7288, 6,)),0) ->  | V100: =IF('(1) Inputs'!$A107>0,(VLOOKUP('(1) Inputs'!$A107, PedCol!A96:J7288, 7,)),0) -> 
A101: ='(1) Inputs'!A108 -> 60750351005 | B101: 14228.74 | C101: =IF('(1) Inputs'!$A108>0,(VLOOKUP('(1) Inputs'!$A108,Data,9,)),0) -> 2870.4 | D101: =IF('(1) Inputs'!$A108>0,(VLOOKUP('(1) Inputs'!$A108,Data,11,)),0) -> 39.69087 | E101: =IF('(1) Inputs'!$A108>0,(VLOOKUP('(1) Inputs'!$A108,IOR,2,)),0) -> 0.1866464818 | G101: =IF('(1) Inputs'!$A108>0,(VLOOKUP('(1) Inputs'!$A108,Data,4,)),0) -> 0.95879 | H101: =IF('(1) Inputs'!$A108>0,(VLOOKUP('(1) Inputs'!$A108,Data,5,)),0) -> 0.191758 | J101: =IF('(1) Inputs'!$A108>0,(VLOOKUP('(1) Inputs'!$A108,Data,7,)),0) -> 0.191758 | K101: =IF(ISERROR(IF('(1) Inputs'!$A108>0,(VLOOKUP('(1) Inputs'!$A108,Data,2,))/(VLOOKUP('(1) Inputs'!$A108,Data,3,)),0)),"-",IF('(1) Inputs'!$A108>0,(VLOOKUP('(1) Inputs'!$A108,Data,2,))/(VLOOKUP('(1) Inputs'!$A108,Data,3,)),0)) -> 31.16067871 | L101: =IF('(1) Inputs'!$A108>0,(VLOOKUP('(1) Inputs'!$A108,Data,6,)),0) -> 0 | M101: =IF('(1) Inputs'!$A108>0,(VLOOKUP('(1) Inputs'!$A108,Data,8,)),0) -> 163.623 | P101: =IF('(1) Inputs'!$A108>0,(VLOOKUP('(1) Inputs'!$A108,Data,15,)),0) -> 60.30913 | Q101: =IF('(1) Inputs'!$A108>0,(VLOOKUP('(1) Inputs'!$A108, DISAGGED_DATA, 20,)),0) ->  | R101: =IF(A101>0, IncDivCalc!F$2, 0) -> 0.3757213373 | S101: =IF('(1) Inputs'!$A108>0,(VLOOKUP('(1) Inputs'!$A108, PedCol!A97:J7289, 4,)),0) -> 1 | T101: =IF('(1) Inputs'!$A108>0,(VLOOKUP('(1) Inputs'!$A108, PedCol!A97:J7289, 5,)),0) -> 975 | U101: =IF('(1) Inputs'!$A108>0,(VLOOKUP('(1) Inputs'!$A108, PedCol!A97:J7289, 6,)),0) -> 537 | V101: =IF('(1) Inputs'!$A108>0,(VLOOKUP('(1) Inputs'!$A108, PedCol!A97:J7289, 7,)),0) -> 0
A102: ='(1) Inputs'!A109 -> 60750328013 | B102: 23934.39 | C102: =IF('(1) Inputs'!$A109>0,(VLOOKUP('(1) Inputs'!$A109,Data,9,)),0) -> 2062.5344 | D102: =IF('(1) Inputs'!$A109>0,(VLOOKUP('(1) Inputs'!$A109,Data,11,)),0) -> 46.48514 | E102: =IF('(1) Inputs'!$A109>0,(VLOOKUP('(1) Inputs'!$A109,IOR,2,)),0) -> 0.1336031178 | G102: =IF('(1) Inputs'!$A109>0,(VLOOKUP('(1) Inputs'!$A109,Data,4,)),0) -> 0.842951 | H102: =IF('(1) Inputs'!$A109>0,(VLOOKUP('(1) Inputs'!$A109,Data,5,)),0) -> 0.103218 | J102: =IF('(1) Inputs'!$A109>0,(VLOOKUP('(1) Inputs'!$A109,Data,7,)),0) -> 0.154828 | K102: =IF(ISERROR(IF('(1) Inputs'!$A109>0,(VLOOKUP('(1) Inputs'!$A109,Data,2,))/(VLOOKUP('(1) Inputs'!$A109,Data,3,)),0)),"-",IF('(1) Inputs'!$A109>0,(VLOOKUP('(1) Inputs'!$A109,Data,2,))/(VLOOKUP('(1) Inputs'!$A109,Data,3,)),0)) -> 20.88453578 | L102: =IF('(1) Inputs'!$A109>0,(VLOOKUP('(1) Inputs'!$A109,Data,6,)),0) -> 0 | M102: =IF('(1) Inputs'!$A109>0,(VLOOKUP('(1) Inputs'!$A109,Data,8,)),0) -> 102.753 | P102: =IF('(1) Inputs'!$A109>0,(VLOOKUP('(1) Inputs'!$A109,Data,15,)),0) -> 53.51486 | Q102: =IF('(1) Inputs'!$A109>0,(VLOOKUP('(1) Inputs'!$A109, DISAGGED_DATA, 20,)),0) ->  | R102: =IF(A102>0, IncDivCalc!F$2, 0) -> 0.3757213373 | S102: =IF('(1) Inputs'!$A109>0,(VLOOKUP('(1) Inputs'!$A109, PedCol!A98:J7290, 4,)),0) -> 1 | T102: =IF('(1) Inputs'!$A109>0,(VLOOKUP('(1) Inputs'!$A109, PedCol!A98:J7290, 5,)),0) -> 1214 | U102: =IF('(1) Inputs'!$A109>0,(VLOOKUP('(1) Inputs'!$A109, PedCol!A98:J7290, 6,)),0) -> 449 | V102: =IF('(1) Inputs'!$A109>0,(VLOOKUP('(1) Inputs'!$A109, PedCol!A98:J7290, 7,)),0) -> 0
A103: ='(1) Inputs'!A110 -> 60750329022 | B103: 16812.08 | C103: =IF('(1) Inputs'!$A110>0,(VLOOKUP('(1) Inputs'!$A110,Data,9,)),0) -> 2205.397333 | D103: =IF('(1) Inputs'!$A110>0,(VLOOKUP('(1) Inputs'!$A110,Data,11,)),0) -> 36.64748 | E103: =IF('(1) Inputs'!$A110>0,(VLOOKUP('(1) Inputs'!$A110,IOR,2,)),0) -> 0.231239919 | G103: =IF('(1) Inputs'!$A110>0,(VLOOKUP('(1) Inputs'!$A110,Data,4,)),0) -> 4.543808 | H103: =IF('(1) Inputs'!$A110>0,(VLOOKUP('(1) Inputs'!$A110,Data,5,)),0) -> 0.745281 | J103: =IF('(1) Inputs'!$A110>0,(VLOOKUP('(1) Inputs'!$A110,Data,7,)),0) -> 0.625074 | K103: =IF(ISERROR(IF('(1) Inputs'!$A110>0,(VLOOKUP('(1) Inputs'!$A110,Data,2,))/(VLOOKUP('(1) Inputs'!$A110,Data,3,)),0)),"-",IF('(1) Inputs'!$A110>0,(VLOOKUP('(1) Inputs'!$A110,Data,2,))/(VLOOKUP('(1) Inputs'!$A110,Data,3,)),0)) -> 32.64809988 | L103: =IF('(1) Inputs'!$A110>0,(VLOOKUP('(1) Inputs'!$A110,Data,6,)),0) -> 0.649115 | M103: =IF('(1) Inputs'!$A110>0,(VLOOKUP('(1) Inputs'!$A110,Data,8,)),0) -> 176.95 | P103: =IF('(1) Inputs'!$A110>0,(VLOOKUP('(1) Inputs'!$A110,Data,15,)),0) -> 63.35252 | Q103: =IF('(1) Inputs'!$A110>0,(VLOOKUP('(1) Inputs'!$A110, DISAGGED_DATA, 20,)),0) ->  | R103: =IF(A103>0, IncDivCalc!F$2, 0) -> 0.3757213373 | S103: =IF('(1) Inputs'!$A110>0,(VLOOKUP('(1) Inputs'!$A110, PedCol!A99:J7291, 4,)),0) ->  | T103: =IF('(1) Inputs'!$A110>0,(VLOOKUP('(1) Inputs'!$A110, PedCol!A99:J7291, 5,)),0) ->  | U103: =IF('(1) Inputs'!$A110>0,(VLOOKUP('(1) Inputs'!$A110, PedCol!A99:J7291, 6,)),0) ->  | V103: =IF('(1) Inputs'!$A110>0,(VLOOKUP('(1) Inputs'!$A110, PedCol!A99:J7291, 7,)),0) -> 
A104: ='(1) Inputs'!A111 -> 60750328022 | B104: 23617.51 | C104: =IF('(1) Inputs'!$A111>0,(VLOOKUP('(1) Inputs'!$A111,Data,9,)),0) -> 2476.437333 | D104: =IF('(1) Inputs'!$A111>0,(VLOOKUP('(1) Inputs'!$A111,Data,11,)),0) -> 41.55494 | E104: =IF('(1) Inputs'!$A111>0,(VLOOKUP('(1) Inputs'!$A111,IOR,2,)),0) -> 0.1039673478 | G104: =IF('(1) Inputs'!$A111>0,(VLOOKUP('(1) Inputs'!$A111,Data,4,)),0) -> 13.424228 | H104: =IF('(1) Inputs'!$A111>0,(VLOOKUP('(1) Inputs'!$A111,Data,5,)),0) -> 0.850508 | J104: =IF('(1) Inputs'!$A111>0,(VLOOKUP('(1) Inputs'!$A111,Data,7,)),0) -> 1.241281 | K104: =IF(ISERROR(IF('(1) Inputs'!$A111>0,(VLOOKUP('(1) Inputs'!$A111,Data,2,))/(VLOOKUP('(1) Inputs'!$A111,Data,3,)),0)),"-",IF('(1) Inputs'!$A111>0,(VLOOKUP('(1) Inputs'!$A111,Data,2,))/(VLOOKUP('(1) Inputs'!$A111,Data,3,)),0)) -> 32.22734169 | L104: =IF('(1) Inputs'!$A111>0,(VLOOKUP('(1) Inputs'!$A111,Data,6,)),0) -> 1.287255 | M104: =IF('(1) Inputs'!$A111>0,(VLOOKUP('(1) Inputs'!$A111,Data,8,)),0) -> 112.792 | P104: =IF('(1) Inputs'!$A111>0,(VLOOKUP('(1) Inputs'!$A111,Data,15,)),0) -> 58.44506 | Q104: =IF('(1) Inputs'!$A111>0,(VLOOKUP('(1) Inputs'!$A111, DISAGGED_DATA, 20,)),0) ->  | R104: =IF(A104>0, IncDivCalc!F$2, 0) -> 0.3757213373 | S104: =IF('(1) Inputs'!$A111>0,(VLOOKUP('(1) Inputs'!$A111, PedCol!A100:J7292, 4,)),0) -> 1 | T104: =IF('(1) Inputs'!$A111>0,(VLOOKUP('(1) Inputs'!$A111, PedCol!A100:J7292, 5,)),0) -> 1402 | U104: =IF('(1) Inputs'!$A111>0,(VLOOKUP('(1) Inputs'!$A111, PedCol!A100:J7292, 6,)),0) -> 898 | V104: =IF('(1) Inputs'!$A111>0,(VLOOKUP('(1) Inputs'!$A111, PedCol!A100:J7292, 7,)),0) -> 38
A105: ='(1) Inputs'!A112 -> 60750352012 | B105: 14080.52 | C105: =IF('(1) Inputs'!$A112>0,(VLOOKUP('(1) Inputs'!$A112,Data,9,)),0) -> 584.277333 | D105: =IF('(1) Inputs'!$A112>0,(VLOOKUP('(1) Inputs'!$A112,Data,11,)),0) -> 38.90817 | E105: =IF('(1) Inputs'!$A112>0,(VLOOKUP('(1) Inputs'!$A112,IOR,2,)),0) -> 0.1291460305 | G105: =IF('(1) Inputs'!$A112>0,(VLOOKUP('(1) Inputs'!$A112,Data,4,)),0) -> 0.6766 | H105: =IF('(1) Inputs'!$A112>0,(VLOOKUP('(1) Inputs'!$A112,Data,5,)),0) -> 0.054128 | J105: =IF('(1) Inputs'!$A112>0,(VLOOKUP('(1) Inputs'!$A112,Data,7,)),0) -> 0 | K105: =IF(ISERROR(IF('(1) Inputs'!$A112>0,(VLOOKUP('(1) Inputs'!$A112,Data,2,))/(VLOOKUP('(1) Inputs'!$A112,Data,3,)),0)),"-",IF('(1) Inputs'!$A112>0,(VLOOKUP('(1) Inputs'!$A112,Data,2,))/(VLOOKUP('(1) Inputs'!$A112,Data,3,)),0)) -> 4.508827524 | L105: =IF('(1) Inputs'!$A112>0,(VLOOKUP('(1) Inputs'!$A112,Data,6,)),0) -> 0 | M105: =IF('(1) Inputs'!$A112>0,(VLOOKUP('(1) Inputs'!$A112,Data,8,)),0) -> 120.707 | P105: =IF('(1) Inputs'!$A112>0,(VLOOKUP('(1) Inputs'!$A112,Data,15,)),0) -> 61.09183 | Q105: =IF('(1) Inputs'!$A112>0,(VLOOKUP('(1) Inputs'!$A112, DISAGGED_DATA, 20,)),0) ->  | R105: =IF(A105>0, IncDivCalc!F$2, 0) -> 0.3757213373 | S105: =IF('(1) Inputs'!$A112>0,(VLOOKUP('(1) Inputs'!$A112, PedCol!A101:J7293, 4,)),0) ->  | T105: =IF('(1) Inputs'!$A112>0,(VLOOKUP('(1) Inputs'!$A112, PedCol!A101:J7293, 5,)),0) ->  | U105: =IF('(1) Inputs'!$A112>0,(VLOOKUP('(1) Inputs'!$A112, PedCol!A101:J7293, 6,)),0) ->  | V105: =IF('(1) Inputs'!$A112>0,(VLOOKUP('(1) Inputs'!$A112, PedCol!A101:J7293, 7,)),0) -> 
A106: ='(1) Inputs'!A113 -> 60750303021 | B106: 25926.05 | C106: =IF('(1) Inputs'!$A113>0,(VLOOKUP('(1) Inputs'!$A113,Data,9,)),0) -> 1207.982933 | D106: =IF('(1) Inputs'!$A113>0,(VLOOKUP('(1) Inputs'!$A113,Data,11,)),0) -> 38.26126 | E106: =IF('(1) Inputs'!$A113>0,(VLOOKUP('(1) Inputs'!$A113,IOR,2,)),0) -> 0.148875584 | G106: =IF('(1) Inputs'!$A113>0,(VLOOKUP('(1) Inputs'!$A113,Data,4,)),0) -> 1.031362 | H106: =IF('(1) Inputs'!$A113>0,(VLOOKUP('(1) Inputs'!$A113,Data,5,)),0) -> 0.526653 | J106: =IF('(1) Inputs'!$A113>0,(VLOOKUP('(1) Inputs'!$A113,Data,7,)),0) -> 0.043888 | K106: =IF(ISERROR(IF('(1) Inputs'!$A113>0,(VLOOKUP('(1) Inputs'!$A113,Data,2,))/(VLOOKUP('(1) Inputs'!$A113,Data,3,)),0)),"-",IF('(1) Inputs'!$A113>0,(VLOOKUP('(1) Inputs'!$A113,Data,2,))/(VLOOKUP('(1) Inputs'!$A113,Data,3,)),0)) -> 27.75016209 | L106: =IF('(1) Inputs'!$A113>0,(VLOOKUP('(1) Inputs'!$A113,Data,6,)),0) -> 0 | M106: =IF('(1) Inputs'!$A113>0,(VLOOKUP('(1) Inputs'!$A113,Data,8,)),0) -> 149.863 | P106: =IF('(1) Inputs'!$A113>0,(VLOOKUP('(1) Inputs'!$A113,Data,15,)),0) -> 61.73874 | Q106: =IF('(1) Inputs'!$A113>0,(VLOOKUP('(1) Inputs'!$A113, DISAGGED_DATA, 20,)),0) ->  | R106: =IF(A106>0, IncDivCalc!F$2, 0) -> 0.3757213373 | S106: =IF('(1) Inputs'!$A113>0,(VLOOKUP('(1) Inputs'!$A113, PedCol!A102:J7294, 4,)),0) -> 1 | T106: =IF('(1) Inputs'!$A113>0,(VLOOKUP('(1) Inputs'!$A113, PedCol!A102:J7294, 5,)),0) -> 1284 | U106: =IF('(1) Inputs'!$A113>0,(VLOOKUP('(1) Inputs'!$A113, PedCol!A102:J7294, 6,)),0) -> 621 | V106: =IF('(1) Inputs'!$A113>0,(VLOOKUP('(1) Inputs'!$A113, PedCol!A102:J7294, 7,)),0) -> 23
A107: ='(1) Inputs'!A114 -> 60750327005 | B107: 16211.72 | C107: =IF('(1) Inputs'!$A114>0,(VLOOKUP('(1) Inputs'!$A114,Data,9,)),0) -> 2209.173333 | D107: =IF('(1) Inputs'!$A114>0,(VLOOKUP('(1) Inputs'!$A114,Data,11,)),0) -> 44.94096 | E107: =IF('(1) Inputs'!$A114>0,(VLOOKUP('(1) Inputs'!$A114,IOR,2,)),0) -> 0.1962259134 | G107: =IF('(1) Inputs'!$A114>0,(VLOOKUP('(1) Inputs'!$A114,Data,4,)),0) -> 0.578532 | H107: =IF('(1) Inputs'!$A114>0,(VLOOKUP('(1) Inputs'!$A114,Data,5,)),0) -> 0 | J107: =IF('(1) Inputs'!$A114>0,(VLOOKUP('(1) Inputs'!$A114,Data,7,)),0) -> 0.123971 | K107: =IF(ISERROR(IF('(1) Inputs'!$A114>0,(VLOOKUP('(1) Inputs'!$A114,Data,2,))/(VLOOKUP('(1) Inputs'!$A114,Data,3,)),0)),"-",IF('(1) Inputs'!$A114>0,(VLOOKUP('(1) Inputs'!$A114,Data,2,))/(VLOOKUP('(1) Inputs'!$A114,Data,3,)),0)) -> 26.78633069 | L107: =IF('(1) Inputs'!$A114>0,(VLOOKUP('(1) Inputs'!$A114,Data,6,)),0) -> 0 | M107: =IF('(1) Inputs'!$A114>0,(VLOOKUP('(1) Inputs'!$A114,Data,8,)),0) -> 169.386 | P107: =IF('(1) Inputs'!$A114>0,(VLOOKUP('(1) Inputs'!$A114,Data,15,)),0) -> 55.05904 | Q107: =IF('(1) Inputs'!$A114>0,(VLOOKUP('(1) Inputs'!$A114, DISAGGED_DATA, 20,)),0) ->  | R107: =IF(A107>0, IncDivCalc!F$2, 0) -> 0.3757213373 | S107: =IF('(1) Inputs'!$A114>0,(VLOOKUP('(1) Inputs'!$A114, PedCol!A103:J7295, 4,)),0) ->  | T107: =IF('(1) Inputs'!$A114>0,(VLOOKUP('(1) Inputs'!$A114, PedCol!A103:J7295, 5,)),0) ->  | U107: =IF('(1) Inputs'!$A114>0,(VLOOKUP('(1) Inputs'!$A114, PedCol!A103:J7295, 6,)),0) ->  | V107: =IF('(1) Inputs'!$A114>0,(VLOOKUP('(1) Inputs'!$A114, PedCol!A103:J7295, 7,)),0) -> 
A108: ='(1) Inputs'!A115 -> 60750351007 | B108: 14135.06 | C108: =IF('(1) Inputs'!$A115>0,(VLOOKUP('(1) Inputs'!$A115,Data,9,)),0) -> 2813.141333 | D108: =IF('(1) Inputs'!$A115>0,(VLOOKUP('(1) Inputs'!$A115,Data,11,)),0) -> 43.69168 | E108: =IF('(1) Inputs'!$A115>0,(VLOOKUP('(1) Inputs'!$A115,IOR,2,)),0) -> 0.151808115 | G108: =IF('(1) Inputs'!$A115>0,(VLOOKUP('(1) Inputs'!$A115,Data,4,)),0) -> 1.027526 | H108: =IF('(1) Inputs'!$A115>0,(VLOOKUP('(1) Inputs'!$A115,Data,5,)),0) -> 0 | J108: =IF('(1) Inputs'!$A115>0,(VLOOKUP('(1) Inputs'!$A115,Data,7,)),0) -> 0.024465 | K108: =IF(ISERROR(IF('(1) Inputs'!$A115>0,(VLOOKUP('(1) Inputs'!$A115,Data,2,))/(VLOOKUP('(1) Inputs'!$A115,Data,3,)),0)),"-",IF('(1) Inputs'!$A115>0,(VLOOKUP('(1) Inputs'!$A115,Data,2,))/(VLOOKUP('(1) Inputs'!$A115,Data,3,)),0)) -> 34.78908189 | L108: =IF('(1) Inputs'!$A115>0,(VLOOKUP('(1) Inputs'!$A115,Data,6,)),0) -> 0.04893 | M108: =IF('(1) Inputs'!$A115>0,(VLOOKUP('(1) Inputs'!$A115,Data,8,)),0) -> 125.269 | P108: =IF('(1) Inputs'!$A115>0,(VLOOKUP('(1) Inputs'!$A115,Data,15,)),0) -> 56.30832 | Q108: =IF('(1) Inputs'!$A115>0,(VLOOKUP('(1) Inputs'!$A115, DISAGGED_DATA, 20,)),0) ->  | R108: =IF(A108>0, IncDivCalc!F$2, 0) -> 0.3757213373 | S108: =IF('(1) Inputs'!$A115>0,(VLOOKUP('(1) Inputs'!$A115, PedCol!A104:J7296, 4,)),0) ->  | T108: =IF('(1) Inputs'!$A115>0,(VLOOKUP('(1) Inputs'!$A115, PedCol!A104:J7296, 5,)),0) ->  | U108: =IF('(1) Inputs'!$A115>0,(VLOOKUP('(1) Inputs'!$A115, PedCol!A104:J7296, 6,)),0) ->  | V108: =IF('(1) Inputs'!$A115>0,(VLOOKUP('(1) Inputs'!$A115, PedCol!A104:J7296, 7,)),0) -> 
A109: ='(1) Inputs'!A116 -> 60750329011 | B109: 21039.34 | C109: =IF('(1) Inputs'!$A116>0,(VLOOKUP('(1) Inputs'!$A116,Data,9,)),0) -> 2122.082133 | D109: =IF('(1) Inputs'!$A116>0,(VLOOKUP('(1) Inputs'!$A116,Data,11,)),0) -> 43.56965 | E109: =IF('(1) Inputs'!$A116>0,(VLOOKUP('(1) Inputs'!$A116,IOR,2,)),0) -> 0.2004325202 | G109: =IF('(1) Inputs'!$A116>0,(VLOOKUP('(1) Inputs'!$A116,Data,4,)),0) -> 0.915244 | H109: =IF('(1) Inputs'!$A116>0,(VLOOKUP('(1) Inputs'!$A116,Data,5,)),0) -> 0 | J109: =IF('(1) Inputs'!$A116>0,(VLOOKUP('(1) Inputs'!$A116,Data,7,)),0) -> 0 | K109: =IF(ISERROR(IF('(1) Inputs'!$A116>0,(VLOOKUP('(1) Inputs'!$A116,Data,2,))/(VLOOKUP('(1) Inputs'!$A116,Data,3,)),0)),"-",IF('(1) Inputs'!$A116>0,(VLOOKUP('(1) Inputs'!$A116,Data,2,))/(VLOOKUP('(1) Inputs'!$A116,Data,3,)),0)) -> 27.98721153 | L109: =IF('(1) Inputs'!$A116>0,(VLOOKUP('(1) Inputs'!$A116,Data,6,)),0) -> 0.096342 | M109: =IF('(1) Inputs'!$A116>0,(VLOOKUP('(1) Inputs'!$A116,Data,8,)),0) -> 146.434 | P109: =IF('(1) Inputs'!$A116>0,(VLOOKUP('(1) Inputs'!$A116,Data,15,)),0) -> 56.43035 | Q109: =IF('(1) Inputs'!$A116>0,(VLOOKUP('(1) Inputs'!$A116, DISAGGED_DATA, 20,)),0) ->  | R109: =IF(A109>0, IncDivCalc!F$2, 0) -> 0.3757213373 | S109: =IF('(1) Inputs'!$A116>0,(VLOOKUP('(1) Inputs'!$A116, PedCol!A105:J7297, 4,)),0) ->  | T109: =IF('(1) Inputs'!$A116>0,(VLOOKUP('(1) Inputs'!$A116, PedCol!A105:J7297, 5,)),0) ->  | U109: =IF('(1) Inputs'!$A116>0,(VLOOKUP('(1) Inputs'!$A116, PedCol!A105:J7297, 6,)),0) ->  | V109: =IF('(1) Inputs'!$A116>0,(VLOOKUP('(1) Inputs'!$A116, PedCol!A105:J7297, 7,)),0) -> 
A110: ='(1) Inputs'!A117 -> 60750326021 | B110: 23027.77 | C110: =IF('(1) Inputs'!$A117>0,(VLOOKUP('(1) Inputs'!$A117,Data,9,)),0) -> 2764.544 | D110: =IF('(1) Inputs'!$A117>0,(VLOOKUP('(1) Inputs'!$A117,Data,11,)),0) -> 27.37036 | E110: =IF('(1) Inputs'!$A117>0,(VLOOKUP('(1) Inputs'!$A117,IOR,2,)),0) -> 0.08571024091 | G110: =IF('(1) Inputs'!$A117>0,(VLOOKUP('(1) Inputs'!$A117,Data,4,)),0) -> 3.232954 | H110: =IF('(1) Inputs'!$A117>0,(VLOOKUP('(1) Inputs'!$A117,Data,5,)),0) -> 0.226513 | J110: =IF('(1) Inputs'!$A117>0,(VLOOKUP('(1) Inputs'!$A117,Data,7,)),0) -> 0.185329 | K110: =IF(ISERROR(IF('(1) Inputs'!$A117>0,(VLOOKUP('(1) Inputs'!$A117,Data,2,))/(VLOOKUP('(1) Inputs'!$A117,Data,3,)),0)),"-",IF('(1) Inputs'!$A117>0,(VLOOKUP('(1) Inputs'!$A117,Data,2,))/(VLOOKUP('(1) Inputs'!$A117,Data,3,)),0)) -> 37.03096166 | L110: =IF('(1) Inputs'!$A117>0,(VLOOKUP('(1) Inputs'!$A117,Data,6,)),0) -> 0.247105 | M110: =IF('(1) Inputs'!$A117>0,(VLOOKUP('(1) Inputs'!$A117,Data,8,)),0) -> 113.734 | P110: =IF('(1) Inputs'!$A117>0,(VLOOKUP('(1) Inputs'!$A117,Data,15,)),0) -> 72.62964 | Q110: =IF('(1) Inputs'!$A117>0,(VLOOKUP('(1) Inputs'!$A117, DISAGGED_DATA, 20,)),0) ->  | R110: =IF(A110>0, IncDivCalc!F$2, 0) -> 0.3757213373 | S110: =IF('(1) Inputs'!$A117>0,(VLOOKUP('(1) Inputs'!$A117, PedCol!A106:J7298, 4,)),0) -> 1 | T110: =IF('(1) Inputs'!$A117>0,(VLOOKUP('(1) Inputs'!$A117, PedCol!A106:J7298, 5,)),0) -> 1806 | U110: =IF('(1) Inputs'!$A117>0,(VLOOKUP('(1) Inputs'!$A117, PedCol!A106:J7298, 6,)),0) -> 629 | V110: =IF('(1) Inputs'!$A117>0,(VLOOKUP('(1) Inputs'!$A117, PedCol!A106:J7298, 7,)),0) -> 15
A111: ='(1) Inputs'!A118 -> 60750353001 | B111: 19285.8 | C111: =IF('(1) Inputs'!$A118>0,(VLOOKUP('(1) Inputs'!$A118,Data,9,)),0) -> 1773.218133 | D111: =IF('(1) Inputs'!$A118>0,(VLOOKUP('(1) Inputs'!$A118,Data,11,)),0) -> 32.38426 | E111: =IF('(1) Inputs'!$A118>0,(VLOOKUP('(1) Inputs'!$A118,IOR,2,)),0) -> 0.2698068155 | G111: =IF('(1) Inputs'!$A118>0,(VLOOKUP('(1) Inputs'!$A118,Data,4,)),0) -> 4.741489 | H111: =IF('(1) Inputs'!$A118>0,(VLOOKUP('(1) Inputs'!$A118,Data,5,)),0) -> 0 | J111: =IF('(1) Inputs'!$A118>0,(VLOOKUP('(1) Inputs'!$A118,Data,7,)),0) -> 0 | K111: =IF(ISERROR(IF('(1) Inputs'!$A118>0,(VLOOKUP('(1) Inputs'!$A118,Data,2,))/(VLOOKUP('(1) Inputs'!$A118,Data,3,)),0)),"-",IF('(1) Inputs'!$A118>0,(VLOOKUP('(1) Inputs'!$A118,Data,2,))/(VLOOKUP('(1) Inputs'!$A118,Data,3,)),0)) -> 11.47120541 | L111: =IF('(1) Inputs'!$A118>0,(VLOOKUP('(1) Inputs'!$A118,Data,6,)),0) -> 0 | M111: =IF('(1) Inputs'!$A118>0,(VLOOKUP('(1) Inputs'!$A118,Data,8,)),0) -> 121.87 | P111: =IF('(1) Inputs'!$A118>0,(VLOOKUP('(1) Inputs'!$A118,Data,15,)),0) -> 67.61574 | Q111: =IF('(1) Inputs'!$A118>0,(VLOOKUP('(1) Inputs'!$A118, DISAGGED_DATA, 20,)),0) ->  | R111: =IF(A111>0, IncDivCalc!F$2, 0) -> 0.3757213373 | S111: =IF('(1) Inputs'!$A118>0,(VLOOKUP('(1) Inputs'!$A118, PedCol!A107:J7299, 4,)),0) -> 3 | T111: =IF('(1) Inputs'!$A118>0,(VLOOKUP('(1) Inputs'!$A118, PedCol!A107:J7299, 5,)),0) -> 984 | U111: =IF('(1) Inputs'!$A118>0,(VLOOKUP('(1) Inputs'!$A118, PedCol!A107:J7299, 6,)),0) -> 516 | V111: =IF('(1) Inputs'!$A118>0,(VLOOKUP('(1) Inputs'!$A118, PedCol!A107:J7299, 7,)),0) -> 19
A112: ='(1) Inputs'!A119 -> 60750328021 | B112: 20970.23 | C112: =IF('(1) Inputs'!$A119>0,(VLOOKUP('(1) Inputs'!$A119,Data,9,)),0) -> 1499.3664 | D112: =IF('(1) Inputs'!$A119>0,(VLOOKUP('(1) Inputs'!$A119,Data,11,)),0) -> 39.04221 | E112: =IF('(1) Inputs'!$A119>0,(VLOOKUP('(1) Inputs'!$A119,IOR,2,)),0) -> 0.2182548937 | G112: =IF('(1) Inputs'!$A119>0,(VLOOKUP('(1) Inputs'!$A119,Data,4,)),0) -> 1.624887 | H112: =IF('(1) Inputs'!$A119>0,(VLOOKUP('(1) Inputs'!$A119,Data,5,)),0) -> 0.090272 | J112: =IF('(1) Inputs'!$A119>0,(VLOOKUP('(1) Inputs'!$A119,Data,7,)),0) -> 0.038688 | K112: =IF(ISERROR(IF('(1) Inputs'!$A119>0,(VLOOKUP('(1) Inputs'!$A119,Data,2,))/(VLOOKUP('(1) Inputs'!$A119,Data,3,)),0)),"-",IF('(1) Inputs'!$A119>0,(VLOOKUP('(1) Inputs'!$A119,Data,2,))/(VLOOKUP('(1) Inputs'!$A119,Data,3,)),0)) -> 17.04842259 | L112: =IF('(1) Inputs'!$A119>0,(VLOOKUP('(1) Inputs'!$A119,Data,6,)),0) -> 0.606109 | M112: =IF('(1) Inputs'!$A119>0,(VLOOKUP('(1) Inputs'!$A119,Data,8,)),0) -> 96.2977 | P112: =IF('(1) Inputs'!$A119>0,(VLOOKUP('(1) Inputs'!$A119,Data,15,)),0) -> 60.95779 | Q112: =IF('(1) Inputs'!$A119>0,(VLOOKUP('(1) Inputs'!$A119, DISAGGED_DATA, 20,)),0) ->  | R112: =IF(A112>0, IncDivCalc!F$2, 0) -> 0.3757213373 | S112: =IF('(1) Inputs'!$A119>0,(VLOOKUP('(1) Inputs'!$A119, PedCol!A108:J7300, 4,)),0) -> 2 | T112: =IF('(1) Inputs'!$A119>0,(VLOOKUP('(1) Inputs'!$A119, PedCol!A108:J7300, 5,)),0) -> 1322 | U112: =IF('(1) Inputs'!$A119>0,(VLOOKUP('(1) Inputs'!$A119, PedCol!A108:J7300, 6,)),0) -> 283 | V112: =IF('(1) Inputs'!$A119>0,(VLOOKUP('(1) Inputs'!$A119, PedCol!A108:J7300, 7,)),0) -> 0
A113: ='(1) Inputs'!A120 -> 60750352013 | B113: 13335.31 | C113: =IF('(1) Inputs'!$A120>0,(VLOOKUP('(1) Inputs'!$A120,Data,9,)),0) -> 1857.2992 | D113: =IF('(1) Inputs'!$A120>0,(VLOOKUP('(1) Inputs'!$A120,Data,11,)),0) -> 41.69629 | E113: =IF('(1) Inputs'!$A120>0,(VLOOKUP('(1) Inputs'!$A120,IOR,2,)),0) -> 0.1912643054 | G113: =IF('(1) Inputs'!$A120>0,(VLOOKUP('(1) Inputs'!$A120,Data,4,)),0) -> 1.174632 | H113: =IF('(1) Inputs'!$A120>0,(VLOOKUP('(1) Inputs'!$A120,Data,5,)),0) -> 0 | J113: =IF('(1) Inputs'!$A120>0,(VLOOKUP('(1) Inputs'!$A120,Data,7,)),0) -> 0.138192 | K113: =IF(ISERROR(IF('(1) Inputs'!$A120>0,(VLOOKUP('(1) Inputs'!$A120,Data,2,))/(VLOOKUP('(1) Inputs'!$A120,Data,3,)),0)),"-",IF('(1) Inputs'!$A120>0,(VLOOKUP('(1) Inputs'!$A120,Data,2,))/(VLOOKUP('(1) Inputs'!$A120,Data,3,)),0)) -> 36.5172229 | L113: =IF('(1) Inputs'!$A120>0,(VLOOKUP('(1) Inputs'!$A120,Data,6,)),0) -> 0 | M113: =IF('(1) Inputs'!$A120>0,(VLOOKUP('(1) Inputs'!$A120,Data,8,)),0) -> 125.307 | P113: =IF('(1) Inputs'!$A120>0,(VLOOKUP('(1) Inputs'!$A120,Data,15,)),0) -> 58.30371 | Q113: =IF('(1) Inputs'!$A120>0,(VLOOKUP('(1) Inputs'!$A120, DISAGGED_DATA, 20,)),0) ->  | R113: =IF(A113>0, IncDivCalc!F$2, 0) -> 0.3757213373 | S113: =IF('(1) Inputs'!$A120>0,(VLOOKUP('(1) Inputs'!$A120, PedCol!A109:J7301, 4,)),0) -> 1 | T113: =IF('(1) Inputs'!$A120>0,(VLOOKUP('(1) Inputs'!$A120, PedCol!A109:J7301, 5,)),0) -> 1057 | U113: =IF('(1) Inputs'!$A120>0,(VLOOKUP('(1) Inputs'!$A120, PedCol!A109:J7301, 6,)),0) -> 296 | V113: =IF('(1) Inputs'!$A120>0,(VLOOKUP('(1) Inputs'!$A120, PedCol!A109:J7301, 7,)),0) -> 15
A114: ='(1) Inputs'!A121 -> 60750303014 | B114: 26261.78 | C114: =IF('(1) Inputs'!$A121>0,(VLOOKUP('(1) Inputs'!$A121,Data,9,)),0) -> 2377.088 | D114: =IF('(1) Inputs'!$A121>0,(VLOOKUP('(1) Inputs'!$A121,Data,11,)),0) -> 38.90382 | E114: =IF('(1) Inputs'!$A121>0,(VLOOKUP('(1) Inputs'!$A121,IOR,2,)),0) -> 0.1403245887 | G114: =IF('(1) Inputs'!$A121>0,(VLOOKUP('(1) Inputs'!$A121,Data,4,)),0) -> 1.793036 | H114: =IF('(1) Inputs'!$A121>0,(VLOOKUP('(1) Inputs'!$A121,Data,5,)),0) -> 0.047185 | J114: =IF('(1) Inputs'!$A121>0,(VLOOKUP('(1) Inputs'!$A121,Data,7,)),0) -> 0 | K114: =IF(ISERROR(IF('(1) Inputs'!$A121>0,(VLOOKUP('(1) Inputs'!$A121,Data,2,))/(VLOOKUP('(1) Inputs'!$A121,Data,3,)),0)),"-",IF('(1) Inputs'!$A121>0,(VLOOKUP('(1) Inputs'!$A121,Data,2,))/(VLOOKUP('(1) Inputs'!$A121,Data,3,)),0)) -> 21.77876823 | L114: =IF('(1) Inputs'!$A121>0,(VLOOKUP('(1) Inputs'!$A121,Data,6,)),0) -> 0.353889 | M114: =IF('(1) Inputs'!$A121>0,(VLOOKUP('(1) Inputs'!$A121,Data,8,)),0) -> 211.823 | P114: =IF('(1) Inputs'!$A121>0,(VLOOKUP('(1) Inputs'!$A121,Data,15,)),0) -> 61.09618 | Q114: =IF('(1) Inputs'!$A121>0,(VLOOKUP('(1) Inputs'!$A121, DISAGGED_DATA, 20,)),0) ->  | R114: =IF(A114>0, IncDivCalc!F$2, 0) -> 0.3757213373 | S114: =IF('(1) Inputs'!$A121>0,(VLOOKUP('(1) Inputs'!$A121, PedCol!A110:J7302, 4,)),0) ->  | T114: =IF('(1) Inputs'!$A121>0,(VLOOKUP('(1) Inputs'!$A121, PedCol!A110:J7302, 5,)),0) ->  | U114: =IF('(1) Inputs'!$A121>0,(VLOOKUP('(1) Inputs'!$A121, PedCol!A110:J7302, 6,)),0) ->  | V114: =IF('(1) Inputs'!$A121>0,(VLOOKUP('(1) Inputs'!$A121, PedCol!A110:J7302, 7,)),0) -> 
A115: ='(1) Inputs'!A122 -> 60750351006 | B115: 15417.05 | C115: =IF('(1) Inputs'!$A122>0,(VLOOKUP('(1) Inputs'!$A122,Data,9,)),0) -> 3285.504 | D115: =IF('(1) Inputs'!$A122>0,(VLOOKUP('(1) Inputs'!$A122,Data,11,)),0) -> 29.18689 | E115: =IF('(1) Inputs'!$A122>0,(VLOOKUP('(1) Inputs'!$A122,IOR,2,)),0) -> 0.1389020484 | G115: =IF('(1) Inputs'!$A122>0,(VLOOKUP('(1) Inputs'!$A122,Data,4,)),0) -> 3.034953 | H115: =IF('(1) Inputs'!$A122>0,(VLOOKUP('(1) Inputs'!$A122,Data,5,)),0) -> 0 | J115: =IF('(1) Inputs'!$A122>0,(VLOOKUP('(1) Inputs'!$A122,Data,7,)),0) -> 0 | K115: =IF(ISERROR(IF('(1) Inputs'!$A122>0,(VLOOKUP('(1) Inputs'!$A122,Data,2,))/(VLOOKUP('(1) Inputs'!$A122,Data,3,)),0)),"-",IF('(1) Inputs'!$A122>0,(VLOOKUP('(1) Inputs'!$A122,Data,2,))/(VLOOKUP('(1) Inputs'!$A122,Data,3,)),0)) -> 31.02755146 | L115: =IF('(1) Inputs'!$A122>0,(VLOOKUP('(1) Inputs'!$A122,Data,6,)),0) -> 1.130036 | M115: =IF('(1) Inputs'!$A122>0,(VLOOKUP('(1) Inputs'!$A122,Data,8,)),0) -> 51.66 | P115: =IF('(1) Inputs'!$A122>0,(VLOOKUP('(1) Inputs'!$A122,Data,15,)),0) -> 70.81311 | Q115: =IF('(1) Inputs'!$A122>0,(VLOOKUP('(1) Inputs'!$A122, DISAGGED_DATA, 20,)),0) ->  | R115: =IF(A115>0, IncDivCalc!F$2, 0) -> 0.3757213373 | S115: =IF('(1) Inputs'!$A122>0,(VLOOKUP('(1) Inputs'!$A122, PedCol!A111:J7303, 4,)),0) -> 2 | T115: =IF('(1) Inputs'!$A122>0,(VLOOKUP('(1) Inputs'!$A122, PedCol!A111:J7303, 5,)),0) -> 961 | U115: =IF('(1) Inputs'!$A122>0,(VLOOKUP('(1) Inputs'!$A122, PedCol!A111:J7303, 6,)),0) -> 712 | V115: =IF('(1) Inputs'!$A122>0,(VLOOKUP('(1) Inputs'!$A122, PedCol!A111:J7303, 7,)),0) -> 0
A116: ='(1) Inputs'!A123 -> 60750327006 | B116: 17674.24 | C116: =IF('(1) Inputs'!$A123>0,(VLOOKUP('(1) Inputs'!$A123,Data,9,)),0) -> 3237.994667 | D116: =IF('(1) Inputs'!$A123>0,(VLOOKUP('(1) Inputs'!$A123,Data,11,)),0) -> 48.11228 | E116: =IF('(1) Inputs'!$A123>0,(VLOOKUP('(1) Inputs'!$A123,IOR,2,)),0) -> 0.09563904433 | G116: =IF('(1) Inputs'!$A123>0,(VLOOKUP('(1) Inputs'!$A123,Data,4,)),0) -> 0.684261 | H116: =IF('(1) Inputs'!$A123>0,(VLOOKUP('(1) Inputs'!$A123,Data,5,)),0) -> 0 | J116: =IF('(1) Inputs'!$A123>0,(VLOOKUP('(1) Inputs'!$A123,Data,7,)),0) -> 0 | K116: =IF(ISERROR(IF('(1) Inputs'!$A123>0,(VLOOKUP('(1) Inputs'!$A123,Data,2,))/(VLOOKUP('(1) Inputs'!$A123,Data,3,)),0)),"-",IF('(1) Inputs'!$A123>0,(VLOOKUP('(1) Inputs'!$A123,Data,2,))/(VLOOKUP('(1) Inputs'!$A123,Data,3,)),0)) -> 25.25543682 | L116: =IF('(1) Inputs'!$A123>0,(VLOOKUP('(1) Inputs'!$A123,Data,6,)),0) -> 0.062206 | M116: =IF('(1) Inputs'!$A123>0,(VLOOKUP('(1) Inputs'!$A123,Data,8,)),0) -> 119.43 | P116: =IF('(1) Inputs'!$A123>0,(VLOOKUP('(1) Inputs'!$A123,Data,15,)),0) -> 51.88772 | Q116: =IF('(1) Inputs'!$A123>0,(VLOOKUP('(1) Inputs'!$A123, DISAGGED_DATA, 20,)),0) ->  | R116: =IF(A116>0, IncDivCalc!F$2, 0) -> 0.3757213373 | S116: =IF('(1) Inputs'!$A123>0,(VLOOKUP('(1) Inputs'!$A123, PedCol!A112:J7304, 4,)),0) ->  | T116: =IF('(1) Inputs'!$A123>0,(VLOOKUP('(1) Inputs'!$A123, PedCol!A112:J7304, 5,)),0) ->  | U116: =IF('(1) Inputs'!$A123>0,(VLOOKUP('(1) Inputs'!$A123, PedCol!A112:J7304, 6,)),0) ->  | V116: =IF('(1) Inputs'!$A123>0,(VLOOKUP('(1) Inputs'!$A123, PedCol!A112:J7304, 7,)),0) -> 
A117: ='(1) Inputs'!A124 -> 60750329012 | B117: 21201.19 | C117: =IF('(1) Inputs'!$A124>0,(VLOOKUP('(1) Inputs'!$A124,Data,9,)),0) -> 2291.114667 | D117: =IF('(1) Inputs'!$A124>0,(VLOOKUP('(1) Inputs'!$A124,Data,11,)),0) -> 37.79297 | E117: =IF('(1) Inputs'!$A124>0,(VLOOKUP('(1) Inputs'!$A124,IOR,2,)),0) -> 0.07189160582 | G117: =IF('(1) Inputs'!$A124>0,(VLOOKUP('(1) Inputs'!$A124,Data,4,)),0) -> 0.601996 | H117: =IF('(1) Inputs'!$A124>0,(VLOOKUP('(1) Inputs'!$A124,Data,5,)),0) -> 0.04816 | J117: =IF('(1) Inputs'!$A124>0,(VLOOKUP('(1) Inputs'!$A124,Data,7,)),0) -> 0.02408 | K117: =IF(ISERROR(IF('(1) Inputs'!$A124>0,(VLOOKUP('(1) Inputs'!$A124,Data,2,))/(VLOOKUP('(1) Inputs'!$A124,Data,3,)),0)),"-",IF('(1) Inputs'!$A124>0,(VLOOKUP('(1) Inputs'!$A124,Data,2,))/(VLOOKUP('(1) Inputs'!$A124,Data,3,)),0)) -> 28.72725752 | L117: =IF('(1) Inputs'!$A124>0,(VLOOKUP('(1) Inputs'!$A124,Data,6,)),0) -> 0 | M117: =IF('(1) Inputs'!$A124>0,(VLOOKUP('(1) Inputs'!$A124,Data,8,)),0) -> 84.7531 | P117: =IF('(1) Inputs'!$A124>0,(VLOOKUP('(1) Inputs'!$A124,Data,15,)),0) -> 62.20703 | Q117: =IF('(1) Inputs'!$A124>0,(VLOOKUP('(1) Inputs'!$A124, DISAGGED_DATA, 20,)),0) ->  | R117: =IF(A117>0, IncDivCalc!F$2, 0) -> 0.3757213373 | S117: =IF('(1) Inputs'!$A124>0,(VLOOKUP('(1) Inputs'!$A124, PedCol!A113:J7305, 4,)),0) ->  | T117: =IF('(1) Inputs'!$A124>0,(VLOOKUP('(1) Inputs'!$A124, PedCol!A113:J7305, 5,)),0) ->  | U117: =IF('(1) Inputs'!$A124>0,(VLOOKUP('(1) Inputs'!$A124, PedCol!A113:J7305, 6,)),0) ->  | V117: =IF('(1) Inputs'!$A124>0,(VLOOKUP('(1) Inputs'!$A124, PedCol!A113:J7305, 7,)),0) -> 
A118: ='(1) Inputs'!A125 -> 60750352015 | B118: 13643.63 | C118: =IF('(1) Inputs'!$A125>0,(VLOOKUP('(1) Inputs'!$A125,Data,9,)),0) -> 2321.152 | D118: =IF('(1) Inputs'!$A125>0,(VLOOKUP('(1) Inputs'!$A125,Data,11,)),0) -> 32.45445 | E118: =IF('(1) Inputs'!$A125>0,(VLOOKUP('(1) Inputs'!$A125,IOR,2,)),0) -> 0.1112008411 | G118: =IF('(1) Inputs'!$A125>0,(VLOOKUP('(1) Inputs'!$A125,Data,4,)),0) -> 3.6502 | H118: =IF('(1) Inputs'!$A125>0,(VLOOKUP('(1) Inputs'!$A125,Data,5,)),0) -> 0 | J118: =IF('(1) Inputs'!$A125>0,(VLOOKUP('(1) Inputs'!$A125,Data,7,)),0) -> 0 | K118: =IF(ISERROR(IF('(1) Inputs'!$A125>0,(VLOOKUP('(1) Inputs'!$A125,Data,2,))/(VLOOKUP('(1) Inputs'!$A125,Data,3,)),0)),"-",IF('(1) Inputs'!$A125>0,(VLOOKUP('(1) Inputs'!$A125,Data,2,))/(VLOOKUP('(1) Inputs'!$A125,Data,3,)),0)) -> 35.72983918 | L118: =IF('(1) Inputs'!$A125>0,(VLOOKUP('(1) Inputs'!$A125,Data,6,)),0) -> 0.105294 | M118: =IF('(1) Inputs'!$A125>0,(VLOOKUP('(1) Inputs'!$A125,Data,8,)),0) -> 217.151 | P118: =IF('(1) Inputs'!$A125>0,(VLOOKUP('(1) Inputs'!$A125,Data,15,)),0) -> 67.54555 | Q118: =IF('(1) Inputs'!$A125>0,(VLOOKUP('(1) Inputs'!$A125, DISAGGED_DATA, 20,)),0) ->  | R118: =IF(A118>0, IncDivCalc!F$2, 0) -> 0.3757213373 | S118: =IF('(1) Inputs'!$A125>0,(VLOOKUP('(1) Inputs'!$A125, PedCol!A114:J7306, 4,)),0) -> 1 | T118: =IF('(1) Inputs'!$A125>0,(VLOOKUP('(1) Inputs'!$A125, PedCol!A114:J7306, 5,)),0) -> 1018 | U118: =IF('(1) Inputs'!$A125>0,(VLOOKUP('(1) Inputs'!$A125, PedCol!A114:J7306, 6,)),0) -> 577 | V118: =IF('(1) Inputs'!$A125>0,(VLOOKUP('(1) Inputs'!$A125, PedCol!A114:J7306, 7,)),0) -> 0
A119: ='(1) Inputs'!A126 -> 60750328023 | B119: 22014.25 | C119: =IF('(1) Inputs'!$A126>0,(VLOOKUP('(1) Inputs'!$A126,Data,9,)),0) -> 1808.4992 | D119: =IF('(1) Inputs'!$A126>0,(VLOOKUP('(1) Inputs'!$A126,Data,11,)),0) -> 36.00466 | E119: =IF('(1) Inputs'!$A126>0,(VLOOKUP('(1) Inputs'!$A126,IOR,2,)),0) -> 0.2145709441 | G119: =IF('(1) Inputs'!$A126>0,(VLOOKUP('(1) Inputs'!$A126,Data,4,)),0) -> 10.976739 | H119: =IF('(1) Inputs'!$A126>0,(VLOOKUP('(1) Inputs'!$A126,Data,5,)),0) -> 2.267495 | J119: =IF('(1) Inputs'!$A126>0,(VLOOKUP('(1) Inputs'!$A126,Data,7,)),0) -> 4.303088 | K119: =IF(ISERROR(IF('(1) Inputs'!$A126>0,(VLOOKUP('(1) Inputs'!$A126,Data,2,))/(VLOOKUP('(1) Inputs'!$A126,Data,3,)),0)),"-",IF('(1) Inputs'!$A126>0,(VLOOKUP('(1) Inputs'!$A126,Data,2,))/(VLOOKUP('(1) Inputs'!$A126,Data,3,)),0)) -> 34.08973113 | L119: =IF('(1) Inputs'!$A126>0,(VLOOKUP('(1) Inputs'!$A126,Data,6,)),0) -> 0.798777 | M119: =IF('(1) Inputs'!$A126>0,(VLOOKUP('(1) Inputs'!$A126,Data,8,)),0) -> 159.412 | P119: =IF('(1) Inputs'!$A126>0,(VLOOKUP('(1) Inputs'!$A126,Data,15,)),0) -> 63.99534 | Q119: =IF('(1) Inputs'!$A126>0,(VLOOKUP('(1) Inputs'!$A126, DISAGGED_DATA, 20,)),0) ->  | R119: =IF(A119>0, IncDivCalc!F$2, 0) -> 0.3757213373 | S119: =IF('(1) Inputs'!$A126>0,(VLOOKUP('(1) Inputs'!$A126, PedCol!A115:J7307, 4,)),0) -> 1 | T119: =IF('(1) Inputs'!$A126>0,(VLOOKUP('(1) Inputs'!$A126, PedCol!A115:J7307, 5,)),0) -> 1323 | U119: =IF('(1) Inputs'!$A126>0,(VLOOKUP('(1) Inputs'!$A126, PedCol!A115:J7307, 6,)),0) -> 520 | V119: =IF('(1) Inputs'!$A126>0,(VLOOKUP('(1) Inputs'!$A126, PedCol!A115:J7307, 7,)),0) -> 0
A120: ='(1) Inputs'!A127 -> 60750354002 | B120: 15670.02 | C120: =IF('(1) Inputs'!$A127>0,(VLOOKUP('(1) Inputs'!$A127,Data,9,)),0) -> 1638.455467 | D120: =IF('(1) Inputs'!$A127>0,(VLOOKUP('(1) Inputs'!$A127,Data,11,)),0) -> 34.17113 | E120: =IF('(1) Inputs'!$A127>0,(VLOOKUP('(1) Inputs'!$A127,IOR,2,)),0) -> 0.1494714485 | G120: =IF('(1) Inputs'!$A127>0,(VLOOKUP('(1) Inputs'!$A127,Data,4,)),0) -> 1.306791 | H120: =IF('(1) Inputs'!$A127>0,(VLOOKUP('(1) Inputs'!$A127,Data,5,)),0) -> 0.183409 | J120: =IF('(1) Inputs'!$A127>0,(VLOOKUP('(1) Inputs'!$A127,Data,7,)),0) -> 0 | K120: =IF(ISERROR(IF('(1) Inputs'!$A127>0,(VLOOKUP('(1) Inputs'!$A127,Data,2,))/(VLOOKUP('(1) Inputs'!$A127,Data,3,)),0)),"-",IF('(1) Inputs'!$A127>0,(VLOOKUP('(1) Inputs'!$A127,Data,2,))/(VLOOKUP('(1) Inputs'!$A127,Data,3,)),0)) -> 33.03658259 | L120: =IF('(1) Inputs'!$A127>0,(VLOOKUP('(1) Inputs'!$A127,Data,6,)),0) -> 0.091705 | M120: =IF('(1) Inputs'!$A127>0,(VLOOKUP('(1) Inputs'!$A127,Data,8,)),0) -> 132.045 | P120: =IF('(1) Inputs'!$A127>0,(VLOOKUP('(1) Inputs'!$A127,Data,15,)),0) -> 65.82887 | Q120: =IF('(1) Inputs'!$A127>0,(VLOOKUP('(1) Inputs'!$A127, DISAGGED_DATA, 20,)),0) ->  | R120: =IF(A120>0, IncDivCalc!F$2, 0) -> 0.3757213373 | S120: =IF('(1) Inputs'!$A127>0,(VLOOKUP('(1) Inputs'!$A127, PedCol!A116:J7308, 4,)),0) ->  | T120: =IF('(1) Inputs'!$A127>0,(VLOOKUP('(1) Inputs'!$A127, PedCol!A116:J7308, 5,)),0) ->  | U120: =IF('(1) Inputs'!$A127>0,(VLOOKUP('(1) Inputs'!$A127, PedCol!A116:J7308, 6,)),0) ->  | V120: =IF('(1) Inputs'!$A127>0,(VLOOKUP('(1) Inputs'!$A127, PedCol!A116:J7308, 7,)),0) -> 
A121: ='(1) Inputs'!A128 -> 60750353006 | B121: 15662.62 | C121: =IF('(1) Inputs'!$A128>0,(VLOOKUP('(1) Inputs'!$A128,Data,9,)),0) -> 1693.284267 | D121: =IF('(1) Inputs'!$A128>0,(VLOOKUP('(1) Inputs'!$A128,Data,11,)),0) -> 45.33097 | E121: =IF('(1) Inputs'!$A128>0,(VLOOKUP('(1) Inputs'!$A128,IOR,2,)),0) -> 0.2639443487 | G121: =IF('(1) Inputs'!$A128>0,(VLOOKUP('(1) Inputs'!$A128,Data,4,)),0) -> 1.700843 | H121: =IF('(1) Inputs'!$A128>0,(VLOOKUP('(1) Inputs'!$A128,Data,5,)),0) -> 0 | J121: =IF('(1) Inputs'!$A128>0,(VLOOKUP('(1) Inputs'!$A128,Data,7,)),0) -> 0.412326 | K121: =IF(ISERROR(IF('(1) Inputs'!$A128>0,(VLOOKUP('(1) Inputs'!$A128,Data,2,))/(VLOOKUP('(1) Inputs'!$A128,Data,3,)),0)),"-",IF('(1) Inputs'!$A128>0,(VLOOKUP('(1) Inputs'!$A128,Data,2,))/(VLOOKUP('(1) Inputs'!$A128,Data,3,)),0)) -> 35.76925112 | L121: =IF('(1) Inputs'!$A128>0,(VLOOKUP('(1) Inputs'!$A128,Data,6,)),0) -> 0.051541 | M121: =IF('(1) Inputs'!$A128>0,(VLOOKUP('(1) Inputs'!$A128,Data,8,)),0) -> 93.4626 | P121: =IF('(1) Inputs'!$A128>0,(VLOOKUP('(1) Inputs'!$A128,Data,15,)),0) -> 54.66903 | Q121: =IF('(1) Inputs'!$A128>0,(VLOOKUP('(1) Inputs'!$A128, DISAGGED_DATA, 20,)),0) ->  | R121: =IF(A121>0, IncDivCalc!F$2, 0) -> 0.3757213373 | S121: =IF('(1) Inputs'!$A128>0,(VLOOKUP('(1) Inputs'!$A128, PedCol!A117:J7309, 4,)),0) -> 1 | T121: =IF('(1) Inputs'!$A128>0,(VLOOKUP('(1) Inputs'!$A128, PedCol!A117:J7309, 5,)),0) -> 1388 | U121: =IF('(1) Inputs'!$A128>0,(VLOOKUP('(1) Inputs'!$A128, PedCol!A117:J7309, 6,)),0) -> 502 | V121: =IF('(1) Inputs'!$A128>0,(VLOOKUP('(1) Inputs'!$A128, PedCol!A117:J7309, 7,)),0) -> 0
A122: ='(1) Inputs'!A129 -> 60750303011 | B122: 28578.09 | C122: =IF('(1) Inputs'!$A129>0,(VLOOKUP('(1) Inputs'!$A129,Data,9,)),0) -> 3866.858667 | D122: =IF('(1) Inputs'!$A129>0,(VLOOKUP('(1) Inputs'!$A129,Data,11,)),0) -> 34.20449 | E122: =IF('(1) Inputs'!$A129>0,(VLOOKUP('(1) Inputs'!$A129,IOR,2,)),0) -> 0.05736849311 | G122: =IF('(1) Inputs'!$A129>0,(VLOOKUP('(1) Inputs'!$A129,Data,4,)),0) -> 1.580644 | H122: =IF('(1) Inputs'!$A129>0,(VLOOKUP('(1) Inputs'!$A129,Data,5,)),0) -> 0 | J122: =IF('(1) Inputs'!$A129>0,(VLOOKUP('(1) Inputs'!$A129,Data,7,)),0) -> 0 | K122: =IF(ISERROR(IF('(1) Inputs'!$A129>0,(VLOOKUP('(1) Inputs'!$A129,Data,2,))/(VLOOKUP('(1) Inputs'!$A129,Data,3,)),0)),"-",IF('(1) Inputs'!$A129>0,(VLOOKUP('(1) Inputs'!$A129,Data,2,))/(VLOOKUP('(1) Inputs'!$A129,Data,3,)),0)) -> 28.37198296 | L122: =IF('(1) Inputs'!$A129>0,(VLOOKUP('(1) Inputs'!$A129,Data,6,)),0) -> 0.28739 | M122: =IF('(1) Inputs'!$A129>0,(VLOOKUP('(1) Inputs'!$A129,Data,8,)),0) -> 126.209 | P122: =IF('(1) Inputs'!$A129>0,(VLOOKUP('(1) Inputs'!$A129,Data,15,)),0) -> 65.79551 | Q122: =IF('(1) Inputs'!$A129>0,(VLOOKUP('(1) Inputs'!$A129, DISAGGED_DATA, 20,)),0) ->  | R122: =IF(A122>0, IncDivCalc!F$2, 0) -> 0.3757213373 | S122: =IF('(1) Inputs'!$A129>0,(VLOOKUP('(1) Inputs'!$A129, PedCol!A118:J7310, 4,)),0) ->  | T122: =IF('(1) Inputs'!$A129>0,(VLOOKUP('(1) Inputs'!$A129, PedCol!A118:J7310, 5,)),0) ->  | U122: =IF('(1) Inputs'!$A129>0,(VLOOKUP('(1) Inputs'!$A129, PedCol!A118:J7310, 6,)),0) ->  | V122: =IF('(1) Inputs'!$A129>0,(VLOOKUP('(1) Inputs'!$A129, PedCol!A118:J7310, 7,)),0) -> 
A123: ='(1) Inputs'!A130 -> 60750165004 | B123: 39243.02 | C123: =IF('(1) Inputs'!$A130>0,(VLOOKUP('(1) Inputs'!$A130,Data,9,)),0) -> 6208.256 | D123: =IF('(1) Inputs'!$A130>0,(VLOOKUP('(1) Inputs'!$A130,Data,11,)),0) -> 29.19974 | E123: =IF('(1) Inputs'!$A130>0,(VLOOKUP('(1) Inputs'!$A130,IOR,2,)),0) -> 0.2146916392 | G123: =IF('(1) Inputs'!$A130>0,(VLOOKUP('(1) Inputs'!$A130,Data,4,)),0) -> 56.958964 | H123: =IF('(1) Inputs'!$A130>0,(VLOOKUP('(1) Inputs'!$A130,Data,5,)),0) -> 1.048324 | J123: =IF('(1) Inputs'!$A130>0,(VLOOKUP('(1) Inputs'!$A130,Data,7,)),0) -> 51.3679 | K123: =IF(ISERROR(IF('(1) Inputs'!$A130>0,(VLOOKUP('(1) Inputs'!$A130,Data,2,))/(VLOOKUP('(1) Inputs'!$A130,Data,3,)),0)),"-",IF('(1) Inputs'!$A130>0,(VLOOKUP('(1) Inputs'!$A130,Data,2,))/(VLOOKUP('(1) Inputs'!$A130,Data,3,)),0)) -> 47.16404887 | L123: =IF('(1) Inputs'!$A130>0,(VLOOKUP('(1) Inputs'!$A130,Data,6,)),0) -> 0.960964 | M123: =IF('(1) Inputs'!$A130>0,(VLOOKUP('(1) Inputs'!$A130,Data,8,)),0) -> 139.649 | P123: =IF('(1) Inputs'!$A130>0,(VLOOKUP('(1) Inputs'!$A130,Data,15,)),0) -> 70.80026 | Q123: =IF('(1) Inputs'!$A130>0,(VLOOKUP('(1) Inputs'!$A130, DISAGGED_DATA, 20,)),0) ->  | R123: =IF(A123>0, IncDivCalc!F$2, 0) -> 0.3757213373 | S123: =IF('(1) Inputs'!$A130>0,(VLOOKUP('(1) Inputs'!$A130, PedCol!A119:J7311, 4,)),0) ->  | T123: =IF('(1) Inputs'!$A130>0,(VLOOKUP('(1) Inputs'!$A130, PedCol!A119:J7311, 5,)),0) ->  | U123: =IF('(1) Inputs'!$A130>0,(VLOOKUP('(1) Inputs'!$A130, PedCol!A119:J7311, 6,)),0) ->  | V123: =IF('(1) Inputs'!$A130>0,(VLOOKUP('(1) Inputs'!$A130, PedCol!A119:J7311, 7,)),0) -> 
A124: ='(1) Inputs'!A131 -> 60750301014 | B124: 50091.16 | C124: =IF('(1) Inputs'!$A131>0,(VLOOKUP('(1) Inputs'!$A131,Data,9,)),0) -> 9735.829333 | D124: =IF('(1) Inputs'!$A131>0,(VLOOKUP('(1) Inputs'!$A131,Data,11,)),0) -> 28.43996 | E124: =IF('(1) Inputs'!$A131>0,(VLOOKUP('(1) Inputs'!$A131,IOR,2,)),0) -> 0.2095216427 | G124: =IF('(1) Inputs'!$A131>0,(VLOOKUP('(1) Inputs'!$A131,Data,4,)),0) -> 920.445953 | H124: =IF('(1) Inputs'!$A131>0,(VLOOKUP('(1) Inputs'!$A131,Data,5,)),0) -> 0 | J124: =IF('(1) Inputs'!$A131>0,(VLOOKUP('(1) Inputs'!$A131,Data,7,)),0) -> 3.733876 | K124: =IF(ISERROR(IF('(1) Inputs'!$A131>0,(VLOOKUP('(1) Inputs'!$A131,Data,2,))/(VLOOKUP('(1) Inputs'!$A131,Data,3,)),0)),"-",IF('(1) Inputs'!$A131>0,(VLOOKUP('(1) Inputs'!$A131,Data,2,))/(VLOOKUP('(1) Inputs'!$A131,Data,3,)),0)) -> 39.93766696 | L124: =IF('(1) Inputs'!$A131>0,(VLOOKUP('(1) Inputs'!$A131,Data,6,)),0) -> 2.413359 | M124: =IF('(1) Inputs'!$A131>0,(VLOOKUP('(1) Inputs'!$A131,Data,8,)),0) -> 132.975 | P124: =IF('(1) Inputs'!$A131>0,(VLOOKUP('(1) Inputs'!$A131,Data,15,)),0) -> 71.56004 | Q124: =IF('(1) Inputs'!$A131>0,(VLOOKUP('(1) Inputs'!$A131, DISAGGED_DATA, 20,)),0) ->  | R124: =IF(A124>0, IncDivCalc!F$2, 0) -> 0.3757213373 | S124: =IF('(1) Inputs'!$A131>0,(VLOOKUP('(1) Inputs'!$A131, PedCol!A120:J7312, 4,)),0) ->  | T124: =IF('(1) Inputs'!$A131>0,(VLOOKUP('(1) Inputs'!$A131, PedCol!A120:J7312, 5,)),0) ->  | U124: =IF('(1) Inputs'!$A131>0,(VLOOKUP('(1) Inputs'!$A131, PedCol!A120:J7312, 6,)),0) ->  | V124: =IF('(1) Inputs'!$A131>0,(VLOOKUP('(1) Inputs'!$A131, PedCol!A120:J7312, 7,)),0) -> 
A125: ='(1) Inputs'!A132 -> 60750166004 | B125: 47926.58 | C125: =IF('(1) Inputs'!$A132>0,(VLOOKUP('(1) Inputs'!$A132,Data,9,)),0) -> 7117.397333 | D125: =IF('(1) Inputs'!$A132>0,(VLOOKUP('(1) Inputs'!$A132,Data,11,)),0) -> 33.95793 | E125: =IF('(1) Inputs'!$A132>0,(VLOOKUP('(1) Inputs'!$A132,IOR,2,)),0) -> 0.0829481913 | G125: =IF('(1) Inputs'!$A132>0,(VLOOKUP('(1) Inputs'!$A132,Data,4,)),0) -> 24.569443 | H125: =IF('(1) Inputs'!$A132>0,(VLOOKUP('(1) Inputs'!$A132,Data,5,)),0) -> 11.023047 | J125: =IF('(1) Inputs'!$A132>0,(VLOOKUP('(1) Inputs'!$A132,Data,7,)),0) -> 0.708308 | K125: =IF(ISERROR(IF('(1) Inputs'!$A132>0,(VLOOKUP('(1) Inputs'!$A132,Data,2,))/(VLOOKUP('(1) Inputs'!$A132,Data,3,)),0)),"-",IF('(1) Inputs'!$A132>0,(VLOOKUP('(1) Inputs'!$A132,Data,2,))/(VLOOKUP('(1) Inputs'!$A132,Data,3,)),0)) -> 52.34513274 | L125: =IF('(1) Inputs'!$A132>0,(VLOOKUP('(1) Inputs'!$A132,Data,6,)),0) -> 4.736811 | M125: =IF('(1) Inputs'!$A132>0,(VLOOKUP('(1) Inputs'!$A132,Data,8,)),0) -> 141.59 | P125: =IF('(1) Inputs'!$A132>0,(VLOOKUP('(1) Inputs'!$A132,Data,15,)),0) -> 66.04207 | Q125: =IF('(1) Inputs'!$A132>0,(VLOOKUP('(1) Inputs'!$A132, DISAGGED_DATA, 20,)),0) ->  | R125: =IF(A125>0, IncDivCalc!F$2, 0) -> 0.3757213373 | S125: =IF('(1) Inputs'!$A132>0,(VLOOKUP('(1) Inputs'!$A132, PedCol!A121:J7313, 4,)),0) -> 1 | T125: =IF('(1) Inputs'!$A132>0,(VLOOKUP('(1) Inputs'!$A132, PedCol!A121:J7313, 5,)),0) -> 1183 | U125: =IF('(1) Inputs'!$A132>0,(VLOOKUP('(1) Inputs'!$A132, PedCol!A121:J7313, 6,)),0) -> 738 | V125: =IF('(1) Inputs'!$A132>0,(VLOOKUP('(1) Inputs'!$A132, PedCol!A121:J7313, 7,)),0) -> 114
A126: ='(1) Inputs'!A133 -> 60750301021 | B126: 28081.52 | C126: =IF('(1) Inputs'!$A133>0,(VLOOKUP('(1) Inputs'!$A133,Data,9,)),0) -> 1777.777067 | D126: =IF('(1) Inputs'!$A133>0,(VLOOKUP('(1) Inputs'!$A133,Data,11,)),0) -> 34.23179 | E126: =IF('(1) Inputs'!$A133>0,(VLOOKUP('(1) Inputs'!$A133,IOR,2,)),0) -> 0.08381000739 | G126: =IF('(1) Inputs'!$A133>0,(VLOOKUP('(1) Inputs'!$A133,Data,4,)),0) -> 2.155048 | H126: =IF('(1) Inputs'!$A133>0,(VLOOKUP('(1) Inputs'!$A133,Data,5,)),0) -> 0.048292 | J126: =IF('(1) Inputs'!$A133>0,(VLOOKUP('(1) Inputs'!$A133,Data,7,)),0) -> 0.766642 | K126: =IF(ISERROR(IF('(1) Inputs'!$A133>0,(VLOOKUP('(1) Inputs'!$A133,Data,2,))/(VLOOKUP('(1) Inputs'!$A133,Data,3,)),0)),"-",IF('(1) Inputs'!$A133>0,(VLOOKUP('(1) Inputs'!$A133,Data,2,))/(VLOOKUP('(1) Inputs'!$A133,Data,3,)),0)) -> 14.24923946 | L126: =IF('(1) Inputs'!$A133>0,(VLOOKUP('(1) Inputs'!$A133,Data,6,)),0) -> 0.169023 | M126: =IF('(1) Inputs'!$A133>0,(VLOOKUP('(1) Inputs'!$A133,Data,8,)),0) -> 79.9822 | P126: =IF('(1) Inputs'!$A133>0,(VLOOKUP('(1) Inputs'!$A133,Data,15,)),0) -> 65.76821 | Q126: =IF('(1) Inputs'!$A133>0,(VLOOKUP('(1) Inputs'!$A133, DISAGGED_DATA, 20,)),0) ->  | R126: =IF(A126>0, IncDivCalc!F$2, 0) -> 0.3757213373 | S126: =IF('(1) Inputs'!$A133>0,(VLOOKUP('(1) Inputs'!$A133, PedCol!A122:J7314, 4,)),0) ->  | T126: =IF('(1) Inputs'!$A133>0,(VLOOKUP('(1) Inputs'!$A133, PedCol!A122:J7314, 5,)),0) ->  | U126: =IF('(1) Inputs'!$A133>0,(VLOOKUP('(1) Inputs'!$A133, PedCol!A122:J7314, 6,)),0) ->  | V126: =IF('(1) Inputs'!$A133>0,(VLOOKUP('(1) Inputs'!$A133, PedCol!A122:J7314, 7,)),0) -> 
A127: ='(1) Inputs'!A134 -> 60750305002 | B127: 25761.34 | C127: =IF('(1) Inputs'!$A134>0,(VLOOKUP('(1) Inputs'!$A134,Data,9,)),0) -> 1653.582933 | D127: =IF('(1) Inputs'!$A134>0,(VLOOKUP('(1) Inputs'!$A134,Data,11,)),0) -> 38.78493 | E127: =IF('(1) Inputs'!$A134>0,(VLOOKUP('(1) Inputs'!$A134,IOR,2,)),0) -> 0.1151226915 | G127: =IF('(1) Inputs'!$A134>0,(VLOOKUP('(1) Inputs'!$A134,Data,4,)),0) -> 0.346229 | H127: =IF('(1) Inputs'!$A134>0,(VLOOKUP('(1) Inputs'!$A134,Data,5,)),0) -> 0 | J127: =IF('(1) Inputs'!$A134>0,(VLOOKUP('(1) Inputs'!$A134,Data,7,)),0) -> 0 | K127: =IF(ISERROR(IF('(1) Inputs'!$A134>0,(VLOOKUP('(1) Inputs'!$A134,Data,2,))/(VLOOKUP('(1) Inputs'!$A134,Data,3,)),0)),"-",IF('(1) Inputs'!$A134>0,(VLOOKUP('(1) Inputs'!$A134,Data,2,))/(VLOOKUP('(1) Inputs'!$A134,Data,3,)),0)) -> 20.01974821 | L127: =IF('(1) Inputs'!$A134>0,(VLOOKUP('(1) Inputs'!$A134,Data,6,)),0) -> 0 | M127: =IF('(1) Inputs'!$A134>0,(VLOOKUP('(1) Inputs'!$A134,Data,8,)),0) -> 163.31 | P127: =IF('(1) Inputs'!$A134>0,(VLOOKUP('(1) Inputs'!$A134,Data,15,)),0) -> 61.21507 | Q127: =IF('(1) Inputs'!$A134>0,(VLOOKUP('(1) Inputs'!$A134, DISAGGED_DATA, 20,)),0) ->  | R127: =IF(A127>0, IncDivCalc!F$2, 0) -> 0.3757213373 | S127: =IF('(1) Inputs'!$A134>0,(VLOOKUP('(1) Inputs'!$A134, PedCol!A123:J7315, 4,)),0) ->  | T127: =IF('(1) Inputs'!$A134>0,(VLOOKUP('(1) Inputs'!$A134, PedCol!A123:J7315, 5,)),0) ->  | U127: =IF('(1) Inputs'!$A134>0,(VLOOKUP('(1) Inputs'!$A134, PedCol!A123:J7315, 6,)),0) ->  | V127: =IF('(1) Inputs'!$A134>0,(VLOOKUP('(1) Inputs'!$A134, PedCol!A123:J7315, 7,)),0) -> 
A128: ='(1) Inputs'!A135 -> 60750301022 | B128: 32206.82 | C128: =IF('(1) Inputs'!$A135>0,(VLOOKUP('(1) Inputs'!$A135,Data,9,)),0) -> 1751.451733 | D128: =IF('(1) Inputs'!$A135>0,(VLOOKUP('(1) Inputs'!$A135,Data,11,)),0) -> 33.17044 | E128: =IF('(1) Inputs'!$A135>0,(VLOOKUP('(1) Inputs'!$A135,IOR,2,)),0) -> 0.2453769624 | G128: =IF('(1) Inputs'!$A135>0,(VLOOKUP('(1) Inputs'!$A135,Data,4,)),0) -> 0.220258 | H128: =IF('(1) Inputs'!$A135>0,(VLOOKUP('(1) Inputs'!$A135,Data,5,)),0) -> 0.012237 | J128: =IF('(1) Inputs'!$A135>0,(VLOOKUP('(1) Inputs'!$A135,Data,7,)),0) -> 0.085656 | K128: =IF(ISERROR(IF('(1) Inputs'!$A135>0,(VLOOKUP('(1) Inputs'!$A135,Data,2,))/(VLOOKUP('(1) Inputs'!$A135,Data,3,)),0)),"-",IF('(1) Inputs'!$A135>0,(VLOOKUP('(1) Inputs'!$A135,Data,2,))/(VLOOKUP('(1) Inputs'!$A135,Data,3,)),0)) -> 15.43655965 | L128: =IF('(1) Inputs'!$A135>0,(VLOOKUP('(1) Inputs'!$A135,Data,6,)),0) -> 0 | M128: =IF('(1) Inputs'!$A135>0,(VLOOKUP('(1) Inputs'!$A135,Data,8,)),0) -> 137.777 | P128: =IF('(1) Inputs'!$A135>0,(VLOOKUP('(1) Inputs'!$A135,Data,15,)),0) -> 66.82956 | Q128: =IF('(1) Inputs'!$A135>0,(VLOOKUP('(1) Inputs'!$A135, DISAGGED_DATA, 20,)),0) ->  | R128: =IF(A128>0, IncDivCalc!F$2, 0) -> 0.3757213373 | S128: =IF('(1) Inputs'!$A135>0,(VLOOKUP('(1) Inputs'!$A135, PedCol!A124:J7316, 4,)),0) ->  | T128: =IF('(1) Inputs'!$A135>0,(VLOOKUP('(1) Inputs'!$A135, PedCol!A124:J7316, 5,)),0) ->  | U128: =IF('(1) Inputs'!$A135>0,(VLOOKUP('(1) Inputs'!$A135, PedCol!A124:J7316, 6,)),0) ->  | V128: =IF('(1) Inputs'!$A135>0,(VLOOKUP('(1) Inputs'!$A135, PedCol!A124:J7316, 7,)),0) -> 
A129: ='(1) Inputs'!A136 -> 60750302023 | B129: 43268.7 | C129: =IF('(1) Inputs'!$A136>0,(VLOOKUP('(1) Inputs'!$A136,Data,9,)),0) -> 6153.109333 | D129: =IF('(1) Inputs'!$A136>0,(VLOOKUP('(1) Inputs'!$A136,Data,11,)),0) -> 31.96744 | E129: =IF('(1) Inputs'!$A136>0,(VLOOKUP('(1) Inputs'!$A136,IOR,2,)),0) -> 0.126629613 | G129: =IF('(1) Inputs'!$A136>0,(VLOOKUP('(1) Inputs'!$A136,Data,4,)),0) -> 2.795631 | H129: =IF('(1) Inputs'!$A136>0,(VLOOKUP('(1) Inputs'!$A136,Data,5,)),0) -> 0.068186 | J129: =IF('(1) Inputs'!$A136>0,(VLOOKUP('(1) Inputs'!$A136,Data,7,)),0) -> 0.852327 | K129: =IF(ISERROR(IF('(1) Inputs'!$A136>0,(VLOOKUP('(1) Inputs'!$A136,Data,2,))/(VLOOKUP('(1) Inputs'!$A136,Data,3,)),0)),"-",IF('(1) Inputs'!$A136>0,(VLOOKUP('(1) Inputs'!$A136,Data,2,))/(VLOOKUP('(1) Inputs'!$A136,Data,3,)),0)) -> 46.46884191 | L129: =IF('(1) Inputs'!$A136>0,(VLOOKUP('(1) Inputs'!$A136,Data,6,)),0) -> 0.818233 | M129: =IF('(1) Inputs'!$A136>0,(VLOOKUP('(1) Inputs'!$A136,Data,8,)),0) -> 32.73 | P129: =IF('(1) Inputs'!$A136>0,(VLOOKUP('(1) Inputs'!$A136,Data,15,)),0) -> 68.03256 | Q129: =IF('(1) Inputs'!$A136>0,(VLOOKUP('(1) Inputs'!$A136, DISAGGED_DATA, 20,)),0) ->  | R129: =IF(A129>0, IncDivCalc!F$2, 0) -> 0.3757213373 | S129: =IF('(1) Inputs'!$A136>0,(VLOOKUP('(1) Inputs'!$A136, PedCol!A125:J7317, 4,)),0) -> 1 | T129: =IF('(1) Inputs'!$A136>0,(VLOOKUP('(1) Inputs'!$A136, PedCol!A125:J7317, 5,)),0) -> 1363 | U129: =IF('(1) Inputs'!$A136>0,(VLOOKUP('(1) Inputs'!$A136, PedCol!A125:J7317, 6,)),0) -> 1066 | V129: =IF('(1) Inputs'!$A136>0,(VLOOKUP('(1) Inputs'!$A136, PedCol!A125:J7317, 7,)),0) -> 53
A130: ='(1) Inputs'!A137 -> 60750204021 | B130: 33791.77 | C130: =IF('(1) Inputs'!$A137>0,(VLOOKUP('(1) Inputs'!$A137,Data,9,)),0) -> 1697.051733 | D130: =IF('(1) Inputs'!$A137>0,(VLOOKUP('(1) Inputs'!$A137,Data,11,)),0) -> 28.97197 | E130: =IF('(1) Inputs'!$A137>0,(VLOOKUP('(1) Inputs'!$A137,IOR,2,)),0) -> 0.09478743244 | G130: =IF('(1) Inputs'!$A137>0,(VLOOKUP('(1) Inputs'!$A137,Data,4,)),0) -> 1.171305 | H130: =IF('(1) Inputs'!$A137>0,(VLOOKUP('(1) Inputs'!$A137,Data,5,)),0) -> 0 | J130: =IF('(1) Inputs'!$A137>0,(VLOOKUP('(1) Inputs'!$A137,Data,7,)),0) -> 0 | K130: =IF(ISERROR(IF('(1) Inputs'!$A137>0,(VLOOKUP('(1) Inputs'!$A137,Data,2,))/(VLOOKUP('(1) Inputs'!$A137,Data,3,)),0)),"-",IF('(1) Inputs'!$A137>0,(VLOOKUP('(1) Inputs'!$A137,Data,2,))/(VLOOKUP('(1) Inputs'!$A137,Data,3,)),0)) -> 24.84351883 | L130: =IF('(1) Inputs'!$A137>0,(VLOOKUP('(1) Inputs'!$A137,Data,6,)),0) -> 0.451789 | M130: =IF('(1) Inputs'!$A137>0,(VLOOKUP('(1) Inputs'!$A137,Data,8,)),0) -> 178.499 | P130: =IF('(1) Inputs'!$A137>0,(VLOOKUP('(1) Inputs'!$A137,Data,15,)),0) -> 71.02803 | Q130: =IF('(1) Inputs'!$A137>0,(VLOOKUP('(1) Inputs'!$A137, DISAGGED_DATA, 20,)),0) ->  | R130: =IF(A130>0, IncDivCalc!F$2, 0) -> 0.3757213373 | S130: =IF('(1) Inputs'!$A137>0,(VLOOKUP('(1) Inputs'!$A137, PedCol!A126:J7318, 4,)),0) -> 1 | T130: =IF('(1) Inputs'!$A137>0,(VLOOKUP('(1) Inputs'!$A137, PedCol!A126:J7318, 5,)),0) -> 2183 | U130: =IF('(1) Inputs'!$A137>0,(VLOOKUP('(1) Inputs'!$A137, PedCol!A126:J7318, 6,)),0) -> 1417 | V130: =IF('(1) Inputs'!$A137>0,(VLOOKUP('(1) Inputs'!$A137, PedCol!A126:J7318, 7,)),0) -> 19
A131: ='(1) Inputs'!A138 -> 60750302022 | B131: 45751.22 | C131: =IF('(1) Inputs'!$A138>0,(VLOOKUP('(1) Inputs'!$A138,Data,9,)),0) -> 6681.386667 | D131: =IF('(1) Inputs'!$A138>0,(VLOOKUP('(1) Inputs'!$A138,Data,11,)),0) -> 26.76013 | E131: =IF('(1) Inputs'!$A138>0,(VLOOKUP('(1) Inputs'!$A138,IOR,2,)),0) -> 0.1168982282 | G131: =IF('(1) Inputs'!$A138>0,(VLOOKUP('(1) Inputs'!$A138,Data,4,)),0) -> 17.996243 | H131: =IF('(1) Inputs'!$A138>0,(VLOOKUP('(1) Inputs'!$A138,Data,5,)),0) -> 2.232092 | J131: =IF('(1) Inputs'!$A138>0,(VLOOKUP('(1) Inputs'!$A138,Data,7,)),0) -> 1.56944 | K131: =IF(ISERROR(IF('(1) Inputs'!$A138>0,(VLOOKUP('(1) Inputs'!$A138,Data,2,))/(VLOOKUP('(1) Inputs'!$A138,Data,3,)),0)),"-",IF('(1) Inputs'!$A138>0,(VLOOKUP('(1) Inputs'!$A138,Data,2,))/(VLOOKUP('(1) Inputs'!$A138,Data,3,)),0)) -> 51.40787296 | L131: =IF('(1) Inputs'!$A138>0,(VLOOKUP('(1) Inputs'!$A138,Data,6,)),0) -> 4.638567 | M131: =IF('(1) Inputs'!$A138>0,(VLOOKUP('(1) Inputs'!$A138,Data,8,)),0) -> 61.38 | P131: =IF('(1) Inputs'!$A138>0,(VLOOKUP('(1) Inputs'!$A138,Data,15,)),0) -> 73.23987 | Q131: =IF('(1) Inputs'!$A138>0,(VLOOKUP('(1) Inputs'!$A138, DISAGGED_DATA, 20,)),0) ->  | R131: =IF(A131>0, IncDivCalc!F$2, 0) -> 0.3757213373 | S131: =IF('(1) Inputs'!$A138>0,(VLOOKUP('(1) Inputs'!$A138, PedCol!A127:J7319, 4,)),0) ->  | T131: =IF('(1) Inputs'!$A138>0,(VLOOKUP('(1) Inputs'!$A138, PedCol!A127:J7319, 5,)),0) ->  | U131: =IF('(1) Inputs'!$A138>0,(VLOOKUP('(1) Inputs'!$A138, PedCol!A127:J7319, 6,)),0) ->  | V131: =IF('(1) Inputs'!$A138>0,(VLOOKUP('(1) Inputs'!$A138, PedCol!A127:J7319, 7,)),0) -> 
A132: ='(1) Inputs'!A139 -> 60750301011 | B132: 55824.96 | C132: =IF('(1) Inputs'!$A139>0,(VLOOKUP('(1) Inputs'!$A139,Data,9,)),0) -> 7389.098667 | D132: =IF('(1) Inputs'!$A139>0,(VLOOKUP('(1) Inputs'!$A139,Data,11,)),0) -> 26.05116 | E132: =IF('(1) Inputs'!$A139>0,(VLOOKUP('(1) Inputs'!$A139,IOR,2,)),0) -> 0.1455248157 | G132: =IF('(1) Inputs'!$A139>0,(VLOOKUP('(1) Inputs'!$A139,Data,4,)),0) -> 7.657435 | H132: =IF('(1) Inputs'!$A139>0,(VLOOKUP('(1) Inputs'!$A139,Data,5,)),0) -> 0.084613 | J132: =IF('(1) Inputs'!$A139>0,(VLOOKUP('(1) Inputs'!$A139,Data,7,)),0) -> 1.903782 | K132: =IF(ISERROR(IF('(1) Inputs'!$A139>0,(VLOOKUP('(1) Inputs'!$A139,Data,2,))/(VLOOKUP('(1) Inputs'!$A139,Data,3,)),0)),"-",IF('(1) Inputs'!$A139>0,(VLOOKUP('(1) Inputs'!$A139,Data,2,))/(VLOOKUP('(1) Inputs'!$A139,Data,3,)),0)) -> 56.28415301 | L132: =IF('(1) Inputs'!$A139>0,(VLOOKUP('(1) Inputs'!$A139,Data,6,)),0) -> 0.719207 | M132: =IF('(1) Inputs'!$A139>0,(VLOOKUP('(1) Inputs'!$A139,Data,8,)),0) -> 412.653 | P132: =IF('(1) Inputs'!$A139>0,(VLOOKUP('(1) Inputs'!$A139,Data,15,)),0) -> 73.94884 | Q132: =IF('(1) Inputs'!$A139>0,(VLOOKUP('(1) Inputs'!$A139, DISAGGED_DATA, 20,)),0) ->  | R132: =IF(A132>0, IncDivCalc!F$2, 0) -> 0.3757213373 | S132: =IF('(1) Inputs'!$A139>0,(VLOOKUP('(1) Inputs'!$A139, PedCol!A128:J7320, 4,)),0) -> 3 | T132: =IF('(1) Inputs'!$A139>0,(VLOOKUP('(1) Inputs'!$A139, PedCol!A128:J7320, 5,)),0) -> 1339 | U132: =IF('(1) Inputs'!$A139>0,(VLOOKUP('(1) Inputs'!$A139, PedCol!A128:J7320, 6,)),0) -> 973 | V132: =IF('(1) Inputs'!$A139>0,(VLOOKUP('(1) Inputs'!$A139, PedCol!A128:J7320, 7,)),0) -> 57
A133: ='(1) Inputs'!A140 -> 60750303012 | B133: =IF(A133>0,(VLOOKUP(A133,Data,14,)),0) -> 47074.98 | C133: =IF('(1) Inputs'!$A140>0,(VLOOKUP('(1) Inputs'!$A140,Data,9,)),0) -> 3548.16 | D133: =IF('(1) Inputs'!$A140>0,(VLOOKUP('(1) Inputs'!$A140,Data,11,)),0) -> 33.0974 | E133: =IF('(1) Inputs'!$A140>0,(VLOOKUP('(1) Inputs'!$A140,IOR,2,)),0) -> 0.1393970979 | G133: =IF('(1) Inputs'!$A140>0,(VLOOKUP('(1) Inputs'!$A140,Data,4,)),0) -> 6.083874 | H133: =IF('(1) Inputs'!$A140>0,(VLOOKUP('(1) Inputs'!$A140,Data,5,)),0) -> 0.041528 | J133: =IF('(1) Inputs'!$A140>0,(VLOOKUP('(1) Inputs'!$A140,Data,7,)),0) -> 2.470925 | K133: =IF(ISERROR(IF('(1) Inputs'!$A140>0,(VLOOKUP('(1) Inputs'!$A140,Data,2,))/(VLOOKUP('(1) Inputs'!$A140,Data,3,)),0)),"-",IF('(1) Inputs'!$A140>0,(VLOOKUP('(1) Inputs'!$A140,Data,2,))/(VLOOKUP('(1) Inputs'!$A140,Data,3,)),0)) -> 38.82881739 | L133: =IF('(1) Inputs'!$A140>0,(VLOOKUP('(1) Inputs'!$A140,Data,6,)),0) -> 0.083056 | M133: =IF('(1) Inputs'!$A140>0,(VLOOKUP('(1) Inputs'!$A140,Data,8,)),0) -> 141.738 | P133: =IF('(1) Inputs'!$A140>0,(VLOOKUP('(1) Inputs'!$A140,Data,15,)),0) -> 66.9026 | Q133: =IF('(1) Inputs'!$A140>0,(VLOOKUP('(1) Inputs'!$A140, DISAGGED_DATA, 20,)),0) ->  | R133: =IF(A133>0, IncDivCalc!F$2, 0) -> 0.3757213373 | S133: =IF('(1) Inputs'!$A140>0,(VLOOKUP('(1) Inputs'!$A140, PedCol!A129:J7321, 4,)),0) -> 4 | T133: =IF('(1) Inputs'!$A140>0,(VLOOKUP('(1) Inputs'!$A140, PedCol!A129:J7321, 5,)),0) -> 1870 | U133: =IF('(1) Inputs'!$A140>0,(VLOOKUP('(1) Inputs'!$A140, PedCol!A129:J7321, 6,)),0) -> 1327 | V133: =IF('(1) Inputs'!$A140>0,(VLOOKUP('(1) Inputs'!$A140, PedCol!A129:J7321, 7,)),0) -> 64
A134: ='(1) Inputs'!A141 -> 60750301013 | B134: 45174.04 | C134: =IF('(1) Inputs'!$A141>0,(VLOOKUP('(1) Inputs'!$A141,Data,9,)),0) -> 10052.8 | D134: =IF('(1) Inputs'!$A141>0,(VLOOKUP('(1) Inputs'!$A141,Data,11,)),0) -> 34.17261 | E134: =IF('(1) Inputs'!$A141>0,(VLOOKUP('(1) Inputs'!$A141,IOR,2,)),0) -> 0.2518264764 | G134: =IF('(1) Inputs'!$A141>0,(VLOOKUP('(1) Inputs'!$A141,Data,4,)),0) -> 2.472079 | H134: =IF('(1) Inputs'!$A141>0,(VLOOKUP('(1) Inputs'!$A141,Data,5,)),0) -> 0 | J134: =IF('(1) Inputs'!$A141>0,(VLOOKUP('(1) Inputs'!$A141,Data,7,)),0) -> 0.068669 | K134: =IF(ISERROR(IF('(1) Inputs'!$A141>0,(VLOOKUP('(1) Inputs'!$A141,Data,2,))/(VLOOKUP('(1) Inputs'!$A141,Data,3,)),0)),"-",IF('(1) Inputs'!$A141>0,(VLOOKUP('(1) Inputs'!$A141,Data,2,))/(VLOOKUP('(1) Inputs'!$A141,Data,3,)),0)) -> 53.35138795 | L134: =IF('(1) Inputs'!$A141>0,(VLOOKUP('(1) Inputs'!$A141,Data,6,)),0) -> 0.824026 | M134: =IF('(1) Inputs'!$A141>0,(VLOOKUP('(1) Inputs'!$A141,Data,8,)),0) -> 317.782 | P134: =IF('(1) Inputs'!$A141>0,(VLOOKUP('(1) Inputs'!$A141,Data,15,)),0) -> 65.82739 | Q134: =IF('(1) Inputs'!$A141>0,(VLOOKUP('(1) Inputs'!$A141, DISAGGED_DATA, 20,)),0) ->  | R134: =IF(A134>0, IncDivCalc!F$2, 0) -> 0.3757213373 | S134: =IF('(1) Inputs'!$A141>0,(VLOOKUP('(1) Inputs'!$A141, PedCol!A130:J7322, 4,)),0) ->  | T134: =IF('(1) Inputs'!$A141>0,(VLOOKUP('(1) Inputs'!$A141, PedCol!A130:J7322, 5,)),0) ->  | U134: =IF('(1) Inputs'!$A141>0,(VLOOKUP('(1) Inputs'!$A141, PedCol!A130:J7322, 6,)),0) ->  | V134: =IF('(1) Inputs'!$A141>0,(VLOOKUP('(1) Inputs'!$A141, PedCol!A130:J7322, 7,)),0) -> 
A135: ='(1) Inputs'!A142 -> 60750165002 | B135: 49342.13 | C135: =IF('(1) Inputs'!$A142>0,(VLOOKUP('(1) Inputs'!$A142,Data,9,)),0) -> 7724.458667 | D135: =IF('(1) Inputs'!$A142>0,(VLOOKUP('(1) Inputs'!$A142,Data,11,)),0) -> 31.4096 | E135: =IF('(1) Inputs'!$A142>0,(VLOOKUP('(1) Inputs'!$A142,IOR,2,)),0) -> 0.1774215638 | G135: =IF('(1) Inputs'!$A142>0,(VLOOKUP('(1) Inputs'!$A142,Data,4,)),0) -> 15.773782 | H135: =IF('(1) Inputs'!$A142>0,(VLOOKUP('(1) Inputs'!$A142,Data,5,)),0) -> 0.438161 | J135: =IF('(1) Inputs'!$A142>0,(VLOOKUP('(1) Inputs'!$A142,Data,7,)),0) -> 0.701057 | K135: =IF(ISERROR(IF('(1) Inputs'!$A142>0,(VLOOKUP('(1) Inputs'!$A142,Data,2,))/(VLOOKUP('(1) Inputs'!$A142,Data,3,)),0)),"-",IF('(1) Inputs'!$A142>0,(VLOOKUP('(1) Inputs'!$A142,Data,2,))/(VLOOKUP('(1) Inputs'!$A142,Data,3,)),0)) -> 48.20490368 | L135: =IF('(1) Inputs'!$A142>0,(VLOOKUP('(1) Inputs'!$A142,Data,6,)),0) -> 1.095402 | M135: =IF('(1) Inputs'!$A142>0,(VLOOKUP('(1) Inputs'!$A142,Data,8,)),0) -> 196.151 | P135: =IF('(1) Inputs'!$A142>0,(VLOOKUP('(1) Inputs'!$A142,Data,15,)),0) -> 68.5904 | Q135: =IF('(1) Inputs'!$A142>0,(VLOOKUP('(1) Inputs'!$A142, DISAGGED_DATA, 20,)),0) ->  | R135: =IF(A135>0, IncDivCalc!F$2, 0) -> 0.3757213373 | S135: =IF('(1) Inputs'!$A142>0,(VLOOKUP('(1) Inputs'!$A142, PedCol!A131:J7323, 4,)),0) -> 1 | T135: =IF('(1) Inputs'!$A142>0,(VLOOKUP('(1) Inputs'!$A142, PedCol!A131:J7323, 5,)),0) -> 1101 | U135: =IF('(1) Inputs'!$A142>0,(VLOOKUP('(1) Inputs'!$A142, PedCol!A131:J7323, 6,)),0) -> 734 | V135: =IF('(1) Inputs'!$A142>0,(VLOOKUP('(1) Inputs'!$A142, PedCol!A131:J7323, 7,)),0) -> 57
A136: ='(1) Inputs'!A143 -> 60750165001 | B136: 46846.77 | C136: =IF('(1) Inputs'!$A143>0,(VLOOKUP('(1) Inputs'!$A143,Data,9,)),0) -> 8561.130667 | D136: =IF('(1) Inputs'!$A143>0,(VLOOKUP('(1) Inputs'!$A143,Data,11,)),0) -> 25.48055 | E136: =IF('(1) Inputs'!$A143>0,(VLOOKUP('(1) Inputs'!$A143,IOR,2,)),0) -> 0.2180551398 | G136: =IF('(1) Inputs'!$A143>0,(VLOOKUP('(1) Inputs'!$A143,Data,4,)),0) -> 16.567965 | H136: =IF('(1) Inputs'!$A143>0,(VLOOKUP('(1) Inputs'!$A143,Data,5,)),0) -> 0.393435 | J136: =IF('(1) Inputs'!$A143>0,(VLOOKUP('(1) Inputs'!$A143,Data,7,)),0) -> 6.906962 | K136: =IF(ISERROR(IF('(1) Inputs'!$A143>0,(VLOOKUP('(1) Inputs'!$A143,Data,2,))/(VLOOKUP('(1) Inputs'!$A143,Data,3,)),0)),"-",IF('(1) Inputs'!$A143>0,(VLOOKUP('(1) Inputs'!$A143,Data,2,))/(VLOOKUP('(1) Inputs'!$A143,Data,3,)),0)) -> 68.71989652 | L136: =IF('(1) Inputs'!$A143>0,(VLOOKUP('(1) Inputs'!$A143,Data,6,)),0) -> 0.043715 | M136: =IF('(1) Inputs'!$A143>0,(VLOOKUP('(1) Inputs'!$A143,Data,8,)),0) -> 167.89 | P136: =IF('(1) Inputs'!$A143>0,(VLOOKUP('(1) Inputs'!$A143,Data,15,)),0) -> 74.51945 | Q136: =IF('(1) Inputs'!$A143>0,(VLOOKUP('(1) Inputs'!$A143, DISAGGED_DATA, 20,)),0) ->  | R136: =IF(A136>0, IncDivCalc!F$2, 0) -> 0.3757213373 | S136: =IF('(1) Inputs'!$A143>0,(VLOOKUP('(1) Inputs'!$A143, PedCol!A132:J7324, 4,)),0) -> 1 | T136: =IF('(1) Inputs'!$A143>0,(VLOOKUP('(1) Inputs'!$A143, PedCol!A132:J7324, 5,)),0) -> 1572 | U136: =IF('(1) Inputs'!$A143>0,(VLOOKUP('(1) Inputs'!$A143, PedCol!A132:J7324, 6,)),0) -> 706 | V136: =IF('(1) Inputs'!$A143>0,(VLOOKUP('(1) Inputs'!$A143, PedCol!A132:J7324, 7,)),0) -> 0
A137: ='(1) Inputs'!A144 -> 60750171023 | B137: 53941.14 | C137: =IF('(1) Inputs'!$A144>0,(VLOOKUP('(1) Inputs'!$A144,Data,9,)),0) -> 7540.096 | D137: =IF('(1) Inputs'!$A144>0,(VLOOKUP('(1) Inputs'!$A144,Data,11,)),0) -> 34.96523 | E137: =IF('(1) Inputs'!$A144>0,(VLOOKUP('(1) Inputs'!$A144,IOR,2,)),0) -> 0.07656091205 | G137: =IF('(1) Inputs'!$A144>0,(VLOOKUP('(1) Inputs'!$A144,Data,4,)),0) -> 8.669942 | H137: =IF('(1) Inputs'!$A144>0,(VLOOKUP('(1) Inputs'!$A144,Data,5,)),0) -> 0.580272 | J137: =IF('(1) Inputs'!$A144>0,(VLOOKUP('(1) Inputs'!$A144,Data,7,)),0) -> 1.809082 | K137: =IF(ISERROR(IF('(1) Inputs'!$A144>0,(VLOOKUP('(1) Inputs'!$A144,Data,2,))/(VLOOKUP('(1) Inputs'!$A144,Data,3,)),0)),"-",IF('(1) Inputs'!$A144>0,(VLOOKUP('(1) Inputs'!$A144,Data,2,))/(VLOOKUP('(1) Inputs'!$A144,Data,3,)),0)) -> 54.77164281 | L137: =IF('(1) Inputs'!$A144>0,(VLOOKUP('(1) Inputs'!$A144,Data,6,)),0) -> 3.447497 | M137: =IF('(1) Inputs'!$A144>0,(VLOOKUP('(1) Inputs'!$A144,Data,8,)),0) -> 261.79 | P137: =IF('(1) Inputs'!$A144>0,(VLOOKUP('(1) Inputs'!$A144,Data,15,)),0) -> 65.03477 | Q137: =IF('(1) Inputs'!$A144>0,(VLOOKUP('(1) Inputs'!$A144, DISAGGED_DATA, 20,)),0) ->  | R137: =IF(A137>0, IncDivCalc!F$2, 0) -> 0.3757213373 | S137: =IF('(1) Inputs'!$A144>0,(VLOOKUP('(1) Inputs'!$A144, PedCol!A133:J7325, 4,)),0) -> 4 | T137: =IF('(1) Inputs'!$A144>0,(VLOOKUP('(1) Inputs'!$A144, PedCol!A133:J7325, 5,)),0) -> 1607 | U137: =IF('(1) Inputs'!$A144>0,(VLOOKUP('(1) Inputs'!$A144, PedCol!A133:J7325, 6,)),0) -> 1231 | V137: =IF('(1) Inputs'!$A144>0,(VLOOKUP('(1) Inputs'!$A144, PedCol!A133:J7325, 7,)),0) -> 96
A138: ='(1) Inputs'!A145 -> 60750158022 | B138: 61376.81 | C138: =IF('(1) Inputs'!$A145>0,(VLOOKUP('(1) Inputs'!$A145,Data,9,)),0) -> 9075.242667 | D138: =IF('(1) Inputs'!$A145>0,(VLOOKUP('(1) Inputs'!$A145,Data,11,)),0) -> 32.11534 | E138: =IF('(1) Inputs'!$A145>0,(VLOOKUP('(1) Inputs'!$A145,IOR,2,)),0) -> 0.1370490647 | G138: =IF('(1) Inputs'!$A145>0,(VLOOKUP('(1) Inputs'!$A145,Data,4,)),0) -> 10.678119 | H138: =IF('(1) Inputs'!$A145>0,(VLOOKUP('(1) Inputs'!$A145,Data,5,)),0) -> 0.043584 | J138: =IF('(1) Inputs'!$A145>0,(VLOOKUP('(1) Inputs'!$A145,Data,7,)),0) -> 0.828099 | K138: =IF(ISERROR(IF('(1) Inputs'!$A145>0,(VLOOKUP('(1) Inputs'!$A145,Data,2,))/(VLOOKUP('(1) Inputs'!$A145,Data,3,)),0)),"-",IF('(1) Inputs'!$A145>0,(VLOOKUP('(1) Inputs'!$A145,Data,2,))/(VLOOKUP('(1) Inputs'!$A145,Data,3,)),0)) -> 69.94345368 | L138: =IF('(1) Inputs'!$A145>0,(VLOOKUP('(1) Inputs'!$A145,Data,6,)),0) -> 5.186515 | M138: =IF('(1) Inputs'!$A145>0,(VLOOKUP('(1) Inputs'!$A145,Data,8,)),0) -> 194.874 | P138: =IF('(1) Inputs'!$A145>0,(VLOOKUP('(1) Inputs'!$A145,Data,15,)),0) -> 67.88466 | Q138: =IF('(1) Inputs'!$A145>0,(VLOOKUP('(1) Inputs'!$A145, DISAGGED_DATA, 20,)),0) ->  | R138: =IF(A138>0, IncDivCalc!F$2, 0) -> 0.3757213373 | S138: =IF('(1) Inputs'!$A145>0,(VLOOKUP('(1) Inputs'!$A145, PedCol!A134:J7326, 4,)),0) -> 1 | T138: =IF('(1) Inputs'!$A145>0,(VLOOKUP('(1) Inputs'!$A145, PedCol!A134:J7326, 5,)),0) -> 1608 | U138: =IF('(1) Inputs'!$A145>0,(VLOOKUP('(1) Inputs'!$A145, PedCol!A134:J7326, 6,)),0) -> 1003 | V138: =IF('(1) Inputs'!$A145>0,(VLOOKUP('(1) Inputs'!$A145, PedCol!A134:J7326, 7,)),0) -> 53
A139: ='(1) Inputs'!A146 -> 60759803001 | B139: 30629.12 | C139: =IF('(1) Inputs'!$A146>0,(VLOOKUP('(1) Inputs'!$A146,Data,9,)),0) -> 849.358933 | D139: =IF('(1) Inputs'!$A146>0,(VLOOKUP('(1) Inputs'!$A146,Data,11,)),0) -> 13.47299 | E139: =IF('(1) Inputs'!$A146>0,(VLOOKUP('(1) Inputs'!$A146,IOR,2,)),0) -> 0.3393970979 | G139: =IF('(1) Inputs'!$A146>0,(VLOOKUP('(1) Inputs'!$A146,Data,4,)),0) -> 1.157144 | H139: =IF('(1) Inputs'!$A146>0,(VLOOKUP('(1) Inputs'!$A146,Data,5,)),0) -> 0.017375 | J139: =IF('(1) Inputs'!$A146>0,(VLOOKUP('(1) Inputs'!$A146,Data,7,)),0) -> 0.001737 | K139: =IF(ISERROR(IF('(1) Inputs'!$A146>0,(VLOOKUP('(1) Inputs'!$A146,Data,2,))/(VLOOKUP('(1) Inputs'!$A146,Data,3,)),0)),"-",IF('(1) Inputs'!$A146>0,(VLOOKUP('(1) Inputs'!$A146,Data,2,))/(VLOOKUP('(1) Inputs'!$A146,Data,3,)),0)) -> 0.1485522669 | L139: =IF('(1) Inputs'!$A146>0,(VLOOKUP('(1) Inputs'!$A146,Data,6,)),0) -> 1.072877 | M139: =IF('(1) Inputs'!$A146>0,(VLOOKUP('(1) Inputs'!$A146,Data,8,)),0) -> 482.361 | P139: =IF('(1) Inputs'!$A146>0,(VLOOKUP('(1) Inputs'!$A146,Data,15,)),0) -> 86.52701 | Q139: =IF('(1) Inputs'!$A146>0,(VLOOKUP('(1) Inputs'!$A146, DISAGGED_DATA, 20,)),0) ->  | R139: =IF(A139>0, IncDivCalc!F$2, 0) -> 0.3757213373 | S139: =IF('(1) Inputs'!$A146>0,(VLOOKUP('(1) Inputs'!$A146, PedCol!A135:J7327, 4,)),0) -> 6 | T139: =IF('(1) Inputs'!$A146>0,(VLOOKUP('(1) Inputs'!$A146, PedCol!A135:J7327, 5,)),0) -> 171 | U139: =IF('(1) Inputs'!$A146>0,(VLOOKUP('(1) Inputs'!$A146, PedCol!A135:J7327, 6,)),0) -> 21 | V139: =IF('(1) Inputs'!$A146>0,(VLOOKUP('(1) Inputs'!$A146, PedCol!A135:J7327, 7,)),0) -> 0
A140: ='(1) Inputs'!A147 -> 60750305003 | B140: 26291.51 | C140: =IF('(1) Inputs'!$A147>0,(VLOOKUP('(1) Inputs'!$A147,Data,9,)),0) -> 1352.1984 | D140: =IF('(1) Inputs'!$A147>0,(VLOOKUP('(1) Inputs'!$A147,Data,11,)),0) -> 30.70119 | E140: =IF('(1) Inputs'!$A147>0,(VLOOKUP('(1) Inputs'!$A147,IOR,2,)),0) -> 0.3086857121 | G140: =IF('(1) Inputs'!$A147>0,(VLOOKUP('(1) Inputs'!$A147,Data,4,)),0) -> 1.018863 | H140: =IF('(1) Inputs'!$A147>0,(VLOOKUP('(1) Inputs'!$A147,Data,5,)),0) -> 0.04806 | J140: =IF('(1) Inputs'!$A147>0,(VLOOKUP('(1) Inputs'!$A147,Data,7,)),0) -> 0.211462 | K140: =IF(ISERROR(IF('(1) Inputs'!$A147>0,(VLOOKUP('(1) Inputs'!$A147,Data,2,))/(VLOOKUP('(1) Inputs'!$A147,Data,3,)),0)),"-",IF('(1) Inputs'!$A147>0,(VLOOKUP('(1) Inputs'!$A147,Data,2,))/(VLOOKUP('(1) Inputs'!$A147,Data,3,)),0)) -> 11.59349988 | L140: =IF('(1) Inputs'!$A147>0,(VLOOKUP('(1) Inputs'!$A147,Data,6,)),0) -> 0 | M140: =IF('(1) Inputs'!$A147>0,(VLOOKUP('(1) Inputs'!$A147,Data,8,)),0) -> 22.4186 | P140: =IF('(1) Inputs'!$A147>0,(VLOOKUP('(1) Inputs'!$A147,Data,15,)),0) -> 69.29881 | Q140: =IF('(1) Inputs'!$A147>0,(VLOOKUP('(1) Inputs'!$A147, DISAGGED_DATA, 20,)),0) ->  | R140: =IF(A140>0, IncDivCalc!F$2, 0) -> 0.3757213373 | S140: =IF('(1) Inputs'!$A147>0,(VLOOKUP('(1) Inputs'!$A147, PedCol!A136:J7328, 4,)),0) ->  | T140: =IF('(1) Inputs'!$A147>0,(VLOOKUP('(1) Inputs'!$A147, PedCol!A136:J7328, 5,)),0) ->  | U140: =IF('(1) Inputs'!$A147>0,(VLOOKUP('(1) Inputs'!$A147, PedCol!A136:J7328, 6,)),0) ->  | V140: =IF('(1) Inputs'!$A147>0,(VLOOKUP('(1) Inputs'!$A147, PedCol!A136:J7328, 7,)),0) -> 
A141: ='(1) Inputs'!A148 -> 60750165003 | B141: 41735.21 | C141: =IF('(1) Inputs'!$A148>0,(VLOOKUP('(1) Inputs'!$A148,Data,9,)),0) -> 9398.592 | D141: =IF('(1) Inputs'!$A148>0,(VLOOKUP('(1) Inputs'!$A148,Data,11,)),0) -> 29.01922 | E141: =IF('(1) Inputs'!$A148>0,(VLOOKUP('(1) Inputs'!$A148,IOR,2,)),0) -> 0.3113574089 | G141: =IF('(1) Inputs'!$A148>0,(VLOOKUP('(1) Inputs'!$A148,Data,4,)),0) -> 5.169607 | H141: =IF('(1) Inputs'!$A148>0,(VLOOKUP('(1) Inputs'!$A148,Data,5,)),0) -> 0.394292 | J141: =IF('(1) Inputs'!$A148>0,(VLOOKUP('(1) Inputs'!$A148,Data,7,)),0) -> 1.445737 | K141: =IF(ISERROR(IF('(1) Inputs'!$A148>0,(VLOOKUP('(1) Inputs'!$A148,Data,2,))/(VLOOKUP('(1) Inputs'!$A148,Data,3,)),0)),"-",IF('(1) Inputs'!$A148>0,(VLOOKUP('(1) Inputs'!$A148,Data,2,))/(VLOOKUP('(1) Inputs'!$A148,Data,3,)),0)) -> 58.08566434 | L141: =IF('(1) Inputs'!$A148>0,(VLOOKUP('(1) Inputs'!$A148,Data,6,)),0) -> 1.314307 | M141: =IF('(1) Inputs'!$A148>0,(VLOOKUP('(1) Inputs'!$A148,Data,8,)),0) -> 233.111 | P141: =IF('(1) Inputs'!$A148>0,(VLOOKUP('(1) Inputs'!$A148,Data,15,)),0) -> 70.98078 | Q141: =IF('(1) Inputs'!$A148>0,(VLOOKUP('(1) Inputs'!$A148, DISAGGED_DATA, 20,)),0) ->  | R141: =IF(A141>0, IncDivCalc!F$2, 0) -> 0.3757213373 | S141: =IF('(1) Inputs'!$A148>0,(VLOOKUP('(1) Inputs'!$A148, PedCol!A137:J7329, 4,)),0) ->  | T141: =IF('(1) Inputs'!$A148>0,(VLOOKUP('(1) Inputs'!$A148, PedCol!A137:J7329, 5,)),0) ->  | U141: =IF('(1) Inputs'!$A148>0,(VLOOKUP('(1) Inputs'!$A148, PedCol!A137:J7329, 6,)),0) ->  | V141: =IF('(1) Inputs'!$A148>0,(VLOOKUP('(1) Inputs'!$A148, PedCol!A137:J7329, 7,)),0) -> 
A142: ='(1) Inputs'!A149 -> 60750303014 | B142: 26261.78 | C142: =IF('(1) Inputs'!$A149>0,(VLOOKUP('(1) Inputs'!$A149,Data,9,)),0) -> 2377.088 | D142: =IF('(1) Inputs'!$A149>0,(VLOOKUP('(1) Inputs'!$A149,Data,11,)),0) -> 38.90382 | E142: =IF('(1) Inputs'!$A149>0,(VLOOKUP('(1) Inputs'!$A149,IOR,2,)),0) -> 0.1403245887 | G142: =IF('(1) Inputs'!$A149>0,(VLOOKUP('(1) Inputs'!$A149,Data,4,)),0) -> 1.793036 | H142: =IF('(1) Inputs'!$A149>0,(VLOOKUP('(1) Inputs'!$A149,Data,5,)),0) -> 0.047185 | J142: =IF('(1) Inputs'!$A149>0,(VLOOKUP('(1) Inputs'!$A149,Data,7,)),0) -> 0 | K142: =IF(ISERROR(IF('(1) Inputs'!$A149>0,(VLOOKUP('(1) Inputs'!$A149,Data,2,))/(VLOOKUP('(1) Inputs'!$A149,Data,3,)),0)),"-",IF('(1) Inputs'!$A149>0,(VLOOKUP('(1) Inputs'!$A149,Data,2,))/(VLOOKUP('(1) Inputs'!$A149,Data,3,)),0)) -> 21.77876823 | L142: =IF('(1) Inputs'!$A149>0,(VLOOKUP('(1) Inputs'!$A149,Data,6,)),0) -> 0.353889 | M142: =IF('(1) Inputs'!$A149>0,(VLOOKUP('(1) Inputs'!$A149,Data,8,)),0) -> 211.823 | P142: =IF('(1) Inputs'!$A149>0,(VLOOKUP('(1) Inputs'!$A149,Data,15,)),0) -> 61.09618 | Q142: =IF('(1) Inputs'!$A149>0,(VLOOKUP('(1) Inputs'!$A149, DISAGGED_DATA, 20,)),0) ->  | R142: =IF(A142>0, IncDivCalc!F$2, 0) -> 0.3757213373 | S142: =IF('(1) Inputs'!$A149>0,(VLOOKUP('(1) Inputs'!$A149, PedCol!A138:J7330, 4,)),0) ->  | T142: =IF('(1) Inputs'!$A149>0,(VLOOKUP('(1) Inputs'!$A149, PedCol!A138:J7330, 5,)),0) ->  | U142: =IF('(1) Inputs'!$A149>0,(VLOOKUP('(1) Inputs'!$A149, PedCol!A138:J7330, 6,)),0) ->  | V142: =IF('(1) Inputs'!$A149>0,(VLOOKUP('(1) Inputs'!$A149, PedCol!A138:J7330, 7,)),0) -> 
A143: ='(1) Inputs'!A150 -> 60750305001 | B143: 29524.94 | C143: =IF('(1) Inputs'!$A150>0,(VLOOKUP('(1) Inputs'!$A150,Data,9,)),0) -> 1263.547733 | D143: =IF('(1) Inputs'!$A150>0,(VLOOKUP('(1) Inputs'!$A150,Data,11,)),0) -> 39.65562 | E143: =IF('(1) Inputs'!$A150>0,(VLOOKUP('(1) Inputs'!$A150,IOR,2,)),0) -> 0.2278229524 | G143: =IF('(1) Inputs'!$A150>0,(VLOOKUP('(1) Inputs'!$A150,Data,4,)),0) -> 0.437386 | H143: =IF('(1) Inputs'!$A150>0,(VLOOKUP('(1) Inputs'!$A150,Data,5,)),0) -> 0.028218 | J143: =IF('(1) Inputs'!$A150>0,(VLOOKUP('(1) Inputs'!$A150,Data,7,)),0) -> 0.028218 | K143: =IF(ISERROR(IF('(1) Inputs'!$A150>0,(VLOOKUP('(1) Inputs'!$A150,Data,2,))/(VLOOKUP('(1) Inputs'!$A150,Data,3,)),0)),"-",IF('(1) Inputs'!$A150>0,(VLOOKUP('(1) Inputs'!$A150,Data,2,))/(VLOOKUP('(1) Inputs'!$A150,Data,3,)),0)) -> 7.166502639 | L143: =IF('(1) Inputs'!$A150>0,(VLOOKUP('(1) Inputs'!$A150,Data,6,)),0) -> 0.028218 | M143: =IF('(1) Inputs'!$A150>0,(VLOOKUP('(1) Inputs'!$A150,Data,8,)),0) -> 79.236 | P143: =IF('(1) Inputs'!$A150>0,(VLOOKUP('(1) Inputs'!$A150,Data,15,)),0) -> 60.34438 | Q143: =IF('(1) Inputs'!$A150>0,(VLOOKUP('(1) Inputs'!$A150, DISAGGED_DATA, 20,)),0) ->  | R143: =IF(A143>0, IncDivCalc!F$2, 0) -> 0.3757213373 | S143: =IF('(1) Inputs'!$A150>0,(VLOOKUP('(1) Inputs'!$A150, PedCol!A139:J7331, 4,)),0) ->  | T143: =IF('(1) Inputs'!$A150>0,(VLOOKUP('(1) Inputs'!$A150, PedCol!A139:J7331, 5,)),0) ->  | U143: =IF('(1) Inputs'!$A150>0,(VLOOKUP('(1) Inputs'!$A150, PedCol!A139:J7331, 6,)),0) ->  | V143: =IF('(1) Inputs'!$A150>0,(VLOOKUP('(1) Inputs'!$A150, PedCol!A139:J7331, 7,)),0) -> 
A144: ='(1) Inputs'!A151 -> 60750303013 | B144: 35146.31 | C144: =IF('(1) Inputs'!$A151>0,(VLOOKUP('(1) Inputs'!$A151,Data,9,)),0) -> 2432.128 | D144: =IF('(1) Inputs'!$A151>0,(VLOOKUP('(1) Inputs'!$A151,Data,11,)),0) -> 28.23549 | E144: =IF('(1) Inputs'!$A151>0,(VLOOKUP('(1) Inputs'!$A151,IOR,2,)),0) -> 0.1321243706 | G144: =IF('(1) Inputs'!$A151>0,(VLOOKUP('(1) Inputs'!$A151,Data,4,)),0) -> 0.924953 | H144: =IF('(1) Inputs'!$A151>0,(VLOOKUP('(1) Inputs'!$A151,Data,5,)),0) -> 0 | J144: =IF('(1) Inputs'!$A151>0,(VLOOKUP('(1) Inputs'!$A151,Data,7,)),0) -> 0.086042 | K144: =IF(ISERROR(IF('(1) Inputs'!$A151>0,(VLOOKUP('(1) Inputs'!$A151,Data,2,))/(VLOOKUP('(1) Inputs'!$A151,Data,3,)),0)),"-",IF('(1) Inputs'!$A151>0,(VLOOKUP('(1) Inputs'!$A151,Data,2,))/(VLOOKUP('(1) Inputs'!$A151,Data,3,)),0)) -> 32.56693554 | L144: =IF('(1) Inputs'!$A151>0,(VLOOKUP('(1) Inputs'!$A151,Data,6,)),0) -> 0 | M144: =IF('(1) Inputs'!$A151>0,(VLOOKUP('(1) Inputs'!$A151,Data,8,)),0) -> 151.434 | P144: =IF('(1) Inputs'!$A151>0,(VLOOKUP('(1) Inputs'!$A151,Data,15,)),0) -> 71.76451 | Q144: =IF('(1) Inputs'!$A151>0,(VLOOKUP('(1) Inputs'!$A151, DISAGGED_DATA, 20,)),0) ->  | R144: =IF(A144>0, IncDivCalc!F$2, 0) -> 0.3757213373 | S144: =IF('(1) Inputs'!$A151>0,(VLOOKUP('(1) Inputs'!$A151, PedCol!A140:J7332, 4,)),0) ->  | T144: =IF('(1) Inputs'!$A151>0,(VLOOKUP('(1) Inputs'!$A151, PedCol!A140:J7332, 5,)),0) ->  | U144: =IF('(1) Inputs'!$A151>0,(VLOOKUP('(1) Inputs'!$A151, PedCol!A140:J7332, 6,)),0) ->  | V144: =IF('(1) Inputs'!$A151>0,(VLOOKUP('(1) Inputs'!$A151, PedCol!A140:J7332, 7,)),0) -> 
A145: ='(1) Inputs'!A152 -> 60750157002 | B145: 50404.4 | C145: =IF('(1) Inputs'!$A152>0,(VLOOKUP('(1) Inputs'!$A152,Data,9,)),0) -> 5831.018667 | D145: =IF('(1) Inputs'!$A152>0,(VLOOKUP('(1) Inputs'!$A152,Data,11,)),0) -> 34.24951 | E145: =IF('(1) Inputs'!$A152>0,(VLOOKUP('(1) Inputs'!$A152,IOR,2,)),0) -> 0.1459955052 | G145: =IF('(1) Inputs'!$A152>0,(VLOOKUP('(1) Inputs'!$A152,Data,4,)),0) -> 5.232576 | H145: =IF('(1) Inputs'!$A152>0,(VLOOKUP('(1) Inputs'!$A152,Data,5,)),0) -> 2.372534 | J145: =IF('(1) Inputs'!$A152>0,(VLOOKUP('(1) Inputs'!$A152,Data,7,)),0) -> 0.162502 | K145: =IF(ISERROR(IF('(1) Inputs'!$A152>0,(VLOOKUP('(1) Inputs'!$A152,Data,2,))/(VLOOKUP('(1) Inputs'!$A152,Data,3,)),0)),"-",IF('(1) Inputs'!$A152>0,(VLOOKUP('(1) Inputs'!$A152,Data,2,))/(VLOOKUP('(1) Inputs'!$A152,Data,3,)),0)) -> 61.75089662 | L145: =IF('(1) Inputs'!$A152>0,(VLOOKUP('(1) Inputs'!$A152,Data,6,)),0) -> 0.520008 | M145: =IF('(1) Inputs'!$A152>0,(VLOOKUP('(1) Inputs'!$A152,Data,8,)),0) -> 97.0608 | P145: =IF('(1) Inputs'!$A152>0,(VLOOKUP('(1) Inputs'!$A152,Data,15,)),0) -> 65.75049 | Q145: =IF('(1) Inputs'!$A152>0,(VLOOKUP('(1) Inputs'!$A152, DISAGGED_DATA, 20,)),0) ->  | R145: =IF(A145>0, IncDivCalc!F$2, 0) -> 0.3757213373 | S145: =IF('(1) Inputs'!$A152>0,(VLOOKUP('(1) Inputs'!$A152, PedCol!A141:J7333, 4,)),0) -> 1 | T145: =IF('(1) Inputs'!$A152>0,(VLOOKUP('(1) Inputs'!$A152, PedCol!A141:J7333, 5,)),0) -> 1900 | U145: =IF('(1) Inputs'!$A152>0,(VLOOKUP('(1) Inputs'!$A152, PedCol!A141:J7333, 6,)),0) -> 1007 | V145: =IF('(1) Inputs'!$A152>0,(VLOOKUP('(1) Inputs'!$A152, PedCol!A141:J7333, 7,)),0) -> 32
A146: ='(1) Inputs'!A153 -> 60750301012 | B146: 51182.16 | C146: =IF('(1) Inputs'!$A153>0,(VLOOKUP('(1) Inputs'!$A153,Data,9,)),0) -> 5211.328 | D146: =IF('(1) Inputs'!$A153>0,(VLOOKUP('(1) Inputs'!$A153,Data,11,)),0) -> 30.40578 | E146: =IF('(1) Inputs'!$A153>0,(VLOOKUP('(1) Inputs'!$A153,IOR,2,)),0) -> 0.05551617602 | G146: =IF('(1) Inputs'!$A153>0,(VLOOKUP('(1) Inputs'!$A153,Data,4,)),0) -> 3.516234 | H146: =IF('(1) Inputs'!$A153>0,(VLOOKUP('(1) Inputs'!$A153,Data,5,)),0) -> 0.040886 | J146: =IF('(1) Inputs'!$A153>0,(VLOOKUP('(1) Inputs'!$A153,Data,7,)),0) -> 0.654183 | K146: =IF(ISERROR(IF('(1) Inputs'!$A153>0,(VLOOKUP('(1) Inputs'!$A153,Data,2,))/(VLOOKUP('(1) Inputs'!$A153,Data,3,)),0)),"-",IF('(1) Inputs'!$A153>0,(VLOOKUP('(1) Inputs'!$A153,Data,2,))/(VLOOKUP('(1) Inputs'!$A153,Data,3,)),0)) -> 49.3872549 | L146: =IF('(1) Inputs'!$A153>0,(VLOOKUP('(1) Inputs'!$A153,Data,6,)),0) -> 1.921663 | M146: =IF('(1) Inputs'!$A153>0,(VLOOKUP('(1) Inputs'!$A153,Data,8,)),0) -> 204.824 | P146: =IF('(1) Inputs'!$A153>0,(VLOOKUP('(1) Inputs'!$A153,Data,15,)),0) -> 69.59422 | Q146: =IF('(1) Inputs'!$A153>0,(VLOOKUP('(1) Inputs'!$A153, DISAGGED_DATA, 20,)),0) ->  | R146: =IF(A146>0, IncDivCalc!F$2, 0) -> 0.3757213373 | S146: =IF('(1) Inputs'!$A153>0,(VLOOKUP('(1) Inputs'!$A153, PedCol!A142:J7334, 4,)),0) ->  | T146: =IF('(1) Inputs'!$A153>0,(VLOOKUP('(1) Inputs'!$A153, PedCol!A142:J7334, 5,)),0) ->  | U146: =IF('(1) Inputs'!$A153>0,(VLOOKUP('(1) Inputs'!$A153, PedCol!A142:J7334, 6,)),0) ->  | V146: =IF('(1) Inputs'!$A153>0,(VLOOKUP('(1) Inputs'!$A153, PedCol!A142:J7334, 7,)),0) -> 
A147: ='(1) Inputs'!A154 -> 60750166003 | B147: 47279.28 | C147: =IF('(1) Inputs'!$A154>0,(VLOOKUP('(1) Inputs'!$A154,Data,9,)),0) -> 6125.994667 | D147: =IF('(1) Inputs'!$A154>0,(VLOOKUP('(1) Inputs'!$A154,Data,11,)),0) -> 27.5094 | E147: =IF('(1) Inputs'!$A154>0,(VLOOKUP('(1) Inputs'!$A154,IOR,2,)),0) -> 0.1451939746 | G147: =IF('(1) Inputs'!$A154>0,(VLOOKUP('(1) Inputs'!$A154,Data,4,)),0) -> 24.712307 | H147: =IF('(1) Inputs'!$A154>0,(VLOOKUP('(1) Inputs'!$A154,Data,5,)),0) -> 9.49764 | J147: =IF('(1) Inputs'!$A154>0,(VLOOKUP('(1) Inputs'!$A154,Data,7,)),0) -> 0.737681 | K147: =IF(ISERROR(IF('(1) Inputs'!$A154>0,(VLOOKUP('(1) Inputs'!$A154,Data,2,))/(VLOOKUP('(1) Inputs'!$A154,Data,3,)),0)),"-",IF('(1) Inputs'!$A154>0,(VLOOKUP('(1) Inputs'!$A154,Data,2,))/(VLOOKUP('(1) Inputs'!$A154,Data,3,)),0)) -> 55.41284404 | L147: =IF('(1) Inputs'!$A154>0,(VLOOKUP('(1) Inputs'!$A154,Data,6,)),0) -> 8.667749 | M147: =IF('(1) Inputs'!$A154>0,(VLOOKUP('(1) Inputs'!$A154,Data,8,)),0) -> 254.467 | P147: =IF('(1) Inputs'!$A154>0,(VLOOKUP('(1) Inputs'!$A154,Data,15,)),0) -> 72.4906 | Q147: =IF('(1) Inputs'!$A154>0,(VLOOKUP('(1) Inputs'!$A154, DISAGGED_DATA, 20,)),0) ->  | R147: =IF(A147>0, IncDivCalc!F$2, 0) -> 0.3757213373 | S147: =IF('(1) Inputs'!$A154>0,(VLOOKUP('(1) Inputs'!$A154, PedCol!A143:J7335, 4,)),0) ->  | T147: =IF('(1) Inputs'!$A154>0,(VLOOKUP('(1) Inputs'!$A154, PedCol!A143:J7335, 5,)),0) ->  | U147: =IF('(1) Inputs'!$A154>0,(VLOOKUP('(1) Inputs'!$A154, PedCol!A143:J7335, 6,)),0) ->  | V147: =IF('(1) Inputs'!$A154>0,(VLOOKUP('(1) Inputs'!$A154, PedCol!A143:J7335, 7,)),0) -> 
A148: ='(1) Inputs'!A155 -> 60750303011 | B148: 28578.09 | C148: =IF('(1) Inputs'!$A155>0,(VLOOKUP('(1) Inputs'!$A155,Data,9,)),0) -> 3866.858667 | D148: =IF('(1) Inputs'!$A155>0,(VLOOKUP('(1) Inputs'!$A155,Data,11,)),0) -> 34.20449 | E148: =IF('(1) Inputs'!$A155>0,(VLOOKUP('(1) Inputs'!$A155,IOR,2,)),0) -> 0.05736849311 | G148: =IF('(1) Inputs'!$A155>0,(VLOOKUP('(1) Inputs'!$A155,Data,4,)),0) -> 1.580644 | H148: =IF('(1) Inputs'!$A155>0,(VLOOKUP('(1) Inputs'!$A155,Data,5,)),0) -> 0 | J148: =IF('(1) Inputs'!$A155>0,(VLOOKUP('(1) Inputs'!$A155,Data,7,)),0) -> 0 | K148: =IF(ISERROR(IF('(1) Inputs'!$A155>0,(VLOOKUP('(1) Inputs'!$A155,Data,2,))/(VLOOKUP('(1) Inputs'!$A155,Data,3,)),0)),"-",IF('(1) Inputs'!$A155>0,(VLOOKUP('(1) Inputs'!$A155,Data,2,))/(VLOOKUP('(1) Inputs'!$A155,Data,3,)),0)) -> 28.37198296 | L148: =IF('(1) Inputs'!$A155>0,(VLOOKUP('(1) Inputs'!$A155,Data,6,)),0) -> 0.28739 | M148: =IF('(1) Inputs'!$A155>0,(VLOOKUP('(1) Inputs'!$A155,Data,8,)),0) -> 126.209 | P148: =IF('(1) Inputs'!$A155>0,(VLOOKUP('(1) Inputs'!$A155,Data,15,)),0) -> 65.79551 | Q148: =IF('(1) Inputs'!$A155>0,(VLOOKUP('(1) Inputs'!$A155, DISAGGED_DATA, 20,)),0) ->  | R148: =IF(A148>0, IncDivCalc!F$2, 0) -> 0.3757213373 | S148: =IF('(1) Inputs'!$A155>0,(VLOOKUP('(1) Inputs'!$A155, PedCol!A144:J7336, 4,)),0) ->  | T148: =IF('(1) Inputs'!$A155>0,(VLOOKUP('(1) Inputs'!$A155, PedCol!A144:J7336, 5,)),0) ->  | U148: =IF('(1) Inputs'!$A155>0,(VLOOKUP('(1) Inputs'!$A155, PedCol!A144:J7336, 6,)),0) ->  | V148: =IF('(1) Inputs'!$A155>0,(VLOOKUP('(1) Inputs'!$A155, PedCol!A144:J7336, 7,)),0) -> 
A149: ='(1) Inputs'!A156 -> 60750124021 | B149: 116050.43 | C149: =IF('(1) Inputs'!$A156>0,(VLOOKUP('(1) Inputs'!$A156,Data,9,)),0) -> 16427.712 | D149: =IF('(1) Inputs'!$A156>0,(VLOOKUP('(1) Inputs'!$A156,Data,11,)),0) -> 27.73852 | E149: =IF('(1) Inputs'!$A156>0,(VLOOKUP('(1) Inputs'!$A156,IOR,2,)),0) -> 0.3813421218 | G149: =IF('(1) Inputs'!$A156>0,(VLOOKUP('(1) Inputs'!$A156,Data,4,)),0) -> 116.489221 | H149: =IF('(1) Inputs'!$A156>0,(VLOOKUP('(1) Inputs'!$A156,Data,5,)),0) -> 0.163839 | J149: =IF('(1) Inputs'!$A156>0,(VLOOKUP('(1) Inputs'!$A156,Data,7,)),0) -> 3.522529 | K149: =IF(ISERROR(IF('(1) Inputs'!$A156>0,(VLOOKUP('(1) Inputs'!$A156,Data,2,))/(VLOOKUP('(1) Inputs'!$A156,Data,3,)),0)),"-",IF('(1) Inputs'!$A156>0,(VLOOKUP('(1) Inputs'!$A156,Data,2,))/(VLOOKUP('(1) Inputs'!$A156,Data,3,)),0)) -> 43.37152209 | L149: =IF('(1) Inputs'!$A156>0,(VLOOKUP('(1) Inputs'!$A156,Data,6,)),0) -> 55.172637 | M149: =IF('(1) Inputs'!$A156>0,(VLOOKUP('(1) Inputs'!$A156,Data,8,)),0) -> 382.015 | P149: =IF('(1) Inputs'!$A156>0,(VLOOKUP('(1) Inputs'!$A156,Data,15,)),0) -> 72.26148 | Q149: =IF('(1) Inputs'!$A156>0,(VLOOKUP('(1) Inputs'!$A156, DISAGGED_DATA, 20,)),0) ->  | R149: =IF(A149>0, IncDivCalc!F$2, 0) -> 0.3757213373 | S149: =IF('(1) Inputs'!$A156>0,(VLOOKUP('(1) Inputs'!$A156, PedCol!A145:J7337, 4,)),0) -> 3 | T149: =IF('(1) Inputs'!$A156>0,(VLOOKUP('(1) Inputs'!$A156, PedCol!A145:J7337, 5,)),0) -> 1060 | U149: =IF('(1) Inputs'!$A156>0,(VLOOKUP('(1) Inputs'!$A156, PedCol!A145:J7337, 6,)),0) -> 260 | V149: =IF('(1) Inputs'!$A156>0,(VLOOKUP('(1) Inputs'!$A156, PedCol!A145:J7337, 7,)),0) -> 35
A150: ='(1) Inputs'!A157 -> 60750124021 | B150: 116050.43 | C150: =IF('(1) Inputs'!$A157>0,(VLOOKUP('(1) Inputs'!$A157,Data,9,)),0) -> 16427.712 | D150: =IF('(1) Inputs'!$A157>0,(VLOOKUP('(1) Inputs'!$A157,Data,11,)),0) -> 27.73852 | E150: =IF('(1) Inputs'!$A157>0,(VLOOKUP('(1) Inputs'!$A157,IOR,2,)),0) -> 0.3813421218 | G150: =IF('(1) Inputs'!$A157>0,(VLOOKUP('(1) Inputs'!$A157,Data,4,)),0) -> 116.489221 | H150: =IF('(1) Inputs'!$A157>0,(VLOOKUP('(1) Inputs'!$A157,Data,5,)),0) -> 0.163839 | J150: =IF('(1) Inputs'!$A157>0,(VLOOKUP('(1) Inputs'!$A157,Data,7,)),0) -> 3.522529 | K150: =IF(ISERROR(IF('(1) Inputs'!$A157>0,(VLOOKUP('(1) Inputs'!$A157,Data,2,))/(VLOOKUP('(1) Inputs'!$A157,Data,3,)),0)),"-",IF('(1) Inputs'!$A157>0,(VLOOKUP('(1) Inputs'!$A157,Data,2,))/(VLOOKUP('(1) Inputs'!$A157,Data,3,)),0)) -> 43.37152209 | L150: =IF('(1) Inputs'!$A157>0,(VLOOKUP('(1) Inputs'!$A157,Data,6,)),0) -> 55.172637 | M150: =IF('(1) Inputs'!$A157>0,(VLOOKUP('(1) Inputs'!$A157,Data,8,)),0) -> 382.015 | P150: =IF('(1) Inputs'!$A157>0,(VLOOKUP('(1) Inputs'!$A157,Data,15,)),0) -> 72.26148 | Q150: =IF('(1) Inputs'!$A157>0,(VLOOKUP('(1) Inputs'!$A157, DISAGGED_DATA, 20,)),0) ->  | R150: =IF(A150>0, IncDivCalc!F$2, 0) -> 0.3757213373 | S150: =IF('(1) Inputs'!$A157>0,(VLOOKUP('(1) Inputs'!$A157, PedCol!A146:J7338, 4,)),0) -> 3 | T150: =IF('(1) Inputs'!$A157>0,(VLOOKUP('(1) Inputs'!$A157, PedCol!A146:J7338, 5,)),0) -> 1060 | U150: =IF('(1) Inputs'!$A157>0,(VLOOKUP('(1) Inputs'!$A157, PedCol!A146:J7338, 6,)),0) -> 260 | V150: =IF('(1) Inputs'!$A157>0,(VLOOKUP('(1) Inputs'!$A157, PedCol!A146:J7338, 7,)),0) -> 35
A151: ='(1) Inputs'!A158 -> 60750124022 | B151: 104347.49 | C151: =IF('(1) Inputs'!$A158>0,(VLOOKUP('(1) Inputs'!$A158,Data,9,)),0) -> 10424 | D151: =IF('(1) Inputs'!$A158>0,(VLOOKUP('(1) Inputs'!$A158,Data,11,)),0) -> 27.73852 | E151: =IF('(1) Inputs'!$A158>0,(VLOOKUP('(1) Inputs'!$A158,IOR,2,)),0) -> 0.2714626306 | G151: =IF('(1) Inputs'!$A158>0,(VLOOKUP('(1) Inputs'!$A158,Data,4,)),0) -> 89.871483 | H151: =IF('(1) Inputs'!$A158>0,(VLOOKUP('(1) Inputs'!$A158,Data,5,)),0) -> 0.362482 | J151: =IF('(1) Inputs'!$A158>0,(VLOOKUP('(1) Inputs'!$A158,Data,7,)),0) -> 6.524684 | K151: =IF(ISERROR(IF('(1) Inputs'!$A158>0,(VLOOKUP('(1) Inputs'!$A158,Data,2,))/(VLOOKUP('(1) Inputs'!$A158,Data,3,)),0)),"-",IF('(1) Inputs'!$A158>0,(VLOOKUP('(1) Inputs'!$A158,Data,2,))/(VLOOKUP('(1) Inputs'!$A158,Data,3,)),0)) -> 20.10657922 | L151: =IF('(1) Inputs'!$A158>0,(VLOOKUP('(1) Inputs'!$A158,Data,6,)),0) -> 8.071276 | M151: =IF('(1) Inputs'!$A158>0,(VLOOKUP('(1) Inputs'!$A158,Data,8,)),0) -> 449.407 | P151: =IF('(1) Inputs'!$A158>0,(VLOOKUP('(1) Inputs'!$A158,Data,15,)),0) -> 72.26148 | Q151: =IF('(1) Inputs'!$A158>0,(VLOOKUP('(1) Inputs'!$A158, DISAGGED_DATA, 20,)),0) ->  | R151: =IF(A151>0, IncDivCalc!F$2, 0) -> 0.3757213373 | S151: =IF('(1) Inputs'!$A158>0,(VLOOKUP('(1) Inputs'!$A158, PedCol!A147:J7339, 4,)),0) -> 13 | T151: =IF('(1) Inputs'!$A158>0,(VLOOKUP('(1) Inputs'!$A158, PedCol!A147:J7339, 5,)),0) -> 981 | U151: =IF('(1) Inputs'!$A158>0,(VLOOKUP('(1) Inputs'!$A158, PedCol!A147:J7339, 6,)),0) -> 354 | V151: =IF('(1) Inputs'!$A158>0,(VLOOKUP('(1) Inputs'!$A158, PedCol!A147:J7339, 7,)),0) -> 22
A152: ='(1) Inputs'!A159 -> 60750166004 | B152: 47926.58 | C152: =IF('(1) Inputs'!$A159>0,(VLOOKUP('(1) Inputs'!$A159,Data,9,)),0) -> 7117.397333 | D152: =IF('(1) Inputs'!$A159>0,(VLOOKUP('(1) Inputs'!$A159,Data,11,)),0) -> 33.95793 | E152: =IF('(1) Inputs'!$A159>0,(VLOOKUP('(1) Inputs'!$A159,IOR,2,)),0) -> 0.0829481913 | G152: =IF('(1) Inputs'!$A159>0,(VLOOKUP('(1) Inputs'!$A159,Data,4,)),0) -> 24.569443 | H152: =IF('(1) Inputs'!$A159>0,(VLOOKUP('(1) Inputs'!$A159,Data,5,)),0) -> 11.023047 | J152: =IF('(1) Inputs'!$A159>0,(VLOOKUP('(1) Inputs'!$A159,Data,7,)),0) -> 0.708308 | K152: =IF(ISERROR(IF('(1) Inputs'!$A159>0,(VLOOKUP('(1) Inputs'!$A159,Data,2,))/(VLOOKUP('(1) Inputs'!$A159,Data,3,)),0)),"-",IF('(1) Inputs'!$A159>0,(VLOOKUP('(1) Inputs'!$A159,Data,2,))/(VLOOKUP('(1) Inputs'!$A159,Data,3,)),0)) -> 52.34513274 | L152: =IF('(1) Inputs'!$A159>0,(VLOOKUP('(1) Inputs'!$A159,Data,6,)),0) -> 4.736811 | M152: =IF('(1) Inputs'!$A159>0,(VLOOKUP('(1) Inputs'!$A159,Data,8,)),0) -> 141.59 | P152: =IF('(1) Inputs'!$A159>0,(VLOOKUP('(1) Inputs'!$A159,Data,15,)),0) -> 66.04207 | Q152: =IF('(1) Inputs'!$A159>0,(VLOOKUP('(1) Inputs'!$A159, DISAGGED_DATA, 20,)),0) ->  | R152: =IF(A152>0, IncDivCalc!F$2, 0) -> 0.3757213373 | S152: =IF('(1) Inputs'!$A159>0,(VLOOKUP('(1) Inputs'!$A159, PedCol!A148:J7340, 4,)),0) -> 1 | T152: =IF('(1) Inputs'!$A159>0,(VLOOKUP('(1) Inputs'!$A159, PedCol!A148:J7340, 5,)),0) -> 1183 | U152: =IF('(1) Inputs'!$A159>0,(VLOOKUP('(1) Inputs'!$A159, PedCol!A148:J7340, 6,)),0) -> 738 | V152: =IF('(1) Inputs'!$A159>0,(VLOOKUP('(1) Inputs'!$A159, PedCol!A148:J7340, 7,)),0) -> 114
A153: ='(1) Inputs'!A160 -> 60750171013 | B153: 47805.41 | C153: =IF('(1) Inputs'!$A160>0,(VLOOKUP('(1) Inputs'!$A160,Data,9,)),0) -> 8161.898667 | D153: =IF('(1) Inputs'!$A160>0,(VLOOKUP('(1) Inputs'!$A160,Data,11,)),0) -> 30.45017 | E153: =IF('(1) Inputs'!$A160>0,(VLOOKUP('(1) Inputs'!$A160,IOR,2,)),0) -> 0.2028657326 | G153: =IF('(1) Inputs'!$A160>0,(VLOOKUP('(1) Inputs'!$A160,Data,4,)),0) -> 11.459864 | H153: =IF('(1) Inputs'!$A160>0,(VLOOKUP('(1) Inputs'!$A160,Data,5,)),0) -> 0 | J153: =IF('(1) Inputs'!$A160>0,(VLOOKUP('(1) Inputs'!$A160,Data,7,)),0) -> 0.805772 | K153: =IF(ISERROR(IF('(1) Inputs'!$A160>0,(VLOOKUP('(1) Inputs'!$A160,Data,2,))/(VLOOKUP('(1) Inputs'!$A160,Data,3,)),0)),"-",IF('(1) Inputs'!$A160>0,(VLOOKUP('(1) Inputs'!$A160,Data,2,))/(VLOOKUP('(1) Inputs'!$A160,Data,3,)),0)) -> 53.92857143 | L153: =IF('(1) Inputs'!$A160>0,(VLOOKUP('(1) Inputs'!$A160,Data,6,)),0) -> 0 | M153: =IF('(1) Inputs'!$A160>0,(VLOOKUP('(1) Inputs'!$A160,Data,8,)),0) -> 309.581 | P153: =IF('(1) Inputs'!$A160>0,(VLOOKUP('(1) Inputs'!$A160,Data,15,)),0) -> 69.54983 | Q153: =IF('(1) Inputs'!$A160>0,(VLOOKUP('(1) Inputs'!$A160, DISAGGED_DATA, 20,)),0) ->  | R153: =IF(A153>0, IncDivCalc!F$2, 0) -> 0.3757213373 | S153: =IF('(1) Inputs'!$A160>0,(VLOOKUP('(1) Inputs'!$A160, PedCol!A149:J7341, 4,)),0) -> 1 | T153: =IF('(1) Inputs'!$A160>0,(VLOOKUP('(1) Inputs'!$A160, PedCol!A149:J7341, 5,)),0) -> 1208 | U153: =IF('(1) Inputs'!$A160>0,(VLOOKUP('(1) Inputs'!$A160, PedCol!A149:J7341, 6,)),0) -> 674 | V153: =IF('(1) Inputs'!$A160>0,(VLOOKUP('(1) Inputs'!$A160, PedCol!A149:J7341, 7,)),0) -> 15
A154: ='(1) Inputs'!A161 -> 60750301021 | B154: 28081.52 | C154: =IF('(1) Inputs'!$A161>0,(VLOOKUP('(1) Inputs'!$A161,Data,9,)),0) -> 1777.777067 | D154: =IF('(1) Inputs'!$A161>0,(VLOOKUP('(1) Inputs'!$A161,Data,11,)),0) -> 34.23179 | E154: =IF('(1) Inputs'!$A161>0,(VLOOKUP('(1) Inputs'!$A161,IOR,2,)),0) -> 0.08381000739 | G154: =IF('(1) Inputs'!$A161>0,(VLOOKUP('(1) Inputs'!$A161,Data,4,)),0) -> 2.155048 | H154: =IF('(1) Inputs'!$A161>0,(VLOOKUP('(1) Inputs'!$A161,Data,5,)),0) -> 0.048292 | J154: =IF('(1) Inputs'!$A161>0,(VLOOKUP('(1) Inputs'!$A161,Data,7,)),0) -> 0.766642 | K154: =IF(ISERROR(IF('(1) Inputs'!$A161>0,(VLOOKUP('(1) Inputs'!$A161,Data,2,))/(VLOOKUP('(1) Inputs'!$A161,Data,3,)),0)),"-",IF('(1) Inputs'!$A161>0,(VLOOKUP('(1) Inputs'!$A161,Data,2,))/(VLOOKUP('(1) Inputs'!$A161,Data,3,)),0)) -> 14.24923946 | L154: =IF('(1) Inputs'!$A161>0,(VLOOKUP('(1) Inputs'!$A161,Data,6,)),0) -> 0.169023 | M154: =IF('(1) Inputs'!$A161>0,(VLOOKUP('(1) Inputs'!$A161,Data,8,)),0) -> 79.9822 | P154: =IF('(1) Inputs'!$A161>0,(VLOOKUP('(1) Inputs'!$A161,Data,15,)),0) -> 65.76821 | Q154: =IF('(1) Inputs'!$A161>0,(VLOOKUP('(1) Inputs'!$A161, DISAGGED_DATA, 20,)),0) ->  | R154: =IF(A154>0, IncDivCalc!F$2, 0) -> 0.3757213373 | S154: =IF('(1) Inputs'!$A161>0,(VLOOKUP('(1) Inputs'!$A161, PedCol!A150:J7342, 4,)),0) ->  | T154: =IF('(1) Inputs'!$A161>0,(VLOOKUP('(1) Inputs'!$A161, PedCol!A150:J7342, 5,)),0) ->  | U154: =IF('(1) Inputs'!$A161>0,(VLOOKUP('(1) Inputs'!$A161, PedCol!A150:J7342, 6,)),0) ->  | V154: =IF('(1) Inputs'!$A161>0,(VLOOKUP('(1) Inputs'!$A161, PedCol!A150:J7342, 7,)),0) -> 
A155: ='(1) Inputs'!A162 -> 60750305002 | B155: 25761.34 | C155: =IF('(1) Inputs'!$A162>0,(VLOOKUP('(1) Inputs'!$A162,Data,9,)),0) -> 1653.582933 | D155: =IF('(1) Inputs'!$A162>0,(VLOOKUP('(1) Inputs'!$A162,Data,11,)),0) -> 38.78493 | E155: =IF('(1) Inputs'!$A162>0,(VLOOKUP('(1) Inputs'!$A162,IOR,2,)),0) -> 0.1151226915 | G155: =IF('(1) Inputs'!$A162>0,(VLOOKUP('(1) Inputs'!$A162,Data,4,)),0) -> 0.346229 | H155: =IF('(1) Inputs'!$A162>0,(VLOOKUP('(1) Inputs'!$A162,Data,5,)),0) -> 0 | J155: =IF('(1) Inputs'!$A162>0,(VLOOKUP('(1) Inputs'!$A162,Data,7,)),0) -> 0 | K155: =IF(ISERROR(IF('(1) Inputs'!$A162>0,(VLOOKUP('(1) Inputs'!$A162,Data,2,))/(VLOOKUP('(1) Inputs'!$A162,Data,3,)),0)),"-",IF('(1) Inputs'!$A162>0,(VLOOKUP('(1) Inputs'!$A162,Data,2,))/(VLOOKUP('(1) Inputs'!$A162,Data,3,)),0)) -> 20.01974821 | L155: =IF('(1) Inputs'!$A162>0,(VLOOKUP('(1) Inputs'!$A162,Data,6,)),0) -> 0 | M155: =IF('(1) Inputs'!$A162>0,(VLOOKUP('(1) Inputs'!$A162,Data,8,)),0) -> 163.31 | P155: =IF('(1) Inputs'!$A162>0,(VLOOKUP('(1) Inputs'!$A162,Data,15,)),0) -> 61.21507 | Q155: =IF('(1) Inputs'!$A162>0,(VLOOKUP('(1) Inputs'!$A162, DISAGGED_DATA, 20,)),0) ->  | R155: =IF(A155>0, IncDivCalc!F$2, 0) -> 0.3757213373 | S155: =IF('(1) Inputs'!$A162>0,(VLOOKUP('(1) Inputs'!$A162, PedCol!A151:J7343, 4,)),0) ->  | T155: =IF('(1) Inputs'!$A162>0,(VLOOKUP('(1) Inputs'!$A162, PedCol!A151:J7343, 5,)),0) ->  | U155: =IF('(1) Inputs'!$A162>0,(VLOOKUP('(1) Inputs'!$A162, PedCol!A151:J7343, 6,)),0) ->  | V155: =IF('(1) Inputs'!$A162>0,(VLOOKUP('(1) Inputs'!$A162, PedCol!A151:J7343, 7,)),0) -> 
A156: ='(1) Inputs'!A163 -> 60750158011 | B156: 54285.21 | C156: =IF('(1) Inputs'!$A163>0,(VLOOKUP('(1) Inputs'!$A163,Data,9,)),0) -> 8208.512 | D156: =IF('(1) Inputs'!$A163>0,(VLOOKUP('(1) Inputs'!$A163,Data,11,)),0) -> 28.4755 | E156: =IF('(1) Inputs'!$A163>0,(VLOOKUP('(1) Inputs'!$A163,IOR,2,)),0) -> 0.1238625563 | G156: =IF('(1) Inputs'!$A163>0,(VLOOKUP('(1) Inputs'!$A163,Data,4,)),0) -> 7.331055 | H156: =IF('(1) Inputs'!$A163>0,(VLOOKUP('(1) Inputs'!$A163,Data,5,)),0) -> 0 | J156: =IF('(1) Inputs'!$A163>0,(VLOOKUP('(1) Inputs'!$A163,Data,7,)),0) -> 1.609256 | K156: =IF(ISERROR(IF('(1) Inputs'!$A163>0,(VLOOKUP('(1) Inputs'!$A163,Data,2,))/(VLOOKUP('(1) Inputs'!$A163,Data,3,)),0)),"-",IF('(1) Inputs'!$A163>0,(VLOOKUP('(1) Inputs'!$A163,Data,2,))/(VLOOKUP('(1) Inputs'!$A163,Data,3,)),0)) -> 16.70781893 | L156: =IF('(1) Inputs'!$A163>0,(VLOOKUP('(1) Inputs'!$A163,Data,6,)),0) -> 0 | M156: =IF('(1) Inputs'!$A163>0,(VLOOKUP('(1) Inputs'!$A163,Data,8,)),0) -> 197.589 | P156: =IF('(1) Inputs'!$A163>0,(VLOOKUP('(1) Inputs'!$A163,Data,15,)),0) -> 71.5245 | Q156: =IF('(1) Inputs'!$A163>0,(VLOOKUP('(1) Inputs'!$A163, DISAGGED_DATA, 20,)),0) ->  | R156: =IF(A156>0, IncDivCalc!F$2, 0) -> 0.3757213373 | S156: =IF('(1) Inputs'!$A163>0,(VLOOKUP('(1) Inputs'!$A163, PedCol!A152:J7344, 4,)),0) -> 2 | T156: =IF('(1) Inputs'!$A163>0,(VLOOKUP('(1) Inputs'!$A163, PedCol!A152:J7344, 5,)),0) -> 406 | U156: =IF('(1) Inputs'!$A163>0,(VLOOKUP('(1) Inputs'!$A163, PedCol!A152:J7344, 6,)),0) -> 136 | V156: =IF('(1) Inputs'!$A163>0,(VLOOKUP('(1) Inputs'!$A163, PedCol!A152:J7344, 7,)),0) -> 17
A157: ='(1) Inputs'!A164 -> 60750161004 | B157: 60702.88 | C157: =IF('(1) Inputs'!$A164>0,(VLOOKUP('(1) Inputs'!$A164,Data,9,)),0) -> 9419.029333 | D157: =IF('(1) Inputs'!$A164>0,(VLOOKUP('(1) Inputs'!$A164,Data,11,)),0) -> 36.82306 | E157: =IF('(1) Inputs'!$A164>0,(VLOOKUP('(1) Inputs'!$A164,IOR,2,)),0) -> 0.3965370839 | G157: =IF('(1) Inputs'!$A164>0,(VLOOKUP('(1) Inputs'!$A164,Data,4,)),0) -> 15.917411 | H157: =IF('(1) Inputs'!$A164>0,(VLOOKUP('(1) Inputs'!$A164,Data,5,)),0) -> 0.107188 | J157: =IF('(1) Inputs'!$A164>0,(VLOOKUP('(1) Inputs'!$A164,Data,7,)),0) -> 4.18033 | K157: =IF(ISERROR(IF('(1) Inputs'!$A164>0,(VLOOKUP('(1) Inputs'!$A164,Data,2,))/(VLOOKUP('(1) Inputs'!$A164,Data,3,)),0)),"-",IF('(1) Inputs'!$A164>0,(VLOOKUP('(1) Inputs'!$A164,Data,2,))/(VLOOKUP('(1) Inputs'!$A164,Data,3,)),0)) -> 94.52054795 | L157: =IF('(1) Inputs'!$A164>0,(VLOOKUP('(1) Inputs'!$A164,Data,6,)),0) -> 0.107188 | M157: =IF('(1) Inputs'!$A164>0,(VLOOKUP('(1) Inputs'!$A164,Data,8,)),0) -> 224.801 | P157: =IF('(1) Inputs'!$A164>0,(VLOOKUP('(1) Inputs'!$A164,Data,15,)),0) -> 63.17694 | Q157: =IF('(1) Inputs'!$A164>0,(VLOOKUP('(1) Inputs'!$A164, DISAGGED_DATA, 20,)),0) ->  | R157: =IF(A157>0, IncDivCalc!F$2, 0) -> 0.3757213373 | S157: =IF('(1) Inputs'!$A164>0,(VLOOKUP('(1) Inputs'!$A164, PedCol!A153:J7345, 4,)),0) -> 2 | T157: =IF('(1) Inputs'!$A164>0,(VLOOKUP('(1) Inputs'!$A164, PedCol!A153:J7345, 5,)),0) -> 1794 | U157: =IF('(1) Inputs'!$A164>0,(VLOOKUP('(1) Inputs'!$A164, PedCol!A153:J7345, 6,)),0) -> 545 | V157: =IF('(1) Inputs'!$A164>0,(VLOOKUP('(1) Inputs'!$A164, PedCol!A153:J7345, 7,)),0) -> 46
A158: ='(1) Inputs'!A165 -> 60750160001 | B158: 81541.36 | C158: =IF('(1) Inputs'!$A165>0,(VLOOKUP('(1) Inputs'!$A165,Data,9,)),0) -> 8358.378667 | D158: =IF('(1) Inputs'!$A165>0,(VLOOKUP('(1) Inputs'!$A165,Data,11,)),0) -> 27.83512 | E158: =IF('(1) Inputs'!$A165>0,(VLOOKUP('(1) Inputs'!$A165,IOR,2,)),0) -> 0.09820626409 | G158: =IF('(1) Inputs'!$A165>0,(VLOOKUP('(1) Inputs'!$A165,Data,4,)),0) -> 67.976664 | H158: =IF('(1) Inputs'!$A165>0,(VLOOKUP('(1) Inputs'!$A165,Data,5,)),0) -> 3.554837 | J158: =IF('(1) Inputs'!$A165>0,(VLOOKUP('(1) Inputs'!$A165,Data,7,)),0) -> 4.424365 | K158: =IF(ISERROR(IF('(1) Inputs'!$A165>0,(VLOOKUP('(1) Inputs'!$A165,Data,2,))/(VLOOKUP('(1) Inputs'!$A165,Data,3,)),0)),"-",IF('(1) Inputs'!$A165>0,(VLOOKUP('(1) Inputs'!$A165,Data,2,))/(VLOOKUP('(1) Inputs'!$A165,Data,3,)),0)) -> 63.04081152 | L158: =IF('(1) Inputs'!$A165>0,(VLOOKUP('(1) Inputs'!$A165,Data,6,)),0) -> 6.726058 | M158: =IF('(1) Inputs'!$A165>0,(VLOOKUP('(1) Inputs'!$A165,Data,8,)),0) -> 61.3848 | P158: =IF('(1) Inputs'!$A165>0,(VLOOKUP('(1) Inputs'!$A165,Data,15,)),0) -> 72.16488 | Q158: =IF('(1) Inputs'!$A165>0,(VLOOKUP('(1) Inputs'!$A165, DISAGGED_DATA, 20,)),0) ->  | R158: =IF(A158>0, IncDivCalc!F$2, 0) -> 0.3757213373 | S158: =IF('(1) Inputs'!$A165>0,(VLOOKUP('(1) Inputs'!$A165, PedCol!A154:J7346, 4,)),0) -> 4 | T158: =IF('(1) Inputs'!$A165>0,(VLOOKUP('(1) Inputs'!$A165, PedCol!A154:J7346, 5,)),0) -> 2465 | U158: =IF('(1) Inputs'!$A165>0,(VLOOKUP('(1) Inputs'!$A165, PedCol!A154:J7346, 6,)),0) -> 1382 | V158: =IF('(1) Inputs'!$A165>0,(VLOOKUP('(1) Inputs'!$A165, PedCol!A154:J7346, 7,)),0) -> 214
A159: ='(1) Inputs'!A166 -> 60750204021 | B159: 33791.77 | C159: =IF('(1) Inputs'!$A166>0,(VLOOKUP('(1) Inputs'!$A166,Data,9,)),0) -> 1697.051733 | D159: =IF('(1) Inputs'!$A166>0,(VLOOKUP('(1) Inputs'!$A166,Data,11,)),0) -> 28.97197 | E159: =IF('(1) Inputs'!$A166>0,(VLOOKUP('(1) Inputs'!$A166,IOR,2,)),0) -> 0.09478743244 | G159: =IF('(1) Inputs'!$A166>0,(VLOOKUP('(1) Inputs'!$A166,Data,4,)),0) -> 1.171305 | H159: =IF('(1) Inputs'!$A166>0,(VLOOKUP('(1) Inputs'!$A166,Data,5,)),0) -> 0 | J159: =IF('(1) Inputs'!$A166>0,(VLOOKUP('(1) Inputs'!$A166,Data,7,)),0) -> 0 | K159: =IF(ISERROR(IF('(1) Inputs'!$A166>0,(VLOOKUP('(1) Inputs'!$A166,Data,2,))/(VLOOKUP('(1) Inputs'!$A166,Data,3,)),0)),"-",IF('(1) Inputs'!$A166>0,(VLOOKUP('(1) Inputs'!$A166,Data,2,))/(VLOOKUP('(1) Inputs'!$A166,Data,3,)),0)) -> 24.84351883 | L159: =IF('(1) Inputs'!$A166>0,(VLOOKUP('(1) Inputs'!$A166,Data,6,)),0) -> 0.451789 | M159: =IF('(1) Inputs'!$A166>0,(VLOOKUP('(1) Inputs'!$A166,Data,8,)),0) -> 178.499 | P159: =IF('(1) Inputs'!$A166>0,(VLOOKUP('(1) Inputs'!$A166,Data,15,)),0) -> 71.02803 | Q159: =IF('(1) Inputs'!$A166>0,(VLOOKUP('(1) Inputs'!$A166, DISAGGED_DATA, 20,)),0) ->  | R159: =IF(A159>0, IncDivCalc!F$2, 0) -> 0.3757213373 | S159: =IF('(1) Inputs'!$A166>0,(VLOOKUP('(1) Inputs'!$A166, PedCol!A155:J7347, 4,)),0) -> 1 | T159: =IF('(1) Inputs'!$A166>0,(VLOOKUP('(1) Inputs'!$A166, PedCol!A155:J7347, 5,)),0) -> 2183 | U159: =IF('(1) Inputs'!$A166>0,(VLOOKUP('(1) Inputs'!$A166, PedCol!A155:J7347, 6,)),0) -> 1417 | V159: =IF('(1) Inputs'!$A166>0,(VLOOKUP('(1) Inputs'!$A166, PedCol!A155:J7347, 7,)),0) -> 19
A160: ='(1) Inputs'!A167 -> 60750158021 | B160: 56531.69 | C160: =IF('(1) Inputs'!$A167>0,(VLOOKUP('(1) Inputs'!$A167,Data,9,)),0) -> 7555.328 | D160: =IF('(1) Inputs'!$A167>0,(VLOOKUP('(1) Inputs'!$A167,Data,11,)),0) -> 27.6957 | E160: =IF('(1) Inputs'!$A167>0,(VLOOKUP('(1) Inputs'!$A167,IOR,2,)),0) -> 0.2452162209 | G160: =IF('(1) Inputs'!$A167>0,(VLOOKUP('(1) Inputs'!$A167,Data,4,)),0) -> 5.885231 | H160: =IF('(1) Inputs'!$A167>0,(VLOOKUP('(1) Inputs'!$A167,Data,5,)),0) -> 0 | J160: =IF('(1) Inputs'!$A167>0,(VLOOKUP('(1) Inputs'!$A167,Data,7,)),0) -> 1.197879 | K160: =IF(ISERROR(IF('(1) Inputs'!$A167>0,(VLOOKUP('(1) Inputs'!$A167,Data,2,))/(VLOOKUP('(1) Inputs'!$A167,Data,3,)),0)),"-",IF('(1) Inputs'!$A167>0,(VLOOKUP('(1) Inputs'!$A167,Data,2,))/(VLOOKUP('(1) Inputs'!$A167,Data,3,)),0)) -> 70.67485634 | L160: =IF('(1) Inputs'!$A167>0,(VLOOKUP('(1) Inputs'!$A167,Data,6,)),0) -> 1.354124 | M160: =IF('(1) Inputs'!$A167>0,(VLOOKUP('(1) Inputs'!$A167,Data,8,)),0) -> 177.792 | P160: =IF('(1) Inputs'!$A167>0,(VLOOKUP('(1) Inputs'!$A167,Data,15,)),0) -> 72.3043 | Q160: =IF('(1) Inputs'!$A167>0,(VLOOKUP('(1) Inputs'!$A167, DISAGGED_DATA, 20,)),0) ->  | R160: =IF(A160>0, IncDivCalc!F$2, 0) -> 0.3757213373 | S160: =IF('(1) Inputs'!$A167>0,(VLOOKUP('(1) Inputs'!$A167, PedCol!A156:J7348, 4,)),0) ->  | T160: =IF('(1) Inputs'!$A167>0,(VLOOKUP('(1) Inputs'!$A167, PedCol!A156:J7348, 5,)),0) ->  | U160: =IF('(1) Inputs'!$A167>0,(VLOOKUP('(1) Inputs'!$A167, PedCol!A156:J7348, 6,)),0) ->  | V160: =IF('(1) Inputs'!$A167>0,(VLOOKUP('(1) Inputs'!$A167, PedCol!A156:J7348, 7,)),0) -> 
A161: ='(1) Inputs'!A168 -> 60750204011 | B161: 50642.07 | C161: =IF('(1) Inputs'!$A168>0,(VLOOKUP('(1) Inputs'!$A168,Data,9,)),0) -> 3578.56 | D161: =IF('(1) Inputs'!$A168>0,(VLOOKUP('(1) Inputs'!$A168,Data,11,)),0) -> 31.74414 | E161: =IF('(1) Inputs'!$A168>0,(VLOOKUP('(1) Inputs'!$A168,IOR,2,)),0) -> 0.3098164808 | G161: =IF('(1) Inputs'!$A168>0,(VLOOKUP('(1) Inputs'!$A168,Data,4,)),0) -> 2.593652 | H161: =IF('(1) Inputs'!$A168>0,(VLOOKUP('(1) Inputs'!$A168,Data,5,)),0) -> 0.168419 | J161: =IF('(1) Inputs'!$A168>0,(VLOOKUP('(1) Inputs'!$A168,Data,7,)),0) -> 0 | K161: =IF(ISERROR(IF('(1) Inputs'!$A168>0,(VLOOKUP('(1) Inputs'!$A168,Data,2,))/(VLOOKUP('(1) Inputs'!$A168,Data,3,)),0)),"-",IF('(1) Inputs'!$A168>0,(VLOOKUP('(1) Inputs'!$A168,Data,2,))/(VLOOKUP('(1) Inputs'!$A168,Data,3,)),0)) -> 31.19119651 | L161: =IF('(1) Inputs'!$A168>0,(VLOOKUP('(1) Inputs'!$A168,Data,6,)),0) -> 0 | M161: =IF('(1) Inputs'!$A168>0,(VLOOKUP('(1) Inputs'!$A168,Data,8,)),0) -> 477.991 | P161: =IF('(1) Inputs'!$A168>0,(VLOOKUP('(1) Inputs'!$A168,Data,15,)),0) -> 68.25586 | Q161: =IF('(1) Inputs'!$A168>0,(VLOOKUP('(1) Inputs'!$A168, DISAGGED_DATA, 20,)),0) ->  | R161: =IF(A161>0, IncDivCalc!F$2, 0) -> 0.3757213373 | S161: =IF('(1) Inputs'!$A168>0,(VLOOKUP('(1) Inputs'!$A168, PedCol!A157:J7349, 4,)),0) ->  | T161: =IF('(1) Inputs'!$A168>0,(VLOOKUP('(1) Inputs'!$A168, PedCol!A157:J7349, 5,)),0) ->  | U161: =IF('(1) Inputs'!$A168>0,(VLOOKUP('(1) Inputs'!$A168, PedCol!A157:J7349, 6,)),0) ->  | V161: =IF('(1) Inputs'!$A168>0,(VLOOKUP('(1) Inputs'!$A168, PedCol!A157:J7349, 7,)),0) -> 
A162: ='(1) Inputs'!A169 -> 60750171022 | B162: 53062.5 | C162: =IF('(1) Inputs'!$A169>0,(VLOOKUP('(1) Inputs'!$A169,Data,9,)),0) -> 7869.333333 | D162: =IF('(1) Inputs'!$A169>0,(VLOOKUP('(1) Inputs'!$A169,Data,11,)),0) -> 34.26679 | E162: =IF('(1) Inputs'!$A169>0,(VLOOKUP('(1) Inputs'!$A169,IOR,2,)),0) -> 0.3066102126 | G162: =IF('(1) Inputs'!$A169>0,(VLOOKUP('(1) Inputs'!$A169,Data,4,)),0) -> 2.507315 | H162: =IF('(1) Inputs'!$A169>0,(VLOOKUP('(1) Inputs'!$A169,Data,5,)),0) -> 0.122308 | J162: =IF('(1) Inputs'!$A169>0,(VLOOKUP('(1) Inputs'!$A169,Data,7,)),0) -> 0.428078 | K162: =IF(ISERROR(IF('(1) Inputs'!$A169>0,(VLOOKUP('(1) Inputs'!$A169,Data,2,))/(VLOOKUP('(1) Inputs'!$A169,Data,3,)),0)),"-",IF('(1) Inputs'!$A169>0,(VLOOKUP('(1) Inputs'!$A169,Data,2,))/(VLOOKUP('(1) Inputs'!$A169,Data,3,)),0)) -> 34.67959074 | L162: =IF('(1) Inputs'!$A169>0,(VLOOKUP('(1) Inputs'!$A169,Data,6,)),0) -> 0 | M162: =IF('(1) Inputs'!$A169>0,(VLOOKUP('(1) Inputs'!$A169,Data,8,)),0) -> 275.74 | P162: =IF('(1) Inputs'!$A169>0,(VLOOKUP('(1) Inputs'!$A169,Data,15,)),0) -> 65.73321 | Q162: =IF('(1) Inputs'!$A169>0,(VLOOKUP('(1) Inputs'!$A169, DISAGGED_DATA, 20,)),0) ->  | R162: =IF(A162>0, IncDivCalc!F$2, 0) -> 0.3757213373 | S162: =IF('(1) Inputs'!$A169>0,(VLOOKUP('(1) Inputs'!$A169, PedCol!A158:J7350, 4,)),0) ->  | T162: =IF('(1) Inputs'!$A169>0,(VLOOKUP('(1) Inputs'!$A169, PedCol!A158:J7350, 5,)),0) ->  | U162: =IF('(1) Inputs'!$A169>0,(VLOOKUP('(1) Inputs'!$A169, PedCol!A158:J7350, 6,)),0) ->  | V162: =IF('(1) Inputs'!$A169>0,(VLOOKUP('(1) Inputs'!$A169, PedCol!A158:J7350, 7,)),0) -> 
